Workbook

Sheet AVISO LEGAL
H2: Fecha de actualización: | J2: 2017-11-13
J23: www.ree.es

Sheet Intercambios por frontera mes
P1: 28
M4: Concepto
M5: Horizonte temporal
M6: Periodo
D8: Ene. | E8: Feb. | F8: Mar. | G8: Abr. | H8: May. | I8: Jun. | J8: Jul. | K8: Ago. | L8: Sep. | M8: Oct. | N8: Nov. | O8: Dic. | P8: =OFFSET(Año!B2,($P$1-1),0) -> 2017
B10: Entradas | C10: Andorra | D10: =OFFSET('II fisicos'!D3,0,($P$1-1)*12) -> 0 | E10: =OFFSET('II fisicos'!E3,0,($P$1-1)*12) -> 0 | F10: =OFFSET('II fisicos'!F3,0,($P$1-1)*12) -> 0.00649 | G10: =OFFSET('II fisicos'!G3,0,($P$1-1)*12) -> 0.00133 | H10: =OFFSET('II fisicos'!H3,0,($P$1-1)*12) -> 0.00603 | I10: =OFFSET('II fisicos'!I3,0,($P$1-1)*12) -> 0.00115 | J10: =OFFSET('II fisicos'!J3,0,($P$1-1)*12) -> 0.00025 | K10: =OFFSET('II fisicos'!K3,0,($P$1-1)*12) -> 0.00013 | L10: =OFFSET('II fisicos'!L3,0,($P$1-1)*12) -> 0.0011 | M10: =OFFSET('II fisicos'!M3,0,($P$1-1)*12) -> 0 | N10: =OFFSET('II fisicos'!N3,0,($P$1-1)*12) -> - | O10: =OFFSET('II fisicos'!O3,0,($P$1-1)*12) -> - | P10: =SUM(D10:O10) -> 0.01648
C11: Francia | D11: =OFFSET('II fisicos'!D4,0,($P$1-1)*12) -> 505.546329 | E11: =OFFSET('II fisicos'!E4,0,($P$1-1)*12) -> 896.209799 | F11: =OFFSET('II fisicos'!F4,0,($P$1-1)*12) -> 1815.841029 | G11: =OFFSET('II fisicos'!G4,0,($P$1-1)*12) -> 1517.279999 | H11: =OFFSET('II fisicos'!H4,0,($P$1-1)*12) -> 1861.617417 | I11: =OFFSET('II fisicos'!I4,0,($P$1-1)*12) -> 1446.751409 | J11: =OFFSET('II fisicos'!J4,0,($P$1-1)*12) -> 1416.440712 | K11: =OFFSET('II fisicos'!K4,0,($P$1-1)*12) -> 1706.722029 | L11: =OFFSET('II fisicos'!L4,0,($P$1-1)*12) -> 1643.487609 | M11: =OFFSET('II fisicos'!M4,0,($P$1-1)*12) -> 1411.4637 | N11: =OFFSET('II fisicos'!N4,0,($P$1-1)*12) -> - | O11: =OFFSET('II fisicos'!O4,0,($P$1-1)*12) -> - | P11: =SUM(D11:O11) -> 14221.36003
C12: Portugal | D12: =OFFSET('II fisicos'!D5,0,($P$1-1)*12) -> 840.391304 | E12: =OFFSET('II fisicos'!E5,0,($P$1-1)*12) -> 917.186626 | F12: =OFFSET('II fisicos'!F5,0,($P$1-1)*12) -> 683.733608 | G12: =OFFSET('II fisicos'!G5,0,($P$1-1)*12) -> 576.253886 | H12: =OFFSET('II fisicos'!H5,0,($P$1-1)*12) -> 614.047106 | I12: =OFFSET('II fisicos'!I5,0,($P$1-1)*12) -> 631.527401 | J12: =OFFSET('II fisicos'!J5,0,($P$1-1)*12) -> 812.145366 | K12: =OFFSET('II fisicos'!K5,0,($P$1-1)*12) -> 901.022565 | L12: =OFFSET('II fisicos'!L5,0,($P$1-1)*12) -> 604.182443 | M12: =OFFSET('II fisicos'!M5,0,($P$1-1)*12) -> 111.1112 | N12: =OFFSET('II fisicos'!N5,0,($P$1-1)*12) -> - | O12: =OFFSET('II fisicos'!O5,0,($P$1-1)*12) -> - | P12: 6691.601505
C13: Marruecos | D13: =OFFSET('II fisicos'!D6,0,($P$1-1)*12) -> 1.2683 | E13: =OFFSET('II fisicos'!E6,0,($P$1-1)*12) -> 0.1249 | F13: =OFFSET('II fisicos'!F6,0,($P$1-1)*12) -> 0.0239 | G13: =OFFSET('II fisicos'!G6,0,($P$1-1)*12) -> 0.0494 | H13: =OFFSET('II fisicos'!H6,0,($P$1-1)*12) -> 0.0255 | I13: =OFFSET('II fisicos'!I6,0,($P$1-1)*12) -> 0.2845 | J13: =OFFSET('II fisicos'!J6,0,($P$1-1)*12) -> 0.0036 | K13: =OFFSET('II fisicos'!K6,0,($P$1-1)*12) -> 0.1204 | L13: =OFFSET('II fisicos'!L6,0,($P$1-1)*12) -> 0.8961 | M13: =OFFSET('II fisicos'!M6,0,($P$1-1)*12) -> 0 | N13: =OFFSET('II fisicos'!N6,0,($P$1-1)*12) -> - | O13: =OFFSET('II fisicos'!O6,0,($P$1-1)*12) -> - | P13: 2.7966
C14: Total | D14: =OFFSET('II fisicos'!D7,0,($P$1-1)*12) -> 1347.205933 | E14: =OFFSET('II fisicos'!E7,0,($P$1-1)*12) -> 1813.521325 | F14: =OFFSET('II fisicos'!F7,0,($P$1-1)*12) -> 2499.605027 | G14: =OFFSET('II fisicos'!G7,0,($P$1-1)*12) -> 2093.584615 | H14: =OFFSET('II fisicos'!H7,0,($P$1-1)*12) -> 2475.696053 | I14: =OFFSET('II fisicos'!I7,0,($P$1-1)*12) -> 2078.56446 | J14: =OFFSET('II fisicos'!J7,0,($P$1-1)*12) -> 2228.589928 | K14: =OFFSET('II fisicos'!K7,0,($P$1-1)*12) -> 2607.865124 | L14: =OFFSET('II fisicos'!L7,0,($P$1-1)*12) -> 2248.567252 | M14: =OFFSET('II fisicos'!M7,0,($P$1-1)*12) -> 1522.5749 | N14: =OFFSET('II fisicos'!N7,0,($P$1-1)*12) -> - | O14: =OFFSET('II fisicos'!O7,0,($P$1-1)*12) -> - | P14: 20915.77462
B15: Salidas | C15: Andorra | D15: =OFFSET('II fisicos'!D8,0,($P$1-1)*12) -> 31.22564 | E15: =OFFSET('II fisicos'!E8,0,($P$1-1)*12) -> 24.86972 | F15: =OFFSET('II fisicos'!F8,0,($P$1-1)*12) -> 17.67933 | G15: =OFFSET('II fisicos'!G8,0,($P$1-1)*12) -> 12.57196 | H15: =OFFSET('II fisicos'!H8,0,($P$1-1)*12) -> 14.20318 | I15: =OFFSET('II fisicos'!I8,0,($P$1-1)*12) -> 11.77998 | J15: =OFFSET('II fisicos'!J8,0,($P$1-1)*12) -> 0.41784 | K15: =OFFSET('II fisicos'!K8,0,($P$1-1)*12) -> 36.58839 | L15: =OFFSET('II fisicos'!L8,0,($P$1-1)*12) -> 9.72422 | M15: =OFFSET('II fisicos'!M8,0,($P$1-1)*12) -> 31.464 | N15: =OFFSET('II fisicos'!N8,0,($P$1-1)*12) -> - | O15: =OFFSET('II fisicos'!O8,0,($P$1-1)*12) -> - | P15: 190.52426
C16: Francia | D16: =OFFSET('II fisicos'!D9,0,($P$1-1)*12) -> 856.010946 | E16: =OFFSET('II fisicos'!E9,0,($P$1-1)*12) -> 490.593496 | F16: =OFFSET('II fisicos'!F9,0,($P$1-1)*12) -> 115.812903 | G16: =OFFSET('II fisicos'!G9,0,($P$1-1)*12) -> 35.824441 | H16: =OFFSET('II fisicos'!H9,0,($P$1-1)*12) -> 5.570766 | I16: =OFFSET('II fisicos'!I9,0,($P$1-1)*12) -> 15.879737 | J16: =OFFSET('II fisicos'!J9,0,($P$1-1)*12) -> 15.412354 | K16: =OFFSET('II fisicos'!K9,0,($P$1-1)*12) -> 1.611058 | L16: =OFFSET('II fisicos'!L9,0,($P$1-1)*12) -> 9.623532 | M16: =OFFSET('II fisicos'!M9,0,($P$1-1)*12) -> 343.9637 | N16: =OFFSET('II fisicos'!N9,0,($P$1-1)*12) -> - | O16: =OFFSET('II fisicos'!O9,0,($P$1-1)*12) -> - | P16: 1890.302933
C17: Portugal | D17: =OFFSET('II fisicos'!D10,0,($P$1-1)*12) -> 590.548745 | E17: =OFFSET('II fisicos'!E10,0,($P$1-1)*12) -> 276.991522 | F17: =OFFSET('II fisicos'!F10,0,($P$1-1)*12) -> 376.177128 | G17: =OFFSET('II fisicos'!G10,0,($P$1-1)*12) -> 466.77073 | H17: =OFFSET('II fisicos'!H10,0,($P$1-1)*12) -> 441.532507 | I17: =OFFSET('II fisicos'!I10,0,($P$1-1)*12) -> 388.75986 | J17: =OFFSET('II fisicos'!J10,0,($P$1-1)*12) -> 343.761738 | K17: =OFFSET('II fisicos'!K10,0,($P$1-1)*12) -> 151.548034 | L17: =OFFSET('II fisicos'!L10,0,($P$1-1)*12) -> 351.866278 | M17: =OFFSET('II fisicos'!M10,0,($P$1-1)*12) -> 455.92 | N17: =OFFSET('II fisicos'!N10,0,($P$1-1)*12) -> - | O17: =OFFSET('II fisicos'!O10,0,($P$1-1)*12) -> - | P17: 3843.876542
C18: Marruecos | D18: =OFFSET('II fisicos'!D11,0,($P$1-1)*12) -> 400.9699 | E18: =OFFSET('II fisicos'!E11,0,($P$1-1)*12) -> 479.9329 | F18: =OFFSET('II fisicos'!F11,0,($P$1-1)*12) -> 532.8549 | G18: =OFFSET('II fisicos'!G11,0,($P$1-1)*12) -> 537.458 | H18: =OFFSET('II fisicos'!H11,0,($P$1-1)*12) -> 569.404 | I18: =OFFSET('II fisicos'!I11,0,($P$1-1)*12) -> 533.286 | J18: =OFFSET('II fisicos'!J11,0,($P$1-1)*12) -> 595.5546 | K18: =OFFSET('II fisicos'!K11,0,($P$1-1)*12) -> 590.2067 | L18: =OFFSET('II fisicos'!L11,0,($P$1-1)*12) -> 484.0448 | M18: =OFFSET('II fisicos'!M11,0,($P$1-1)*12) -> 418.1858 | N18: =OFFSET('II fisicos'!N11,0,($P$1-1)*12) -> - | O18: =OFFSET('II fisicos'!O11,0,($P$1-1)*12) -> - | P18: 5141.8976
C19: Total | D19: =OFFSET('II fisicos'!D12,0,($P$1-1)*12) -> 1878.755231 | E19: =OFFSET('II fisicos'!E12,0,($P$1-1)*12) -> 1272.387638 | F19: =OFFSET('II fisicos'!F12,0,($P$1-1)*12) -> 1042.524261 | G19: =OFFSET('II fisicos'!G12,0,($P$1-1)*12) -> 1052.625131 | H19: =OFFSET('II fisicos'!H12,0,($P$1-1)*12) -> 1030.710453 | I19: =OFFSET('II fisicos'!I12,0,($P$1-1)*12) -> 949.705577 | J19: =OFFSET('II fisicos'!J12,0,($P$1-1)*12) -> 955.146532 | K19: =OFFSET('II fisicos'!K12,0,($P$1-1)*12) -> 779.954182 | L19: =OFFSET('II fisicos'!L12,0,($P$1-1)*12) -> 855.25883 | M19: =OFFSET('II fisicos'!M12,0,($P$1-1)*12) -> 1249.5335 | N19: =OFFSET('II fisicos'!N12,0,($P$1-1)*12) -> - | O19: =OFFSET('II fisicos'!O12,0,($P$1-1)*12) -> - | P19: 11066.60133
B20: Saldo (1) | C20: Andorra | D20: =OFFSET('II fisicos'!D13,0,($P$1-1)*12) -> -31.22564 | E20: =OFFSET('II fisicos'!E13,0,($P$1-1)*12) -> -24.86972 | F20: =OFFSET('II fisicos'!F13,0,($P$1-1)*12) -> -17.67284 | G20: =OFFSET('II fisicos'!G13,0,($P$1-1)*12) -> -12.57063 | H20: =OFFSET('II fisicos'!H13,0,($P$1-1)*12) -> -14.19715 | I20: =OFFSET('II fisicos'!I13,0,($P$1-1)*12) -> -11.77883 | J20: =OFFSET('II fisicos'!J13,0,($P$1-1)*12) -> -0.41759 | K20: =OFFSET('II fisicos'!K13,0,($P$1-1)*12) -> -36.58826 | L20: =OFFSET('II fisicos'!L13,0,($P$1-1)*12) -> -9.72312 | M20: =OFFSET('II fisicos'!M13,0,($P$1-1)*12) -> -31.464 | N20: =OFFSET('II fisicos'!N13,0,($P$1-1)*12) -> - | O20: =OFFSET('II fisicos'!O13,0,($P$1-1)*12) -> - | P20: -190.50778
C21: Francia | D21: =OFFSET('II fisicos'!D14,0,($P$1-1)*12) -> -350.464617 | E21: =OFFSET('II fisicos'!E14,0,($P$1-1)*12) -> 405.616303 | F21: =OFFSET('II fisicos'!F14,0,($P$1-1)*12) -> 1700.028126 | G21: =OFFSET('II fisicos'!G14,0,($P$1-1)*12) -> 1481.455558 | H21: =OFFSET('II fisicos'!H14,0,($P$1-1)*12) -> 1856.046651 | I21: =OFFSET('II fisicos'!I14,0,($P$1-1)*12) -> 1430.871672 | J21: =OFFSET('II fisicos'!J14,0,($P$1-1)*12) -> 1401.028358 | K21: =OFFSET('II fisicos'!K14,0,($P$1-1)*12) -> 1705.110971 | L21: =OFFSET('II fisicos'!L14,0,($P$1-1)*12) -> 1633.864077 | M21: =OFFSET('II fisicos'!M14,0,($P$1-1)*12) -> 1067.5 | N21: =OFFSET('II fisicos'!N14,0,($P$1-1)*12) -> - | O21: =OFFSET('II fisicos'!O14,0,($P$1-1)*12) -> - | P21: 12331.0571
C22: Portugal | D22: =OFFSET('II fisicos'!D15,0,($P$1-1)*12) -> 249.842559 | E22: =OFFSET('II fisicos'!E15,0,($P$1-1)*12) -> 640.195104 | F22: =OFFSET('II fisicos'!F15,0,($P$1-1)*12) -> 307.55648 | G22: =OFFSET('II fisicos'!G15,0,($P$1-1)*12) -> 109.483156 | H22: =OFFSET('II fisicos'!H15,0,($P$1-1)*12) -> 172.514599 | I22: =OFFSET('II fisicos'!I15,0,($P$1-1)*12) -> 242.767541 | J22: =OFFSET('II fisicos'!J15,0,($P$1-1)*12) -> 468.383628 | K22: =OFFSET('II fisicos'!K15,0,($P$1-1)*12) -> 749.474531 | L22: =OFFSET('II fisicos'!L15,0,($P$1-1)*12) -> 252.316165 | M22: =OFFSET('II fisicos'!M15,0,($P$1-1)*12) -> -344.8088 | N22: =OFFSET('II fisicos'!N15,0,($P$1-1)*12) -> - | O22: =OFFSET('II fisicos'!O15,0,($P$1-1)*12) -> - | P22: 2847.724963
C23: Marruecos | D23: =OFFSET('II fisicos'!D16,0,($P$1-1)*12) -> -399.7016 | E23: =OFFSET('II fisicos'!E16,0,($P$1-1)*12) -> -479.808 | F23: =OFFSET('II fisicos'!F16,0,($P$1-1)*12) -> -532.831 | G23: =OFFSET('II fisicos'!G16,0,($P$1-1)*12) -> -537.4086 | H23: =OFFSET('II fisicos'!H16,0,($P$1-1)*12) -> -569.3785 | I23: =OFFSET('II fisicos'!I16,0,($P$1-1)*12) -> -533.0015 | J23: =OFFSET('II fisicos'!J16,0,($P$1-1)*12) -> -595.551 | K23: =OFFSET('II fisicos'!K16,0,($P$1-1)*12) -> -590.0863 | L23: =OFFSET('II fisicos'!L16,0,($P$1-1)*12) -> -483.1487 | M23: =OFFSET('II fisicos'!M16,0,($P$1-1)*12) -> -418.1858 | N23: =OFFSET('II fisicos'!N16,0,($P$1-1)*12) -> - | O23: =OFFSET('II fisicos'!O16,0,($P$1-1)*12) -> - | P23: =SUM(D23:O23) -> -5139.101
C24: Total | D24: =OFFSET('II fisicos'!D17,0,($P$1-1)*12) -> -531.549298 | E24: =OFFSET('II fisicos'!E17,0,($P$1-1)*12) -> 541.133687 | F24: =OFFSET('II fisicos'!F17,0,($P$1-1)*12) -> 1457.080766 | G24: =OFFSET('II fisicos'!G17,0,($P$1-1)*12) -> 1040.959484 | H24: =OFFSET('II fisicos'!H17,0,($P$1-1)*12) -> 1444.9856 | I24: =OFFSET('II fisicos'!I17,0,($P$1-1)*12) -> 1128.858883 | J24: =OFFSET('II fisicos'!J17,0,($P$1-1)*12) -> 1273.443396 | K24: =OFFSET('II fisicos'!K17,0,($P$1-1)*12) -> 1827.910942 | L24: =OFFSET('II fisicos'!L17,0,($P$1-1)*12) -> 1393.308422 | M24: =OFFSET('II fisicos'!M17,0,($P$1-1)*12) -> 273.0414 | N24: =OFFSET('II fisicos'!N17,0,($P$1-1)*12) -> - | O24: =OFFSET('II fisicos'!O17,0,($P$1-1)*12) -> - | P24: =SUM(D24:O24) -> 9849.173282
B25: (1) Valor positivo: saldo importador; Valor negativo: saldo exportador.

Sheet Intercambios por frontera año
M1: 3
K4: Concepto
K5: Horizonte temporal
K6: Periodo
D8: =OFFSET('II fisicos'!D109,0,($M$1-1)*10) -> 2010 | E8: =OFFSET('II fisicos'!E109,0,($M$1-1)*10) -> 2011 | F8: =OFFSET('II fisicos'!F109,0,($M$1-1)*10) -> 2012 | G8: =OFFSET('II fisicos'!G109,0,($M$1-1)*10) -> 2013 | H8: =OFFSET('II fisicos'!H109,0,($M$1-1)*10) -> 2014 | I8: =OFFSET('II fisicos'!I109,0,($M$1-1)*10) -> 2015 | J8: =OFFSET('II fisicos'!J109,0,($M$1-1)*10) -> 2016 | K8: =OFFSET('II fisicos'!K109,0,($M$1-1)*10) -> 2017 | L8: =OFFSET('II fisicos'!L109,0,($M$1-1)*10) -> 2018 | M8: =OFFSET('II fisicos'!M109,0,($M$1-1)*10) -> 2019
B10: Entradas | C10: Andorra | D10: =OFFSET('II fisicos'!D110,0,($M$1-1)*10) -> 0.00037 | E10: =OFFSET('II fisicos'!E110,0,($M$1-1)*10) -> 0.00056 | F10: =OFFSET('II fisicos'!F110,0,($M$1-1)*10) -> 0.00158 | G10: =OFFSET('II fisicos'!G110,0,($M$1-1)*10) -> 0.0011 | H10: =OFFSET('II fisicos'!H110,0,($M$1-1)*10) -> 0.0056 | I10: =OFFSET('II fisicos'!I110,0,($M$1-1)*10) -> 0.00623 | J10: =OFFSET('II fisicos'!J110,0,($M$1-1)*10) -> 0.00398 | K10: =OFFSET('II fisicos'!K110,0,($M$1-1)*10) -> 0.01648 | L10: =OFFSET('II fisicos'!L110,0,($M$1-1)*10) -> - | M10: =OFFSET('II fisicos'!M110,0,($M$1-1)*10) -> -
C11: Francia | D11: =OFFSET('II fisicos'!D111,0,($M$1-1)*10) -> 1983.27327 | E11: =OFFSET('II fisicos'!E111,0,($M$1-1)*10) -> 3986.99977 | F11: =OFFSET('II fisicos'!F111,0,($M$1-1)*10) -> 4910.520955 | G11: =OFFSET('II fisicos'!G111,0,($M$1-1)*10) -> 4879.074793 | H11: =OFFSET('II fisicos'!H111,0,($M$1-1)*10) -> 5962.761056 | I11: =OFFSET('II fisicos'!I111,0,($M$1-1)*10) -> 9130.887577 | J11: =OFFSET('II fisicos'!J111,0,($M$1-1)*10) -> 12135.33106 | K11: =OFFSET('II fisicos'!K111,0,($M$1-1)*10) -> 14221.36003 | L11: =OFFSET('II fisicos'!L111,0,($M$1-1)*10) -> - | M11: =OFFSET('II fisicos'!M111,0,($M$1-1)*10) -> -
C12: Portugal | D12: =OFFSET('II fisicos'!D112,0,($M$1-1)*10) -> 3189.059074 | E12: =OFFSET('II fisicos'!E112,0,($M$1-1)*10) -> 3929.830879 | F12: =OFFSET('II fisicos'!F112,0,($M$1-1)*10) -> 2870.608157 | G12: =OFFSET('II fisicos'!G112,0,($M$1-1)*10) -> 5323.46641 | H12: =OFFSET('II fisicos'!H112,0,($M$1-1)*10) -> 6344.728403 | I12: =OFFSET('II fisicos'!I112,0,($M$1-1)*10) -> 5810.698362 | J12: =OFFSET('II fisicos'!J112,0,($M$1-1)*10) -> 9701.608037 | K12: =OFFSET('II fisicos'!K112,0,($M$1-1)*10) -> 6691.601505 | L12: =OFFSET('II fisicos'!L112,0,($M$1-1)*10) -> - | M12: =OFFSET('II fisicos'!M112,0,($M$1-1)*10) -> -
C13: Marruecos | D13: =OFFSET('II fisicos'!D113,0,($M$1-1)*10) -> 33.91932 | E13: =OFFSET('II fisicos'!E113,0,($M$1-1)*10) -> 15.61441 | F13: =OFFSET('II fisicos'!F113,0,($M$1-1)*10) -> 4.64275 | G13: =OFFSET('II fisicos'!G113,0,($M$1-1)*10) -> 1.12393 | H13: =OFFSET('II fisicos'!H113,0,($M$1-1)*10) -> 2.5326 | I13: =OFFSET('II fisicos'!I113,0,($M$1-1)*10) -> 14.13929 | J13: =OFFSET('II fisicos'!J113,0,($M$1-1)*10) -> 7.91737 | K13: =OFFSET('II fisicos'!K113,0,($M$1-1)*10) -> 2.7966 | L13: =OFFSET('II fisicos'!L113,0,($M$1-1)*10) -> - | M13: =OFFSET('II fisicos'!M113,0,($M$1-1)*10) -> -
C14: Total | D14: =OFFSET('II fisicos'!D114,0,($M$1-1)*10) -> 5206.252034 | E14: =OFFSET('II fisicos'!E114,0,($M$1-1)*10) -> 7932.445619 | F14: =OFFSET('II fisicos'!F114,0,($M$1-1)*10) -> 7785.773442 | G14: =OFFSET('II fisicos'!G114,0,($M$1-1)*10) -> 10203.66623 | H14: =OFFSET('II fisicos'!H114,0,($M$1-1)*10) -> 12310.02766 | I14: =OFFSET('II fisicos'!I114,0,($M$1-1)*10) -> 14955.73146 | J14: =OFFSET('II fisicos'!J114,0,($M$1-1)*10) -> 21844.86044 | K14: =OFFSET('II fisicos'!K114,0,($M$1-1)*10) -> 20915.77462 | L14: =OFFSET('II fisicos'!L114,0,($M$1-1)*10) -> - | M14: =OFFSET('II fisicos'!M114,0,($M$1-1)*10) -> -
B15: Salidas | C15: Andorra | D15: =OFFSET('II fisicos'!D115,0,($M$1-1)*10) -> 264.49448 | E15: =OFFSET('II fisicos'!E115,0,($M$1-1)*10) -> 305.7133 | F15: =OFFSET('II fisicos'!F115,0,($M$1-1)*10) -> 286.21886 | G15: =OFFSET('II fisicos'!G115,0,($M$1-1)*10) -> 287.39902 | H15: =OFFSET('II fisicos'!H115,0,($M$1-1)*10) -> 234.51144 | I15: =OFFSET('II fisicos'!I115,0,($M$1-1)*10) -> 264.05766 | J15: =OFFSET('II fisicos'!J115,0,($M$1-1)*10) -> 278.28441 | K15: =OFFSET('II fisicos'!K115,0,($M$1-1)*10) -> 190.52426 | L15: =OFFSET('II fisicos'!L115,0,($M$1-1)*10) -> - | M15: =OFFSET('II fisicos'!M115,0,($M$1-1)*10) -> -
C16: Francia | D16: =OFFSET('II fisicos'!D116,0,($M$1-1)*10) -> 3514.193683 | E16: =OFFSET('II fisicos'!E116,0,($M$1-1)*10) -> 2462.592166 | F16: =OFFSET('II fisicos'!F116,0,($M$1-1)*10) -> 3027.728843 | G16: =OFFSET('II fisicos'!G116,0,($M$1-1)*10) -> 3171.208436 | H16: =OFFSET('II fisicos'!H116,0,($M$1-1)*10) -> 2395.265388 | I16: =OFFSET('II fisicos'!I116,0,($M$1-1)*10) -> 1806.675265 | J16: =OFFSET('II fisicos'!J116,0,($M$1-1)*10) -> 4333.822334 | K16: =OFFSET('II fisicos'!K116,0,($M$1-1)*10) -> 1890.302933 | L16: =OFFSET('II fisicos'!L116,0,($M$1-1)*10) -> - | M16: =OFFSET('II fisicos'!M116,0,($M$1-1)*10) -> -
C17: Portugal | D17: =OFFSET('II fisicos'!D117,0,($M$1-1)*10) -> 5823.346539 | E17: =OFFSET('II fisicos'!E117,0,($M$1-1)*10) -> 6743.869447 | F17: =OFFSET('II fisicos'!F117,0,($M$1-1)*10) -> 10767.61921 | G17: =OFFSET('II fisicos'!G117,0,($M$1-1)*10) -> 8100.119217 | H17: =OFFSET('II fisicos'!H117,0,($M$1-1)*10) -> 7247.42409 | I17: =OFFSET('II fisicos'!I117,0,($M$1-1)*10) -> 8077.110845 | J17: =OFFSET('II fisicos'!J117,0,($M$1-1)*10) -> 4615.514635 | K17: =OFFSET('II fisicos'!K117,0,($M$1-1)*10) -> 3843.876542 | L17: =OFFSET('II fisicos'!L117,0,($M$1-1)*10) -> - | M17: =OFFSET('II fisicos'!M117,0,($M$1-1)*10) -> -
C18: Marruecos | D18: =OFFSET('II fisicos'!D118,0,($M$1-1)*10) -> 3936.89639 | E18: =OFFSET('II fisicos'!E118,0,($M$1-1)*10) -> 4510.39704 | F18: =OFFSET('II fisicos'!F118,0,($M$1-1)*10) -> 4904.16012 | G18: =OFFSET('II fisicos'!G118,0,($M$1-1)*10) -> 5377.07201 | H18: =OFFSET('II fisicos'!H118,0,($M$1-1)*10) -> 5838.95167 | I18: =OFFSET('II fisicos'!I118,0,($M$1-1)*10) -> 4941.04878 | J18: =OFFSET('II fisicos'!J118,0,($M$1-1)*10) -> 4949.92551 | K18: =OFFSET('II fisicos'!K118,0,($M$1-1)*10) -> 5141.8976 | L18: =OFFSET('II fisicos'!L118,0,($M$1-1)*10) -> - | M18: =OFFSET('II fisicos'!M118,0,($M$1-1)*10) -> -
C19: Total | D19: =OFFSET('II fisicos'!D119,0,($M$1-1)*10) -> 13538.93109 | E19: =OFFSET('II fisicos'!E119,0,($M$1-1)*10) -> 14022.57195 | F19: =OFFSET('II fisicos'!F119,0,($M$1-1)*10) -> 18985.72703 | G19: =OFFSET('II fisicos'!G119,0,($M$1-1)*10) -> 16935.79868 | H19: =OFFSET('II fisicos'!H119,0,($M$1-1)*10) -> 15716.15259 | I19: =OFFSET('II fisicos'!I119,0,($M$1-1)*10) -> 15088.89255 | J19: =OFFSET('II fisicos'!J119,0,($M$1-1)*10) -> 14177.54689 | K19: =OFFSET('II fisicos'!K119,0,($M$1-1)*10) -> 11066.60133 | L19: =OFFSET('II fisicos'!L119,0,($M$1-1)*10) -> - | M19: =OFFSET('II fisicos'!M119,0,($M$1-1)*10) -> -
B20: Saldo (1) | C20: Andorra | D20: =OFFSET('II fisicos'!D120,0,($M$1-1)*10) -> -264.49411 | E20: =OFFSET('II fisicos'!E120,0,($M$1-1)*10) -> -305.71274 | F20: =OFFSET('II fisicos'!F120,0,($M$1-1)*10) -> -286.21728 | G20: =OFFSET('II fisicos'!G120,0,($M$1-1)*10) -> -287.39792 | H20: =OFFSET('II fisicos'!H120,0,($M$1-1)*10) -> -234.50584 | I20: =OFFSET('II fisicos'!I120,0,($M$1-1)*10) -> -264.05143 | J20: =OFFSET('II fisicos'!J120,0,($M$1-1)*10) -> -278.28043 | K20: =OFFSET('II fisicos'!K120,0,($M$1-1)*10) -> -190.50778 | L20: =OFFSET('II fisicos'!L120,0,($M$1-1)*10) -> - | M20: =OFFSET('II fisicos'!M120,0,($M$1-1)*10) -> -
C21: Francia | D21: =OFFSET('II fisicos'!D121,0,($M$1-1)*10) -> -1530.920413 | E21: =OFFSET('II fisicos'!E121,0,($M$1-1)*10) -> 1524.407604 | F21: =OFFSET('II fisicos'!F121,0,($M$1-1)*10) -> 1882.792112 | G21: =OFFSET('II fisicos'!G121,0,($M$1-1)*10) -> 1707.866357 | H21: =OFFSET('II fisicos'!H121,0,($M$1-1)*10) -> 3567.495668 | I21: =OFFSET('II fisicos'!I121,0,($M$1-1)*10) -> 7324.212312 | J21: =OFFSET('II fisicos'!J121,0,($M$1-1)*10) -> 7801.508721 | K21: =OFFSET('II fisicos'!K121,0,($M$1-1)*10) -> 12331.0571 | L21: =OFFSET('II fisicos'!L121,0,($M$1-1)*10) -> - | M21: =OFFSET('II fisicos'!M121,0,($M$1-1)*10) -> -
C22: Portugal | D22: =OFFSET('II fisicos'!D122,0,($M$1-1)*10) -> -2634.287465 | E22: =OFFSET('II fisicos'!E122,0,($M$1-1)*10) -> -2814.038568 | F22: =OFFSET('II fisicos'!F122,0,($M$1-1)*10) -> -7897.011053 | G22: =OFFSET('II fisicos'!G122,0,($M$1-1)*10) -> -2776.652807 | H22: =OFFSET('II fisicos'!H122,0,($M$1-1)*10) -> -902.695687 | I22: =OFFSET('II fisicos'!I122,0,($M$1-1)*10) -> -2266.412483 | J22: =OFFSET('II fisicos'!J122,0,($M$1-1)*10) -> 5086.093402 | K22: =OFFSET('II fisicos'!K122,0,($M$1-1)*10) -> 2847.724963 | L22: =OFFSET('II fisicos'!L122,0,($M$1-1)*10) -> - | M22: =OFFSET('II fisicos'!M122,0,($M$1-1)*10) -> -
C23: Marruecos | D23: =OFFSET('II fisicos'!D123,0,($M$1-1)*10) -> -3902.97707 | E23: =OFFSET('II fisicos'!E123,0,($M$1-1)*10) -> -4494.78263 | F23: =OFFSET('II fisicos'!F123,0,($M$1-1)*10) -> -4899.51737 | G23: =OFFSET('II fisicos'!G123,0,($M$1-1)*10) -> -5375.94808 | H23: =OFFSET('II fisicos'!H123,0,($M$1-1)*10) -> -5836.41907 | I23: =OFFSET('II fisicos'!I123,0,($M$1-1)*10) -> -4926.90949 | J23: =OFFSET('II fisicos'!J123,0,($M$1-1)*10) -> -4942.00814 | K23: =OFFSET('II fisicos'!K123,0,($M$1-1)*10) -> -5139.101 | L23: =OFFSET('II fisicos'!L123,0,($M$1-1)*10) -> - | M23: =OFFSET('II fisicos'!M123,0,($M$1-1)*10) -> -
C24: Total | D24: =OFFSET('II fisicos'!D124,0,($M$1-1)*10) -> -8332.679058 | E24: =OFFSET('II fisicos'!E124,0,($M$1-1)*10) -> -6090.126334 | F24: =OFFSET('II fisicos'!F124,0,($M$1-1)*10) -> -11199.95359 | G24: =OFFSET('II fisicos'!G124,0,($M$1-1)*10) -> -6732.13245 | H24: =OFFSET('II fisicos'!H124,0,($M$1-1)*10) -> -3406.124929 | I24: =OFFSET('II fisicos'!I124,0,($M$1-1)*10) -> -133.161091 | J24: =OFFSET('II fisicos'!J124,0,($M$1-1)*10) -> 7667.313553 | K24: =OFFSET('II fisicos'!K124,0,($M$1-1)*10) -> 9849.173282 | L24: =OFFSET('II fisicos'!L124,0,($M$1-1)*10) -> - | M24: =OFFSET('II fisicos'!M124,0,($M$1-1)*10) -> -
B25: (1) Valor positivo: saldo importador; Valor negativo: saldo exportador.
B26: =IF(M1=3,IF(MONTH(FACT)=1,"Datos a 31 de diciembre.",CONCATENATE("Datos a 31 de diciembre. Para el año ",YEAR('AVISO LEGAL'!J2), " datos a ",TEXT('AVISO LEGAL'!J2-30,"mmmm")," de ",YEAR('AVISO LEGAL'!J2),".")),"Datos a 31 de diciembre.") -> Datos a 31 de diciembre. Para el año 2017 datos a octubre de 2017.

Sheet Entradas por linea mes
P1: 1
P2: 28
M4: Concepto
M5: Horizonte temporal
M6: Periodo
D8: Ene. | E8: Feb. | F8: Mar. | G8: Abr. | H8: May. | I8: Jun. | J8: Jul. | K8: Ago. | L8: Sep. | M8: Oct. | N8: Nov. | O8: Dic. | P8: =OFFSET(Año!B2,($P$2-1),0) -> 2017
B10: Andorra | C10: Adrall-Margineda | D10: =OFFSET('II fisicos'!D20,0,($P$2-1)*12) -> 0 | E10: =OFFSET('II fisicos'!E20,0,($P$2-1)*12) -> 0 | F10: =OFFSET('II fisicos'!F20,0,($P$2-1)*12) -> 0.00649 | G10: =OFFSET('II fisicos'!G20,0,($P$2-1)*12) -> 0.00133 | H10: =OFFSET('II fisicos'!H20,0,($P$2-1)*12) -> 0.00603 | I10: =OFFSET('II fisicos'!I20,0,($P$2-1)*12) -> 0.00115 | J10: =OFFSET('II fisicos'!J20,0,($P$2-1)*12) -> 0.00025 | K10: =OFFSET('II fisicos'!K20,0,($P$2-1)*12) -> 0.00013 | L10: =OFFSET('II fisicos'!L20,0,($P$2-1)*12) -> 0.0011 | M10: =OFFSET('II fisicos'!M20,0,($P$2-1)*12) -> - | N10: =OFFSET('II fisicos'!N20,0,($P$2-1)*12) -> - | O10: =OFFSET('II fisicos'!O20,0,($P$2-1)*12) -> - | P10: =IF(SUM(D10:O10)=0,"-",SUM(D10:O10)) -> 0.01648
C11: Total | D11: =OFFSET('II fisicos'!D21,0,($P$2-1)*12) -> 0 | E11: =OFFSET('II fisicos'!E21,0,($P$2-1)*12) -> 0 | F11: =OFFSET('II fisicos'!F21,0,($P$2-1)*12) -> 0.00649 | G11: =OFFSET('II fisicos'!G21,0,($P$2-1)*12) -> 0.00133 | H11: =OFFSET('II fisicos'!H21,0,($P$2-1)*12) -> 0.00603 | I11: =OFFSET('II fisicos'!I21,0,($P$2-1)*12) -> 0.00115 | J11: =OFFSET('II fisicos'!J21,0,($P$2-1)*12) -> 0.00025 | K11: =OFFSET('II fisicos'!K21,0,($P$2-1)*12) -> 0.00013 | L11: =OFFSET('II fisicos'!L21,0,($P$2-1)*12) -> 0.0011 | M11: =OFFSET('II fisicos'!M21,0,($P$2-1)*12) -> - | N11: =OFFSET('II fisicos'!N21,0,($P$2-1)*12) -> - | O11: =OFFSET('II fisicos'!O21,0,($P$2-1)*12) -> - | P11: =IF(SUM(D11:O11)=0,"-",SUM(D11:O11)) -> 0.01648
B12: Francia | C12: Arkale-Argia | D12: =OFFSET('II fisicos'!D22,0,($P$2-1)*12) -> 27.479321 | E12: =OFFSET('II fisicos'!E22,0,($P$2-1)*12) -> 64.809684 | F12: =OFFSET('II fisicos'!F22,0,($P$2-1)*12) -> 161.323738 | G12: =OFFSET('II fisicos'!G22,0,($P$2-1)*12) -> 135.715033 | H12: =OFFSET('II fisicos'!H22,0,($P$2-1)*12) -> 176.743926 | I12: =OFFSET('II fisicos'!I22,0,($P$2-1)*12) -> 94.880737 | J12: =OFFSET('II fisicos'!J22,0,($P$2-1)*12) -> 67.950301 | K12: =OFFSET('II fisicos'!K22,0,($P$2-1)*12) -> 84.754282 | L12: =OFFSET('II fisicos'!L22,0,($P$2-1)*12) -> 44.137132 | M12: =OFFSET('II fisicos'!M22,0,($P$2-1)*12) -> - | N12: =OFFSET('II fisicos'!N22,0,($P$2-1)*12) -> - | O12: =OFFSET('II fisicos'!O22,0,($P$2-1)*12) -> - | P12: 857.794154
C13: Benós-Lac D'oo | D13: =OFFSET('II fisicos'!D23,0,($P$2-1)*12) -> 2e-06 | E13: =OFFSET('II fisicos'!E23,0,($P$2-1)*12) -> 0 | F13: =OFFSET('II fisicos'!F23,0,($P$2-1)*12) -> 0.047123 | G13: =OFFSET('II fisicos'!G23,0,($P$2-1)*12) -> 0 | H13: =OFFSET('II fisicos'!H23,0,($P$2-1)*12) -> 0 | I13: =OFFSET('II fisicos'!I23,0,($P$2-1)*12) -> 0 | J13: =OFFSET('II fisicos'!J23,0,($P$2-1)*12) -> 0 | K13: =OFFSET('II fisicos'!K23,0,($P$2-1)*12) -> 0.079682 | L13: =OFFSET('II fisicos'!L23,0,($P$2-1)*12) -> 4e-06 | M13: =OFFSET('II fisicos'!M23,0,($P$2-1)*12) -> - | N13: =OFFSET('II fisicos'!N23,0,($P$2-1)*12) -> - | O13: =OFFSET('II fisicos'!O23,0,($P$2-1)*12) -> - | P13: 0.126811
C14: Biescas-Pragneres | D14: =OFFSET('II fisicos'!D24,0,($P$2-1)*12) -> 21.156712 | E14: =OFFSET('II fisicos'!E24,0,($P$2-1)*12) -> 26.374379 | F14: =OFFSET('II fisicos'!F24,0,($P$2-1)*12) -> 43.434992 | G14: =OFFSET('II fisicos'!G24,0,($P$2-1)*12) -> 45.71073 | H14: =OFFSET('II fisicos'!H24,0,($P$2-1)*12) -> 37.415657 | I14: =OFFSET('II fisicos'!I24,0,($P$2-1)*12) -> 18.829088 | J14: =OFFSET('II fisicos'!J24,0,($P$2-1)*12) -> 44.857482 | K14: =OFFSET('II fisicos'!K24,0,($P$2-1)*12) -> 92.172933 | L14: =OFFSET('II fisicos'!L24,0,($P$2-1)*12) -> 41.855534 | M14: =OFFSET('II fisicos'!M24,0,($P$2-1)*12) -> - | N14: =OFFSET('II fisicos'!N24,0,($P$2-1)*12) -> - | O14: =OFFSET('II fisicos'!O24,0,($P$2-1)*12) -> - | P14: 371.807507
C15: Hernani-Argia | D15: =OFFSET('II fisicos'!D25,0,($P$2-1)*12) -> 157.074131 | E15: =OFFSET('II fisicos'!E25,0,($P$2-1)*12) -> 257.818756 | F15: =OFFSET('II fisicos'!F25,0,($P$2-1)*12) -> 605.721702 | G15: =OFFSET('II fisicos'!G25,0,($P$2-1)*12) -> 598.095442 | H15: =OFFSET('II fisicos'!H25,0,($P$2-1)*12) -> 667.841078 | I15: =OFFSET('II fisicos'!I25,0,($P$2-1)*12) -> 406.411464 | J15: =OFFSET('II fisicos'!J25,0,($P$2-1)*12) -> 502.626538 | K15: =OFFSET('II fisicos'!K25,0,($P$2-1)*12) -> 634.148964 | L15: =OFFSET('II fisicos'!L25,0,($P$2-1)*12) -> 619.879401 | M15: =OFFSET('II fisicos'!M25,0,($P$2-1)*12) -> - | N15: =OFFSET('II fisicos'!N25,0,($P$2-1)*12) -> - | O15: =OFFSET('II fisicos'!O25,0,($P$2-1)*12) -> - | P15: 4449.617476
C16: Irún-Errondenia | D16: =OFFSET('II fisicos'!D26,0,($P$2-1)*12) -> 0 | E16: =OFFSET('II fisicos'!E26,0,($P$2-1)*12) -> 0 | F16: =OFFSET('II fisicos'!F26,0,($P$2-1)*12) -> 0 | G16: =OFFSET('II fisicos'!G26,0,($P$2-1)*12) -> 0 | H16: =OFFSET('II fisicos'!H26,0,($P$2-1)*12) -> 0 | I16: =OFFSET('II fisicos'!I26,0,($P$2-1)*12) -> 0 | J16: =OFFSET('II fisicos'!J26,0,($P$2-1)*12) -> 0 | K16: =OFFSET('II fisicos'!K26,0,($P$2-1)*12) -> 0 | L16: =OFFSET('II fisicos'!L26,0,($P$2-1)*12) -> 0 | M16: =OFFSET('II fisicos'!M26,0,($P$2-1)*12) -> - | N16: =OFFSET('II fisicos'!N26,0,($P$2-1)*12) -> - | O16: =OFFSET('II fisicos'!O26,0,($P$2-1)*12) -> - | P16: -
C17: Santa Llogaia-Baixas | D17: =OFFSET('II fisicos'!D27,0,($P$2-1)*12) -> 205.782644 | E17: =OFFSET('II fisicos'!E27,0,($P$2-1)*12) -> 376.740042 | F17: =OFFSET('II fisicos'!F27,0,($P$2-1)*12) -> 684.459484 | G17: =OFFSET('II fisicos'!G27,0,($P$2-1)*12) -> 509.368424 | H17: =OFFSET('II fisicos'!H27,0,($P$2-1)*12) -> 679.307787 | I17: =OFFSET('II fisicos'!I27,0,($P$2-1)*12) -> 638.697383 | J17: =OFFSET('II fisicos'!J27,0,($P$2-1)*12) -> 550.229807 | K17: =OFFSET('II fisicos'!K27,0,($P$2-1)*12) -> 658.447921 | L17: =OFFSET('II fisicos'!L27,0,($P$2-1)*12) -> 648.286066 | M17: =OFFSET('II fisicos'!M27,0,($P$2-1)*12) -> - | N17: =OFFSET('II fisicos'!N27,0,($P$2-1)*12) -> - | O17: =OFFSET('II fisicos'!O27,0,($P$2-1)*12) -> - | P17: 4951.319558
C18: Vic-Baixas | D18: =OFFSET('II fisicos'!D28,0,($P$2-1)*12) -> 94.053519 | E18: =OFFSET('II fisicos'!E28,0,($P$2-1)*12) -> 170.466938 | F18: =OFFSET('II fisicos'!F28,0,($P$2-1)*12) -> 320.85399 | G18: =OFFSET('II fisicos'!G28,0,($P$2-1)*12) -> 228.39037 | H18: =OFFSET('II fisicos'!H28,0,($P$2-1)*12) -> 300.308969 | I18: =OFFSET('II fisicos'!I28,0,($P$2-1)*12) -> 287.932737 | J18: =OFFSET('II fisicos'!J28,0,($P$2-1)*12) -> 250.776584 | K18: =OFFSET('II fisicos'!K28,0,($P$2-1)*12) -> 237.118247 | L18: =OFFSET('II fisicos'!L28,0,($P$2-1)*12) -> 289.329472 | M18: =OFFSET('II fisicos'!M28,0,($P$2-1)*12) -> - | N18: =OFFSET('II fisicos'!N28,0,($P$2-1)*12) -> - | O18: =OFFSET('II fisicos'!O28,0,($P$2-1)*12) -> - | P18: 2179.230826
C19: Total | D19: =OFFSET('II fisicos'!D29,0,($P$2-1)*12) -> 505.546329 | E19: =OFFSET('II fisicos'!E29,0,($P$2-1)*12) -> 896.209799 | F19: =OFFSET('II fisicos'!F29,0,($P$2-1)*12) -> 1815.841029 | G19: =OFFSET('II fisicos'!G29,0,($P$2-1)*12) -> 1517.279999 | H19: =OFFSET('II fisicos'!H29,0,($P$2-1)*12) -> 1861.617417 | I19: =OFFSET('II fisicos'!I29,0,($P$2-1)*12) -> 1446.751409 | J19: =OFFSET('II fisicos'!J29,0,($P$2-1)*12) -> 1416.440712 | K19: =OFFSET('II fisicos'!K29,0,($P$2-1)*12) -> 1706.722029 | L19: =OFFSET('II fisicos'!L29,0,($P$2-1)*12) -> 1643.487609 | M19: =OFFSET('II fisicos'!M29,0,($P$2-1)*12) -> - | N19: =OFFSET('II fisicos'!N29,0,($P$2-1)*12) -> - | O19: =OFFSET('II fisicos'!O29,0,($P$2-1)*12) -> - | P19: 12809.89633
B20: Portugal | C20: Aldeadávila-Pocinho 1 | D20: =OFFSET('II fisicos'!D30,0,($P$2-1)*12) -> 17.5408 | E20: =OFFSET('II fisicos'!E30,0,($P$2-1)*12) -> 34.7775 | F20: =OFFSET('II fisicos'!F30,0,($P$2-1)*12) -> 19.5968 | G20: =OFFSET('II fisicos'!G30,0,($P$2-1)*12) -> 9.393 | H20: =OFFSET('II fisicos'!H30,0,($P$2-1)*12) -> 8.4427 | I20: =OFFSET('II fisicos'!I30,0,($P$2-1)*12) -> 15.7273 | J20: =OFFSET('II fisicos'!J30,0,($P$2-1)*12) -> 25.1922 | K20: =OFFSET('II fisicos'!K30,0,($P$2-1)*12) -> 34.0654 | L20: =OFFSET('II fisicos'!L30,0,($P$2-1)*12) -> 14.4836 | M20: =OFFSET('II fisicos'!M30,0,($P$2-1)*12) -> - | N20: =OFFSET('II fisicos'!N30,0,($P$2-1)*12) -> - | O20: =OFFSET('II fisicos'!O30,0,($P$2-1)*12) -> - | P20: 179.2193
C21: Aldeadávila-Pocinho 2 | D21: =OFFSET('II fisicos'!D31,0,($P$2-1)*12) -> 17.4855 | E21: =OFFSET('II fisicos'!E31,0,($P$2-1)*12) -> 34.6529 | F21: =OFFSET('II fisicos'!F31,0,($P$2-1)*12) -> 19.6207 | G21: =OFFSET('II fisicos'!G31,0,($P$2-1)*12) -> 9.4182 | H21: =OFFSET('II fisicos'!H31,0,($P$2-1)*12) -> 8.4519 | I21: =OFFSET('II fisicos'!I31,0,($P$2-1)*12) -> 15.6564 | J21: =OFFSET('II fisicos'!J31,0,($P$2-1)*12) -> 24.4665 | K21: =OFFSET('II fisicos'!K31,0,($P$2-1)*12) -> 33.8539 | L21: =OFFSET('II fisicos'!L31,0,($P$2-1)*12) -> 14.4567 | M21: =OFFSET('II fisicos'!M31,0,($P$2-1)*12) -> - | N21: =OFFSET('II fisicos'!N31,0,($P$2-1)*12) -> - | O21: =OFFSET('II fisicos'!O31,0,($P$2-1)*12) -> - | P21: 178.0627
C22: Aldeadávila-Lagoaça | D22: =OFFSET('II fisicos'!D32,0,($P$2-1)*12) -> 175.717944 | E22: =OFFSET('II fisicos'!E32,0,($P$2-1)*12) -> 241.481088 | F22: =OFFSET('II fisicos'!F32,0,($P$2-1)*12) -> 156.247488 | G22: =OFFSET('II fisicos'!G32,0,($P$2-1)*12) -> 90.07092 | H22: =OFFSET('II fisicos'!H32,0,($P$2-1)*12) -> 113.740632 | I22: =OFFSET('II fisicos'!I32,0,($P$2-1)*12) -> 187.036344 | J22: =OFFSET('II fisicos'!J32,0,($P$2-1)*12) -> 230.119272 | K22: =OFFSET('II fisicos'!K32,0,($P$2-1)*12) -> 210.638232 | L22: =OFFSET('II fisicos'!L32,0,($P$2-1)*12) -> 73.6182 | M22: =OFFSET('II fisicos'!M32,0,($P$2-1)*12) -> - | N22: =OFFSET('II fisicos'!N32,0,($P$2-1)*12) -> - | O22: =OFFSET('II fisicos'!O32,0,($P$2-1)*12) -> - | P22: 1478.67012
C23: Badajoz-Alcaçovas | D23: =OFFSET('II fisicos'!D33,0,($P$2-1)*12) -> 3.8e-05 | E23: =OFFSET('II fisicos'!E33,0,($P$2-1)*12) -> 2.4e-05 | F23: =OFFSET('II fisicos'!F33,0,($P$2-1)*12) -> 5.8e-05 | G23: =OFFSET('II fisicos'!G33,0,($P$2-1)*12) -> 0.00011 | H23: =OFFSET('II fisicos'!H33,0,($P$2-1)*12) -> 0.000653 | I23: =OFFSET('II fisicos'!I33,0,($P$2-1)*12) -> 0.000192 | J23: =OFFSET('II fisicos'!J33,0,($P$2-1)*12) -> 0.00025 | K23: =OFFSET('II fisicos'!K33,0,($P$2-1)*12) -> 0.000259 | L23: =OFFSET('II fisicos'!L33,0,($P$2-1)*12) -> 0.000216 | M23: =OFFSET('II fisicos'!M33,0,($P$2-1)*12) -> - | N23: =OFFSET('II fisicos'!N33,0,($P$2-1)*12) -> - | O23: =OFFSET('II fisicos'!O33,0,($P$2-1)*12) -> - | P23: 0.0018
C24: Balboa-Alqueva | D24: =OFFSET('II fisicos'!D34,0,($P$2-1)*12) -> 0 | E24: =OFFSET('II fisicos'!E34,0,($P$2-1)*12) -> 0 | F24: =OFFSET('II fisicos'!F34,0,($P$2-1)*12) -> 0 | G24: =OFFSET('II fisicos'!G34,0,($P$2-1)*12) -> 0 | H24: =OFFSET('II fisicos'!H34,0,($P$2-1)*12) -> 0 | I24: =OFFSET('II fisicos'!I34,0,($P$2-1)*12) -> 0 | J24: =OFFSET('II fisicos'!J34,0,($P$2-1)*12) -> 0 | K24: =OFFSET('II fisicos'!K34,0,($P$2-1)*12) -> 0 | L24: =OFFSET('II fisicos'!L34,0,($P$2-1)*12) -> 0 | M24: =OFFSET('II fisicos'!M34,0,($P$2-1)*12) -> - | N24: =OFFSET('II fisicos'!N34,0,($P$2-1)*12) -> - | O24: =OFFSET('II fisicos'!O34,0,($P$2-1)*12) -> - | P24: -
C25: Brovales-Alqueva | D25: =OFFSET('II fisicos'!D35,0,($P$2-1)*12) -> 206.301987 | E25: =OFFSET('II fisicos'!E35,0,($P$2-1)*12) -> 208.707446 | F25: =OFFSET('II fisicos'!F35,0,($P$2-1)*12) -> 211.250577 | G25: =OFFSET('II fisicos'!G35,0,($P$2-1)*12) -> 136.52611 | H25: =OFFSET('II fisicos'!H35,0,($P$2-1)*12) -> 146.53238 | I25: =OFFSET('II fisicos'!I35,0,($P$2-1)*12) -> 221.073743 | J25: =OFFSET('II fisicos'!J35,0,($P$2-1)*12) -> 285.554701 | K25: =OFFSET('II fisicos'!K35,0,($P$2-1)*12) -> 229.392314 | L25: =OFFSET('II fisicos'!L35,0,($P$2-1)*12) -> 128.483509 | M25: =OFFSET('II fisicos'!M35,0,($P$2-1)*12) -> - | N25: =OFFSET('II fisicos'!N35,0,($P$2-1)*12) -> - | O25: =OFFSET('II fisicos'!O35,0,($P$2-1)*12) -> - | P25: 1773.822767
C26: Cartelle-Lindoso | D26: =OFFSET('II fisicos'!D36,0,($P$2-1)*12) -> 14.3167 | E26: =OFFSET('II fisicos'!E36,0,($P$2-1)*12) -> 27.2818 | F26: =OFFSET('II fisicos'!F36,0,($P$2-1)*12) -> 66.8476 | G26: =OFFSET('II fisicos'!G36,0,($P$2-1)*12) -> 106.6918 | H26: =OFFSET('II fisicos'!H36,0,($P$2-1)*12) -> 34.9786 | I26: =OFFSET('II fisicos'!I36,0,($P$2-1)*12) -> 13.4039 | J26: =OFFSET('II fisicos'!J36,0,($P$2-1)*12) -> 19.8929 | K26: =OFFSET('II fisicos'!K36,0,($P$2-1)*12) -> 100.1105 | L26: =OFFSET('II fisicos'!L36,0,($P$2-1)*12) -> 33.7423 | M26: =OFFSET('II fisicos'!M36,0,($P$2-1)*12) -> - | N26: =OFFSET('II fisicos'!N36,0,($P$2-1)*12) -> - | O26: =OFFSET('II fisicos'!O36,0,($P$2-1)*12) -> - | P26: 417.2661
C27: Cedillo-Falaguerira | D27: =OFFSET('II fisicos'!D37,0,($P$2-1)*12) -> 222.3471 | E27: =OFFSET('II fisicos'!E37,0,($P$2-1)*12) -> 256.2248 | F27: =OFFSET('II fisicos'!F37,0,($P$2-1)*12) -> 128.8574 | G27: =OFFSET('II fisicos'!G37,0,($P$2-1)*12) -> 97.3086 | H27: =OFFSET('II fisicos'!H37,0,($P$2-1)*12) -> 169.0474 | I27: =OFFSET('II fisicos'!I37,0,($P$2-1)*12) -> 1.97691 | J27: =OFFSET('II fisicos'!J37,0,($P$2-1)*12) -> 0 | K27: =OFFSET('II fisicos'!K37,0,($P$2-1)*12) -> 10.9566 | L27: =OFFSET('II fisicos'!L37,0,($P$2-1)*12) -> 202.9478 | M27: =OFFSET('II fisicos'!M37,0,($P$2-1)*12) -> - | N27: =OFFSET('II fisicos'!N37,0,($P$2-1)*12) -> - | O27: =OFFSET('II fisicos'!O37,0,($P$2-1)*12) -> - | P27: 1089.66661
C28: Conchas-Lindoso | D28: =OFFSET('II fisicos'!D38,0,($P$2-1)*12) -> 0 | E28: =OFFSET('II fisicos'!E38,0,($P$2-1)*12) -> 0 | F28: =OFFSET('II fisicos'!F38,0,($P$2-1)*12) -> 0 | G28: =OFFSET('II fisicos'!G38,0,($P$2-1)*12) -> 0 | H28: =OFFSET('II fisicos'!H38,0,($P$2-1)*12) -> 0 | I28: =OFFSET('II fisicos'!I38,0,($P$2-1)*12) -> 0 | J28: =OFFSET('II fisicos'!J38,0,($P$2-1)*12) -> 0 | K28: =OFFSET('II fisicos'!K38,0,($P$2-1)*12) -> 0 | L28: =OFFSET('II fisicos'!L38,0,($P$2-1)*12) -> 0 | M28: =OFFSET('II fisicos'!M38,0,($P$2-1)*12) -> - | N28: =OFFSET('II fisicos'!N38,0,($P$2-1)*12) -> - | O28: =OFFSET('II fisicos'!O38,0,($P$2-1)*12) -> - | P28: -
C29: Encinasola-Barrancos | D29: =OFFSET('II fisicos'!D39,0,($P$2-1)*12) -> 0 | E29: =OFFSET('II fisicos'!E39,0,($P$2-1)*12) -> 0 | F29: =OFFSET('II fisicos'!F39,0,($P$2-1)*12) -> 0 | G29: =OFFSET('II fisicos'!G39,0,($P$2-1)*12) -> 0 | H29: =OFFSET('II fisicos'!H39,0,($P$2-1)*12) -> 0 | I29: =OFFSET('II fisicos'!I39,0,($P$2-1)*12) -> 0 | J29: =OFFSET('II fisicos'!J39,0,($P$2-1)*12) -> 0 | K29: =OFFSET('II fisicos'!K39,0,($P$2-1)*12) -> 0 | L29: =OFFSET('II fisicos'!L39,0,($P$2-1)*12) -> 0 | M29: =OFFSET('II fisicos'!M39,0,($P$2-1)*12) -> - | N29: =OFFSET('II fisicos'!N39,0,($P$2-1)*12) -> - | O29: =OFFSET('II fisicos'!O39,0,($P$2-1)*12) -> - | P29: -
C30: Puebla de Guzmán-Tavira | D30: =OFFSET('II fisicos'!D40,0,($P$2-1)*12) -> 178.665735 | E30: =OFFSET('II fisicos'!E40,0,($P$2-1)*12) -> 86.594368 | F30: =OFFSET('II fisicos'!F40,0,($P$2-1)*12) -> 76.999985 | G30: =OFFSET('II fisicos'!G40,0,($P$2-1)*12) -> 120.070046 | H30: =OFFSET('II fisicos'!H40,0,($P$2-1)*12) -> 126.375641 | I30: =OFFSET('II fisicos'!I40,0,($P$2-1)*12) -> 163.553212 | J30: =OFFSET('II fisicos'!J40,0,($P$2-1)*12) -> 203.073643 | K30: =OFFSET('II fisicos'!K40,0,($P$2-1)*12) -> 250.07156 | L30: =OFFSET('II fisicos'!L40,0,($P$2-1)*12) -> 122.291118 | M30: =OFFSET('II fisicos'!M40,0,($P$2-1)*12) -> - | N30: =OFFSET('II fisicos'!N40,0,($P$2-1)*12) -> - | O30: =OFFSET('II fisicos'!O40,0,($P$2-1)*12) -> - | P30: 1327.695308
C31: Rosal Frontera-V. Ficalho | D31: =OFFSET('II fisicos'!D41,0,($P$2-1)*12) -> 0 | E31: =OFFSET('II fisicos'!E41,0,($P$2-1)*12) -> 0 | F31: =OFFSET('II fisicos'!F41,0,($P$2-1)*12) -> 0 | G31: =OFFSET('II fisicos'!G41,0,($P$2-1)*12) -> 0 | H31: =OFFSET('II fisicos'!H41,0,($P$2-1)*12) -> 0 | I31: =OFFSET('II fisicos'!I41,0,($P$2-1)*12) -> 0 | J31: =OFFSET('II fisicos'!J41,0,($P$2-1)*12) -> 0 | K31: =OFFSET('II fisicos'!K41,0,($P$2-1)*12) -> 0 | L31: =OFFSET('II fisicos'!L41,0,($P$2-1)*12) -> 0 | M31: =OFFSET('II fisicos'!M41,0,($P$2-1)*12) -> - | N31: =OFFSET('II fisicos'!N41,0,($P$2-1)*12) -> - | O31: =OFFSET('II fisicos'!O41,0,($P$2-1)*12) -> - | P31: -
C32: Saucelle-Pocinho | D32: =OFFSET('II fisicos'!D42,0,($P$2-1)*12) -> 8.0155 | E32: =OFFSET('II fisicos'!E42,0,($P$2-1)*12) -> 27.4667 | F32: =OFFSET('II fisicos'!F42,0,($P$2-1)*12) -> 4.313 | G32: =OFFSET('II fisicos'!G42,0,($P$2-1)*12) -> 6.7751 | H32: =OFFSET('II fisicos'!H42,0,($P$2-1)*12) -> 6.4772 | I32: =OFFSET('II fisicos'!I42,0,($P$2-1)*12) -> 13.0994 | J32: =OFFSET('II fisicos'!J42,0,($P$2-1)*12) -> 23.8459 | K32: =OFFSET('II fisicos'!K42,0,($P$2-1)*12) -> 31.9338 | L32: =OFFSET('II fisicos'!L42,0,($P$2-1)*12) -> 14.159 | M32: =OFFSET('II fisicos'!M42,0,($P$2-1)*12) -> - | N32: =OFFSET('II fisicos'!N42,0,($P$2-1)*12) -> - | O32: =OFFSET('II fisicos'!O42,0,($P$2-1)*12) -> - | P32: 136.0856
C33: Santa María-Elvás | D33: =OFFSET('II fisicos'!D43,0,($P$2-1)*12) -> 0 | E33: =OFFSET('II fisicos'!E43,0,($P$2-1)*12) -> 0 | F33: =OFFSET('II fisicos'!F43,0,($P$2-1)*12) -> 0 | G33: =OFFSET('II fisicos'!G43,0,($P$2-1)*12) -> 0 | H33: =OFFSET('II fisicos'!H43,0,($P$2-1)*12) -> 0 | I33: =OFFSET('II fisicos'!I43,0,($P$2-1)*12) -> 0 | J33: =OFFSET('II fisicos'!J43,0,($P$2-1)*12) -> 0 | K33: =OFFSET('II fisicos'!K43,0,($P$2-1)*12) -> 0 | L33: =OFFSET('II fisicos'!L43,0,($P$2-1)*12) -> 0 | M33: =OFFSET('II fisicos'!M43,0,($P$2-1)*12) -> - | N33: =OFFSET('II fisicos'!N43,0,($P$2-1)*12) -> - | O33: =OFFSET('II fisicos'!O43,0,($P$2-1)*12) -> - | P33: -
C34: Total | D34: =OFFSET('II fisicos'!D44,0,($P$2-1)*12) -> 840.391304 | E34: =OFFSET('II fisicos'!E44,0,($P$2-1)*12) -> 917.186626 | F34: =OFFSET('II fisicos'!F44,0,($P$2-1)*12) -> 683.733608 | G34: =OFFSET('II fisicos'!G44,0,($P$2-1)*12) -> 576.253886 | H34: =OFFSET('II fisicos'!H44,0,($P$2-1)*12) -> 614.047106 | I34: =OFFSET('II fisicos'!I44,0,($P$2-1)*12) -> 631.527401 | J34: =OFFSET('II fisicos'!J44,0,($P$2-1)*12) -> 812.145366 | K34: =OFFSET('II fisicos'!K44,0,($P$2-1)*12) -> 901.022565 | L34: =OFFSET('II fisicos'!L44,0,($P$2-1)*12) -> 604.182443 | M34: =OFFSET('II fisicos'!M44,0,($P$2-1)*12) -> - | N34: =OFFSET('II fisicos'!N44,0,($P$2-1)*12) -> - | O34: =OFFSET('II fisicos'!O44,0,($P$2-1)*12) -> - | P34: 6580.490305
B35: Marruecos | C35: Puerto de la Cruz-Mellousa | D35: =OFFSET('II fisicos'!D45,0,($P$2-1)*12) -> 1.2683 | E35: =OFFSET('II fisicos'!E45,0,($P$2-1)*12) -> 0.1249 | F35: =OFFSET('II fisicos'!F45,0,($P$2-1)*12) -> 0.0239 | G35: =OFFSET('II fisicos'!G45,0,($P$2-1)*12) -> 0.0494 | H35: =OFFSET('II fisicos'!H45,0,($P$2-1)*12) -> 0.0255 | I35: =OFFSET('II fisicos'!I45,0,($P$2-1)*12) -> 0.2845 | J35: =OFFSET('II fisicos'!J45,0,($P$2-1)*12) -> 0.0036 | K35: =OFFSET('II fisicos'!K45,0,($P$2-1)*12) -> 0.1204 | L35: =OFFSET('II fisicos'!L45,0,($P$2-1)*12) -> 0.8961 | M35: =OFFSET('II fisicos'!M45,0,($P$2-1)*12) -> - | N35: =OFFSET('II fisicos'!N45,0,($P$2-1)*12) -> - | O35: =OFFSET('II fisicos'!O45,0,($P$2-1)*12) -> - | P35: 2.7966
C36: Total | D36: =OFFSET('II fisicos'!D46,0,($P$2-1)*12) -> 1.2683 | E36: =OFFSET('II fisicos'!E46,0,($P$2-1)*12) -> 0.1249 | F36: =OFFSET('II fisicos'!F46,0,($P$2-1)*12) -> 0.0239 | G36: =OFFSET('II fisicos'!G46,0,($P$2-1)*12) -> 0.0494 | H36: =OFFSET('II fisicos'!H46,0,($P$2-1)*12) -> 0.0255 | I36: =OFFSET('II fisicos'!I46,0,($P$2-1)*12) -> 0.2845 | J36: =OFFSET('II fisicos'!J46,0,($P$2-1)*12) -> 0.0036 | K36: =OFFSET('II fisicos'!K46,0,($P$2-1)*12) -> 0.1204 | L36: =OFFSET('II fisicos'!L46,0,($P$2-1)*12) -> 0.8961 | M36: =OFFSET('II fisicos'!M46,0,($P$2-1)*12) -> - | N36: =OFFSET('II fisicos'!N46,0,($P$2-1)*12) -> - | O36: =OFFSET('II fisicos'!O46,0,($P$2-1)*12) -> - | P36: 2.7966
B37: Entradas | D37: =OFFSET('II fisicos'!D47,0,($P$2-1)*12) -> 1347.205933 | E37: =OFFSET('II fisicos'!E47,0,($P$2-1)*12) -> 1813.521325 | F37: =OFFSET('II fisicos'!F47,0,($P$2-1)*12) -> 2499.605027 | G37: =OFFSET('II fisicos'!G47,0,($P$2-1)*12) -> 2093.584615 | H37: =OFFSET('II fisicos'!H47,0,($P$2-1)*12) -> 2475.696053 | I37: =OFFSET('II fisicos'!I47,0,($P$2-1)*12) -> 2078.56446 | J37: =OFFSET('II fisicos'!J47,0,($P$2-1)*12) -> 2228.589928 | K37: =OFFSET('II fisicos'!K47,0,($P$2-1)*12) -> 2607.865124 | L37: =OFFSET('II fisicos'!L47,0,($P$2-1)*12) -> 2248.567252 | M37: =OFFSET('II fisicos'!M47,0,($P$2-1)*12) -> - | N37: =OFFSET('II fisicos'!N47,0,($P$2-1)*12) -> - | O37: =OFFSET('II fisicos'!O47,0,($P$2-1)*12) -> - | P37: 19393.19972
B38: =IF(MONTH(FACT)=1,CONCATENATE("No hay datos de medida disponible para el mes de ",TEXT(FACT-30,"mmmm")," de ",YEAR(FACT)-1,"."),CONCATENATE("No hay datos de medida disponible para el mes de ",TEXT(FACT-30,"mmmm")," de ",YEAR(FACT),".")) -> No hay datos de medida disponible para el mes de octubre de 2017.

Sheet Entradas por linea año
M1: 1
M2: 3
K4: Concepto
K5: Horizonte temporal
K6: Periodo
D8: =OFFSET('II fisicos'!D109,0,($M$2-1)*10) -> 2010 | E8: =OFFSET('II fisicos'!E109,0,($M$2-1)*10) -> 2011 | F8: =OFFSET('II fisicos'!F109,0,($M$2-1)*10) -> 2012 | G8: =OFFSET('II fisicos'!G109,0,($M$2-1)*10) -> 2013 | H8: =OFFSET('II fisicos'!H109,0,($M$2-1)*10) -> 2014 | I8: =OFFSET('II fisicos'!I109,0,($M$2-1)*10) -> 2015 | J8: =OFFSET('II fisicos'!J109,0,($M$2-1)*10) -> 2016 | K8: =OFFSET('II fisicos'!K109,0,($M$2-1)*10) -> 2017 | L8: =OFFSET('II fisicos'!L109,0,($M$2-1)*10) -> 2018 | M8: =OFFSET('II fisicos'!M109,0,($M$2-1)*10) -> 2019
B10: Andorra | C10: Adrall-Margineda | D10: =OFFSET('II fisicos'!D127,0,($M$2-1)*10) -> 0.00037 | E10: =OFFSET('II fisicos'!E127,0,($M$2-1)*10) -> 0.00056 | F10: =OFFSET('II fisicos'!F127,0,($M$2-1)*10) -> 0.00158 | G10: =OFFSET('II fisicos'!G127,0,($M$2-1)*10) -> 0.0011 | H10: =OFFSET('II fisicos'!H127,0,($M$2-1)*10) -> 0.0056 | I10: =OFFSET('II fisicos'!I127,0,($M$2-1)*10) -> 0.00623 | J10: =OFFSET('II fisicos'!J127,0,($M$2-1)*10) -> 0.00398 | K10: =OFFSET('II fisicos'!K127,0,($M$2-1)*10) -> 0.01648 | L10: =OFFSET('II fisicos'!L127,0,($M$2-1)*10) -> - | M10: =OFFSET('II fisicos'!M127,0,($M$2-1)*10) -> -
C11: Total | D11: =OFFSET('II fisicos'!D128,0,($M$2-1)*10) -> 0.00037 | E11: =OFFSET('II fisicos'!E128,0,($M$2-1)*10) -> 0.00056 | F11: =OFFSET('II fisicos'!F128,0,($M$2-1)*10) -> 0.00158 | G11: =OFFSET('II fisicos'!G128,0,($M$2-1)*10) -> 0.0011 | H11: =OFFSET('II fisicos'!H128,0,($M$2-1)*10) -> 0.0056 | I11: =OFFSET('II fisicos'!I128,0,($M$2-1)*10) -> 0.00623 | J11: =OFFSET('II fisicos'!J128,0,($M$2-1)*10) -> 0.00398 | K11: =OFFSET('II fisicos'!K128,0,($M$2-1)*10) -> 0.01648 | L11: =OFFSET('II fisicos'!L128,0,($M$2-1)*10) -> - | M11: =OFFSET('II fisicos'!M128,0,($M$2-1)*10) -> -
B12: Francia | C12: Arkale-Argia | D12: =OFFSET('II fisicos'!D129,0,($M$2-1)*10) -> 142.581958 | E12: =OFFSET('II fisicos'!E129,0,($M$2-1)*10) -> 340.072242 | F12: =OFFSET('II fisicos'!F129,0,($M$2-1)*10) -> 247.27065 | G12: =OFFSET('II fisicos'!G129,0,($M$2-1)*10) -> 349.27388 | H12: =OFFSET('II fisicos'!H129,0,($M$2-1)*10) -> 395.045322 | I12: =OFFSET('II fisicos'!I129,0,($M$2-1)*10) -> 611.139652 | J12: =OFFSET('II fisicos'!J129,0,($M$2-1)*10) -> 851.567276 | K12: =OFFSET('II fisicos'!K129,0,($M$2-1)*10) -> 857.794154 | L12: =OFFSET('II fisicos'!L129,0,($M$2-1)*10) -> - | M12: =OFFSET('II fisicos'!M129,0,($M$2-1)*10) -> -
C13: Benós-Lac D'oo | D13: =OFFSET('II fisicos'!D130,0,($M$2-1)*10) -> 0.2127 | E13: =OFFSET('II fisicos'!E130,0,($M$2-1)*10) -> 4.969351 | F13: =OFFSET('II fisicos'!F130,0,($M$2-1)*10) -> 3.206826 | G13: =OFFSET('II fisicos'!G130,0,($M$2-1)*10) -> 5.851299 | H13: =OFFSET('II fisicos'!H130,0,($M$2-1)*10) -> 2.307554 | I13: =OFFSET('II fisicos'!I130,0,($M$2-1)*10) -> 0.305387 | J13: =OFFSET('II fisicos'!J130,0,($M$2-1)*10) -> 3.431585 | K13: =OFFSET('II fisicos'!K130,0,($M$2-1)*10) -> 0.126811 | L13: =OFFSET('II fisicos'!L130,0,($M$2-1)*10) -> - | M13: =OFFSET('II fisicos'!M130,0,($M$2-1)*10) -> -
C14: Biescas-Pragneres | D14: =OFFSET('II fisicos'!D131,0,($M$2-1)*10) -> 87.24191 | E14: =OFFSET('II fisicos'!E131,0,($M$2-1)*10) -> 173.001259 | F14: =OFFSET('II fisicos'!F131,0,($M$2-1)*10) -> 259.652477 | G14: =OFFSET('II fisicos'!G131,0,($M$2-1)*10) -> 224.780037 | H14: =OFFSET('II fisicos'!H131,0,($M$2-1)*10) -> 252.932082 | I14: =OFFSET('II fisicos'!I131,0,($M$2-1)*10) -> 351.181295 | J14: =OFFSET('II fisicos'!J131,0,($M$2-1)*10) -> 456.68851 | K14: =OFFSET('II fisicos'!K131,0,($M$2-1)*10) -> 371.807507 | L14: =OFFSET('II fisicos'!L131,0,($M$2-1)*10) -> - | M14: =OFFSET('II fisicos'!M131,0,($M$2-1)*10) -> -
C15: Hernani-Argia | D15: =OFFSET('II fisicos'!D132,0,($M$2-1)*10) -> 971.207697 | E15: =OFFSET('II fisicos'!E132,0,($M$2-1)*10) -> 1784.686558 | F15: =OFFSET('II fisicos'!F132,0,($M$2-1)*10) -> 1686.951056 | G15: =OFFSET('II fisicos'!G132,0,($M$2-1)*10) -> 1690.554527 | H15: =OFFSET('II fisicos'!H132,0,($M$2-1)*10) -> 1883.472497 | I15: =OFFSET('II fisicos'!I132,0,($M$2-1)*10) -> 2590.645308 | J15: =OFFSET('II fisicos'!J132,0,($M$2-1)*10) -> 3481.394607 | K15: =OFFSET('II fisicos'!K132,0,($M$2-1)*10) -> 4449.617476 | L15: =OFFSET('II fisicos'!L132,0,($M$2-1)*10) -> - | M15: =OFFSET('II fisicos'!M132,0,($M$2-1)*10) -> -
C16: Irún-Errondenia | D16: =OFFSET('II fisicos'!D133,0,($M$2-1)*10) -> 0 | E16: =OFFSET('II fisicos'!E133,0,($M$2-1)*10) -> 0 | F16: =OFFSET('II fisicos'!F133,0,($M$2-1)*10) -> 0 | G16: =OFFSET('II fisicos'!G133,0,($M$2-1)*10) -> 0 | H16: =OFFSET('II fisicos'!H133,0,($M$2-1)*10) -> 0 | I16: =OFFSET('II fisicos'!I133,0,($M$2-1)*10) -> 0 | J16: =OFFSET('II fisicos'!J133,0,($M$2-1)*10) -> 0 | K16: =OFFSET('II fisicos'!K133,0,($M$2-1)*10) -> 0 | L16: =OFFSET('II fisicos'!L133,0,($M$2-1)*10) -> - | M16: =OFFSET('II fisicos'!M133,0,($M$2-1)*10) -> -
C17: Santa Llogaia-Baixas | D17: =OFFSET('II fisicos'!D134,0,($M$2-1)*10) -> 0 | E17: =OFFSET('II fisicos'!E134,0,($M$2-1)*10) -> 0 | F17: =OFFSET('II fisicos'!F134,0,($M$2-1)*10) -> 0 | G17: =OFFSET('II fisicos'!G134,0,($M$2-1)*10) -> 0 | H17: =OFFSET('II fisicos'!H134,0,($M$2-1)*10) -> 0 | I17: =OFFSET('II fisicos'!I134,0,($M$2-1)*10) -> 1500.694409 | J17: =OFFSET('II fisicos'!J134,0,($M$2-1)*10) -> 5111.274916 | K17: =OFFSET('II fisicos'!K134,0,($M$2-1)*10) -> 4951.319558 | L17: =OFFSET('II fisicos'!L134,0,($M$2-1)*10) -> - | M17: =OFFSET('II fisicos'!M134,0,($M$2-1)*10) -> -
C18: Vic-Baixas | D18: =OFFSET('II fisicos'!D135,0,($M$2-1)*10) -> 782.029005 | E18: =OFFSET('II fisicos'!E135,0,($M$2-1)*10) -> 1684.27036 | F18: =OFFSET('II fisicos'!F135,0,($M$2-1)*10) -> 2713.439946 | G18: =OFFSET('II fisicos'!G135,0,($M$2-1)*10) -> 2608.61505 | H18: =OFFSET('II fisicos'!H135,0,($M$2-1)*10) -> 3429.003601 | I18: =OFFSET('II fisicos'!I135,0,($M$2-1)*10) -> 4076.921526 | J18: =OFFSET('II fisicos'!J135,0,($M$2-1)*10) -> 2230.974161 | K18: =OFFSET('II fisicos'!K135,0,($M$2-1)*10) -> 2179.230826 | L18: =OFFSET('II fisicos'!L135,0,($M$2-1)*10) -> - | M18: =OFFSET('II fisicos'!M135,0,($M$2-1)*10) -> -
C19: Total | D19: =OFFSET('II fisicos'!D136,0,($M$2-1)*10) -> 1983.27327 | E19: =OFFSET('II fisicos'!E136,0,($M$2-1)*10) -> 3986.99977 | F19: =OFFSET('II fisicos'!F136,0,($M$2-1)*10) -> 4910.520955 | G19: =OFFSET('II fisicos'!G136,0,($M$2-1)*10) -> 4879.074793 | H19: =OFFSET('II fisicos'!H136,0,($M$2-1)*10) -> 5962.761056 | I19: =OFFSET('II fisicos'!I136,0,($M$2-1)*10) -> 9130.887577 | J19: =OFFSET('II fisicos'!J136,0,($M$2-1)*10) -> 12135.33105 | K19: =OFFSET('II fisicos'!K136,0,($M$2-1)*10) -> 12809.89633 | L19: =OFFSET('II fisicos'!L136,0,($M$2-1)*10) -> - | M19: =OFFSET('II fisicos'!M136,0,($M$2-1)*10) -> -
B20: Portugal | C20: Aldeadávila-Pocinho 1 | D20: =OFFSET('II fisicos'!D137,0,($M$2-1)*10) -> 709.8216 | E20: =OFFSET('II fisicos'!E137,0,($M$2-1)*10) -> 48.344 | F20: =OFFSET('II fisicos'!F137,0,($M$2-1)*10) -> 23.5829 | G20: =OFFSET('II fisicos'!G137,0,($M$2-1)*10) -> 128.3835 | H20: =OFFSET('II fisicos'!H137,0,($M$2-1)*10) -> 132.5624 | I20: =OFFSET('II fisicos'!I137,0,($M$2-1)*10) -> 67.9318 | J20: =OFFSET('II fisicos'!J137,0,($M$2-1)*10) -> 254.0361 | K20: =OFFSET('II fisicos'!K137,0,($M$2-1)*10) -> 179.2193 | L20: =OFFSET('II fisicos'!L137,0,($M$2-1)*10) -> - | M20: =OFFSET('II fisicos'!M137,0,($M$2-1)*10) -> -
C21: Aldeadávila-Pocinho 2 | D21: =OFFSET('II fisicos'!D138,0,($M$2-1)*10) -> 605.2945 | E21: =OFFSET('II fisicos'!E138,0,($M$2-1)*10) -> 47.9928 | F21: =OFFSET('II fisicos'!F138,0,($M$2-1)*10) -> 23.5678 | G21: =OFFSET('II fisicos'!G138,0,($M$2-1)*10) -> 127.8103 | H21: =OFFSET('II fisicos'!H138,0,($M$2-1)*10) -> 128.88176 | I21: =OFFSET('II fisicos'!I138,0,($M$2-1)*10) -> 67.8471 | J21: =OFFSET('II fisicos'!J138,0,($M$2-1)*10) -> 222.58862 | K21: =OFFSET('II fisicos'!K138,0,($M$2-1)*10) -> 178.0627 | L21: =OFFSET('II fisicos'!L138,0,($M$2-1)*10) -> - | M21: =OFFSET('II fisicos'!M138,0,($M$2-1)*10) -> -
C22: Aldeadávila-Lagoaça | D22: =OFFSET('II fisicos'!D139,0,($M$2-1)*10) -> 54.690336 | E22: =OFFSET('II fisicos'!E139,0,($M$2-1)*10) -> 1477.83186 | F22: =OFFSET('II fisicos'!F139,0,($M$2-1)*10) -> 423.891144 | G22: =OFFSET('II fisicos'!G139,0,($M$2-1)*10) -> 2072.28024 | H22: =OFFSET('II fisicos'!H139,0,($M$2-1)*10) -> 2481.914521 | I22: =OFFSET('II fisicos'!I139,0,($M$2-1)*10) -> 1414.211184 | J22: =OFFSET('II fisicos'!J139,0,($M$2-1)*10) -> 3174.678576 | K22: =OFFSET('II fisicos'!K139,0,($M$2-1)*10) -> 1478.67012 | L22: =OFFSET('II fisicos'!L139,0,($M$2-1)*10) -> - | M22: =OFFSET('II fisicos'!M139,0,($M$2-1)*10) -> -
C23: Badajoz-Alcaçovas | D23: =OFFSET('II fisicos'!D140,0,($M$2-1)*10) -> 0.000455 | E23: =OFFSET('II fisicos'!E140,0,($M$2-1)*10) -> 0.004315 | F23: =OFFSET('II fisicos'!F140,0,($M$2-1)*10) -> 0.001891 | G23: =OFFSET('II fisicos'!G140,0,($M$2-1)*10) -> 0.001229 | H23: =OFFSET('II fisicos'!H140,0,($M$2-1)*10) -> 0.000969 | I23: =OFFSET('II fisicos'!I140,0,($M$2-1)*10) -> 0.001248 | J23: =OFFSET('II fisicos'!J140,0,($M$2-1)*10) -> 0.00123 | K23: =OFFSET('II fisicos'!K140,0,($M$2-1)*10) -> 0.0018 | L23: =OFFSET('II fisicos'!L140,0,($M$2-1)*10) -> - | M23: =OFFSET('II fisicos'!M140,0,($M$2-1)*10) -> -
C24: Balboa-Alqueva | D24: =OFFSET('II fisicos'!D141,0,($M$2-1)*10) -> 0 | E24: =OFFSET('II fisicos'!E141,0,($M$2-1)*10) -> 0 | F24: =OFFSET('II fisicos'!F141,0,($M$2-1)*10) -> 0 | G24: =OFFSET('II fisicos'!G141,0,($M$2-1)*10) -> 0 | H24: =OFFSET('II fisicos'!H141,0,($M$2-1)*10) -> 0 | I24: =OFFSET('II fisicos'!I141,0,($M$2-1)*10) -> 0 | J24: =OFFSET('II fisicos'!J141,0,($M$2-1)*10) -> 0 | K24: =OFFSET('II fisicos'!K141,0,($M$2-1)*10) -> 0 | L24: =OFFSET('II fisicos'!L141,0,($M$2-1)*10) -> - | M24: =OFFSET('II fisicos'!M141,0,($M$2-1)*10) -> -
C25: Brovales-Alqueva | D25: =OFFSET('II fisicos'!D142,0,($M$2-1)*10) -> 680.899483 | E25: =OFFSET('II fisicos'!E142,0,($M$2-1)*10) -> 1300.307333 | F25: =OFFSET('II fisicos'!F142,0,($M$2-1)*10) -> 1382.492422 | G25: =OFFSET('II fisicos'!G142,0,($M$2-1)*10) -> 1813.865141 | H25: =OFFSET('II fisicos'!H142,0,($M$2-1)*10) -> 1549.510155 | I25: =OFFSET('II fisicos'!I142,0,($M$2-1)*10) -> 1519.440013 | J25: =OFFSET('II fisicos'!J142,0,($M$2-1)*10) -> 2055.658986 | K25: =OFFSET('II fisicos'!K142,0,($M$2-1)*10) -> 1773.822767 | L25: =OFFSET('II fisicos'!L142,0,($M$2-1)*10) -> - | M25: =OFFSET('II fisicos'!M142,0,($M$2-1)*10) -> -
C26: Cartelle-Lindoso | D26: =OFFSET('II fisicos'!D143,0,($M$2-1)*10) -> 322.767 | E26: =OFFSET('II fisicos'!E143,0,($M$2-1)*10) -> 159.3603 | F26: =OFFSET('II fisicos'!F143,0,($M$2-1)*10) -> 10.8319 | G26: =OFFSET('II fisicos'!G143,0,($M$2-1)*10) -> 62.7306 | H26: =OFFSET('II fisicos'!H143,0,($M$2-1)*10) -> 154.9425 | I26: =OFFSET('II fisicos'!I143,0,($M$2-1)*10) -> 60.102 | J26: =OFFSET('II fisicos'!J143,0,($M$2-1)*10) -> 535.4562 | K26: =OFFSET('II fisicos'!K143,0,($M$2-1)*10) -> 417.2661 | L26: =OFFSET('II fisicos'!L143,0,($M$2-1)*10) -> - | M26: =OFFSET('II fisicos'!M143,0,($M$2-1)*10) -> -
C27: Cedillo-Falaguerira | D27: =OFFSET('II fisicos'!D144,0,($M$2-1)*10) -> 581.0843 | E27: =OFFSET('II fisicos'!E144,0,($M$2-1)*10) -> 877.20998 | F27: =OFFSET('II fisicos'!F144,0,($M$2-1)*10) -> 984.2861 | G27: =OFFSET('II fisicos'!G144,0,($M$2-1)*10) -> 1020.2621 | H27: =OFFSET('II fisicos'!H144,0,($M$2-1)*10) -> 935.7872 | I27: =OFFSET('II fisicos'!I144,0,($M$2-1)*10) -> 1350.1971 | J27: =OFFSET('II fisicos'!J144,0,($M$2-1)*10) -> 1595.5244 | K27: =OFFSET('II fisicos'!K144,0,($M$2-1)*10) -> 1089.66661 | L27: =OFFSET('II fisicos'!L144,0,($M$2-1)*10) -> - | M27: =OFFSET('II fisicos'!M144,0,($M$2-1)*10) -> -
C28: Conchas-Lindoso | D28: =OFFSET('II fisicos'!D145,0,($M$2-1)*10) -> 0 | E28: =OFFSET('II fisicos'!E145,0,($M$2-1)*10) -> 0 | F28: =OFFSET('II fisicos'!F145,0,($M$2-1)*10) -> 0 | G28: =OFFSET('II fisicos'!G145,0,($M$2-1)*10) -> 0 | H28: =OFFSET('II fisicos'!H145,0,($M$2-1)*10) -> 0 | I28: =OFFSET('II fisicos'!I145,0,($M$2-1)*10) -> 0 | J28: =OFFSET('II fisicos'!J145,0,($M$2-1)*10) -> 0 | K28: =OFFSET('II fisicos'!K145,0,($M$2-1)*10) -> 0 | L28: =OFFSET('II fisicos'!L145,0,($M$2-1)*10) -> - | M28: =OFFSET('II fisicos'!M145,0,($M$2-1)*10) -> -
C29: Encinasola-Barrancos | D29: =OFFSET('II fisicos'!D146,0,($M$2-1)*10) -> 0 | E29: =OFFSET('II fisicos'!E146,0,($M$2-1)*10) -> 0 | F29: =OFFSET('II fisicos'!F146,0,($M$2-1)*10) -> 0 | G29: =OFFSET('II fisicos'!G146,0,($M$2-1)*10) -> 0 | H29: =OFFSET('II fisicos'!H146,0,($M$2-1)*10) -> 0 | I29: =OFFSET('II fisicos'!I146,0,($M$2-1)*10) -> 0 | J29: =OFFSET('II fisicos'!J146,0,($M$2-1)*10) -> 0 | K29: =OFFSET('II fisicos'!K146,0,($M$2-1)*10) -> 0 | L29: =OFFSET('II fisicos'!L146,0,($M$2-1)*10) -> - | M29: =OFFSET('II fisicos'!M146,0,($M$2-1)*10) -> -
C30: Puebla de Guzmán-Tavira | D30: =OFFSET('II fisicos'!D147,0,($M$2-1)*10) -> 0 | E30: =OFFSET('II fisicos'!E147,0,($M$2-1)*10) -> 0 | F30: =OFFSET('II fisicos'!F147,0,($M$2-1)*10) -> 0 | G30: =OFFSET('II fisicos'!G147,0,($M$2-1)*10) -> 0 | H30: =OFFSET('II fisicos'!H147,0,($M$2-1)*10) -> 876.958598 | I30: =OFFSET('II fisicos'!I147,0,($M$2-1)*10) -> 1278.129717 | J30: =OFFSET('II fisicos'!J147,0,($M$2-1)*10) -> 1716.058545 | K30: =OFFSET('II fisicos'!K147,0,($M$2-1)*10) -> 1327.695308 | L30: =OFFSET('II fisicos'!L147,0,($M$2-1)*10) -> - | M30: =OFFSET('II fisicos'!M147,0,($M$2-1)*10) -> -
C31: Rosal Frontera-V. Ficalho | D31: =OFFSET('II fisicos'!D148,0,($M$2-1)*10) -> 0 | E31: =OFFSET('II fisicos'!E148,0,($M$2-1)*10) -> 1e-06 | F31: =OFFSET('II fisicos'!F148,0,($M$2-1)*10) -> 0 | G31: =OFFSET('II fisicos'!G148,0,($M$2-1)*10) -> 0 | H31: =OFFSET('II fisicos'!H148,0,($M$2-1)*10) -> 0 | I31: =OFFSET('II fisicos'!I148,0,($M$2-1)*10) -> 0 | J31: =OFFSET('II fisicos'!J148,0,($M$2-1)*10) -> 0 | K31: =OFFSET('II fisicos'!K148,0,($M$2-1)*10) -> 0 | L31: =OFFSET('II fisicos'!L148,0,($M$2-1)*10) -> - | M31: =OFFSET('II fisicos'!M148,0,($M$2-1)*10) -> -
C32: Saucelle-Pocinho | D32: =OFFSET('II fisicos'!D149,0,($M$2-1)*10) -> 234.5014 | E32: =OFFSET('II fisicos'!E149,0,($M$2-1)*10) -> 18.78029 | F32: =OFFSET('II fisicos'!F149,0,($M$2-1)*10) -> 21.954 | G32: =OFFSET('II fisicos'!G149,0,($M$2-1)*10) -> 98.1333 | H32: =OFFSET('II fisicos'!H149,0,($M$2-1)*10) -> 84.1703 | I32: =OFFSET('II fisicos'!I149,0,($M$2-1)*10) -> 52.8382 | J32: =OFFSET('II fisicos'!J149,0,($M$2-1)*10) -> 147.60538 | K32: =OFFSET('II fisicos'!K149,0,($M$2-1)*10) -> 136.0856 | L32: =OFFSET('II fisicos'!L149,0,($M$2-1)*10) -> - | M32: =OFFSET('II fisicos'!M149,0,($M$2-1)*10) -> -
C33: Santa María-Elvás | D33: =OFFSET('II fisicos'!D150,0,($M$2-1)*10) -> 0 | E33: =OFFSET('II fisicos'!E150,0,($M$2-1)*10) -> 0 | F33: =OFFSET('II fisicos'!F150,0,($M$2-1)*10) -> 0 | G33: =OFFSET('II fisicos'!G150,0,($M$2-1)*10) -> 0 | H33: =OFFSET('II fisicos'!H150,0,($M$2-1)*10) -> 0 | I33: =OFFSET('II fisicos'!I150,0,($M$2-1)*10) -> 0 | J33: =OFFSET('II fisicos'!J150,0,($M$2-1)*10) -> 0 | K33: =OFFSET('II fisicos'!K150,0,($M$2-1)*10) -> 0 | L33: =OFFSET('II fisicos'!L150,0,($M$2-1)*10) -> - | M33: =OFFSET('II fisicos'!M150,0,($M$2-1)*10) -> -
C34: Total | D34: =OFFSET('II fisicos'!D151,0,($M$2-1)*10) -> 3189.059074 | E34: =OFFSET('II fisicos'!E151,0,($M$2-1)*10) -> 3929.830879 | F34: =OFFSET('II fisicos'!F151,0,($M$2-1)*10) -> 2870.608157 | G34: =OFFSET('II fisicos'!G151,0,($M$2-1)*10) -> 5323.46641 | H34: =OFFSET('II fisicos'!H151,0,($M$2-1)*10) -> 6344.728403 | I34: =OFFSET('II fisicos'!I151,0,($M$2-1)*10) -> 5810.698362 | J34: =OFFSET('II fisicos'!J151,0,($M$2-1)*10) -> 9701.608037 | K34: =OFFSET('II fisicos'!K151,0,($M$2-1)*10) -> 6580.490305 | L34: =OFFSET('II fisicos'!L151,0,($M$2-1)*10) -> - | M34: =OFFSET('II fisicos'!M151,0,($M$2-1)*10) -> -
B35: Marruecos | C35: Puerto de la Cruz-Mellousa | D35: =OFFSET('II fisicos'!D152,0,($M$2-1)*10) -> 33.91932 | E35: =OFFSET('II fisicos'!E152,0,($M$2-1)*10) -> 15.61441 | F35: =OFFSET('II fisicos'!F152,0,($M$2-1)*10) -> 4.64275 | G35: =OFFSET('II fisicos'!G152,0,($M$2-1)*10) -> 1.12393 | H35: =OFFSET('II fisicos'!H152,0,($M$2-1)*10) -> 2.5326 | I35: =OFFSET('II fisicos'!I152,0,($M$2-1)*10) -> 14.13929 | J35: =OFFSET('II fisicos'!J152,0,($M$2-1)*10) -> 7.91737 | K35: =OFFSET('II fisicos'!K152,0,($M$2-1)*10) -> 2.7966 | L35: =OFFSET('II fisicos'!L152,0,($M$2-1)*10) -> - | M35: =OFFSET('II fisicos'!M152,0,($M$2-1)*10) -> -
C36: Total | D36: =OFFSET('II fisicos'!D153,0,($M$2-1)*10) -> 33.91932 | E36: =OFFSET('II fisicos'!E153,0,($M$2-1)*10) -> 15.61441 | F36: =OFFSET('II fisicos'!F153,0,($M$2-1)*10) -> 4.64275 | G36: =OFFSET('II fisicos'!G153,0,($M$2-1)*10) -> 1.12393 | H36: =OFFSET('II fisicos'!H153,0,($M$2-1)*10) -> 2.5326 | I36: =OFFSET('II fisicos'!I153,0,($M$2-1)*10) -> 14.13929 | J36: =OFFSET('II fisicos'!J153,0,($M$2-1)*10) -> 7.91737 | K36: =OFFSET('II fisicos'!K153,0,($M$2-1)*10) -> 2.7966 | L36: =OFFSET('II fisicos'!L153,0,($M$2-1)*10) -> - | M36: =OFFSET('II fisicos'!M153,0,($M$2-1)*10) -> -
B37: Entradas | D37: =OFFSET('II fisicos'!D154,0,($M$2-1)*10) -> 5206.252034 | E37: =OFFSET('II fisicos'!E154,0,($M$2-1)*10) -> 7932.445619 | F37: =OFFSET('II fisicos'!F154,0,($M$2-1)*10) -> 7785.773442 | G37: =OFFSET('II fisicos'!G154,0,($M$2-1)*10) -> 10203.66623 | H37: =OFFSET('II fisicos'!H154,0,($M$2-1)*10) -> 12310.02766 | I37: =OFFSET('II fisicos'!I154,0,($M$2-1)*10) -> 14955.73146 | J37: =OFFSET('II fisicos'!J154,0,($M$2-1)*10) -> 21844.86044 | K37: =OFFSET('II fisicos'!K154,0,($M$2-1)*10) -> 19393.19972 | L37: =OFFSET('II fisicos'!L154,0,($M$2-1)*10) -> - | M37: =OFFSET('II fisicos'!M154,0,($M$2-1)*10) -> -
B38: =IF(M2=3,IF(MONTH(FACT)=1,CONCATENATE("Datos a 31 de diciembre. Para el año ",YEAR(FACT)-1, " datos a ",TEXT(FACT-60,"mmmm")," de ",YEAR(FACT)-1,"."),CONCATENATE("Datos a 31 de diciembre. Para el año ",YEAR(FACT), " datos a ",TEXT(FACT-60,"mmmm")," de ",YEAR(FACT),".")),"Datos a 31 de diciembre.") -> Datos a 31 de diciembre. Para el año 2017 datos a septiembre de 2017.

Sheet Salidas por linea mes
P1: 1
P2: 28
M4: Concepto
M5: Horizonte temporal
M6: Periodo
D8: Ene. | E8: Feb. | F8: Mar. | G8: Abr. | H8: May. | I8: Jun. | J8: Jul. | K8: Ago. | L8: Sep. | M8: Oct. | N8: Nov. | O8: Dic. | P8: =OFFSET(Año!B2,($P$2-1),0) -> 2017
B10: Andorra | C10: Adrall-Margineda | D10: =OFFSET('II fisicos'!D50,0,($P$2-1)*12) -> 31.22564 | E10: =OFFSET('II fisicos'!E50,0,($P$2-1)*12) -> 24.86972 | F10: =OFFSET('II fisicos'!F50,0,($P$2-1)*12) -> 17.67933 | G10: =OFFSET('II fisicos'!G50,0,($P$2-1)*12) -> 12.57196 | H10: =OFFSET('II fisicos'!H50,0,($P$2-1)*12) -> 14.20318 | I10: =OFFSET('II fisicos'!I50,0,($P$2-1)*12) -> 11.77998 | J10: =OFFSET('II fisicos'!J50,0,($P$2-1)*12) -> 0.41784 | K10: =OFFSET('II fisicos'!K50,0,($P$2-1)*12) -> 36.58839 | L10: =OFFSET('II fisicos'!L50,0,($P$2-1)*12) -> 9.72422 | M10: =OFFSET('II fisicos'!M50,0,($P$2-1)*12) -> - | N10: =OFFSET('II fisicos'!N50,0,($P$2-1)*12) -> - | O10: =OFFSET('II fisicos'!O50,0,($P$2-1)*12) -> - | P10: =IF(SUM(D10:O10)=0,"-",SUM(D10:O10)) -> 159.06026
C11: Total | D11: =OFFSET('II fisicos'!D51,0,($P$2-1)*12) -> 31.22564 | E11: =OFFSET('II fisicos'!E51,0,($P$2-1)*12) -> 24.86972 | F11: =OFFSET('II fisicos'!F51,0,($P$2-1)*12) -> 17.67933 | G11: =OFFSET('II fisicos'!G51,0,($P$2-1)*12) -> 12.57196 | H11: =OFFSET('II fisicos'!H51,0,($P$2-1)*12) -> 14.20318 | I11: =OFFSET('II fisicos'!I51,0,($P$2-1)*12) -> 11.77998 | J11: =OFFSET('II fisicos'!J51,0,($P$2-1)*12) -> 0.41784 | K11: =OFFSET('II fisicos'!K51,0,($P$2-1)*12) -> 36.58839 | L11: =OFFSET('II fisicos'!L51,0,($P$2-1)*12) -> 9.72422 | M11: =OFFSET('II fisicos'!M51,0,($P$2-1)*12) -> - | N11: =OFFSET('II fisicos'!N51,0,($P$2-1)*12) -> - | O11: =OFFSET('II fisicos'!O51,0,($P$2-1)*12) -> - | P11: =IF(SUM(D11:O11)=0,"-",SUM(D11:O11)) -> 159.06026
B12: Francia | C12: Arkale-Argia | D12: =OFFSET('II fisicos'!D52,0,($P$2-1)*12) -> 123.139768 | E12: =OFFSET('II fisicos'!E52,0,($P$2-1)*12) -> 61.724031 | F12: =OFFSET('II fisicos'!F52,0,($P$2-1)*12) -> 13.838049 | G12: =OFFSET('II fisicos'!G52,0,($P$2-1)*12) -> 5.750868 | H12: =OFFSET('II fisicos'!H52,0,($P$2-1)*12) -> 0.448109 | I12: =OFFSET('II fisicos'!I52,0,($P$2-1)*12) -> 1.012686 | J12: =OFFSET('II fisicos'!J52,0,($P$2-1)*12) -> 1.884246 | K12: =OFFSET('II fisicos'!K52,0,($P$2-1)*12) -> 0.426542 | L12: =OFFSET('II fisicos'!L52,0,($P$2-1)*12) -> 8.419836 | M12: =OFFSET('II fisicos'!M52,0,($P$2-1)*12) -> - | N12: =OFFSET('II fisicos'!N52,0,($P$2-1)*12) -> - | O12: =OFFSET('II fisicos'!O52,0,($P$2-1)*12) -> - | P12: 216.644135
C13: Benós-Lac D'oo | D13: =OFFSET('II fisicos'!D53,0,($P$2-1)*12) -> 0 | E13: =OFFSET('II fisicos'!E53,0,($P$2-1)*12) -> 0 | F13: =OFFSET('II fisicos'!F53,0,($P$2-1)*12) -> 0.001134 | G13: =OFFSET('II fisicos'!G53,0,($P$2-1)*12) -> 0.000284 | H13: =OFFSET('II fisicos'!H53,0,($P$2-1)*12) -> 1.3e-05 | I13: =OFFSET('II fisicos'!I53,0,($P$2-1)*12) -> 8e-06 | J13: =OFFSET('II fisicos'!J53,0,($P$2-1)*12) -> 0 | K13: =OFFSET('II fisicos'!K53,0,($P$2-1)*12) -> 0.013098 | L13: =OFFSET('II fisicos'!L53,0,($P$2-1)*12) -> 0 | M13: =OFFSET('II fisicos'!M53,0,($P$2-1)*12) -> - | N13: =OFFSET('II fisicos'!N53,0,($P$2-1)*12) -> - | O13: =OFFSET('II fisicos'!O53,0,($P$2-1)*12) -> - | P13: 0.014537
C14: Biescas-Pragneres | D14: =OFFSET('II fisicos'!D54,0,($P$2-1)*12) -> 72.74101 | E14: =OFFSET('II fisicos'!E54,0,($P$2-1)*12) -> 44.250475 | F14: =OFFSET('II fisicos'!F54,0,($P$2-1)*12) -> 17.284184 | G14: =OFFSET('II fisicos'!G54,0,($P$2-1)*12) -> 13.376706 | H14: =OFFSET('II fisicos'!H54,0,($P$2-1)*12) -> 3.159902 | I14: =OFFSET('II fisicos'!I54,0,($P$2-1)*12) -> 13.306374 | J14: =OFFSET('II fisicos'!J54,0,($P$2-1)*12) -> 13.262028 | K14: =OFFSET('II fisicos'!K54,0,($P$2-1)*12) -> 0.99009 | L14: =OFFSET('II fisicos'!L54,0,($P$2-1)*12) -> 0.85762 | M14: =OFFSET('II fisicos'!M54,0,($P$2-1)*12) -> - | N14: =OFFSET('II fisicos'!N54,0,($P$2-1)*12) -> - | O14: =OFFSET('II fisicos'!O54,0,($P$2-1)*12) -> - | P14: 179.228389
C15: Hernani-Argia | D15: =OFFSET('II fisicos'!D55,0,($P$2-1)*12) -> 374.732318 | E15: =OFFSET('II fisicos'!E55,0,($P$2-1)*12) -> 186.457959 | F15: =OFFSET('II fisicos'!F55,0,($P$2-1)*12) -> 37.589248 | G15: =OFFSET('II fisicos'!G55,0,($P$2-1)*12) -> 8.623083 | H15: =OFFSET('II fisicos'!H55,0,($P$2-1)*12) -> 1.072241 | I15: =OFFSET('II fisicos'!I55,0,($P$2-1)*12) -> 1.261324 | J15: =OFFSET('II fisicos'!J55,0,($P$2-1)*12) -> 0.211884 | K15: =OFFSET('II fisicos'!K55,0,($P$2-1)*12) -> 0 | L15: =OFFSET('II fisicos'!L55,0,($P$2-1)*12) -> 0.169358 | M15: =OFFSET('II fisicos'!M55,0,($P$2-1)*12) -> - | N15: =OFFSET('II fisicos'!N55,0,($P$2-1)*12) -> - | O15: =OFFSET('II fisicos'!O55,0,($P$2-1)*12) -> - | P15: 610.117415
C16: Irún-Errondenia | D16: =OFFSET('II fisicos'!D56,0,($P$2-1)*12) -> 0.382206 | E16: =OFFSET('II fisicos'!E56,0,($P$2-1)*12) -> 0.071494 | F16: =OFFSET('II fisicos'!F56,0,($P$2-1)*12) -> 0.147156 | G16: =OFFSET('II fisicos'!G56,0,($P$2-1)*12) -> 0.173573 | H16: =OFFSET('II fisicos'!H56,0,($P$2-1)*12) -> 0.192022 | I16: =OFFSET('II fisicos'!I56,0,($P$2-1)*12) -> 0.250159 | J16: =OFFSET('II fisicos'!J56,0,($P$2-1)*12) -> 0.049817 | K16: =OFFSET('II fisicos'!K56,0,($P$2-1)*12) -> 0.181328 | L16: =OFFSET('II fisicos'!L56,0,($P$2-1)*12) -> 0.176706 | M16: =OFFSET('II fisicos'!M56,0,($P$2-1)*12) -> - | N16: =OFFSET('II fisicos'!N56,0,($P$2-1)*12) -> - | O16: =OFFSET('II fisicos'!O56,0,($P$2-1)*12) -> - | P16: 1.624461
C17: Santa Llogaia-Baixas | D17: =OFFSET('II fisicos'!D57,0,($P$2-1)*12) -> 194.764113 | E17: =OFFSET('II fisicos'!E57,0,($P$2-1)*12) -> 134.770057 | F17: =OFFSET('II fisicos'!F57,0,($P$2-1)*12) -> 31.829432 | G17: =OFFSET('II fisicos'!G57,0,($P$2-1)*12) -> 5.23859 | H17: =OFFSET('II fisicos'!H57,0,($P$2-1)*12) -> 0.596399 | I17: =OFFSET('II fisicos'!I57,0,($P$2-1)*12) -> 0.049186 | J17: =OFFSET('II fisicos'!J57,0,($P$2-1)*12) -> 0.004379 | K17: =OFFSET('II fisicos'!K57,0,($P$2-1)*12) -> 0 | L17: =OFFSET('II fisicos'!L57,0,($P$2-1)*12) -> 1e-05 | M17: =OFFSET('II fisicos'!M57,0,($P$2-1)*12) -> - | N17: =OFFSET('II fisicos'!N57,0,($P$2-1)*12) -> - | O17: =OFFSET('II fisicos'!O57,0,($P$2-1)*12) -> - | P17: 367.252166
C18: Vic-Baixas | D18: =OFFSET('II fisicos'!D58,0,($P$2-1)*12) -> 90.251531 | E18: =OFFSET('II fisicos'!E58,0,($P$2-1)*12) -> 63.31948 | F18: =OFFSET('II fisicos'!F58,0,($P$2-1)*12) -> 15.1237 | G18: =OFFSET('II fisicos'!G58,0,($P$2-1)*12) -> 2.661337 | H18: =OFFSET('II fisicos'!H58,0,($P$2-1)*12) -> 0.10208 | I18: =OFFSET('II fisicos'!I58,0,($P$2-1)*12) -> 0 | J18: =OFFSET('II fisicos'!J58,0,($P$2-1)*12) -> 0 | K18: =OFFSET('II fisicos'!K58,0,($P$2-1)*12) -> 0 | L18: =OFFSET('II fisicos'!L58,0,($P$2-1)*12) -> 2e-06 | M18: =OFFSET('II fisicos'!M58,0,($P$2-1)*12) -> - | N18: =OFFSET('II fisicos'!N58,0,($P$2-1)*12) -> - | O18: =OFFSET('II fisicos'!O58,0,($P$2-1)*12) -> - | P18: 171.45813
C19: Total | D19: =OFFSET('II fisicos'!D59,0,($P$2-1)*12) -> 856.010946 | E19: =OFFSET('II fisicos'!E59,0,($P$2-1)*12) -> 490.593496 | F19: =OFFSET('II fisicos'!F59,0,($P$2-1)*12) -> 115.812903 | G19: =OFFSET('II fisicos'!G59,0,($P$2-1)*12) -> 35.824441 | H19: =OFFSET('II fisicos'!H59,0,($P$2-1)*12) -> 5.570766 | I19: =OFFSET('II fisicos'!I59,0,($P$2-1)*12) -> 15.879737 | J19: =OFFSET('II fisicos'!J59,0,($P$2-1)*12) -> 15.412354 | K19: =OFFSET('II fisicos'!K59,0,($P$2-1)*12) -> 1.611058 | L19: =OFFSET('II fisicos'!L59,0,($P$2-1)*12) -> 9.623532 | M19: =OFFSET('II fisicos'!M59,0,($P$2-1)*12) -> - | N19: =OFFSET('II fisicos'!N59,0,($P$2-1)*12) -> - | O19: =OFFSET('II fisicos'!O59,0,($P$2-1)*12) -> - | P19: 1546.339233
B20: Portugal | C20: Aldeadávila-Pocinho 1 | D20: =OFFSET('II fisicos'!D60,0,($P$2-1)*12) -> 27.7379 | E20: =OFFSET('II fisicos'!E60,0,($P$2-1)*12) -> 8.6027 | F20: =OFFSET('II fisicos'!F60,0,($P$2-1)*12) -> 15.5733 | G20: =OFFSET('II fisicos'!G60,0,($P$2-1)*12) -> 23.2979 | H20: =OFFSET('II fisicos'!H60,0,($P$2-1)*12) -> 22.156 | I20: =OFFSET('II fisicos'!I60,0,($P$2-1)*12) -> 11.9864 | J20: =OFFSET('II fisicos'!J60,0,($P$2-1)*12) -> 10.1684 | K20: =OFFSET('II fisicos'!K60,0,($P$2-1)*12) -> 7.5393 | L20: =OFFSET('II fisicos'!L60,0,($P$2-1)*12) -> 16.5412 | M20: =OFFSET('II fisicos'!M60,0,($P$2-1)*12) -> - | N20: =OFFSET('II fisicos'!N60,0,($P$2-1)*12) -> - | O20: =OFFSET('II fisicos'!O60,0,($P$2-1)*12) -> - | P20: 143.6031
C21: Aldeadávila-Pocinho 2 | D21: =OFFSET('II fisicos'!D61,0,($P$2-1)*12) -> 27.5201 | E21: =OFFSET('II fisicos'!E61,0,($P$2-1)*12) -> 8.5191 | F21: =OFFSET('II fisicos'!F61,0,($P$2-1)*12) -> 15.3597 | G21: =OFFSET('II fisicos'!G61,0,($P$2-1)*12) -> 22.9609 | H21: =OFFSET('II fisicos'!H61,0,($P$2-1)*12) -> 21.9199 | I21: =OFFSET('II fisicos'!I61,0,($P$2-1)*12) -> 11.9046 | J21: =OFFSET('II fisicos'!J61,0,($P$2-1)*12) -> 10.1313 | K21: =OFFSET('II fisicos'!K61,0,($P$2-1)*12) -> 7.4756 | L21: =OFFSET('II fisicos'!L61,0,($P$2-1)*12) -> 16.3867 | M21: =OFFSET('II fisicos'!M61,0,($P$2-1)*12) -> - | N21: =OFFSET('II fisicos'!N61,0,($P$2-1)*12) -> - | O21: =OFFSET('II fisicos'!O61,0,($P$2-1)*12) -> - | P21: 142.1779
C22: Aldeadávila-Lagoaça | D22: =OFFSET('II fisicos'!D62,0,($P$2-1)*12) -> 56.02068 | E22: =OFFSET('II fisicos'!E62,0,($P$2-1)*12) -> 15.85116 | F22: =OFFSET('II fisicos'!F62,0,($P$2-1)*12) -> 48.91536 | G22: =OFFSET('II fisicos'!G62,0,($P$2-1)*12) -> 100.696176 | H22: =OFFSET('II fisicos'!H62,0,($P$2-1)*12) -> 44.511552 | I22: =OFFSET('II fisicos'!I62,0,($P$2-1)*12) -> 16.5078 | J22: =OFFSET('II fisicos'!J62,0,($P$2-1)*12) -> 16.323984 | K22: =OFFSET('II fisicos'!K62,0,($P$2-1)*12) -> 15.158016 | L22: =OFFSET('II fisicos'!L62,0,($P$2-1)*12) -> 35.79444 | M22: =OFFSET('II fisicos'!M62,0,($P$2-1)*12) -> - | N22: =OFFSET('II fisicos'!N62,0,($P$2-1)*12) -> - | O22: =OFFSET('II fisicos'!O62,0,($P$2-1)*12) -> - | P22: 349.779168
C23: Badajoz-Alcaçovas | D23: =OFFSET('II fisicos'!D63,0,($P$2-1)*12) -> 0.000552 | E23: =OFFSET('II fisicos'!E63,0,($P$2-1)*12) -> 0.000746 | F23: =OFFSET('II fisicos'!F63,0,($P$2-1)*12) -> 0.000436 | G23: =OFFSET('II fisicos'!G63,0,($P$2-1)*12) -> 0.000309 | H23: =OFFSET('II fisicos'!H63,0,($P$2-1)*12) -> 0.000297 | I23: =OFFSET('II fisicos'!I63,0,($P$2-1)*12) -> 0.000169 | J23: =OFFSET('II fisicos'!J63,0,($P$2-1)*12) -> 0.000216 | K23: =OFFSET('II fisicos'!K63,0,($P$2-1)*12) -> 0.00013 | L23: =OFFSET('II fisicos'!L63,0,($P$2-1)*12) -> 0.000153 | M23: =OFFSET('II fisicos'!M63,0,($P$2-1)*12) -> - | N23: =OFFSET('II fisicos'!N63,0,($P$2-1)*12) -> - | O23: =OFFSET('II fisicos'!O63,0,($P$2-1)*12) -> - | P23: 0.003008
C24: Balboa-Alqueva | D24: =OFFSET('II fisicos'!D64,0,($P$2-1)*12) -> 0 | E24: =OFFSET('II fisicos'!E64,0,($P$2-1)*12) -> 0 | F24: =OFFSET('II fisicos'!F64,0,($P$2-1)*12) -> 0 | G24: =OFFSET('II fisicos'!G64,0,($P$2-1)*12) -> 0 | H24: =OFFSET('II fisicos'!H64,0,($P$2-1)*12) -> 0 | I24: =OFFSET('II fisicos'!I64,0,($P$2-1)*12) -> 0 | J24: =OFFSET('II fisicos'!J64,0,($P$2-1)*12) -> 0 | K24: =OFFSET('II fisicos'!K64,0,($P$2-1)*12) -> 0 | L24: =OFFSET('II fisicos'!L64,0,($P$2-1)*12) -> 0 | M24: =OFFSET('II fisicos'!M64,0,($P$2-1)*12) -> - | N24: =OFFSET('II fisicos'!N64,0,($P$2-1)*12) -> - | O24: =OFFSET('II fisicos'!O64,0,($P$2-1)*12) -> - | P24: =SUM(D24:O24) -> 0
C25: Brovales-Alqueva | D25: =OFFSET('II fisicos'!D65,0,($P$2-1)*12) -> 15.310615 | E25: =OFFSET('II fisicos'!E65,0,($P$2-1)*12) -> 13.188652 | F25: =OFFSET('II fisicos'!F65,0,($P$2-1)*12) -> 21.141722 | G25: =OFFSET('II fisicos'!G65,0,($P$2-1)*12) -> 32.871292 | H25: =OFFSET('II fisicos'!H65,0,($P$2-1)*12) -> 13.767798 | I25: =OFFSET('II fisicos'!I65,0,($P$2-1)*12) -> 0.979537 | J25: =OFFSET('II fisicos'!J65,0,($P$2-1)*12) -> 3.26742 | K25: =OFFSET('II fisicos'!K65,0,($P$2-1)*12) -> 7.684961 | L25: =OFFSET('II fisicos'!L65,0,($P$2-1)*12) -> 21.207592 | M25: =OFFSET('II fisicos'!M65,0,($P$2-1)*12) -> - | N25: =OFFSET('II fisicos'!N65,0,($P$2-1)*12) -> - | O25: =OFFSET('II fisicos'!O65,0,($P$2-1)*12) -> - | P25: 129.419589
C26: Cartelle-Lindoso | D26: =OFFSET('II fisicos'!D66,0,($P$2-1)*12) -> 408.1993 | E26: =OFFSET('II fisicos'!E66,0,($P$2-1)*12) -> 210.8485 | F26: =OFFSET('II fisicos'!F66,0,($P$2-1)*12) -> 207.4255 | G26: =OFFSET('II fisicos'!G66,0,($P$2-1)*12) -> 184.1761 | H26: =OFFSET('II fisicos'!H66,0,($P$2-1)*12) -> 281.6063 | I26: =OFFSET('II fisicos'!I66,0,($P$2-1)*12) -> 329.8777 | J26: =OFFSET('II fisicos'!J66,0,($P$2-1)*12) -> 291.9399 | K26: =OFFSET('II fisicos'!K66,0,($P$2-1)*12) -> 105.1431 | L26: =OFFSET('II fisicos'!L66,0,($P$2-1)*12) -> 233.9941 | M26: =OFFSET('II fisicos'!M66,0,($P$2-1)*12) -> - | N26: =OFFSET('II fisicos'!N66,0,($P$2-1)*12) -> - | O26: =OFFSET('II fisicos'!O66,0,($P$2-1)*12) -> - | P26: 2253.2105
C27: Cedillo-Falaguerira | D27: =OFFSET('II fisicos'!D67,0,($P$2-1)*12) -> 12.1561 | E27: =OFFSET('II fisicos'!E67,0,($P$2-1)*12) -> 5.2022 | F27: =OFFSET('II fisicos'!F67,0,($P$2-1)*12) -> 28.8336 | G27: =OFFSET('II fisicos'!G67,0,($P$2-1)*12) -> 67.0232 | H27: =OFFSET('II fisicos'!H67,0,($P$2-1)*12) -> 25.8287 | I27: =OFFSET('II fisicos'!I67,0,($P$2-1)*12) -> 0 | J27: =OFFSET('II fisicos'!J67,0,($P$2-1)*12) -> 0 | K27: =OFFSET('II fisicos'!K67,0,($P$2-1)*12) -> 0 | L27: =OFFSET('II fisicos'!L67,0,($P$2-1)*12) -> 6.8301 | M27: =OFFSET('II fisicos'!M67,0,($P$2-1)*12) -> - | N27: =OFFSET('II fisicos'!N67,0,($P$2-1)*12) -> - | O27: =OFFSET('II fisicos'!O67,0,($P$2-1)*12) -> - | P27: 145.8739
C28: Conchas-Lindoso | D28: =OFFSET('II fisicos'!D68,0,($P$2-1)*12) -> 0 | E28: =OFFSET('II fisicos'!E68,0,($P$2-1)*12) -> 0 | F28: =OFFSET('II fisicos'!F68,0,($P$2-1)*12) -> 0 | G28: =OFFSET('II fisicos'!G68,0,($P$2-1)*12) -> 0 | H28: =OFFSET('II fisicos'!H68,0,($P$2-1)*12) -> 0 | I28: =OFFSET('II fisicos'!I68,0,($P$2-1)*12) -> 0 | J28: =OFFSET('II fisicos'!J68,0,($P$2-1)*12) -> 0 | K28: =OFFSET('II fisicos'!K68,0,($P$2-1)*12) -> 0 | L28: =OFFSET('II fisicos'!L68,0,($P$2-1)*12) -> 0 | M28: =OFFSET('II fisicos'!M68,0,($P$2-1)*12) -> - | N28: =OFFSET('II fisicos'!N68,0,($P$2-1)*12) -> - | O28: =OFFSET('II fisicos'!O68,0,($P$2-1)*12) -> - | P28: =SUM(D28:O28) -> 0
C29: Encinasola-Barrancos | D29: =OFFSET('II fisicos'!D69,0,($P$2-1)*12) -> 0 | E29: =OFFSET('II fisicos'!E69,0,($P$2-1)*12) -> 0 | F29: =OFFSET('II fisicos'!F69,0,($P$2-1)*12) -> 0 | G29: =OFFSET('II fisicos'!G69,0,($P$2-1)*12) -> 0 | H29: =OFFSET('II fisicos'!H69,0,($P$2-1)*12) -> 0 | I29: =OFFSET('II fisicos'!I69,0,($P$2-1)*12) -> 0 | J29: =OFFSET('II fisicos'!J69,0,($P$2-1)*12) -> 0 | K29: =OFFSET('II fisicos'!K69,0,($P$2-1)*12) -> 0 | L29: =OFFSET('II fisicos'!L69,0,($P$2-1)*12) -> 0 | M29: =OFFSET('II fisicos'!M69,0,($P$2-1)*12) -> - | N29: =OFFSET('II fisicos'!N69,0,($P$2-1)*12) -> - | O29: =OFFSET('II fisicos'!O69,0,($P$2-1)*12) -> - | P29: 0
C30: Puebla de Guzmán-Tavira | D30: =OFFSET('II fisicos'!D70,0,($P$2-1)*12) -> 0.251198 | E30: =OFFSET('II fisicos'!E70,0,($P$2-1)*12) -> 1.621864 | F30: =OFFSET('II fisicos'!F70,0,($P$2-1)*12) -> 2.76431 | G30: =OFFSET('II fisicos'!G70,0,($P$2-1)*12) -> 5.556553 | H30: =OFFSET('II fisicos'!H70,0,($P$2-1)*12) -> 3.52666 | I30: =OFFSET('II fisicos'!I70,0,($P$2-1)*12) -> 0.156454 | J30: =OFFSET('II fisicos'!J70,0,($P$2-1)*12) -> 2.141318 | K30: =OFFSET('II fisicos'!K70,0,($P$2-1)*12) -> 1.218327 | L30: =OFFSET('II fisicos'!L70,0,($P$2-1)*12) -> 5.355693 | M30: =OFFSET('II fisicos'!M70,0,($P$2-1)*12) -> - | N30: =OFFSET('II fisicos'!N70,0,($P$2-1)*12) -> - | O30: =OFFSET('II fisicos'!O70,0,($P$2-1)*12) -> - | P30: 22.592377
C31: Rosal Frontera-V. Ficalho | D31: =OFFSET('II fisicos'!D71,0,($P$2-1)*12) -> 0 | E31: =OFFSET('II fisicos'!E71,0,($P$2-1)*12) -> 0 | F31: =OFFSET('II fisicos'!F71,0,($P$2-1)*12) -> 0 | G31: =OFFSET('II fisicos'!G71,0,($P$2-1)*12) -> 0 | H31: =OFFSET('II fisicos'!H71,0,($P$2-1)*12) -> 0 | I31: =OFFSET('II fisicos'!I71,0,($P$2-1)*12) -> 0 | J31: =OFFSET('II fisicos'!J71,0,($P$2-1)*12) -> 0 | K31: =OFFSET('II fisicos'!K71,0,($P$2-1)*12) -> 0 | L31: =OFFSET('II fisicos'!L71,0,($P$2-1)*12) -> 0 | M31: =OFFSET('II fisicos'!M71,0,($P$2-1)*12) -> - | N31: =OFFSET('II fisicos'!N71,0,($P$2-1)*12) -> - | O31: =OFFSET('II fisicos'!O71,0,($P$2-1)*12) -> - | P31: =SUM(D31:O31) -> 0
C32: Saucelle-Pocinho | D32: =OFFSET('II fisicos'!D72,0,($P$2-1)*12) -> 43.3523 | E32: =OFFSET('II fisicos'!E72,0,($P$2-1)*12) -> 13.1566 | F32: =OFFSET('II fisicos'!F72,0,($P$2-1)*12) -> 36.1632 | G32: =OFFSET('II fisicos'!G72,0,($P$2-1)*12) -> 30.1883 | H32: =OFFSET('II fisicos'!H72,0,($P$2-1)*12) -> 28.2153 | I32: =OFFSET('II fisicos'!I72,0,($P$2-1)*12) -> 17.3472 | J32: =OFFSET('II fisicos'!J72,0,($P$2-1)*12) -> 9.7892 | K32: =OFFSET('II fisicos'!K72,0,($P$2-1)*12) -> 7.3286 | L32: =OFFSET('II fisicos'!L72,0,($P$2-1)*12) -> 15.7563 | M32: =OFFSET('II fisicos'!M72,0,($P$2-1)*12) -> - | N32: =OFFSET('II fisicos'!N72,0,($P$2-1)*12) -> - | O32: =OFFSET('II fisicos'!O72,0,($P$2-1)*12) -> - | P32: 201.297
C33: Santa María-Elvás | D33: =OFFSET('II fisicos'!D73,0,($P$2-1)*12) -> 0 | E33: =OFFSET('II fisicos'!E73,0,($P$2-1)*12) -> 0 | F33: =OFFSET('II fisicos'!F73,0,($P$2-1)*12) -> 0 | G33: =OFFSET('II fisicos'!G73,0,($P$2-1)*12) -> 0 | H33: =OFFSET('II fisicos'!H73,0,($P$2-1)*12) -> 0 | I33: =OFFSET('II fisicos'!I73,0,($P$2-1)*12) -> 0 | J33: =OFFSET('II fisicos'!J73,0,($P$2-1)*12) -> 0 | K33: =OFFSET('II fisicos'!K73,0,($P$2-1)*12) -> 0 | L33: =OFFSET('II fisicos'!L73,0,($P$2-1)*12) -> 0 | M33: =OFFSET('II fisicos'!M73,0,($P$2-1)*12) -> - | N33: =OFFSET('II fisicos'!N73,0,($P$2-1)*12) -> - | O33: =OFFSET('II fisicos'!O73,0,($P$2-1)*12) -> - | P33: =SUM(D33:O33) -> 0
C34: Total | D34: =OFFSET('II fisicos'!D74,0,($P$2-1)*12) -> 590.548745 | E34: =OFFSET('II fisicos'!E74,0,($P$2-1)*12) -> 276.991522 | F34: =OFFSET('II fisicos'!F74,0,($P$2-1)*12) -> 376.177128 | G34: =OFFSET('II fisicos'!G74,0,($P$2-1)*12) -> 466.77073 | H34: =OFFSET('II fisicos'!H74,0,($P$2-1)*12) -> 441.532507 | I34: =OFFSET('II fisicos'!I74,0,($P$2-1)*12) -> 388.75986 | J34: =OFFSET('II fisicos'!J74,0,($P$2-1)*12) -> 343.761738 | K34: =OFFSET('II fisicos'!K74,0,($P$2-1)*12) -> 151.548034 | L34: =OFFSET('II fisicos'!L74,0,($P$2-1)*12) -> 351.866278 | M34: =OFFSET('II fisicos'!M74,0,($P$2-1)*12) -> - | N34: =OFFSET('II fisicos'!N74,0,($P$2-1)*12) -> - | O34: =OFFSET('II fisicos'!O74,0,($P$2-1)*12) -> - | P34: 3387.956542
B35: Marruecos | C35: Puerto de la Cruz-Mellousa | D35: =OFFSET('II fisicos'!D75,0,($P$2-1)*12) -> 400.9699 | E35: =OFFSET('II fisicos'!E75,0,($P$2-1)*12) -> 479.9329 | F35: =OFFSET('II fisicos'!F75,0,($P$2-1)*12) -> 532.8549 | G35: =OFFSET('II fisicos'!G75,0,($P$2-1)*12) -> 537.458 | H35: =OFFSET('II fisicos'!H75,0,($P$2-1)*12) -> 569.404 | I35: =OFFSET('II fisicos'!I75,0,($P$2-1)*12) -> 533.286 | J35: =OFFSET('II fisicos'!J75,0,($P$2-1)*12) -> 595.5546 | K35: =OFFSET('II fisicos'!K75,0,($P$2-1)*12) -> 590.2067 | L35: =OFFSET('II fisicos'!L75,0,($P$2-1)*12) -> 484.0448 | M35: =OFFSET('II fisicos'!M75,0,($P$2-1)*12) -> - | N35: =OFFSET('II fisicos'!N75,0,($P$2-1)*12) -> - | O35: =OFFSET('II fisicos'!O75,0,($P$2-1)*12) -> - | P35: 4723.7118
C36: Total | D36: =OFFSET('II fisicos'!D76,0,($P$2-1)*12) -> 400.9699 | E36: =OFFSET('II fisicos'!E76,0,($P$2-1)*12) -> 479.9329 | F36: =OFFSET('II fisicos'!F76,0,($P$2-1)*12) -> 532.8549 | G36: =OFFSET('II fisicos'!G76,0,($P$2-1)*12) -> 537.458 | H36: =OFFSET('II fisicos'!H76,0,($P$2-1)*12) -> 569.404 | I36: =OFFSET('II fisicos'!I76,0,($P$2-1)*12) -> 533.286 | J36: =OFFSET('II fisicos'!J76,0,($P$2-1)*12) -> 595.5546 | K36: =OFFSET('II fisicos'!K76,0,($P$2-1)*12) -> 590.2067 | L36: =OFFSET('II fisicos'!L76,0,($P$2-1)*12) -> 484.0448 | M36: =OFFSET('II fisicos'!M76,0,($P$2-1)*12) -> - | N36: =OFFSET('II fisicos'!N76,0,($P$2-1)*12) -> - | O36: =OFFSET('II fisicos'!O76,0,($P$2-1)*12) -> - | P36: 4723.7118
B37: Salidas | D37: =OFFSET('II fisicos'!D77,0,($P$2-1)*12) -> 1878.755231 | E37: =OFFSET('II fisicos'!E77,0,($P$2-1)*12) -> 1272.387638 | F37: =OFFSET('II fisicos'!F77,0,($P$2-1)*12) -> 1042.524261 | G37: =OFFSET('II fisicos'!G77,0,($P$2-1)*12) -> 1052.625131 | H37: =OFFSET('II fisicos'!H77,0,($P$2-1)*12) -> 1030.710453 | I37: =OFFSET('II fisicos'!I77,0,($P$2-1)*12) -> 949.705577 | J37: =OFFSET('II fisicos'!J77,0,($P$2-1)*12) -> 955.146532 | K37: =OFFSET('II fisicos'!K77,0,($P$2-1)*12) -> 779.954182 | L37: =OFFSET('II fisicos'!L77,0,($P$2-1)*12) -> 855.25883 | M37: =OFFSET('II fisicos'!M77,0,($P$2-1)*12) -> - | N37: =OFFSET('II fisicos'!N77,0,($P$2-1)*12) -> - | O37: =OFFSET('II fisicos'!O77,0,($P$2-1)*12) -> - | P37: 9817.067835
B38: =IF(MONTH(FACT)=1,CONCATENATE("No hay datos de medida disponible para el mes de ",TEXT(FACT-30,"mmmm")," de ",YEAR(FACT)-1,"."),CONCATENATE("No hay datos de medida disponible para el mes de ",TEXT(FACT-30,"mmmm")," de ",YEAR(FACT),".")) -> No hay datos de medida disponible para el mes de octubre de 2017.

Sheet Salidas por linea año
M1: 2
M2: 3
K4: Concepto
K5: Horizonte temporal
K6: Periodo
D8: =OFFSET('II fisicos'!D109,0,($M$2-1)*10) -> 2010 | E8: =OFFSET('II fisicos'!E109,0,($M$2-1)*10) -> 2011 | F8: =OFFSET('II fisicos'!F109,0,($M$2-1)*10) -> 2012 | G8: =OFFSET('II fisicos'!G109,0,($M$2-1)*10) -> 2013 | H8: =OFFSET('II fisicos'!H109,0,($M$2-1)*10) -> 2014 | I8: =OFFSET('II fisicos'!I109,0,($M$2-1)*10) -> 2015 | J8: =OFFSET('II fisicos'!J109,0,($M$2-1)*10) -> 2016 | K8: =OFFSET('II fisicos'!K109,0,($M$2-1)*10) -> 2017 | L8: =OFFSET('II fisicos'!L109,0,($M$2-1)*10) -> 2018 | M8: =OFFSET('II fisicos'!M109,0,($M$2-1)*10) -> 2019
B10: Andorra | C10: Adrall-Margineda | D10: =OFFSET('II fisicos'!D157,0,($M$2-1)*10) -> 264.49448 | E10: =OFFSET('II fisicos'!E157,0,($M$2-1)*10) -> 305.7133 | F10: =OFFSET('II fisicos'!F157,0,($M$2-1)*10) -> 286.21886 | G10: =OFFSET('II fisicos'!G157,0,($M$2-1)*10) -> 287.39902 | H10: =OFFSET('II fisicos'!H157,0,($M$2-1)*10) -> 234.51144 | I10: =OFFSET('II fisicos'!I157,0,($M$2-1)*10) -> 264.05766 | J10: =OFFSET('II fisicos'!J157,0,($M$2-1)*10) -> 278.28441 | K10: =OFFSET('II fisicos'!K157,0,($M$2-1)*10) -> 159.06026 | L10: =OFFSET('II fisicos'!L157,0,($M$2-1)*10) -> - | M10: =OFFSET('II fisicos'!M157,0,($M$2-1)*10) -> -
C11: Total | D11: =OFFSET('II fisicos'!D158,0,($M$2-1)*10) -> 264.49448 | E11: =OFFSET('II fisicos'!E158,0,($M$2-1)*10) -> 305.7133 | F11: =OFFSET('II fisicos'!F158,0,($M$2-1)*10) -> 286.21886 | G11: =OFFSET('II fisicos'!G158,0,($M$2-1)*10) -> 287.39902 | H11: =OFFSET('II fisicos'!H158,0,($M$2-1)*10) -> 234.51144 | I11: =OFFSET('II fisicos'!I158,0,($M$2-1)*10) -> 264.05766 | J11: =OFFSET('II fisicos'!J158,0,($M$2-1)*10) -> 278.28441 | K11: =OFFSET('II fisicos'!K158,0,($M$2-1)*10) -> 159.06026 | L11: =OFFSET('II fisicos'!L158,0,($M$2-1)*10) -> - | M11: =OFFSET('II fisicos'!M158,0,($M$2-1)*10) -> -
B12: Francia | C12: Arkale-Argia | D12: =OFFSET('II fisicos'!D159,0,($M$2-1)*10) -> 829.304043 | E12: =OFFSET('II fisicos'!E159,0,($M$2-1)*10) -> 607.044612 | F12: =OFFSET('II fisicos'!F159,0,($M$2-1)*10) -> 790.036899 | G12: =OFFSET('II fisicos'!G159,0,($M$2-1)*10) -> 663.965382 | H12: =OFFSET('II fisicos'!H159,0,($M$2-1)*10) -> 509.58662 | I12: =OFFSET('II fisicos'!I159,0,($M$2-1)*10) -> 358.748285 | J12: =OFFSET('II fisicos'!J159,0,($M$2-1)*10) -> 627.116895 | K12: =OFFSET('II fisicos'!K159,0,($M$2-1)*10) -> 216.644135 | L12: =OFFSET('II fisicos'!L159,0,($M$2-1)*10) -> - | M12: =OFFSET('II fisicos'!M159,0,($M$2-1)*10) -> -
C13: Benós-Lac D'oo | D13: =OFFSET('II fisicos'!D160,0,($M$2-1)*10) -> 0.004535 | E13: =OFFSET('II fisicos'!E160,0,($M$2-1)*10) -> 1.063613 | F13: =OFFSET('II fisicos'!F160,0,($M$2-1)*10) -> 0.215039 | G13: =OFFSET('II fisicos'!G160,0,($M$2-1)*10) -> 3.188625 | H13: =OFFSET('II fisicos'!H160,0,($M$2-1)*10) -> 1.090994 | I13: =OFFSET('II fisicos'!I160,0,($M$2-1)*10) -> 0.003858 | J13: =OFFSET('II fisicos'!J160,0,($M$2-1)*10) -> 0.054139 | K13: =OFFSET('II fisicos'!K160,0,($M$2-1)*10) -> 0.014537 | L13: =OFFSET('II fisicos'!L160,0,($M$2-1)*10) -> - | M13: =OFFSET('II fisicos'!M160,0,($M$2-1)*10) -> -
C14: Biescas-Pragneres | D14: =OFFSET('II fisicos'!D161,0,($M$2-1)*10) -> 720.933065 | E14: =OFFSET('II fisicos'!E161,0,($M$2-1)*10) -> 497.121032 | F14: =OFFSET('II fisicos'!F161,0,($M$2-1)*10) -> 517.637129 | G14: =OFFSET('II fisicos'!G161,0,($M$2-1)*10) -> 517.358504 | H14: =OFFSET('II fisicos'!H161,0,($M$2-1)*10) -> 405.252834 | I14: =OFFSET('II fisicos'!I161,0,($M$2-1)*10) -> 321.997259 | J14: =OFFSET('II fisicos'!J161,0,($M$2-1)*10) -> 331.749961 | K14: =OFFSET('II fisicos'!K161,0,($M$2-1)*10) -> 179.228389 | L14: =OFFSET('II fisicos'!L161,0,($M$2-1)*10) -> - | M14: =OFFSET('II fisicos'!M161,0,($M$2-1)*10) -> -
C15: Hernani-Argia | D15: =OFFSET('II fisicos'!D162,0,($M$2-1)*10) -> 1154.483965 | E15: =OFFSET('II fisicos'!E162,0,($M$2-1)*10) -> 891.989982 | F15: =OFFSET('II fisicos'!F162,0,($M$2-1)*10) -> 1260.068964 | G15: =OFFSET('II fisicos'!G162,0,($M$2-1)*10) -> 1337.689031 | H15: =OFFSET('II fisicos'!H162,0,($M$2-1)*10) -> 1056.928387 | I15: =OFFSET('II fisicos'!I162,0,($M$2-1)*10) -> 721.46639 | J15: =OFFSET('II fisicos'!J162,0,($M$2-1)*10) -> 1793.560169 | K15: =OFFSET('II fisicos'!K162,0,($M$2-1)*10) -> 610.117415 | L15: =OFFSET('II fisicos'!L162,0,($M$2-1)*10) -> - | M15: =OFFSET('II fisicos'!M162,0,($M$2-1)*10) -> -
C16: Irún-Errondenia | D16: =OFFSET('II fisicos'!D163,0,($M$2-1)*10) -> 1.788218 | E16: =OFFSET('II fisicos'!E163,0,($M$2-1)*10) -> 1.982543 | F16: =OFFSET('II fisicos'!F163,0,($M$2-1)*10) -> 1.667278 | G16: =OFFSET('II fisicos'!G163,0,($M$2-1)*10) -> 1.588241 | H16: =OFFSET('II fisicos'!H163,0,($M$2-1)*10) -> 1.346216 | I16: =OFFSET('II fisicos'!I163,0,($M$2-1)*10) -> 1.605237 | J16: =OFFSET('II fisicos'!J163,0,($M$2-1)*10) -> 1.445425 | K16: =OFFSET('II fisicos'!K163,0,($M$2-1)*10) -> 1.624461 | L16: =OFFSET('II fisicos'!L163,0,($M$2-1)*10) -> - | M16: =OFFSET('II fisicos'!M163,0,($M$2-1)*10) -> -
C17: Santa Llogaia-Baixas | D17: =OFFSET('II fisicos'!D164,0,($M$2-1)*10) -> 0 | E17: =OFFSET('II fisicos'!E164,0,($M$2-1)*10) -> 0 | F17: =OFFSET('II fisicos'!F164,0,($M$2-1)*10) -> 0 | G17: =OFFSET('II fisicos'!G164,0,($M$2-1)*10) -> 0 | H17: =OFFSET('II fisicos'!H164,0,($M$2-1)*10) -> 0 | I17: =OFFSET('II fisicos'!I164,0,($M$2-1)*10) -> 120.346041 | J17: =OFFSET('II fisicos'!J164,0,($M$2-1)*10) -> 1064.757539 | K17: =OFFSET('II fisicos'!K164,0,($M$2-1)*10) -> 367.252166 | L17: =OFFSET('II fisicos'!L164,0,($M$2-1)*10) -> - | M17: =OFFSET('II fisicos'!M164,0,($M$2-1)*10) -> -
C18: Vic-Baixas | D18: =OFFSET('II fisicos'!D165,0,($M$2-1)*10) -> 807.679857 | E18: =OFFSET('II fisicos'!E165,0,($M$2-1)*10) -> 463.390384 | F18: =OFFSET('II fisicos'!F165,0,($M$2-1)*10) -> 458.103534 | G18: =OFFSET('II fisicos'!G165,0,($M$2-1)*10) -> 647.418653 | H18: =OFFSET('II fisicos'!H165,0,($M$2-1)*10) -> 421.060337 | I18: =OFFSET('II fisicos'!I165,0,($M$2-1)*10) -> 282.508195 | J18: =OFFSET('II fisicos'!J165,0,($M$2-1)*10) -> 515.138206 | K18: =OFFSET('II fisicos'!K165,0,($M$2-1)*10) -> 171.45813 | L18: =OFFSET('II fisicos'!L165,0,($M$2-1)*10) -> - | M18: =OFFSET('II fisicos'!M165,0,($M$2-1)*10) -> -
C19: Total | D19: =OFFSET('II fisicos'!D166,0,($M$2-1)*10) -> 3514.193683 | E19: =OFFSET('II fisicos'!E166,0,($M$2-1)*10) -> 2462.592166 | F19: =OFFSET('II fisicos'!F166,0,($M$2-1)*10) -> 3027.728843 | G19: =OFFSET('II fisicos'!G166,0,($M$2-1)*10) -> 3171.208436 | H19: =OFFSET('II fisicos'!H166,0,($M$2-1)*10) -> 2395.265388 | I19: =OFFSET('II fisicos'!I166,0,($M$2-1)*10) -> 1806.675265 | J19: =OFFSET('II fisicos'!J166,0,($M$2-1)*10) -> 4333.822334 | K19: =OFFSET('II fisicos'!K166,0,($M$2-1)*10) -> 1546.339233 | L19: =OFFSET('II fisicos'!L166,0,($M$2-1)*10) -> - | M19: =OFFSET('II fisicos'!M166,0,($M$2-1)*10) -> -
B20: Portugal | C20: Aldeadávila-Pocinho 1 | D20: =OFFSET('II fisicos'!D167,0,($M$2-1)*10) -> 205.9084 | E20: =OFFSET('II fisicos'!E167,0,($M$2-1)*10) -> 447.52958 | F20: =OFFSET('II fisicos'!F167,0,($M$2-1)*10) -> 576.3966 | G20: =OFFSET('II fisicos'!G167,0,($M$2-1)*10) -> 360.9298 | H20: =OFFSET('II fisicos'!H167,0,($M$2-1)*10) -> 373.68985 | I20: =OFFSET('II fisicos'!I167,0,($M$2-1)*10) -> 437.245 | J20: =OFFSET('II fisicos'!J167,0,($M$2-1)*10) -> 192.998 | K20: =OFFSET('II fisicos'!K167,0,($M$2-1)*10) -> 143.6031 | L20: =OFFSET('II fisicos'!L167,0,($M$2-1)*10) -> - | M20: =OFFSET('II fisicos'!M167,0,($M$2-1)*10) -> -
C21: Aldeadávila-Pocinho 2 | D21: =OFFSET('II fisicos'!D168,0,($M$2-1)*10) -> 175.3661 | E21: =OFFSET('II fisicos'!E168,0,($M$2-1)*10) -> 444.29554 | F21: =OFFSET('II fisicos'!F168,0,($M$2-1)*10) -> 568.1622 | G21: =OFFSET('II fisicos'!G168,0,($M$2-1)*10) -> 358.7988 | H21: =OFFSET('II fisicos'!H168,0,($M$2-1)*10) -> 356.86163 | I21: =OFFSET('II fisicos'!I168,0,($M$2-1)*10) -> 435.1543 | J21: =OFFSET('II fisicos'!J168,0,($M$2-1)*10) -> 126.89013 | K21: =OFFSET('II fisicos'!K168,0,($M$2-1)*10) -> 142.1779 | L21: =OFFSET('II fisicos'!L168,0,($M$2-1)*10) -> - | M21: =OFFSET('II fisicos'!M168,0,($M$2-1)*10) -> -
C22: Aldeadávila-Lagoaça | D22: =OFFSET('II fisicos'!D169,0,($M$2-1)*10) -> 0 | E22: =OFFSET('II fisicos'!E169,0,($M$2-1)*10) -> 447.42237 | F22: =OFFSET('II fisicos'!F169,0,($M$2-1)*10) -> 1065.271392 | G22: =OFFSET('II fisicos'!G169,0,($M$2-1)*10) -> 473.057928 | H22: =OFFSET('II fisicos'!H169,0,($M$2-1)*10) -> 408.917376 | I22: =OFFSET('II fisicos'!I169,0,($M$2-1)*10) -> 551.009304 | J22: =OFFSET('II fisicos'!J169,0,($M$2-1)*10) -> 281.717136 | K22: =OFFSET('II fisicos'!K169,0,($M$2-1)*10) -> 349.779168 | L22: =OFFSET('II fisicos'!L169,0,($M$2-1)*10) -> - | M22: =OFFSET('II fisicos'!M169,0,($M$2-1)*10) -> -
C23: Badajoz-Alcaçovas | D23: =OFFSET('II fisicos'!D170,0,($M$2-1)*10) -> 156.760459 | E23: =OFFSET('II fisicos'!E170,0,($M$2-1)*10) -> 58.516979 | F23: =OFFSET('II fisicos'!F170,0,($M$2-1)*10) -> 0.984466 | G23: =OFFSET('II fisicos'!G170,0,($M$2-1)*10) -> 0.006061 | H23: =OFFSET('II fisicos'!H170,0,($M$2-1)*10) -> 0.007121 | I23: =OFFSET('II fisicos'!I170,0,($M$2-1)*10) -> 0.005555 | J23: =OFFSET('II fisicos'!J170,0,($M$2-1)*10) -> 0.005768 | K23: =OFFSET('II fisicos'!K170,0,($M$2-1)*10) -> 0.003008 | L23: =OFFSET('II fisicos'!L170,0,($M$2-1)*10) -> - | M23: =OFFSET('II fisicos'!M170,0,($M$2-1)*10) -> -
C24: Balboa-Alqueva | D24: =OFFSET('II fisicos'!D171,0,($M$2-1)*10) -> 0 | E24: =OFFSET('II fisicos'!E171,0,($M$2-1)*10) -> 0 | F24: =OFFSET('II fisicos'!F171,0,($M$2-1)*10) -> 0 | G24: =OFFSET('II fisicos'!G171,0,($M$2-1)*10) -> 0 | H24: =OFFSET('II fisicos'!H171,0,($M$2-1)*10) -> 0 | I24: =OFFSET('II fisicos'!I171,0,($M$2-1)*10) -> 0 | J24: =OFFSET('II fisicos'!J171,0,($M$2-1)*10) -> 0 | K24: =OFFSET('II fisicos'!K171,0,($M$2-1)*10) -> 0 | L24: =OFFSET('II fisicos'!L171,0,($M$2-1)*10) -> - | M24: =OFFSET('II fisicos'!M171,0,($M$2-1)*10) -> -
C25: Brovales-Alqueva | D25: =OFFSET('II fisicos'!D172,0,($M$2-1)*10) -> 627.24508 | E25: =OFFSET('II fisicos'!E172,0,($M$2-1)*10) -> 345.745588 | F25: =OFFSET('II fisicos'!F172,0,($M$2-1)*10) -> 265.972652 | G25: =OFFSET('II fisicos'!G172,0,($M$2-1)*10) -> 270.604328 | H25: =OFFSET('II fisicos'!H172,0,($M$2-1)*10) -> 300.70739 | I25: =OFFSET('II fisicos'!I172,0,($M$2-1)*10) -> 333.255609 | J25: =OFFSET('II fisicos'!J172,0,($M$2-1)*10) -> 246.30508 | K25: =OFFSET('II fisicos'!K172,0,($M$2-1)*10) -> 129.419589 | L25: =OFFSET('II fisicos'!L172,0,($M$2-1)*10) -> - | M25: =OFFSET('II fisicos'!M172,0,($M$2-1)*10) -> -
C26: Cartelle-Lindoso | D26: =OFFSET('II fisicos'!D173,0,($M$2-1)*10) -> 2872.4453 | E26: =OFFSET('II fisicos'!E173,0,($M$2-1)*10) -> 3771.871 | F26: =OFFSET('II fisicos'!F173,0,($M$2-1)*10) -> 7045.0932 | G26: =OFFSET('II fisicos'!G173,0,($M$2-1)*10) -> 5517.5859 | H26: =OFFSET('II fisicos'!H173,0,($M$2-1)*10) -> 4690.5196 | I26: =OFFSET('II fisicos'!I173,0,($M$2-1)*10) -> 5350.2435 | J26: =OFFSET('II fisicos'!J173,0,($M$2-1)*10) -> 3221.5093 | K26: =OFFSET('II fisicos'!K173,0,($M$2-1)*10) -> 2253.2105 | L26: =OFFSET('II fisicos'!L173,0,($M$2-1)*10) -> - | M26: =OFFSET('II fisicos'!M173,0,($M$2-1)*10) -> -
C27: Cedillo-Falaguerira | D27: =OFFSET('II fisicos'!D174,0,($M$2-1)*10) -> 1377.0801 | E27: =OFFSET('II fisicos'!E174,0,($M$2-1)*10) -> 733.0915 | F27: =OFFSET('II fisicos'!F174,0,($M$2-1)*10) -> 580.2081 | G27: =OFFSET('II fisicos'!G174,0,($M$2-1)*10) -> 622.1042 | H27: =OFFSET('II fisicos'!H174,0,($M$2-1)*10) -> 572.0175 | I27: =OFFSET('II fisicos'!I174,0,($M$2-1)*10) -> 318.2737 | J27: =OFFSET('II fisicos'!J174,0,($M$2-1)*10) -> 200.5542 | K27: =OFFSET('II fisicos'!K174,0,($M$2-1)*10) -> 145.8739 | L27: =OFFSET('II fisicos'!L174,0,($M$2-1)*10) -> - | M27: =OFFSET('II fisicos'!M174,0,($M$2-1)*10) -> -
C28: Conchas-Lindoso | D28: =OFFSET('II fisicos'!D175,0,($M$2-1)*10) -> 0 | E28: =OFFSET('II fisicos'!E175,0,($M$2-1)*10) -> 0 | F28: =OFFSET('II fisicos'!F175,0,($M$2-1)*10) -> 0 | G28: =OFFSET('II fisicos'!G175,0,($M$2-1)*10) -> 0 | H28: =OFFSET('II fisicos'!H175,0,($M$2-1)*10) -> 0 | I28: =OFFSET('II fisicos'!I175,0,($M$2-1)*10) -> 0 | J28: =OFFSET('II fisicos'!J175,0,($M$2-1)*10) -> 0 | K28: =OFFSET('II fisicos'!K175,0,($M$2-1)*10) -> 0 | L28: =OFFSET('II fisicos'!L175,0,($M$2-1)*10) -> - | M28: =OFFSET('II fisicos'!M175,0,($M$2-1)*10) -> -
C29: Encinasola-Barrancos | D29: =OFFSET('II fisicos'!D176,0,($M$2-1)*10) -> 0 | E29: =OFFSET('II fisicos'!E176,0,($M$2-1)*10) -> 0 | F29: =OFFSET('II fisicos'!F176,0,($M$2-1)*10) -> 0 | G29: =OFFSET('II fisicos'!G176,0,($M$2-1)*10) -> 0 | H29: =OFFSET('II fisicos'!H176,0,($M$2-1)*10) -> 0 | I29: =OFFSET('II fisicos'!I176,0,($M$2-1)*10) -> 0 | J29: =OFFSET('II fisicos'!J176,0,($M$2-1)*10) -> 0 | K29: =OFFSET('II fisicos'!K176,0,($M$2-1)*10) -> 0 | L29: =OFFSET('II fisicos'!L176,0,($M$2-1)*10) -> - | M29: =OFFSET('II fisicos'!M176,0,($M$2-1)*10) -> -
C30: Puebla de Guzmán-Tavira | D30: =OFFSET('II fisicos'!D177,0,($M$2-1)*10) -> 0 | E30: =OFFSET('II fisicos'!E177,0,($M$2-1)*10) -> 0 | F30: =OFFSET('II fisicos'!F177,0,($M$2-1)*10) -> 0 | G30: =OFFSET('II fisicos'!G177,0,($M$2-1)*10) -> 0 | H30: =OFFSET('II fisicos'!H177,0,($M$2-1)*10) -> 14.953003 | I30: =OFFSET('II fisicos'!I177,0,($M$2-1)*10) -> 66.709677 | J30: =OFFSET('II fisicos'!J177,0,($M$2-1)*10) -> 28.123321 | K30: =OFFSET('II fisicos'!K177,0,($M$2-1)*10) -> 22.592377 | L30: =OFFSET('II fisicos'!L177,0,($M$2-1)*10) -> - | M30: =OFFSET('II fisicos'!M177,0,($M$2-1)*10) -> -
C31: Rosal Frontera-V. Ficalho | D31: =OFFSET('II fisicos'!D178,0,($M$2-1)*10) -> 0 | E31: =OFFSET('II fisicos'!E178,0,($M$2-1)*10) -> 0 | F31: =OFFSET('II fisicos'!F178,0,($M$2-1)*10) -> 0 | G31: =OFFSET('II fisicos'!G178,0,($M$2-1)*10) -> 0 | H31: =OFFSET('II fisicos'!H178,0,($M$2-1)*10) -> 0 | I31: =OFFSET('II fisicos'!I178,0,($M$2-1)*10) -> 0 | J31: =OFFSET('II fisicos'!J178,0,($M$2-1)*10) -> 0 | K31: =OFFSET('II fisicos'!K178,0,($M$2-1)*10) -> 0 | L31: =OFFSET('II fisicos'!L178,0,($M$2-1)*10) -> - | M31: =OFFSET('II fisicos'!M178,0,($M$2-1)*10) -> -
C32: Saucelle-Pocinho | D32: =OFFSET('II fisicos'!D179,0,($M$2-1)*10) -> 408.5411 | E32: =OFFSET('II fisicos'!E179,0,($M$2-1)*10) -> 495.39689 | F32: =OFFSET('II fisicos'!F179,0,($M$2-1)*10) -> 665.5306 | G32: =OFFSET('II fisicos'!G179,0,($M$2-1)*10) -> 497.0322 | H32: =OFFSET('II fisicos'!H179,0,($M$2-1)*10) -> 529.75062 | I32: =OFFSET('II fisicos'!I179,0,($M$2-1)*10) -> 585.2142 | J32: =OFFSET('II fisicos'!J179,0,($M$2-1)*10) -> 317.4117 | K32: =OFFSET('II fisicos'!K179,0,($M$2-1)*10) -> 201.297 | L32: =OFFSET('II fisicos'!L179,0,($M$2-1)*10) -> - | M32: =OFFSET('II fisicos'!M179,0,($M$2-1)*10) -> -
C33: Santa María-Elvás | D33: =OFFSET('II fisicos'!D180,0,($M$2-1)*10) -> 0 | E33: =OFFSET('II fisicos'!E180,0,($M$2-1)*10) -> 0 | F33: =OFFSET('II fisicos'!F180,0,($M$2-1)*10) -> 0 | G33: =OFFSET('II fisicos'!G180,0,($M$2-1)*10) -> 0 | H33: =OFFSET('II fisicos'!H180,0,($M$2-1)*10) -> 0 | I33: =OFFSET('II fisicos'!I180,0,($M$2-1)*10) -> 0 | J33: =OFFSET('II fisicos'!J180,0,($M$2-1)*10) -> 0 | K33: =OFFSET('II fisicos'!K180,0,($M$2-1)*10) -> 0 | L33: =OFFSET('II fisicos'!L180,0,($M$2-1)*10) -> - | M33: =OFFSET('II fisicos'!M180,0,($M$2-1)*10) -> -
C34: Total | D34: =OFFSET('II fisicos'!D181,0,($M$2-1)*10) -> 5823.346539 | E34: =OFFSET('II fisicos'!E181,0,($M$2-1)*10) -> 6743.869447 | F34: =OFFSET('II fisicos'!F181,0,($M$2-1)*10) -> 10767.61921 | G34: =OFFSET('II fisicos'!G181,0,($M$2-1)*10) -> 8100.119217 | H34: =OFFSET('II fisicos'!H181,0,($M$2-1)*10) -> 7247.42409 | I34: =OFFSET('II fisicos'!I181,0,($M$2-1)*10) -> 8077.110845 | J34: =OFFSET('II fisicos'!J181,0,($M$2-1)*10) -> 4615.514635 | K34: =OFFSET('II fisicos'!K181,0,($M$2-1)*10) -> 3387.956542 | L34: =OFFSET('II fisicos'!L181,0,($M$2-1)*10) -> - | M34: =OFFSET('II fisicos'!M181,0,($M$2-1)*10) -> -
B35: Marruecos | C35: Puerto de la Cruz-Mellousa | D35: =OFFSET('II fisicos'!D182,0,($M$2-1)*10) -> 3936.89639 | E35: =OFFSET('II fisicos'!E182,0,($M$2-1)*10) -> 4510.39704 | F35: =OFFSET('II fisicos'!F182,0,($M$2-1)*10) -> 4904.16012 | G35: =OFFSET('II fisicos'!G182,0,($M$2-1)*10) -> 5377.07201 | H35: =OFFSET('II fisicos'!H182,0,($M$2-1)*10) -> 5838.95167 | I35: =OFFSET('II fisicos'!I182,0,($M$2-1)*10) -> 4941.04878 | J35: =OFFSET('II fisicos'!J182,0,($M$2-1)*10) -> 4949.92551 | K35: =OFFSET('II fisicos'!K182,0,($M$2-1)*10) -> 4723.7118 | L35: =OFFSET('II fisicos'!L182,0,($M$2-1)*10) -> - | M35: =OFFSET('II fisicos'!M182,0,($M$2-1)*10) -> -
C36: Total | D36: =OFFSET('II fisicos'!D183,0,($M$2-1)*10) -> 3936.89639 | E36: =OFFSET('II fisicos'!E183,0,($M$2-1)*10) -> 4510.39704 | F36: =OFFSET('II fisicos'!F183,0,($M$2-1)*10) -> 4904.16012 | G36: =OFFSET('II fisicos'!G183,0,($M$2-1)*10) -> 5377.07201 | H36: =OFFSET('II fisicos'!H183,0,($M$2-1)*10) -> 5838.95167 | I36: =OFFSET('II fisicos'!I183,0,($M$2-1)*10) -> 4941.04878 | J36: =OFFSET('II fisicos'!J183,0,($M$2-1)*10) -> 4949.92551 | K36: =OFFSET('II fisicos'!K183,0,($M$2-1)*10) -> 4723.7118 | L36: =OFFSET('II fisicos'!L183,0,($M$2-1)*10) -> - | M36: =OFFSET('II fisicos'!M183,0,($M$2-1)*10) -> -
B37: Salidas | D37: =OFFSET('II fisicos'!D184,0,($M$2-1)*10) -> 13538.93109 | E37: =OFFSET('II fisicos'!E184,0,($M$2-1)*10) -> 14022.57195 | F37: =OFFSET('II fisicos'!F184,0,($M$2-1)*10) -> 18985.72703 | G37: =OFFSET('II fisicos'!G184,0,($M$2-1)*10) -> 16935.79868 | H37: =OFFSET('II fisicos'!H184,0,($M$2-1)*10) -> 15716.15259 | I37: =OFFSET('II fisicos'!I184,0,($M$2-1)*10) -> 15088.89255 | J37: =OFFSET('II fisicos'!J184,0,($M$2-1)*10) -> 14177.54689 | K37: =OFFSET('II fisicos'!K184,0,($M$2-1)*10) -> 9817.067835 | L37: =OFFSET('II fisicos'!L184,0,($M$2-1)*10) -> - | M37: =OFFSET('II fisicos'!M184,0,($M$2-1)*10) -> -
B38: =IF(M2=3,IF(MONTH(FACT)=1,CONCATENATE("Datos a 31 de diciembre. Para el año ",YEAR(FACT)-1, " datos a ",TEXT(FACT-60,"mmmm")," de ",YEAR(FACT)-1,"."),CONCATENATE("Datos a 31 de diciembre. Para el año ",YEAR(FACT), " datos a ",TEXT(FACT-60,"mmmm")," de ",YEAR(FACT),".")),"Datos a 31 de diciembre.") -> Datos a 31 de diciembre. Para el año 2017 datos a septiembre de 2017.

Sheet Saldos por linea mes
P1: 3
P2: 28
M4: Concepto
M5: Horizonte temporal
M6: Periodo
D8: Ene. | E8: Feb. | F8: Mar. | G8: Abr. | H8: May. | I8: Jun. | J8: Jul. | K8: Ago. | L8: Sep. | M8: Oct. | N8: Nov. | O8: Dic. | P8: =OFFSET(Año!B2,($P$2-1),0) -> 2017
B10: Andorra | C10: Adrall-Margineda | D10: =OFFSET('II fisicos'!D80,0,($P$2-1)*12) -> -31.22564 | E10: =OFFSET('II fisicos'!E80,0,($P$2-1)*12) -> -24.86972 | F10: =OFFSET('II fisicos'!F80,0,($P$2-1)*12) -> -17.67284 | G10: =OFFSET('II fisicos'!G80,0,($P$2-1)*12) -> -12.57063 | H10: =OFFSET('II fisicos'!H80,0,($P$2-1)*12) -> -14.19715 | I10: =OFFSET('II fisicos'!I80,0,($P$2-1)*12) -> -11.77883 | J10: =OFFSET('II fisicos'!J80,0,($P$2-1)*12) -> -0.41759 | K10: =OFFSET('II fisicos'!K80,0,($P$2-1)*12) -> -36.58826 | L10: =OFFSET('II fisicos'!L80,0,($P$2-1)*12) -> -9.72312 | M10: =OFFSET('II fisicos'!M80,0,($P$2-1)*12) -> - | N10: =OFFSET('II fisicos'!N80,0,($P$2-1)*12) -> - | O10: =OFFSET('II fisicos'!O80,0,($P$2-1)*12) -> - | P10: =IF(SUM(D10:O10)=0,"-",SUM(D10:O10)) -> -159.04378
C11: Total | D11: =OFFSET('II fisicos'!D81,0,($P$2-1)*12) -> -31.22564 | E11: =OFFSET('II fisicos'!E81,0,($P$2-1)*12) -> -24.86972 | F11: =OFFSET('II fisicos'!F81,0,($P$2-1)*12) -> -17.67284 | G11: =OFFSET('II fisicos'!G81,0,($P$2-1)*12) -> -12.57063 | H11: =OFFSET('II fisicos'!H81,0,($P$2-1)*12) -> -14.19715 | I11: =OFFSET('II fisicos'!I81,0,($P$2-1)*12) -> -11.77883 | J11: =OFFSET('II fisicos'!J81,0,($P$2-1)*12) -> -0.41759 | K11: =OFFSET('II fisicos'!K81,0,($P$2-1)*12) -> -36.58826 | L11: =OFFSET('II fisicos'!L81,0,($P$2-1)*12) -> -9.72312 | M11: =OFFSET('II fisicos'!M81,0,($P$2-1)*12) -> - | N11: =OFFSET('II fisicos'!N81,0,($P$2-1)*12) -> - | O11: =OFFSET('II fisicos'!O81,0,($P$2-1)*12) -> - | P11: =IF(SUM(D11:O11)=0,"-",SUM(D11:O11)) -> -159.04378
B12: Francia | C12: Arkale-Argia | D12: =OFFSET('II fisicos'!D82,0,($P$2-1)*12) -> -95.660447 | E12: =OFFSET('II fisicos'!E82,0,($P$2-1)*12) -> 3.085653 | F12: =OFFSET('II fisicos'!F82,0,($P$2-1)*12) -> 147.485689 | G12: =OFFSET('II fisicos'!G82,0,($P$2-1)*12) -> 129.964165 | H12: =OFFSET('II fisicos'!H82,0,($P$2-1)*12) -> 176.295817 | I12: =OFFSET('II fisicos'!I82,0,($P$2-1)*12) -> 93.868051 | J12: =OFFSET('II fisicos'!J82,0,($P$2-1)*12) -> 66.066055 | K12: =OFFSET('II fisicos'!K82,0,($P$2-1)*12) -> 84.32774 | L12: =OFFSET('II fisicos'!L82,0,($P$2-1)*12) -> 35.717296 | M12: =OFFSET('II fisicos'!M82,0,($P$2-1)*12) -> - | N12: =OFFSET('II fisicos'!N82,0,($P$2-1)*12) -> - | O12: =OFFSET('II fisicos'!O82,0,($P$2-1)*12) -> - | P12: 641.150019
C13: Benós-Lac D'oo | D13: =OFFSET('II fisicos'!D83,0,($P$2-1)*12) -> 2e-06 | E13: =OFFSET('II fisicos'!E83,0,($P$2-1)*12) -> 0 | F13: =OFFSET('II fisicos'!F83,0,($P$2-1)*12) -> 0.045989 | G13: =OFFSET('II fisicos'!G83,0,($P$2-1)*12) -> -0.000284 | H13: =OFFSET('II fisicos'!H83,0,($P$2-1)*12) -> -1.3e-05 | I13: =OFFSET('II fisicos'!I83,0,($P$2-1)*12) -> -8e-06 | J13: =OFFSET('II fisicos'!J83,0,($P$2-1)*12) -> 0 | K13: =OFFSET('II fisicos'!K83,0,($P$2-1)*12) -> 0.066584 | L13: =OFFSET('II fisicos'!L83,0,($P$2-1)*12) -> 4e-06 | M13: =OFFSET('II fisicos'!M83,0,($P$2-1)*12) -> - | N13: =OFFSET('II fisicos'!N83,0,($P$2-1)*12) -> - | O13: =OFFSET('II fisicos'!O83,0,($P$2-1)*12) -> - | P13: 0.112274
C14: Biescas-Pragneres | D14: =OFFSET('II fisicos'!D84,0,($P$2-1)*12) -> -51.584298 | E14: =OFFSET('II fisicos'!E84,0,($P$2-1)*12) -> -17.876096 | F14: =OFFSET('II fisicos'!F84,0,($P$2-1)*12) -> 26.150808 | G14: =OFFSET('II fisicos'!G84,0,($P$2-1)*12) -> 32.334024 | H14: =OFFSET('II fisicos'!H84,0,($P$2-1)*12) -> 34.255755 | I14: =OFFSET('II fisicos'!I84,0,($P$2-1)*12) -> 5.522714 | J14: =OFFSET('II fisicos'!J84,0,($P$2-1)*12) -> 31.595454 | K14: =OFFSET('II fisicos'!K84,0,($P$2-1)*12) -> 91.182843 | L14: =OFFSET('II fisicos'!L84,0,($P$2-1)*12) -> 40.997914 | M14: =OFFSET('II fisicos'!M84,0,($P$2-1)*12) -> - | N14: =OFFSET('II fisicos'!N84,0,($P$2-1)*12) -> - | O14: =OFFSET('II fisicos'!O84,0,($P$2-1)*12) -> - | P14: 192.579118
C15: Hernani-Argia | D15: =OFFSET('II fisicos'!D85,0,($P$2-1)*12) -> -217.658187 | E15: =OFFSET('II fisicos'!E85,0,($P$2-1)*12) -> 71.360797 | F15: =OFFSET('II fisicos'!F85,0,($P$2-1)*12) -> 568.132454 | G15: =OFFSET('II fisicos'!G85,0,($P$2-1)*12) -> 589.472359 | H15: =OFFSET('II fisicos'!H85,0,($P$2-1)*12) -> 666.768837 | I15: =OFFSET('II fisicos'!I85,0,($P$2-1)*12) -> 405.15014 | J15: =OFFSET('II fisicos'!J85,0,($P$2-1)*12) -> 502.414654 | K15: =OFFSET('II fisicos'!K85,0,($P$2-1)*12) -> 634.148964 | L15: =OFFSET('II fisicos'!L85,0,($P$2-1)*12) -> 619.710043 | M15: =OFFSET('II fisicos'!M85,0,($P$2-1)*12) -> - | N15: =OFFSET('II fisicos'!N85,0,($P$2-1)*12) -> - | O15: =OFFSET('II fisicos'!O85,0,($P$2-1)*12) -> - | P15: 3839.500061
C16: Irún-Errondenia | D16: =OFFSET('II fisicos'!D86,0,($P$2-1)*12) -> -0.382206 | E16: =OFFSET('II fisicos'!E86,0,($P$2-1)*12) -> -0.071494 | F16: =OFFSET('II fisicos'!F86,0,($P$2-1)*12) -> -0.147156 | G16: =OFFSET('II fisicos'!G86,0,($P$2-1)*12) -> -0.173573 | H16: =OFFSET('II fisicos'!H86,0,($P$2-1)*12) -> -0.192022 | I16: =OFFSET('II fisicos'!I86,0,($P$2-1)*12) -> -0.250159 | J16: =OFFSET('II fisicos'!J86,0,($P$2-1)*12) -> -0.049817 | K16: =OFFSET('II fisicos'!K86,0,($P$2-1)*12) -> -0.181328 | L16: =OFFSET('II fisicos'!L86,0,($P$2-1)*12) -> -0.176706 | M16: =OFFSET('II fisicos'!M86,0,($P$2-1)*12) -> - | N16: =OFFSET('II fisicos'!N86,0,($P$2-1)*12) -> - | O16: =OFFSET('II fisicos'!O86,0,($P$2-1)*12) -> - | P16: -1.624461
C17: Santa Llogaia-Baixas | D17: =OFFSET('II fisicos'!D87,0,($P$2-1)*12) -> 11.018531 | E17: =OFFSET('II fisicos'!E87,0,($P$2-1)*12) -> 241.969985 | F17: =OFFSET('II fisicos'!F87,0,($P$2-1)*12) -> 652.630052 | G17: =OFFSET('II fisicos'!G87,0,($P$2-1)*12) -> 504.129834 | H17: =OFFSET('II fisicos'!H87,0,($P$2-1)*12) -> 678.711388 | I17: =OFFSET('II fisicos'!I87,0,($P$2-1)*12) -> 638.648197 | J17: =OFFSET('II fisicos'!J87,0,($P$2-1)*12) -> 550.225428 | K17: =OFFSET('II fisicos'!K87,0,($P$2-1)*12) -> 658.447921 | L17: =OFFSET('II fisicos'!L87,0,($P$2-1)*12) -> 648.286056 | M17: =OFFSET('II fisicos'!M87,0,($P$2-1)*12) -> - | N17: =OFFSET('II fisicos'!N87,0,($P$2-1)*12) -> - | O17: =OFFSET('II fisicos'!O87,0,($P$2-1)*12) -> - | P17: 4584.067392
C18: Vic-Baixas | D18: =OFFSET('II fisicos'!D88,0,($P$2-1)*12) -> 3.801988 | E18: =OFFSET('II fisicos'!E88,0,($P$2-1)*12) -> 107.147458 | F18: =OFFSET('II fisicos'!F88,0,($P$2-1)*12) -> 305.73029 | G18: =OFFSET('II fisicos'!G88,0,($P$2-1)*12) -> 225.729033 | H18: =OFFSET('II fisicos'!H88,0,($P$2-1)*12) -> 300.206889 | I18: =OFFSET('II fisicos'!I88,0,($P$2-1)*12) -> 287.932737 | J18: =OFFSET('II fisicos'!J88,0,($P$2-1)*12) -> 250.776584 | K18: =OFFSET('II fisicos'!K88,0,($P$2-1)*12) -> 237.118247 | L18: =OFFSET('II fisicos'!L88,0,($P$2-1)*12) -> 289.32947 | M18: =OFFSET('II fisicos'!M88,0,($P$2-1)*12) -> - | N18: =OFFSET('II fisicos'!N88,0,($P$2-1)*12) -> - | O18: =OFFSET('II fisicos'!O88,0,($P$2-1)*12) -> - | P18: 2007.772696
C19: Total | D19: =OFFSET('II fisicos'!D89,0,($P$2-1)*12) -> -350.464617 | E19: =OFFSET('II fisicos'!E89,0,($P$2-1)*12) -> 405.616303 | F19: =OFFSET('II fisicos'!F89,0,($P$2-1)*12) -> 1700.028126 | G19: =OFFSET('II fisicos'!G89,0,($P$2-1)*12) -> 1481.455558 | H19: =OFFSET('II fisicos'!H89,0,($P$2-1)*12) -> 1856.046651 | I19: =OFFSET('II fisicos'!I89,0,($P$2-1)*12) -> 1430.871672 | J19: =OFFSET('II fisicos'!J89,0,($P$2-1)*12) -> 1401.028358 | K19: =OFFSET('II fisicos'!K89,0,($P$2-1)*12) -> 1705.110971 | L19: =OFFSET('II fisicos'!L89,0,($P$2-1)*12) -> 1633.864077 | M19: =OFFSET('II fisicos'!M89,0,($P$2-1)*12) -> - | N19: =OFFSET('II fisicos'!N89,0,($P$2-1)*12) -> - | O19: =OFFSET('II fisicos'!O89,0,($P$2-1)*12) -> - | P19: 11263.5571
B20: Portugal | C20: Aldeadávila-Pocinho 1 | D20: =OFFSET('II fisicos'!D90,0,($P$2-1)*12) -> -10.1971 | E20: =OFFSET('II fisicos'!E90,0,($P$2-1)*12) -> 26.1748 | F20: =OFFSET('II fisicos'!F90,0,($P$2-1)*12) -> 4.0235 | G20: =OFFSET('II fisicos'!G90,0,($P$2-1)*12) -> -13.9049 | H20: =OFFSET('II fisicos'!H90,0,($P$2-1)*12) -> -13.7133 | I20: =OFFSET('II fisicos'!I90,0,($P$2-1)*12) -> 3.7409 | J20: =OFFSET('II fisicos'!J90,0,($P$2-1)*12) -> 15.0238 | K20: =OFFSET('II fisicos'!K90,0,($P$2-1)*12) -> 26.5261 | L20: =OFFSET('II fisicos'!L90,0,($P$2-1)*12) -> -2.0576 | M20: =OFFSET('II fisicos'!M90,0,($P$2-1)*12) -> - | N20: =OFFSET('II fisicos'!N90,0,($P$2-1)*12) -> - | O20: =OFFSET('II fisicos'!O90,0,($P$2-1)*12) -> - | P20: 35.6162
C21: Aldeadávila-Pocinho 2 | D21: =OFFSET('II fisicos'!D91,0,($P$2-1)*12) -> -10.0346 | E21: =OFFSET('II fisicos'!E91,0,($P$2-1)*12) -> 26.1338 | F21: =OFFSET('II fisicos'!F91,0,($P$2-1)*12) -> 4.261 | G21: =OFFSET('II fisicos'!G91,0,($P$2-1)*12) -> -13.5427 | H21: =OFFSET('II fisicos'!H91,0,($P$2-1)*12) -> -13.468 | I21: =OFFSET('II fisicos'!I91,0,($P$2-1)*12) -> 3.7518 | J21: =OFFSET('II fisicos'!J91,0,($P$2-1)*12) -> 14.3352 | K21: =OFFSET('II fisicos'!K91,0,($P$2-1)*12) -> 26.3783 | L21: =OFFSET('II fisicos'!L91,0,($P$2-1)*12) -> -1.93 | M21: =OFFSET('II fisicos'!M91,0,($P$2-1)*12) -> - | N21: =OFFSET('II fisicos'!N91,0,($P$2-1)*12) -> - | O21: =OFFSET('II fisicos'!O91,0,($P$2-1)*12) -> - | P21: 35.8848
C22: Aldeadávila-Lagoaça | D22: =OFFSET('II fisicos'!D92,0,($P$2-1)*12) -> 119.697264 | E22: =OFFSET('II fisicos'!E92,0,($P$2-1)*12) -> 225.629928 | F22: =OFFSET('II fisicos'!F92,0,($P$2-1)*12) -> 107.332128 | G22: =OFFSET('II fisicos'!G92,0,($P$2-1)*12) -> -10.625256 | H22: =OFFSET('II fisicos'!H92,0,($P$2-1)*12) -> 69.22908 | I22: =OFFSET('II fisicos'!I92,0,($P$2-1)*12) -> 170.528544 | J22: =OFFSET('II fisicos'!J92,0,($P$2-1)*12) -> 213.795288 | K22: =OFFSET('II fisicos'!K92,0,($P$2-1)*12) -> 195.480216 | L22: =OFFSET('II fisicos'!L92,0,($P$2-1)*12) -> 37.82376 | M22: =OFFSET('II fisicos'!M92,0,($P$2-1)*12) -> - | N22: =OFFSET('II fisicos'!N92,0,($P$2-1)*12) -> - | O22: =OFFSET('II fisicos'!O92,0,($P$2-1)*12) -> - | P22: 1128.890952
C23: Badajoz-Alcaçovas | D23: =OFFSET('II fisicos'!D93,0,($P$2-1)*12) -> -0.000514 | E23: =OFFSET('II fisicos'!E93,0,($P$2-1)*12) -> -0.000722 | F23: =OFFSET('II fisicos'!F93,0,($P$2-1)*12) -> -0.000378 | G23: =OFFSET('II fisicos'!G93,0,($P$2-1)*12) -> -0.000199 | H23: =OFFSET('II fisicos'!H93,0,($P$2-1)*12) -> 0.000356 | I23: =OFFSET('II fisicos'!I93,0,($P$2-1)*12) -> 2.3e-05 | J23: =OFFSET('II fisicos'!J93,0,($P$2-1)*12) -> 3.4e-05 | K23: =OFFSET('II fisicos'!K93,0,($P$2-1)*12) -> 0.000129 | L23: =OFFSET('II fisicos'!L93,0,($P$2-1)*12) -> 6.3e-05 | M23: =OFFSET('II fisicos'!M93,0,($P$2-1)*12) -> - | N23: =OFFSET('II fisicos'!N93,0,($P$2-1)*12) -> - | O23: =OFFSET('II fisicos'!O93,0,($P$2-1)*12) -> - | P23: -0.001208
C24: Balboa-Alqueva | D24: =OFFSET('II fisicos'!D94,0,($P$2-1)*12) -> 0 | E24: =OFFSET('II fisicos'!E94,0,($P$2-1)*12) -> 0 | F24: =OFFSET('II fisicos'!F94,0,($P$2-1)*12) -> 0 | G24: =OFFSET('II fisicos'!G94,0,($P$2-1)*12) -> 0 | H24: =OFFSET('II fisicos'!H94,0,($P$2-1)*12) -> 0 | I24: =OFFSET('II fisicos'!I94,0,($P$2-1)*12) -> 0 | J24: =OFFSET('II fisicos'!J94,0,($P$2-1)*12) -> 0 | K24: =OFFSET('II fisicos'!K94,0,($P$2-1)*12) -> 0 | L24: =OFFSET('II fisicos'!L94,0,($P$2-1)*12) -> 0 | M24: =OFFSET('II fisicos'!M94,0,($P$2-1)*12) -> - | N24: =OFFSET('II fisicos'!N94,0,($P$2-1)*12) -> - | O24: =OFFSET('II fisicos'!O94,0,($P$2-1)*12) -> - | P24: =SUM(D24:O24) -> 0
C25: Brovales-Alqueva | D25: =OFFSET('II fisicos'!D95,0,($P$2-1)*12) -> 190.991372 | E25: =OFFSET('II fisicos'!E95,0,($P$2-1)*12) -> 195.518794 | F25: =OFFSET('II fisicos'!F95,0,($P$2-1)*12) -> 190.108855 | G25: =OFFSET('II fisicos'!G95,0,($P$2-1)*12) -> 103.654818 | H25: =OFFSET('II fisicos'!H95,0,($P$2-1)*12) -> 132.764582 | I25: =OFFSET('II fisicos'!I95,0,($P$2-1)*12) -> 220.094206 | J25: =OFFSET('II fisicos'!J95,0,($P$2-1)*12) -> 282.287281 | K25: =OFFSET('II fisicos'!K95,0,($P$2-1)*12) -> 221.707353 | L25: =OFFSET('II fisicos'!L95,0,($P$2-1)*12) -> 107.275917 | M25: =OFFSET('II fisicos'!M95,0,($P$2-1)*12) -> - | N25: =OFFSET('II fisicos'!N95,0,($P$2-1)*12) -> - | O25: =OFFSET('II fisicos'!O95,0,($P$2-1)*12) -> - | P25: 1644.403178
C26: Cartelle-Lindoso | D26: =OFFSET('II fisicos'!D96,0,($P$2-1)*12) -> -393.8826 | E26: =OFFSET('II fisicos'!E96,0,($P$2-1)*12) -> -183.5667 | F26: =OFFSET('II fisicos'!F96,0,($P$2-1)*12) -> -140.5779 | G26: =OFFSET('II fisicos'!G96,0,($P$2-1)*12) -> -77.4843 | H26: =OFFSET('II fisicos'!H96,0,($P$2-1)*12) -> -246.6277 | I26: =OFFSET('II fisicos'!I96,0,($P$2-1)*12) -> -316.4738 | J26: =OFFSET('II fisicos'!J96,0,($P$2-1)*12) -> -272.047 | K26: =OFFSET('II fisicos'!K96,0,($P$2-1)*12) -> -5.0326 | L26: =OFFSET('II fisicos'!L96,0,($P$2-1)*12) -> -200.2518 | M26: =OFFSET('II fisicos'!M96,0,($P$2-1)*12) -> - | N26: =OFFSET('II fisicos'!N96,0,($P$2-1)*12) -> - | O26: =OFFSET('II fisicos'!O96,0,($P$2-1)*12) -> - | P26: -1835.9444
C27: Cedillo-Falaguerira | D27: =OFFSET('II fisicos'!D97,0,($P$2-1)*12) -> 210.191 | E27: =OFFSET('II fisicos'!E97,0,($P$2-1)*12) -> 251.0226 | F27: =OFFSET('II fisicos'!F97,0,($P$2-1)*12) -> 100.0238 | G27: =OFFSET('II fisicos'!G97,0,($P$2-1)*12) -> 30.2854 | H27: =OFFSET('II fisicos'!H97,0,($P$2-1)*12) -> 143.2187 | I27: =OFFSET('II fisicos'!I97,0,($P$2-1)*12) -> 1.97691 | J27: =OFFSET('II fisicos'!J97,0,($P$2-1)*12) -> 0 | K27: =OFFSET('II fisicos'!K97,0,($P$2-1)*12) -> 10.9566 | L27: =OFFSET('II fisicos'!L97,0,($P$2-1)*12) -> 196.1177 | M27: =OFFSET('II fisicos'!M97,0,($P$2-1)*12) -> - | N27: =OFFSET('II fisicos'!N97,0,($P$2-1)*12) -> - | O27: =OFFSET('II fisicos'!O97,0,($P$2-1)*12) -> - | P27: 943.79271
C28: Conchas-Lindoso | D28: =OFFSET('II fisicos'!D98,0,($P$2-1)*12) -> 0 | E28: =OFFSET('II fisicos'!E98,0,($P$2-1)*12) -> 0 | F28: =OFFSET('II fisicos'!F98,0,($P$2-1)*12) -> 0 | G28: =OFFSET('II fisicos'!G98,0,($P$2-1)*12) -> 0 | H28: =OFFSET('II fisicos'!H98,0,($P$2-1)*12) -> 0 | I28: =OFFSET('II fisicos'!I98,0,($P$2-1)*12) -> 0 | J28: =OFFSET('II fisicos'!J98,0,($P$2-1)*12) -> 0 | K28: =OFFSET('II fisicos'!K98,0,($P$2-1)*12) -> 0 | L28: =OFFSET('II fisicos'!L98,0,($P$2-1)*12) -> 0 | M28: =OFFSET('II fisicos'!M98,0,($P$2-1)*12) -> - | N28: =OFFSET('II fisicos'!N98,0,($P$2-1)*12) -> - | O28: =OFFSET('II fisicos'!O98,0,($P$2-1)*12) -> - | P28: =SUM(D28:O28) -> 0
C29: Encinasola-Barrancos | D29: =OFFSET('II fisicos'!D99,0,($P$2-1)*12) -> 0 | E29: =OFFSET('II fisicos'!E99,0,($P$2-1)*12) -> 0 | F29: =OFFSET('II fisicos'!F99,0,($P$2-1)*12) -> 0 | G29: =OFFSET('II fisicos'!G99,0,($P$2-1)*12) -> 0 | H29: =OFFSET('II fisicos'!H99,0,($P$2-1)*12) -> 0 | I29: =OFFSET('II fisicos'!I99,0,($P$2-1)*12) -> 0 | J29: =OFFSET('II fisicos'!J99,0,($P$2-1)*12) -> 0 | K29: =OFFSET('II fisicos'!K99,0,($P$2-1)*12) -> 0 | L29: =OFFSET('II fisicos'!L99,0,($P$2-1)*12) -> 0 | M29: =OFFSET('II fisicos'!M99,0,($P$2-1)*12) -> - | N29: =OFFSET('II fisicos'!N99,0,($P$2-1)*12) -> - | O29: =OFFSET('II fisicos'!O99,0,($P$2-1)*12) -> - | P29: =SUM(D29:O29) -> 0
C30: Puebla de Guzmán-Tavira | D30: =OFFSET('II fisicos'!D100,0,($P$2-1)*12) -> 178.414537 | E30: =OFFSET('II fisicos'!E100,0,($P$2-1)*12) -> 84.972504 | F30: =OFFSET('II fisicos'!F100,0,($P$2-1)*12) -> 74.235675 | G30: =OFFSET('II fisicos'!G100,0,($P$2-1)*12) -> 114.513493 | H30: =OFFSET('II fisicos'!H100,0,($P$2-1)*12) -> 122.848981 | I30: =OFFSET('II fisicos'!I100,0,($P$2-1)*12) -> 163.396758 | J30: =OFFSET('II fisicos'!J100,0,($P$2-1)*12) -> 200.932325 | K30: =OFFSET('II fisicos'!K100,0,($P$2-1)*12) -> 248.853233 | L30: =OFFSET('II fisicos'!L100,0,($P$2-1)*12) -> 116.935425 | M30: =OFFSET('II fisicos'!M100,0,($P$2-1)*12) -> - | N30: =OFFSET('II fisicos'!N100,0,($P$2-1)*12) -> - | O30: =OFFSET('II fisicos'!O100,0,($P$2-1)*12) -> - | P30: 1305.102931
C31: Rosal Frontera-V. Ficalho | D31: =OFFSET('II fisicos'!D101,0,($P$2-1)*12) -> 0 | E31: =OFFSET('II fisicos'!E101,0,($P$2-1)*12) -> 0 | F31: =OFFSET('II fisicos'!F101,0,($P$2-1)*12) -> 0 | G31: =OFFSET('II fisicos'!G101,0,($P$2-1)*12) -> 0 | H31: =OFFSET('II fisicos'!H101,0,($P$2-1)*12) -> 0 | I31: =OFFSET('II fisicos'!I101,0,($P$2-1)*12) -> 0 | J31: =OFFSET('II fisicos'!J101,0,($P$2-1)*12) -> 0 | K31: =OFFSET('II fisicos'!K101,0,($P$2-1)*12) -> 0 | L31: =OFFSET('II fisicos'!L101,0,($P$2-1)*12) -> 0 | M31: =OFFSET('II fisicos'!M101,0,($P$2-1)*12) -> - | N31: =OFFSET('II fisicos'!N101,0,($P$2-1)*12) -> - | O31: =OFFSET('II fisicos'!O101,0,($P$2-1)*12) -> - | P31: =SUM(D31:O31) -> 0
C32: Saucelle-Pocinho | D32: =OFFSET('II fisicos'!D102,0,($P$2-1)*12) -> -35.3368 | E32: =OFFSET('II fisicos'!E102,0,($P$2-1)*12) -> 14.3101 | F32: =OFFSET('II fisicos'!F102,0,($P$2-1)*12) -> -31.8502 | G32: =OFFSET('II fisicos'!G102,0,($P$2-1)*12) -> -23.4132 | H32: =OFFSET('II fisicos'!H102,0,($P$2-1)*12) -> -21.7381 | I32: =OFFSET('II fisicos'!I102,0,($P$2-1)*12) -> -4.2478 | J32: =OFFSET('II fisicos'!J102,0,($P$2-1)*12) -> 14.0567 | K32: =OFFSET('II fisicos'!K102,0,($P$2-1)*12) -> 24.6052 | L32: =OFFSET('II fisicos'!L102,0,($P$2-1)*12) -> -1.5973 | M32: =OFFSET('II fisicos'!M102,0,($P$2-1)*12) -> - | N32: =OFFSET('II fisicos'!N102,0,($P$2-1)*12) -> - | O32: =OFFSET('II fisicos'!O102,0,($P$2-1)*12) -> - | P32: -65.2114
C33: Santa María-Elvás | D33: =OFFSET('II fisicos'!D103,0,($P$2-1)*12) -> 0 | E33: =OFFSET('II fisicos'!E103,0,($P$2-1)*12) -> 0 | F33: =OFFSET('II fisicos'!F103,0,($P$2-1)*12) -> 0 | G33: =OFFSET('II fisicos'!G103,0,($P$2-1)*12) -> 0 | H33: =OFFSET('II fisicos'!H103,0,($P$2-1)*12) -> 0 | I33: =OFFSET('II fisicos'!I103,0,($P$2-1)*12) -> 0 | J33: =OFFSET('II fisicos'!J103,0,($P$2-1)*12) -> 0 | K33: =OFFSET('II fisicos'!K103,0,($P$2-1)*12) -> 0 | L33: =OFFSET('II fisicos'!L103,0,($P$2-1)*12) -> 0 | M33: =OFFSET('II fisicos'!M103,0,($P$2-1)*12) -> - | N33: =OFFSET('II fisicos'!N103,0,($P$2-1)*12) -> - | O33: =OFFSET('II fisicos'!O103,0,($P$2-1)*12) -> - | P33: =SUM(D33:O33) -> 0
C34: Total | D34: =OFFSET('II fisicos'!D104,0,($P$2-1)*12) -> 249.842559 | E34: =OFFSET('II fisicos'!E104,0,($P$2-1)*12) -> 640.195104 | F34: =OFFSET('II fisicos'!F104,0,($P$2-1)*12) -> 307.55648 | G34: =OFFSET('II fisicos'!G104,0,($P$2-1)*12) -> 109.483156 | H34: =OFFSET('II fisicos'!H104,0,($P$2-1)*12) -> 172.514599 | I34: =OFFSET('II fisicos'!I104,0,($P$2-1)*12) -> 242.767541 | J34: =OFFSET('II fisicos'!J104,0,($P$2-1)*12) -> 468.383628 | K34: =OFFSET('II fisicos'!K104,0,($P$2-1)*12) -> 749.474531 | L34: =OFFSET('II fisicos'!L104,0,($P$2-1)*12) -> 252.316165 | M34: =OFFSET('II fisicos'!M104,0,($P$2-1)*12) -> - | N34: =OFFSET('II fisicos'!N104,0,($P$2-1)*12) -> - | O34: =OFFSET('II fisicos'!O104,0,($P$2-1)*12) -> - | P34: 3192.533763
B35: Marruecos | C35: Puerto de la Cruz-Mellousa | D35: =OFFSET('II fisicos'!D105,0,($P$2-1)*12) -> -399.7016 | E35: =OFFSET('II fisicos'!E105,0,($P$2-1)*12) -> -479.808 | F35: =OFFSET('II fisicos'!F105,0,($P$2-1)*12) -> -532.831 | G35: =OFFSET('II fisicos'!G105,0,($P$2-1)*12) -> -537.4086 | H35: =OFFSET('II fisicos'!H105,0,($P$2-1)*12) -> -569.3785 | I35: =OFFSET('II fisicos'!I105,0,($P$2-1)*12) -> -533.0015 | J35: =OFFSET('II fisicos'!J105,0,($P$2-1)*12) -> -595.551 | K35: =OFFSET('II fisicos'!K105,0,($P$2-1)*12) -> -590.0863 | L35: =OFFSET('II fisicos'!L105,0,($P$2-1)*12) -> -483.1487 | M35: =OFFSET('II fisicos'!M105,0,($P$2-1)*12) -> - | N35: =OFFSET('II fisicos'!N105,0,($P$2-1)*12) -> - | O35: =OFFSET('II fisicos'!O105,0,($P$2-1)*12) -> - | P35: -4720.9152
C36: Total | D36: =OFFSET('II fisicos'!D106,0,($P$2-1)*12) -> -399.7016 | E36: =OFFSET('II fisicos'!E106,0,($P$2-1)*12) -> -479.808 | F36: =OFFSET('II fisicos'!F106,0,($P$2-1)*12) -> -532.831 | G36: =OFFSET('II fisicos'!G106,0,($P$2-1)*12) -> -537.4086 | H36: =OFFSET('II fisicos'!H106,0,($P$2-1)*12) -> -569.3785 | I36: =OFFSET('II fisicos'!I106,0,($P$2-1)*12) -> -533.0015 | J36: =OFFSET('II fisicos'!J106,0,($P$2-1)*12) -> -595.551 | K36: =OFFSET('II fisicos'!K106,0,($P$2-1)*12) -> -590.0863 | L36: =OFFSET('II fisicos'!L106,0,($P$2-1)*12) -> -483.1487 | M36: =OFFSET('II fisicos'!M106,0,($P$2-1)*12) -> - | N36: =OFFSET('II fisicos'!N106,0,($P$2-1)*12) -> - | O36: =OFFSET('II fisicos'!O106,0,($P$2-1)*12) -> - | P36: -4720.9152
B37: Saldo (1) | D37: =OFFSET('II fisicos'!D107,0,($P$2-1)*12) -> -531.549298 | E37: =OFFSET('II fisicos'!E107,0,($P$2-1)*12) -> 541.133687 | F37: =OFFSET('II fisicos'!F107,0,($P$2-1)*12) -> 1457.080766 | G37: =OFFSET('II fisicos'!G107,0,($P$2-1)*12) -> 1040.959484 | H37: =OFFSET('II fisicos'!H107,0,($P$2-1)*12) -> 1444.9856 | I37: =OFFSET('II fisicos'!I107,0,($P$2-1)*12) -> 1128.858883 | J37: =OFFSET('II fisicos'!J107,0,($P$2-1)*12) -> 1273.443396 | K37: =OFFSET('II fisicos'!K107,0,($P$2-1)*12) -> 1827.910942 | L37: =OFFSET('II fisicos'!L107,0,($P$2-1)*12) -> 1393.308422 | M37: =OFFSET('II fisicos'!M107,0,($P$2-1)*12) -> - | N37: =OFFSET('II fisicos'!N107,0,($P$2-1)*12) -> - | O37: =OFFSET('II fisicos'!O107,0,($P$2-1)*12) -> - | P37: 9576.131882
B38: =IF(P2=27,"(1) Valor positivo: saldo importador; Valor negativo: saldo exportador.","(1) Valor positivo: saldo importador; Valor negativo: saldo exportador.") -> (1) Valor positivo: saldo importador; Valor negativo: saldo exportador.
B39: =IF(MONTH(FACT)=1,CONCATENATE("No hay datos de medida disponible para el mes de ",TEXT(FACT-30,"mmmm")," de ",YEAR(FACT)-1,"."),CONCATENATE("No hay datos de medida disponible para el mes de ",TEXT(FACT-30,"mmmm")," de ",YEAR(FACT),".")) -> No hay datos de medida disponible para el mes de octubre de 2017.

Sheet Saldos por linea año
M1: 3
M2: 3
K4: Concepto
K5: Horizonte temporal
K6: Periodo
D8: =OFFSET('II fisicos'!D109,0,($M$2-1)*10) -> 2010 | E8: =OFFSET('II fisicos'!E109,0,($M$2-1)*10) -> 2011 | F8: =OFFSET('II fisicos'!F109,0,($M$2-1)*10) -> 2012 | G8: =OFFSET('II fisicos'!G109,0,($M$2-1)*10) -> 2013 | H8: =OFFSET('II fisicos'!H109,0,($M$2-1)*10) -> 2014 | I8: =OFFSET('II fisicos'!I109,0,($M$2-1)*10) -> 2015 | J8: =OFFSET('II fisicos'!J109,0,($M$2-1)*10) -> 2016 | K8: =OFFSET('II fisicos'!K109,0,($M$2-1)*10) -> 2017 | L8: =OFFSET('II fisicos'!L109,0,($M$2-1)*10) -> 2018 | M8: =OFFSET('II fisicos'!M109,0,($M$2-1)*10) -> 2019
B10: Andorra | C10: Adrall-Margineda | D10: =OFFSET('II fisicos'!D187,0,($M$2-1)*10) -> -264.49411 | E10: =OFFSET('II fisicos'!E187,0,($M$2-1)*10) -> -305.71274 | F10: =OFFSET('II fisicos'!F187,0,($M$2-1)*10) -> -286.21728 | G10: =OFFSET('II fisicos'!G187,0,($M$2-1)*10) -> -287.39792 | H10: =OFFSET('II fisicos'!H187,0,($M$2-1)*10) -> -234.50584 | I10: =OFFSET('II fisicos'!I187,0,($M$2-1)*10) -> -264.05143 | J10: =OFFSET('II fisicos'!J187,0,($M$2-1)*10) -> -278.28043 | K10: =OFFSET('II fisicos'!K187,0,($M$2-1)*10) -> -159.04378 | L10: =OFFSET('II fisicos'!L187,0,($M$2-1)*10) -> - | M10: =OFFSET('II fisicos'!M187,0,($M$2-1)*10) -> -
C11: Total | D11: =OFFSET('II fisicos'!D188,0,($M$2-1)*10) -> -264.49411 | E11: =OFFSET('II fisicos'!E188,0,($M$2-1)*10) -> -305.71274 | F11: =OFFSET('II fisicos'!F188,0,($M$2-1)*10) -> -286.21728 | G11: =OFFSET('II fisicos'!G188,0,($M$2-1)*10) -> -287.39792 | H11: =OFFSET('II fisicos'!H188,0,($M$2-1)*10) -> -234.50584 | I11: =OFFSET('II fisicos'!I188,0,($M$2-1)*10) -> -264.05143 | J11: =OFFSET('II fisicos'!J188,0,($M$2-1)*10) -> -278.28043 | K11: =OFFSET('II fisicos'!K188,0,($M$2-1)*10) -> -159.04378 | L11: =OFFSET('II fisicos'!L188,0,($M$2-1)*10) -> - | M11: =OFFSET('II fisicos'!M188,0,($M$2-1)*10) -> -
B12: Francia | C12: Arkale-Argia | D12: =OFFSET('II fisicos'!D189,0,($M$2-1)*10) -> -686.722085 | E12: =OFFSET('II fisicos'!E189,0,($M$2-1)*10) -> -266.97237 | F12: =OFFSET('II fisicos'!F189,0,($M$2-1)*10) -> -542.766249 | G12: =OFFSET('II fisicos'!G189,0,($M$2-1)*10) -> -314.691502 | H12: =OFFSET('II fisicos'!H189,0,($M$2-1)*10) -> -114.541298 | I12: =OFFSET('II fisicos'!I189,0,($M$2-1)*10) -> 252.391367 | J12: =OFFSET('II fisicos'!J189,0,($M$2-1)*10) -> 224.450381 | K12: =OFFSET('II fisicos'!K189,0,($M$2-1)*10) -> 641.150019 | L12: =OFFSET('II fisicos'!L189,0,($M$2-1)*10) -> - | M12: =OFFSET('II fisicos'!M189,0,($M$2-1)*10) -> -
C13: Benós-Lac D'oo | D13: =OFFSET('II fisicos'!D190,0,($M$2-1)*10) -> 0.208165 | E13: =OFFSET('II fisicos'!E190,0,($M$2-1)*10) -> 3.905738 | F13: =OFFSET('II fisicos'!F190,0,($M$2-1)*10) -> 2.991787 | G13: =OFFSET('II fisicos'!G190,0,($M$2-1)*10) -> 2.662674 | H13: =OFFSET('II fisicos'!H190,0,($M$2-1)*10) -> 1.21656 | I13: =OFFSET('II fisicos'!I190,0,($M$2-1)*10) -> 0.301529 | J13: =OFFSET('II fisicos'!J190,0,($M$2-1)*10) -> 3.377446 | K13: =OFFSET('II fisicos'!K190,0,($M$2-1)*10) -> 0.112274 | L13: =OFFSET('II fisicos'!L190,0,($M$2-1)*10) -> - | M13: =OFFSET('II fisicos'!M190,0,($M$2-1)*10) -> -
C14: Biescas-Pragneres | D14: =OFFSET('II fisicos'!D191,0,($M$2-1)*10) -> -633.691155 | E14: =OFFSET('II fisicos'!E191,0,($M$2-1)*10) -> -324.119773 | F14: =OFFSET('II fisicos'!F191,0,($M$2-1)*10) -> -257.984652 | G14: =OFFSET('II fisicos'!G191,0,($M$2-1)*10) -> -292.578467 | H14: =OFFSET('II fisicos'!H191,0,($M$2-1)*10) -> -152.320752 | I14: =OFFSET('II fisicos'!I191,0,($M$2-1)*10) -> 29.184036 | J14: =OFFSET('II fisicos'!J191,0,($M$2-1)*10) -> 124.938549 | K14: =OFFSET('II fisicos'!K191,0,($M$2-1)*10) -> 192.579118 | L14: =OFFSET('II fisicos'!L191,0,($M$2-1)*10) -> - | M14: =OFFSET('II fisicos'!M191,0,($M$2-1)*10) -> -
C15: Hernani-Argia | D15: =OFFSET('II fisicos'!D192,0,($M$2-1)*10) -> -183.276268 | E15: =OFFSET('II fisicos'!E192,0,($M$2-1)*10) -> 892.696576 | F15: =OFFSET('II fisicos'!F192,0,($M$2-1)*10) -> 426.882092 | G15: =OFFSET('II fisicos'!G192,0,($M$2-1)*10) -> 352.865496 | H15: =OFFSET('II fisicos'!H192,0,($M$2-1)*10) -> 826.54411 | I15: =OFFSET('II fisicos'!I192,0,($M$2-1)*10) -> 1869.178918 | J15: =OFFSET('II fisicos'!J192,0,($M$2-1)*10) -> 1687.834438 | K15: =OFFSET('II fisicos'!K192,0,($M$2-1)*10) -> 3839.500061 | L15: =OFFSET('II fisicos'!L192,0,($M$2-1)*10) -> - | M15: =OFFSET('II fisicos'!M192,0,($M$2-1)*10) -> -
C16: Irún-Errondenia | D16: =OFFSET('II fisicos'!D193,0,($M$2-1)*10) -> -1.788218 | E16: =OFFSET('II fisicos'!E193,0,($M$2-1)*10) -> -1.982543 | F16: =OFFSET('II fisicos'!F193,0,($M$2-1)*10) -> -1.667278 | G16: =OFFSET('II fisicos'!G193,0,($M$2-1)*10) -> -1.588241 | H16: =OFFSET('II fisicos'!H193,0,($M$2-1)*10) -> -1.346216 | I16: =OFFSET('II fisicos'!I193,0,($M$2-1)*10) -> -1.605237 | J16: =OFFSET('II fisicos'!J193,0,($M$2-1)*10) -> -1.445425 | K16: =OFFSET('II fisicos'!K193,0,($M$2-1)*10) -> -1.624461 | L16: =OFFSET('II fisicos'!L193,0,($M$2-1)*10) -> - | M16: =OFFSET('II fisicos'!M193,0,($M$2-1)*10) -> -
C17: Santa Llogaia-Baixas | D17: =OFFSET('II fisicos'!D194,0,($M$2-1)*10) -> 0 | E17: =OFFSET('II fisicos'!E194,0,($M$2-1)*10) -> 0 | F17: =OFFSET('II fisicos'!F194,0,($M$2-1)*10) -> 0 | G17: =OFFSET('II fisicos'!G194,0,($M$2-1)*10) -> 0 | H17: =OFFSET('II fisicos'!H194,0,($M$2-1)*10) -> 0 | I17: =OFFSET('II fisicos'!I194,0,($M$2-1)*10) -> 1380.348368 | J17: =OFFSET('II fisicos'!J194,0,($M$2-1)*10) -> 4046.517377 | K17: =OFFSET('II fisicos'!K194,0,($M$2-1)*10) -> 4584.067392 | L17: =OFFSET('II fisicos'!L194,0,($M$2-1)*10) -> - | M17: =OFFSET('II fisicos'!M194,0,($M$2-1)*10) -> -
C18: Vic-Baixas | D18: =OFFSET('II fisicos'!D195,0,($M$2-1)*10) -> -25.650852 | E18: =OFFSET('II fisicos'!E195,0,($M$2-1)*10) -> 1220.879976 | F18: =OFFSET('II fisicos'!F195,0,($M$2-1)*10) -> 2255.336412 | G18: =OFFSET('II fisicos'!G195,0,($M$2-1)*10) -> 1961.196397 | H18: =OFFSET('II fisicos'!H195,0,($M$2-1)*10) -> 3007.943264 | I18: =OFFSET('II fisicos'!I195,0,($M$2-1)*10) -> 3794.413331 | J18: =OFFSET('II fisicos'!J195,0,($M$2-1)*10) -> 1715.835955 | K18: =OFFSET('II fisicos'!K195,0,($M$2-1)*10) -> 2007.772696 | L18: =OFFSET('II fisicos'!L195,0,($M$2-1)*10) -> - | M18: =OFFSET('II fisicos'!M195,0,($M$2-1)*10) -> -
C19: Total | D19: =OFFSET('II fisicos'!D196,0,($M$2-1)*10) -> -1530.920413 | E19: =OFFSET('II fisicos'!E196,0,($M$2-1)*10) -> 1524.407604 | F19: =OFFSET('II fisicos'!F196,0,($M$2-1)*10) -> 1882.792112 | G19: =OFFSET('II fisicos'!G196,0,($M$2-1)*10) -> 1707.866357 | H19: =OFFSET('II fisicos'!H196,0,($M$2-1)*10) -> 3567.495668 | I19: =OFFSET('II fisicos'!I196,0,($M$2-1)*10) -> 7324.212312 | J19: =OFFSET('II fisicos'!J196,0,($M$2-1)*10) -> 7801.508721 | K19: =OFFSET('II fisicos'!K196,0,($M$2-1)*10) -> 11263.5571 | L19: =OFFSET('II fisicos'!L196,0,($M$2-1)*10) -> - | M19: =OFFSET('II fisicos'!M196,0,($M$2-1)*10) -> -
B20: Portugal | C20: Aldeadávila-Pocinho 1 | D20: =OFFSET('II fisicos'!D197,0,($M$2-1)*10) -> 503.9132 | E20: =OFFSET('II fisicos'!E197,0,($M$2-1)*10) -> -399.18558 | F20: =OFFSET('II fisicos'!F197,0,($M$2-1)*10) -> -552.8137 | G20: =OFFSET('II fisicos'!G197,0,($M$2-1)*10) -> -232.5463 | H20: =OFFSET('II fisicos'!H197,0,($M$2-1)*10) -> -241.12745 | I20: =OFFSET('II fisicos'!I197,0,($M$2-1)*10) -> -369.3132 | J20: =OFFSET('II fisicos'!J197,0,($M$2-1)*10) -> 61.0381 | K20: =OFFSET('II fisicos'!K197,0,($M$2-1)*10) -> 35.6162 | L20: =OFFSET('II fisicos'!L197,0,($M$2-1)*10) -> - | M20: =OFFSET('II fisicos'!M197,0,($M$2-1)*10) -> -
C21: Aldeadávila-Pocinho 2 | D21: =OFFSET('II fisicos'!D198,0,($M$2-1)*10) -> 429.9284 | E21: =OFFSET('II fisicos'!E198,0,($M$2-1)*10) -> -396.30274 | F21: =OFFSET('II fisicos'!F198,0,($M$2-1)*10) -> -544.5944 | G21: =OFFSET('II fisicos'!G198,0,($M$2-1)*10) -> -230.9885 | H21: =OFFSET('II fisicos'!H198,0,($M$2-1)*10) -> -227.97987 | I21: =OFFSET('II fisicos'!I198,0,($M$2-1)*10) -> -367.3072 | J21: =OFFSET('II fisicos'!J198,0,($M$2-1)*10) -> 95.69849 | K21: =OFFSET('II fisicos'!K198,0,($M$2-1)*10) -> 35.8848 | L21: =OFFSET('II fisicos'!L198,0,($M$2-1)*10) -> - | M21: =OFFSET('II fisicos'!M198,0,($M$2-1)*10) -> -
C22: Aldeadávila-Lagoaça | D22: =OFFSET('II fisicos'!D199,0,($M$2-1)*10) -> 54.690336 | E22: =OFFSET('II fisicos'!E199,0,($M$2-1)*10) -> 1030.40949 | F22: =OFFSET('II fisicos'!F199,0,($M$2-1)*10) -> -641.380248 | G22: =OFFSET('II fisicos'!G199,0,($M$2-1)*10) -> 1599.222312 | H22: =OFFSET('II fisicos'!H199,0,($M$2-1)*10) -> 2072.997145 | I22: =OFFSET('II fisicos'!I199,0,($M$2-1)*10) -> 863.20188 | J22: =OFFSET('II fisicos'!J199,0,($M$2-1)*10) -> 2892.96144 | K22: =OFFSET('II fisicos'!K199,0,($M$2-1)*10) -> 1128.890952 | L22: =OFFSET('II fisicos'!L199,0,($M$2-1)*10) -> - | M22: =OFFSET('II fisicos'!M199,0,($M$2-1)*10) -> -
C23: Badajoz-Alcaçovas | D23: =OFFSET('II fisicos'!D200,0,($M$2-1)*10) -> -156.760004 | E23: =OFFSET('II fisicos'!E200,0,($M$2-1)*10) -> -58.512664 | F23: =OFFSET('II fisicos'!F200,0,($M$2-1)*10) -> -0.982575 | G23: =OFFSET('II fisicos'!G200,0,($M$2-1)*10) -> -0.004832 | H23: =OFFSET('II fisicos'!H200,0,($M$2-1)*10) -> -0.006152 | I23: =OFFSET('II fisicos'!I200,0,($M$2-1)*10) -> -0.004307 | J23: =OFFSET('II fisicos'!J200,0,($M$2-1)*10) -> -0.004538 | K23: =OFFSET('II fisicos'!K200,0,($M$2-1)*10) -> -0.001208 | L23: =OFFSET('II fisicos'!L200,0,($M$2-1)*10) -> - | M23: =OFFSET('II fisicos'!M200,0,($M$2-1)*10) -> -
C24: Balboa-Alqueva | D24: =OFFSET('II fisicos'!D201,0,($M$2-1)*10) -> 0 | E24: =OFFSET('II fisicos'!E201,0,($M$2-1)*10) -> 0 | F24: =OFFSET('II fisicos'!F201,0,($M$2-1)*10) -> 0 | G24: =OFFSET('II fisicos'!G201,0,($M$2-1)*10) -> 0 | H24: =OFFSET('II fisicos'!H201,0,($M$2-1)*10) -> 0 | I24: =OFFSET('II fisicos'!I201,0,($M$2-1)*10) -> 0 | J24: =OFFSET('II fisicos'!J201,0,($M$2-1)*10) -> 0 | K24: =OFFSET('II fisicos'!K201,0,($M$2-1)*10) -> 0 | L24: =OFFSET('II fisicos'!L201,0,($M$2-1)*10) -> - | M24: =OFFSET('II fisicos'!M201,0,($M$2-1)*10) -> -
C25: Brovales-Alqueva | D25: =OFFSET('II fisicos'!D202,0,($M$2-1)*10) -> 53.654403 | E25: =OFFSET('II fisicos'!E202,0,($M$2-1)*10) -> 954.561745 | F25: =OFFSET('II fisicos'!F202,0,($M$2-1)*10) -> 1116.51977 | G25: =OFFSET('II fisicos'!G202,0,($M$2-1)*10) -> 1543.260813 | H25: =OFFSET('II fisicos'!H202,0,($M$2-1)*10) -> 1248.802765 | I25: =OFFSET('II fisicos'!I202,0,($M$2-1)*10) -> 1186.184404 | J25: =OFFSET('II fisicos'!J202,0,($M$2-1)*10) -> 1809.353906 | K25: =OFFSET('II fisicos'!K202,0,($M$2-1)*10) -> 1644.403178 | L25: =OFFSET('II fisicos'!L202,0,($M$2-1)*10) -> - | M25: =OFFSET('II fisicos'!M202,0,($M$2-1)*10) -> -
C26: Cartelle-Lindoso | D26: =OFFSET('II fisicos'!D203,0,($M$2-1)*10) -> -2549.6783 | E26: =OFFSET('II fisicos'!E203,0,($M$2-1)*10) -> -3612.5107 | F26: =OFFSET('II fisicos'!F203,0,($M$2-1)*10) -> -7034.2613 | G26: =OFFSET('II fisicos'!G203,0,($M$2-1)*10) -> -5454.8553 | H26: =OFFSET('II fisicos'!H203,0,($M$2-1)*10) -> -4535.5771 | I26: =OFFSET('II fisicos'!I203,0,($M$2-1)*10) -> -5290.1415 | J26: =OFFSET('II fisicos'!J203,0,($M$2-1)*10) -> -2686.0531 | K26: =OFFSET('II fisicos'!K203,0,($M$2-1)*10) -> -1835.9444 | L26: =OFFSET('II fisicos'!L203,0,($M$2-1)*10) -> - | M26: =OFFSET('II fisicos'!M203,0,($M$2-1)*10) -> -
C27: Cedillo-Falaguerira | D27: =OFFSET('II fisicos'!D204,0,($M$2-1)*10) -> -795.9958 | E27: =OFFSET('II fisicos'!E204,0,($M$2-1)*10) -> 144.11848 | F27: =OFFSET('II fisicos'!F204,0,($M$2-1)*10) -> 404.078 | G27: =OFFSET('II fisicos'!G204,0,($M$2-1)*10) -> 398.1579 | H27: =OFFSET('II fisicos'!H204,0,($M$2-1)*10) -> 363.7697 | I27: =OFFSET('II fisicos'!I204,0,($M$2-1)*10) -> 1031.9234 | J27: =OFFSET('II fisicos'!J204,0,($M$2-1)*10) -> 1394.9702 | K27: =OFFSET('II fisicos'!K204,0,($M$2-1)*10) -> 943.79271 | L27: =OFFSET('II fisicos'!L204,0,($M$2-1)*10) -> - | M27: =OFFSET('II fisicos'!M204,0,($M$2-1)*10) -> -
C28: Conchas-Lindoso | D28: =OFFSET('II fisicos'!D205,0,($M$2-1)*10) -> 0 | E28: =OFFSET('II fisicos'!E205,0,($M$2-1)*10) -> 0 | F28: =OFFSET('II fisicos'!F205,0,($M$2-1)*10) -> 0 | G28: =OFFSET('II fisicos'!G205,0,($M$2-1)*10) -> 0 | H28: =OFFSET('II fisicos'!H205,0,($M$2-1)*10) -> 0 | I28: =OFFSET('II fisicos'!I205,0,($M$2-1)*10) -> 0 | J28: =OFFSET('II fisicos'!J205,0,($M$2-1)*10) -> 0 | K28: =OFFSET('II fisicos'!K205,0,($M$2-1)*10) -> 0 | L28: =OFFSET('II fisicos'!L205,0,($M$2-1)*10) -> - | M28: =OFFSET('II fisicos'!M205,0,($M$2-1)*10) -> -
C29: Encinasola-Barrancos | D29: =OFFSET('II fisicos'!D206,0,($M$2-1)*10) -> 0 | E29: =OFFSET('II fisicos'!E206,0,($M$2-1)*10) -> 0 | F29: =OFFSET('II fisicos'!F206,0,($M$2-1)*10) -> 0 | G29: =OFFSET('II fisicos'!G206,0,($M$2-1)*10) -> 0 | H29: =OFFSET('II fisicos'!H206,0,($M$2-1)*10) -> 0 | I29: =OFFSET('II fisicos'!I206,0,($M$2-1)*10) -> 0 | J29: =OFFSET('II fisicos'!J206,0,($M$2-1)*10) -> 0 | K29: =OFFSET('II fisicos'!K206,0,($M$2-1)*10) -> 0 | L29: =OFFSET('II fisicos'!L206,0,($M$2-1)*10) -> - | M29: =OFFSET('II fisicos'!M206,0,($M$2-1)*10) -> -
C30: Puebla de Guzmán-Tavira | D30: =OFFSET('II fisicos'!D207,0,($M$2-1)*10) -> 0 | E30: =OFFSET('II fisicos'!E207,0,($M$2-1)*10) -> 0 | F30: =OFFSET('II fisicos'!F207,0,($M$2-1)*10) -> 0 | G30: =OFFSET('II fisicos'!G207,0,($M$2-1)*10) -> 0 | H30: =OFFSET('II fisicos'!H207,0,($M$2-1)*10) -> 862.005595 | I30: =OFFSET('II fisicos'!I207,0,($M$2-1)*10) -> 1211.42004 | J30: =OFFSET('II fisicos'!J207,0,($M$2-1)*10) -> 1687.935224 | K30: =OFFSET('II fisicos'!K207,0,($M$2-1)*10) -> 1305.102931 | L30: =OFFSET('II fisicos'!L207,0,($M$2-1)*10) -> - | M30: =OFFSET('II fisicos'!M207,0,($M$2-1)*10) -> -
C31: Rosal Frontera-V. Ficalho | D31: =OFFSET('II fisicos'!D208,0,($M$2-1)*10) -> 0 | E31: =OFFSET('II fisicos'!E208,0,($M$2-1)*10) -> 1e-06 | F31: =OFFSET('II fisicos'!F208,0,($M$2-1)*10) -> 0 | G31: =OFFSET('II fisicos'!G208,0,($M$2-1)*10) -> 0 | H31: =OFFSET('II fisicos'!H208,0,($M$2-1)*10) -> 0 | I31: =OFFSET('II fisicos'!I208,0,($M$2-1)*10) -> 0 | J31: =OFFSET('II fisicos'!J208,0,($M$2-1)*10) -> 0 | K31: =OFFSET('II fisicos'!K208,0,($M$2-1)*10) -> 0 | L31: =OFFSET('II fisicos'!L208,0,($M$2-1)*10) -> - | M31: =OFFSET('II fisicos'!M208,0,($M$2-1)*10) -> -
C32: Saucelle-Pocinho | D32: =OFFSET('II fisicos'!D209,0,($M$2-1)*10) -> -174.0397 | E32: =OFFSET('II fisicos'!E209,0,($M$2-1)*10) -> -476.6166 | F32: =OFFSET('II fisicos'!F209,0,($M$2-1)*10) -> -643.5766 | G32: =OFFSET('II fisicos'!G209,0,($M$2-1)*10) -> -398.8989 | H32: =OFFSET('II fisicos'!H209,0,($M$2-1)*10) -> -445.58032 | I32: =OFFSET('II fisicos'!I209,0,($M$2-1)*10) -> -532.376 | J32: =OFFSET('II fisicos'!J209,0,($M$2-1)*10) -> -169.80632 | K32: =OFFSET('II fisicos'!K209,0,($M$2-1)*10) -> -65.2114 | L32: =OFFSET('II fisicos'!L209,0,($M$2-1)*10) -> - | M32: =OFFSET('II fisicos'!M209,0,($M$2-1)*10) -> -
C33: Santa María-Elvás | D33: =OFFSET('II fisicos'!D210,0,($M$2-1)*10) -> 0 | E33: =OFFSET('II fisicos'!E210,0,($M$2-1)*10) -> 0 | F33: =OFFSET('II fisicos'!F210,0,($M$2-1)*10) -> 0 | G33: =OFFSET('II fisicos'!G210,0,($M$2-1)*10) -> 0 | H33: =OFFSET('II fisicos'!H210,0,($M$2-1)*10) -> 0 | I33: =OFFSET('II fisicos'!I210,0,($M$2-1)*10) -> 0 | J33: =OFFSET('II fisicos'!J210,0,($M$2-1)*10) -> 0 | K33: =OFFSET('II fisicos'!K210,0,($M$2-1)*10) -> 0 | L33: =OFFSET('II fisicos'!L210,0,($M$2-1)*10) -> - | M33: =OFFSET('II fisicos'!M210,0,($M$2-1)*10) -> -
C34: Total | D34: =OFFSET('II fisicos'!D211,0,($M$2-1)*10) -> -2634.287465 | E34: =OFFSET('II fisicos'!E211,0,($M$2-1)*10) -> -2814.038568 | F34: =OFFSET('II fisicos'!F211,0,($M$2-1)*10) -> -7897.011053 | G34: =OFFSET('II fisicos'!G211,0,($M$2-1)*10) -> -2776.652807 | H34: =OFFSET('II fisicos'!H211,0,($M$2-1)*10) -> -902.695687 | I34: =OFFSET('II fisicos'!I211,0,($M$2-1)*10) -> -2266.412483 | J34: =OFFSET('II fisicos'!J211,0,($M$2-1)*10) -> 5086.093402 | K34: =OFFSET('II fisicos'!K211,0,($M$2-1)*10) -> 3192.533763 | L34: =OFFSET('II fisicos'!L211,0,($M$2-1)*10) -> - | M34: =OFFSET('II fisicos'!M211,0,($M$2-1)*10) -> -
B35: Marruecos | C35: Puerto de la Cruz-Mellousa | D35: =OFFSET('II fisicos'!D212,0,($M$2-1)*10) -> -3902.97707 | E35: =OFFSET('II fisicos'!E212,0,($M$2-1)*10) -> -4494.78263 | F35: =OFFSET('II fisicos'!F212,0,($M$2-1)*10) -> -4899.51737 | G35: =OFFSET('II fisicos'!G212,0,($M$2-1)*10) -> -5375.94808 | H35: =OFFSET('II fisicos'!H212,0,($M$2-1)*10) -> -5836.41907 | I35: =OFFSET('II fisicos'!I212,0,($M$2-1)*10) -> -4926.90949 | J35: =OFFSET('II fisicos'!J212,0,($M$2-1)*10) -> -4942.00814 | K35: =OFFSET('II fisicos'!K212,0,($M$2-1)*10) -> -4720.9152 | L35: =OFFSET('II fisicos'!L212,0,($M$2-1)*10) -> - | M35: =OFFSET('II fisicos'!M212,0,($M$2-1)*10) -> -
C36: Total | D36: =OFFSET('II fisicos'!D213,0,($M$2-1)*10) -> -3902.97707 | E36: =OFFSET('II fisicos'!E213,0,($M$2-1)*10) -> -4494.78263 | F36: =OFFSET('II fisicos'!F213,0,($M$2-1)*10) -> -4899.51737 | G36: =OFFSET('II fisicos'!G213,0,($M$2-1)*10) -> -5375.94808 | H36: =OFFSET('II fisicos'!H213,0,($M$2-1)*10) -> -5836.41907 | I36: =OFFSET('II fisicos'!I213,0,($M$2-1)*10) -> -4926.90949 | J36: =OFFSET('II fisicos'!J213,0,($M$2-1)*10) -> -4942.00814 | K36: =OFFSET('II fisicos'!K213,0,($M$2-1)*10) -> -4720.9152 | L36: =OFFSET('II fisicos'!L213,0,($M$2-1)*10) -> - | M36: =OFFSET('II fisicos'!M213,0,($M$2-1)*10) -> -
B37: Saldo (1) | D37: =OFFSET('II fisicos'!D214,0,($M$2-1)*10) -> -8332.679058 | E37: =OFFSET('II fisicos'!E214,0,($M$2-1)*10) -> -6090.126334 | F37: =OFFSET('II fisicos'!F214,0,($M$2-1)*10) -> -11199.95359 | G37: =OFFSET('II fisicos'!G214,0,($M$2-1)*10) -> -6732.13245 | H37: =OFFSET('II fisicos'!H214,0,($M$2-1)*10) -> -3406.124929 | I37: =OFFSET('II fisicos'!I214,0,($M$2-1)*10) -> -133.161091 | J37: =OFFSET('II fisicos'!J214,0,($M$2-1)*10) -> 7667.313553 | K37: =OFFSET('II fisicos'!K214,0,($M$2-1)*10) -> 9576.131882 | L37: =OFFSET('II fisicos'!L214,0,($M$2-1)*10) -> - | M37: =OFFSET('II fisicos'!M214,0,($M$2-1)*10) -> -
B38: (1) Valor positivo: saldo importador; Valor negativo: saldo exportador.
B39: =IF(M2=3,IF(MONTH(FACT)=1,CONCATENATE("Datos a 31 de diciembre. Para el año ",YEAR(FACT)-1, " datos a ",TEXT(FACT-60,"mmmm")," de ",YEAR(FACT)-1,"."),CONCATENATE("Datos a 31 de diciembre. Para el año ",YEAR(FACT), " datos a ",TEXT(FACT-60,"mmmm")," de ",YEAR(FACT),".")),"Datos a 31 de diciembre.") -> Datos a 31 de diciembre. Para el año 2017 datos a septiembre de 2017.

Sheet II fisicos (hidden)
B2: Intercambios internacionales físicos por frontera (GWh) | C2: País | D2: 1990-01-01 | E2: 1990-02-01 | F2: 1990-03-01 | G2: 1990-04-01 | H2: 1990-05-01 | I2: 1990-06-01 | J2: 1990-07-01 | K2: 1990-08-01 | L2: 1990-09-01 | M2: 1990-10-01 | N2: 1990-11-01 | O2: 1990-12-01 | P2: 1991-01-01 | Q2: 1991-02-01 | R2: 1991-03-01 | S2: 1991-04-01 | T2: 1991-05-01 | U2: 1991-06-01 | V2: 1991-07-01 | W2: 1991-08-01 | X2: 1991-09-01 | Y2: 1991-10-01 | Z2: 1991-11-01 | AA2: 1991-12-01 | AB2: 1992-01-01 | AC2: 1992-02-01 | AD2: 1992-03-01 | AE2: 1992-04-01 | AF2: 1992-05-01 | AG2: 1992-06-01 | AH2: 1992-07-01 | AI2: 1992-08-01 | AJ2: 1992-09-01 | AK2: 1992-10-01 | AL2: 1992-11-01 | AM2: 1992-12-01 | AN2: 1993-01-01 | AO2: 1993-02-01 | AP2: 1993-03-01 | AQ2: 1993-04-01 | AR2: 1993-05-01 | AS2: 1993-06-01 | AT2: 1993-07-01 | AU2: 1993-08-01 | AV2: 1993-09-01 | AW2: 1993-10-01 | AX2: 1993-11-01 | AY2: 1993-12-01 | AZ2: 1994-01-01 | BA2: 1994-02-01 | BB2: 1994-03-01 | BC2: 1994-04-01 | BD2: 1994-05-01 | BE2: 1994-06-01 | BF2: 1994-07-01 | BG2: 1994-08-01 | BH2: 1994-09-01 | BI2: 1994-10-01 | BJ2: 1994-11-01 | BK2: 1994-12-01 | BL2: 1995-01-01 | BM2: 1995-02-01 | BN2: 1995-03-01 | BO2: 1995-04-01 | BP2: 1995-05-01 | BQ2: 1995-06-01 | BR2: 1995-07-01 | BS2: 1995-08-01 | BT2: 1995-09-01 | BU2: 1995-10-01 | BV2: 1995-11-01 | BW2: 1995-12-01 | BX2: 1996-01-01 | BY2: 1996-02-01 | BZ2: 1996-03-01 | CA2: 1996-04-01 | CB2: 1996-05-01 | CC2: 1996-06-01 | CD2: 1996-07-01 | CE2: 1996-08-01 | CF2: 1996-09-01 | CG2: 1996-10-01 | CH2: 1996-11-01 | CI2: 1996-12-01 | CJ2: 1997-01-01 | CK2: 1997-02-01 | CL2: 1997-03-01 | CM2: 1997-04-01 | CN2: 1997-05-01 | CO2: 1997-06-01 | CP2: 1997-07-01 | CQ2: 1997-08-01 | CR2: 1997-09-01 | CS2: 1997-10-01 | CT2: 1997-11-01 | CU2: 1997-12-01 | CV2: 1998-01-01 | CW2: 1998-02-01 | CX2: 1998-03-01 | CY2: 1998-04-01 | CZ2: 1998-05-01 | DA2: 1998-06-01 | DB2: 1998-07-01 | DC2: 1998-08-01 | DD2: 1998-09-01 | DE2: 1998-10-01 | DF2: 1998-11-01 | DG2: 1998-12-01 | DH2: 1999-01-01 | DI2: 1999-02-01 | DJ2: 1999-03-01 | DK2: 1999-04-01 | DL2: 1999-05-01 | DM2: 1999-06-01 | DN2: 1999-07-01 | DO2: 1999-08-01 | DP2: 1999-09-01 | DQ2: 1999-10-01 | DR2: 1999-11-01 | DS2: 1999-12-01 | DT2: 2000-01-01 | DU2: 2000-02-01 | DV2: 2000-03-01 | DW2: 2000-04-01 | DX2: 2000-05-01 | DY2: 2000-06-01 | DZ2: 2000-07-01 | EA2: 2000-08-01 | EB2: 2000-09-01 | EC2: 2000-10-01 | ED2: 2000-11-01 | EE2: 2000-12-01 | EF2: 2001-01-01 | EG2: 2001-02-01 | EH2: 2001-03-01 | EI2: 2001-04-01 | EJ2: 2001-05-01 | EK2: 2001-06-01 | EL2: 2001-07-01 | EM2: 2001-08-01 | EN2: 2001-09-01 | EO2: 2001-10-01 | EP2: 2001-11-01 | EQ2: 2001-12-01 | ER2: 2002-01-01 | ES2: 2002-02-01 | ET2: 2002-03-01 | EU2: 2002-04-01 | EV2: 2002-05-01 | EW2: 2002-06-01 | EX2: 2002-07-01 | EY2: 2002-08-01 | EZ2: 2002-09-01 | FA2: 2002-10-01 | FB2: 2002-11-01 | FC2: 2002-12-01 | FD2: 2003-01-01 | FE2: 2003-02-01 | FF2: 2003-03-01 | FG2: 2003-04-01 | FH2: 2003-05-01 | FI2: 2003-06-01 | FJ2: 2003-07-01 | FK2: 2003-08-01 | FL2: 2003-09-01 | FM2: 2003-10-01 | FN2: 2003-11-01 | FO2: 2003-12-01 | FP2: 2004-01-01 | FQ2: 2004-02-01 | FR2: 2004-03-01 | FS2: 2004-04-01 | FT2: 2004-05-01 | FU2: 2004-06-01 | FV2: 2004-07-01 | FW2: 2004-08-01 | FX2: 2004-09-01 | FY2: 2004-10-01 | FZ2: 2004-11-01 | GA2: 2004-12-01 | GB2: 2005-01-01 | GC2: 2005-02-01 | GD2: 2005-03-01 | GE2: 2005-04-01 | GF2: 2005-05-01 | GG2: 2005-06-01 | GH2: 2005-07-01 | GI2: 2005-08-01 | GJ2: 2005-09-01 | GK2: 2005-10-01 | GL2: 2005-11-01 | GM2: 2005-12-01 | GN2: 2006-01-01 | GO2: 2006-02-01 | GP2: 2006-03-01 | GQ2: 2006-04-01 | GR2: 2006-05-01 | GS2: 2006-06-01 | GT2: 2006-07-01 | GU2: 2006-08-01 | GV2: 2006-09-01 | GW2: 2006-10-01 | GX2: 2006-11-01 | GY2: 2006-12-01 | GZ2: 2007-01-01 | HA2: 2007-02-01 | HB2: 2007-03-01 | HC2: 2007-04-01 | HD2: 2007-05-01 | HE2: 2007-06-01 | HF2: 2007-07-01 | HG2: 2007-08-01 | HH2: 2007-09-01 | HI2: 2007-10-01 | HJ2: 2007-11-01 | HK2: 2007-12-01 | HL2: 2008-01-01 | HM2: 2008-02-01 | HN2: 2008-03-01 | HO2: 2008-04-01 | HP2: 2008-05-01 | HQ2: 2008-06-01 | HR2: 2008-07-01 | HS2: 2008-08-01 | HT2: 2008-09-01 | HU2: 2008-10-01 | HV2: 2008-11-01 | HW2: 2008-12-01 | HX2: 2009-01-01 | HY2: 2009-02-01 | HZ2: 2009-03-01 | IA2: 2009-04-01 | IB2: 2009-05-01 | IC2: 2009-06-01 | ID2: 2009-07-01 | IE2: 2009-08-01 | IF2: 2009-09-01 | IG2: 2009-10-01 | IH2: 2009-11-01 | II2: 2009-12-01 | IJ2: 2010-01-01 | IK2: 2010-02-01 | IL2: 2010-03-01 | IM2: 2010-04-01 | IN2: 2010-05-01 | IO2: 2010-06-01 | IP2: 2010-07-01 | IQ2: 2010-08-01 | IR2: 2010-09-01 | IS2: 2010-10-01 | IT2: 2010-11-01 | IU2: 2010-12-01 | IV2: 2011-01-01 | IW2: 2011-02-01 | IX2: 2011-03-01 | IY2: 2011-04-01 | IZ2: 2011-05-01 | JA2: 2011-06-01 | JB2: 2011-07-01 | JC2: 2011-08-01 | JD2: 2011-09-01 | JE2: 2011-10-01 | JF2: 2011-11-01 | JG2: 2011-12-01 | JH2: 2012-01-01 | JI2: 2012-02-01 | JJ2: 2012-03-01 | JK2: 2012-04-01 | JL2: 2012-05-01 | JM2: 2012-06-01 | JN2: 2012-07-01 | JO2: 2012-08-01 | JP2: 2012-09-01 | JQ2: 2012-10-01 | JR2: 2012-11-01 | JS2: 2012-12-01 | JT2: 2013-01-01 | JU2: 2013-02-01 | JV2: 2013-03-01 | JW2: 2013-04-01 | JX2: 2013-05-01 | JY2: 2013-06-01 | JZ2: 2013-07-01 | KA2: 2013-08-01 | KB2: 2013-09-01 | KC2: 2013-10-01 | KD2: 2013-11-01 | KE2: 2013-12-01 | KF2: 2014-01-01 | KG2: 2014-02-01 | KH2: 2014-03-01 | KI2: 2014-04-01 | KJ2: 2014-05-01 | KK2: 2014-06-01 | KL2: 2014-07-01 | KM2: 2014-08-01 | KN2: 2014-09-01 | KO2: 2014-10-01 | KP2: 2014-11-01 | KQ2: 2014-12-01 | KR2: 2015-01-01 | KS2: 2015-02-01 | KT2: 2015-03-01 | KU2: 2015-04-01 | KV2: 2015-05-01 | KW2: 2015-06-01 | KX2: 2015-07-01 | KY2: 2015-08-01 | KZ2: 2015-09-01 | LA2: 2015-10-01 | LB2: 2015-11-01 | LC2: 2015-12-01 | LD2: 2016-01-01 | LE2: 2016-02-01 | LF2: 2016-03-01 | LG2: 2016-04-01 | LH2: 2016-05-01 | LI2: 2016-06-01 | LJ2: 2016-07-01 | LK2: 2016-08-01 | LL2: 2016-09-01 | LM2: 2016-10-01 | LN2: 2016-11-01 | LO2: 2016-12-01 | LP2: 2017-01-01 | LQ2: 2017-02-01 | LR2: 2017-03-01 | LS2: 2017-04-01 | LT2: 2017-05-01 | LU2: 2017-06-01 | LV2: 2017-07-01 | LW2: 2017-08-01 | LX2: 2017-09-01 | LY2: 2017-10-01 | LZ2: 2017-11-01 | MA2: 2017-12-01
B3: Entradas | C3: ANDORRA | D3: 0 | E3: 0 | F3: 0 | G3: 0 | H3: 0 | I3: 0.256 | J3: 0 | K3: 0 | L3: 0 | M3: 0 | N3: 0 | O3: 0 | P3: 0 | Q3: 0 | R3: 0.014 | S3: 0 | T3: 0 | U3: 0.001 | V3: 0.002 | W3: 0 | X3: 0 | Y3: 0 | Z3: 0 | AA3: 0 | AB3: 0 | AC3: 0 | AD3: 0 | AE3: 0 | AF3: 0 | AG3: 0 | AH3: 0 | AI3: 0.003 | AJ3: 0.01 | AK3: 0 | AL3: 0.004 | AM3: 0 | AN3: 0 | AO3: 0 | AP3: 0 | AQ3: 0 | AR3: 0.006 | AS3: 0.008 | AT3: 0.001 | AU3: 0 | AV3: 0 | AW3: 0 | AX3: 0 | AY3: 0 | AZ3: 0 | BA3: 0 | BB3: 0.002 | BC3: 0 | BD3: 0 | BE3: 0 | BF3: 0 | BG3: 0 | BH3: 0 | BI3: 0 | BJ3: 0 | BK3: 0 | BL3: 0 | BM3: 0 | BN3: 0 | BO3: 0 | BP3: 0.001 | BQ3: 0 | BR3: 0 | BS3: 0 | BT3: 0 | BU3: 0 | BV3: 0 | BW3: 0 | BX3: 0 | BY3: 0 | BZ3: 0 | CA3: 0 | CB3: 0 | CC3: 0 | CD3: 0 | CE3: 0 | CF3: 0 | CG3: 0 | CH3: 0 | CI3: 0 | CJ3: 0 | CK3: 0 | CL3: 0 | CM3: 0.012 | CN3: 0.024 | CO3: 0.02 | CP3: 0.002 | CQ3: 0 | CR3: 0 | CS3: 0 | CT3: 0 | CU3: 0 | CV3: 0 | CW3: 0 | CX3: 0.003 | CY3: 0 | CZ3: 0.001 | DA3: 0.001 | DB3: 0.001 | DC3: 0 | DD3: 0 | DE3: 0 | DF3: 0 | DG3: 0 | DH3: 7.784 | DI3: 0 | DJ3: 0 | DK3: 0 | DL3: 0 | DM3: 0 | DN3: 0 | DO3: 0 | DP3: 0 | DQ3: 0 | DR3: 0 | DS3: 0 | DT3: 0 | DU3: 0 | DV3: 0 | DW3: 0 | DX3: 0 | DY3: 0 | DZ3: 0 | EA3: 0 | EB3: 0 | EC3: 0 | ED3: 0 | EE3: 0 | EF3: 0 | EG3: 0 | EH3: 0 | EI3: 0 | EJ3: 0 | EK3: 0 | EL3: 0 | EM3: 0 | EN3: 0 | EO3: 0 | EP3: 0 | EQ3: 0 | ER3: 0 | ES3: 0 | ET3: 0 | EU3: 0 | EV3: 0 | EW3: 0 | EX3: 0 | EY3: 0 | EZ3: 0 | FA3: 0 | FB3: 0 | FC3: 0 | FD3: 0 | FE3: 0 | FF3: 0 | FG3: 0 | FH3: 0 | FI3: 0 | FJ3: 0 | FK3: 0 | FL3: 0 | FM3: 0 | FN3: 0 | FO3: 0 | FP3: 0 | FQ3: 0.001 | FR3: 0 | FS3: 0 | FT3: 0 | FU3: 0.002 | FV3: 0 | FW3: 0 | FX3: 0 | FY3: 0 | FZ3: 0 | GA3: 0 | GB3: 0 | GC3: 0 | GD3: 0 | GE3: 0.001 | GF3: 0.002 | GG3: 0.003 | GH3: 0 | GI3: 0 | GJ3: 0.001 | GK3: 0.001 | GL3: 0.007 | GM3: 0 | GN3: 0 | GO3: 0 | GP3: 0 | GQ3: 0 | GR3: 0 | GS3: 0 | GT3: 0 | GU3: 0 | GV3: 0.002 | GW3: 0.001 | GX3: 0 | GY3: 0 | GZ3: 0 | HA3: 0 | HB3: 0 | HC3: 0 | HD3: 0 | HE3: 0.001 | HF3: 0.265 | HG3: 0.001 | HH3: 0 | HI3: 0 | HJ3: 0 | HK3: 0 | HL3: 0 | HM3: 0 | HN3: 0 | HO3: 0 | HP3: 0 | HQ3: 0 | HR3: 0 | HS3: 0 | HT3: 0 | HU3: 0 | HV3: 0 | HW3: 0 | HX3: 0 | HY3: 0 | HZ3: 0 | IA3: 0 | IB3: 0 | IC3: 0.001 | ID3: 0 | IE3: 0 | IF3: 0 | IG3: 0 | IH3: 0 | II3: 0.008 | IJ3: 0 | IK3: 0 | IL3: 0 | IM3: 0 | IN3: 0.00034 | IO3: 3e-05 | IP3: 0 | IQ3: 0 | IR3: 0 | IS3: 0 | IT3: 0 | IU3: 0 | IV3: 0 | IW3: 0 | IX3: 0 | IY3: 0 | IZ3: 0 | JA3: 0.00016 | JB3: 7e-05 | JC3: 0.00011 | JD3: 0.00022 | JE3: 0 | JF3: 0 | JG3: 0 | JH3: 0.0004 | JI3: 8e-05 | JJ3: 4e-05 | JK3: 0.00034 | JL3: 0.00026 | JM3: 0.00036 | JN3: 0 | JO3: 0 | JP3: 2e-05 | JQ3: 0 | JR3: 0 | JS3: 8e-05 | JT3: 0 | JU3: 0 | JV3: 0 | JW3: 0 | JX3: 0.00065 | JY3: 0 | JZ3: 0.00034 | KA3: 0 | KB3: 0 | KC3: 0.00011 | KD3: 0 | KE3: 0 | KF3: 0 | KG3: 0 | KH3: 0 | KI3: 0.00041 | KJ3: 0.00084 | KK3: 0.00066 | KL3: 0.00124 | KM3: 0.00106 | KN3: 0.0007 | KO3: 0.00055 | KP3: 0.00014 | KQ3: 0 | KR3: 0 | KS3: 0 | KT3: 0 | KU3: 0.00047 | KV3: 0.00132 | KW3: 0.00061 | KX3: 0 | KY3: 0.0005 | KZ3: 0.00026 | LA3: 0.00035 | LB3: 0.00087 | LC3: 0.00185 | LD3: 0 | LE3: 0 | LF3: 0 | LG3: 0 | LH3: 0.00016 | LI3: 0.00072 | LJ3: 0.00017 | LK3: 0.00047 | LL3: 0.00143 | LM3: 0.0009 | LN3: 0.00013 | LO3: 0 | LP3: 0 | LQ3: 0 | LR3: 0.00649 | LS3: 0.00133 | LT3: 0.00603 | LU3: 0.00115 | LV3: 0.00025 | LW3: 0.00013 | LX3: 0.0011 | LY3: 0 | LZ3: - | MA3: -
C4: FRANCIA | D4: 47.323 | E4: 108.853 | F4: 146.299 | G4: 115.286 | H4: 228.138 | I4: 111.479 | J4: 122.628 | K4: 147.154 | L4: 133.013 | M4: 116.373 | N4: 78.655 | O4: 156.478 | P4: 156.103 | Q4: 151.699 | R4: 85.3 | S4: 32.135 | T4: 52.838 | U4: 98.045 | V4: 112.479 | W4: 192.766 | X4: 121.315 | Y4: 131.496 | Z4: 164.697 | AA4: 166.428 | AB4: 131.995 | AC4: 116.939 | AD4: 185.743 | AE4: 244.815 | AF4: 467.818 | AG4: 568.071 | AH4: 427.925 | AI4: 342.491 | AJ4: 234.484 | AK4: 157.503 | AL4: 127.024 | AM4: 149.435 | AN4: 234.481 | AO4: 329.706 | AP4: 335.376 | AQ4: 260.335 | AR4: 273.678 | AS4: 276.416 | AT4: 353.256 | AU4: 141.31 | AV4: 138.537 | AW4: 92.852 | AX4: 136.879 | AY4: 130.65 | AZ4: 132.318 | BA4: 156.322 | BB4: 162.624 | BC4: 161.124 | BD4: 126.739 | BE4: 155.686 | BF4: 404.05 | BG4: 386.82 | BH4: 481.896 | BI4: 530.631 | BJ4: 510.122 | BK4: 528.673 | BL4: 544.403 | BM4: 483.807 | BN4: 505.597 | BO4: 462.601 | BP4: 505.769 | BQ4: 496.345 | BR4: 556.998 | BS4: 550.102 | BT4: 532.55 | BU4: 469.545 | BV4: 443.413 | BW4: 337.482 | BX4: 185.889 | BY4: 107.276 | BZ4: 278.455 | CA4: 324.702 | CB4: 272.971 | CC4: 374.682 | CD4: 416.084 | CE4: 354.185 | CF4: 343.281 | CG4: 392.709 | CH4: 400.6 | CI4: 294.633 | CJ4: 26.226 | CK4: 100.429 | CL4: 205.401 | CM4: 172.412 | CN4: 177.457 | CO4: 141.751 | CP4: 191.585 | CQ4: 192.034 | CR4: 249.93 | CS4: 308.798 | CT4: 227.292 | CU4: 121.024 | CV4: 433.929 | CW4: 406.025 | CX4: 479.581 | CY4: 451.432 | CZ4: 410.297 | DA4: 391.334 | DB4: 429.866 | DC4: 451.724 | DD4: 406.65 | DE4: 460.473 | DF4: 443.725 | DG4: 500.577 | DH4: 531.317 | DI4: 553.583 | DJ4: 602.762 | DK4: 608.439 | DL4: 528.715 | DM4: 507.303 | DN4: 706.407 | DO4: 682.367 | DP4: 655.073 | DQ4: 664.2 | DR4: 738.623 | DS4: 687.042 | DT4: 522.152 | DU4: 692.481 | DV4: 833.488 | DW4: 775.925 | DX4: 823.411 | DY4: 651.09 | DZ4: 685.561 | EA4: 726.141 | EB4: 725.834 | EC4: 743.713 | ED4: 825.267 | EE4: 495.768 | EF4: 283.789 | EG4: 343.691 | EH4: 274.666 | EI4: 466.878 | EJ4: 695.815 | EK4: 678.384 | EL4: 705.441 | EM4: 716.549 | EN4: 671.14 | EO4: 444.411 | EP4: 691.807 | EQ4: 752.127 | ER4: 711.089 | ES4: 827.363 | ET4: 902.682 | EU4: 855.203 | EV4: 588.851 | EW4: 423.768 | EX4: 745.834 | EY4: 752.017 | EZ4: 744.843 | FA4: 778.831 | FB4: 939.859 | FC4: 791.396 | FD4: 442.983 | FE4: 355.919 | FF4: 543.974 | FG4: 392.533 | FH4: 650.019 | FI4: 702.53 | FJ4: 679.906 | FK4: 682.772 | FL4: 659.65 | FM4: 582.297 | FN4: 378.477 | FO4: 315.91 | FP4: 398.462 | FQ4: 372.819 | FR4: 534.573 | FS4: 385.373 | FT4: 485.22 | FU4: 467.533 | FV4: 590.563 | FW4: 366.505 | FX4: 505.439 | FY4: 495.345 | FZ4: 559.013 | GA4: 817.469 | GB4: 945.256 | GC4: 738.727 | GD4: 643.571 | GE4: 643.645 | GF4: 816.901 | GG4: 718.006 | GH4: 673.63 | GI4: 587.25 | GJ4: 401.401 | GK4: 425.042 | GL4: 293.687 | GM4: 413.302 | GN4: 580.156 | GO4: 337.121 | GP4: 164.305 | GQ4: 525.877 | GR4: 697.247 | GS4: 577.697 | GT4: 426.119 | GU4: 685.097 | GV4: 672.915 | GW4: 592.999 | GX4: 325.982 | GY4: 304.596 | GZ4: 728.266 | HA4: 535.456 | HB4: 696.921 | HC4: 678.986 | HD4: 567.532 | HE4: 688.534 | HF4: 711.379 | HG4: 734.205 | HH4: 440.274 | HI4: 220.193 | HJ4: 177.577 | HK4: 418.749 | HL4: 592.604 | HM4: 530.684 | HN4: 323.403 | HO4: 195.91 | HP4: 482.221 | HQ4: 246.798 | HR4: 424.353 | HS4: 397.014 | HT4: 298.057 | HU4: 216.28 | HV4: 418.93 | HW4: 425.357 | HX4: 224.803 | HY4: 174.048 | HZ4: 427.492 | IA4: 503.819 | IB4: 649.818 | IC4: 463.46 | ID4: 440.995 | IE4: 283.528 | IF4: 211.472 | IG4: 193.968 | IH4: 197.01 | II4: 171.937 | IJ4: 121.557724 | IK4: 46.976014 | IL4: 90.767992 | IM4: 35.958673 | IN4: 106.921913 | IO4: 245.339689 | IP4: 218.867365 | IQ4: 456.853795 | IR4: 277.673113 | IS4: 146.977534 | IT4: 181.844277 | IU4: 53.535181 | IV4: 112.02132 | IW4: 33.423021 | IX4: 58.33253 | IY4: 161.756886 | IZ4: 306.71637 | JA4: 480.088164 | JB4: 569.889279 | JC4: 652.84516 | JD4: 456.436179 | JE4: 484.87696 | JF4: 149.945312 | JG4: 520.668589 | JH4: 775.913005 | JI4: 192.465426 | JJ4: 517.617901 | JK4: 336.457718 | JL4: 463.898867 | JM4: 576.5676 | JN4: 597.23351 | JO4: 489.400041 | JP4: 267.397124 | JQ4: 144.990118 | JR4: 210.578542 | JS4: 338.001103 | JT4: 407.635092 | JU4: 162.127855 | JV4: 16.360188 | JW4: 127.509276 | JX4: 643.104769 | JY4: 610.700118 | JZ4: 542.521319 | KA4: 708.938607 | KB4: 500.410348 | KC4: 422.183272 | KD4: 168.19351 | KE4: 569.390439 | KF4: 213.28157 | KG4: 31.780954 | KH4: 225.576625 | KI4: 61.34757 | KJ4: 715.627083 | KK4: 684.643585 | KL4: 730.760238 | KM4: 816.650393 | KN4: 786.304332 | KO4: 564.627966 | KP4: 618.424915 | KQ4: 513.735825 | KR4: 733.136481 | KS4: 172.004936 | KT4: 351.270512 | KU4: 559.219129 | KV4: 838.615688 | KW4: 773.13353 | KX4: 778.866551 | KY4: 727.351831 | KZ4: 564.61117 | LA4: 676.206224 | LB4: 1264.808502 | LC4: 1691.663023 | LD4: 906.531859 | LE4: 888.755546 | LF4: 746.001455 | LG4: 430.938632 | LH4: 924.300256 | LI4: 1210.403637 | LJ4: 1338.226321 | LK4: 1404.554545 | LL4: 1285.461886 | LM4: 734.831499 | LN4: 948.015429 | LO4: 1317.30999 | LP4: 505.546329 | LQ4: 896.209799 | LR4: 1815.841029 | LS4: 1517.279999 | LT4: 1861.617417 | LU4: 1446.751409 | LV4: 1416.440712 | LW4: 1706.722029 | LX4: 1643.487609 | LY4: 1411.4637 | LZ4: - | MA4: -
C5: PORTUGAL | D5: 211.927 | E5: 173.49 | F5: 125.096 | G5: 111.664 | H5: 113.816 | I5: 151.453 | J5: 153.337 | K5: 117.279 | L5: 161.28 | M5: 149.572 | N5: 109.466 | O5: 117.775 | P5: 136.166 | Q5: 163.849 | R5: 186.105 | S5: 118.348 | T5: 134.796 | U5: 136.707 | V5: 109.345 | W5: 113.963 | X5: 93.731 | Y5: 127.298 | Z5: 151.552 | AA5: 148.467 | AB5: 115.326 | AC5: 45.943 | AD5: 52.217 | AE5: 154.269 | AF5: 78.629 | AG5: 70.065 | AH5: 32.613 | AI5: 103.539 | AJ5: 124.708 | AK5: 120.309 | AL5: 155.614 | AM5: 144.194 | AN5: 166.452 | AO5: 169.647 | AP5: 167.711 | AQ5: 123.614 | AR5: 144.776 | AS5: 114.158 | AT5: 163.426 | AU5: 158.986 | AV5: 122.373 | AW5: 148.19 | AX5: 272.074 | AY5: 150.964 | AZ5: 172.16 | BA5: 145.98 | BB5: 140.125 | BC5: 135.787 | BD5: 146.691 | BE5: 105.682 | BF5: 63.159 | BG5: 93.485 | BH5: 92.221 | BI5: 101.632 | BJ5: 59.034 | BK5: 112.944 | BL5: 91.087 | BM5: 86.643 | BN5: 101.871 | BO5: 114.812 | BP5: 100.788 | BQ5: 114.045 | BR5: 158.97 | BS5: 174.061 | BT5: 206.67 | BU5: 221.486 | BV5: 155.82 | BW5: 214.804 | BX5: 304.465 | BY5: 262.712 | BZ5: 215.818 | CA5: 206.222 | CB5: 179.129 | CC5: 304.314 | CD5: 400.302 | CE5: 390.687 | CF5: 233.54 | CG5: 114.045 | CH5: 183.142 | CI5: 210.457 | CJ5: 272.076 | CK5: 198.694 | CL5: 186.985 | CM5: 157.002 | CN5: 118.88 | CO5: 201.889 | CP5: 168.403 | CQ5: 110.557 | CR5: 190.548 | CS5: 333.743 | CT5: 245.677 | CU5: 296.141 | CV5: 276.195 | CW5: 230.012 | CX5: 249.723 | CY5: 265.469 | CZ5: 353.926 | DA5: 275.858 | DB5: 375.27 | DC5: 320.281 | DD5: 265.596 | DE5: 364.564 | DF5: 375.885 | DG5: 345.344 | DH5: 333.581 | DI5: 324.294 | DJ5: 395.733 | DK5: 487.42 | DL5: 497.076 | DM5: 488.24 | DN5: 450.225 | DO5: 196.488 | DP5: 250.282 | DQ5: 303.816 | DR5: 383.171 | DS5: 374.825 | DT5: 380.426 | DU5: 312.58 | DV5: 285.917 | DW5: 358.942 | DX5: 423.029 | DY5: 208.473 | DZ5: 259.563 | EA5: 246.811 | EB5: 267.267 | EC5: 332.715 | ED5: 357.702 | EE5: 333.412 | EF5: 302.011 | EG5: 239.523 | EH5: 227.3 | EI5: 435.898 | EJ5: 280.596 | EK5: 322.962 | EL5: 353.272 | EM5: 138.6 | EN5: 260.528 | EO5: 307.876 | EP5: 282.091 | EQ5: 326.805 | ER5: 327.672 | ES5: 338.079 | ET5: 388.459 | EU5: 409.758 | EV5: 291.836 | EW5: 292.873 | EX5: 314.275 | EY5: 171.482 | EZ5: 217.937 | FA5: 190.852 | FB5: 236.486 | FC5: 250.117 | FD5: 361.711 | FE5: 297.412 | FF5: 279.001 | FG5: 249.617 | FH5: 316.624 | FI5: 307.518 | FJ5: 273.583 | FK5: 150.889 | FL5: 203.324 | FM5: 170.52 | FN5: 213.643 | FO5: 280.622 | FP5: 268.077 | FQ5: 214.885 | FR5: 188.612 | FS5: 108.367 | FT5: 143.103 | FU5: 118.399 | FV5: 145.994 | FW5: 108.785 | FX5: 151.805 | FY5: 189.951 | FZ5: 216.969 | GA5: 257.157 | GB5: 409.363 | GC5: 337.63 | GD5: 280.629 | GE5: 187.978 | GF5: 158.429 | GG5: 215.509 | GH5: 266.528 | GI5: 112.913 | GJ5: 147.77 | GK5: 149.959 | GL5: 180.639 | GM5: 353.326 | GN5: 223.333 | GO5: 250.582 | GP5: 330.034 | GQ5: 270.63 | GR5: 196.202 | GS5: 151.134 | GT5: 254.448 | GU5: 298.513 | GV5: 109.647 | GW5: 257.52 | GX5: 356.964 | GY5: 483.132 | GZ5: 454.793 | HA5: 357.316 | HB5: 344.637 | HC5: 103.929 | HD5: 155.226 | HE5: 112.686 | HF5: 150.677 | HG5: 150.044 | HH5: 85.701 | HI5: 32.057 | HJ5: 111.327 | HK5: 94.542 | HL5: 180.649 | HM5: 82.321 | HN5: 37.673 | HO5: 60.616 | HP5: 80.181 | HQ5: 86.624 | HR5: 80.946 | HS5: 104.439 | HT5: 117.7 | HU5: 63.763 | HV5: 167.779 | HW5: 251.044 | HX5: 242.797 | HY5: 349.34 | HZ5: 294.458 | IA5: 148.959 | IB5: 173.349 | IC5: 157.039 | ID5: 155.231 | IE5: 192.948 | IF5: 194.604 | IG5: 164.189 | IH5: 213.961 | II5: 533.472 | IJ5: 617.438035 | IK5: 350.476222 | IL5: 357.609363 | IM5: 287.278673 | IN5: 291.068804 | IO5: 121.799772 | IP5: 99.87247 | IQ5: 79.956122 | IR5: 86.930311 | IS5: 70.430326 | IT5: 231.856928 | IU5: 594.342048 | IV5: 465.181351 | IW5: 460.545156 | IX5: 488.244951 | IY5: 196.640927 | IZ5: 436.159782 | JA5: 224.416735 | JB5: 240.496165 | JC5: 301.454614 | JD5: 231.188455 | JE5: 255.417748 | JF5: 338.062489 | JG5: 292.022506 | JH5: 181.308765 | JI5: 267.759626 | JJ5: 183.078135 | JK5: 131.718235 | JL5: 232.191624 | JM5: 258.228549 | JN5: 174.652981 | JO5: 268.423731 | JP5: 220.995196 | JQ5: 125.394706 | JR5: 435.965247 | JS5: 390.891362 | JT5: 667.210615 | JU5: 566.687992 | JV5: 881.002712 | JW5: 791.466533 | JX5: 386.316608 | JY5: 247.828888 | JZ5: 91.895904 | KA5: 242.52816 | KB5: 187.612105 | KC5: 308.943445 | KD5: 437.906063 | KE5: 514.067385 | KF5: 1168.214199 | KG5: 880.385111 | KH5: 805.38225 | KI5: 467.01246 | KJ5: 265.378322 | KK5: 303.816539 | KL5: 251.764259 | KM5: 308.205369 | KN5: 315.860877 | KO5: 295.4928 | KP5: 726.106888 | KQ5: 557.109329 | KR5: 408.744297 | KS5: 732.874173 | KT5: 610.202173 | KU5: 377.075002 | KV5: 424.366555 | KW5: 353.110104 | KX5: 444.290171 | KY5: 349.172814 | KZ5: 356.833461 | LA5: 753.519034 | LB5: 460.975439 | LC5: 539.535139 | LD5: 1305.514185 | LE5: 1277.54796 | LF5: 797.912472 | LG5: 949.055571 | LH5: 850.996051 | LI5: 619.838573 | LJ5: 617.844636 | LK5: 633.412097 | LL5: 590.154573 | LM5: 515.370053 | LN5: 768.240557 | LO5: 775.721309 | LP5: 840.391304 | LQ5: 917.186626 | LR5: 683.733608 | LS5: 576.253886 | LT5: 614.047106 | LU5: 631.527401 | LV5: 812.145366 | LW5: 901.022565 | LX5: 604.182443 | LY5: 111.1112 | LZ5: - | MA5: -
C6: MARRUECOS | D6: 0 | E6: 0 | F6: 0 | G6: 0 | H6: 0 | I6: 0 | J6: 0 | K6: 0 | L6: 0 | M6: 0 | N6: 0 | O6: 0 | P6: 0 | Q6: 0 | R6: 0 | S6: 0 | T6: 0 | U6: 0 | V6: 0 | W6: 0 | X6: 0 | Y6: 0 | Z6: 0 | AA6: 0 | AB6: 0 | AC6: 0 | AD6: 0 | AE6: 0 | AF6: 0 | AG6: 0 | AH6: 0 | AI6: 0 | AJ6: 0 | AK6: 0 | AL6: 0 | AM6: 0 | AN6: 0 | AO6: 0 | AP6: 0 | AQ6: 0 | AR6: 0 | AS6: 0 | AT6: 0 | AU6: 0 | AV6: 0 | AW6: 0 | AX6: 0 | AY6: 0 | AZ6: 0 | BA6: 0 | BB6: 0 | BC6: 0 | BD6: 0 | BE6: 0 | BF6: 0 | BG6: 0 | BH6: 0 | BI6: 0 | BJ6: 0 | BK6: 0 | BL6: 0 | BM6: 0 | BN6: 0 | BO6: 0 | BP6: 0 | BQ6: 0 | BR6: 0 | BS6: 0 | BT6: 0 | BU6: 0 | BV6: 0 | BW6: 0 | BX6: 0 | BY6: 0 | BZ6: 0 | CA6: 0 | CB6: 0 | CC6: 0 | CD6: 0 | CE6: 0 | CF6: 0 | CG6: 0 | CH6: 0 | CI6: 0 | CJ6: 0 | CK6: 0 | CL6: 0 | CM6: 0 | CN6: 0 | CO6: 0 | CP6: 0 | CQ6: 0.119 | CR6: 0 | CS6: 0.042 | CT6: 1.812 | CU6: 0 | CV6: 0 | CW6: 0 | CX6: 0 | CY6: 0 | CZ6: 0 | DA6: 0 | DB6: 0 | DC6: 0 | DD6: 0 | DE6: 0 | DF6: 0 | DG6: 0 | DH6: 0 | DI6: 0 | DJ6: 0 | DK6: 0 | DL6: 0 | DM6: 0 | DN6: 0 | DO6: 0 | DP6: 0 | DQ6: 0 | DR6: 0 | DS6: 0 | DT6: 0 | DU6: 0 | DV6: 0 | DW6: 0 | DX6: 0 | DY6: 0 | DZ6: 0 | EA6: 0 | EB6: 0 | EC6: 0 | ED6: 0 | EE6: 0 | EF6: 0 | EG6: 0 | EH6: 0 | EI6: 0 | EJ6: 0 | EK6: 0 | EL6: 0 | EM6: 0 | EN6: 0 | EO6: 0 | EP6: 0 | EQ6: 0 | ER6: 12.481 | ES6: 0 | ET6: 0 | EU6: 0 | EV6: 0 | EW6: 0 | EX6: 0 | EY6: 0 | EZ6: 0 | FA6: 0 | FB6: 0 | FC6: 0 | FD6: 1.06 | FE6: 0.588 | FF6: 0.581 | FG6: 0.203 | FH6: 0.131 | FI6: 3.076 | FJ6: 5.903 | FK6: 9.169 | FL6: 0.763 | FM6: 2.299 | FN6: 1.138 | FO6: 4.142 | FP6: 0.281 | FQ6: 0.461 | FR6: 1.463 | FS6: 0.08 | FT6: 1.385 | FU6: 4.826 | FV6: 3.572 | FW6: 1.679 | FX6: 2.736 | FY6: 0.516 | FZ6: 1.362 | GA6: 2.83 | GB6: 13.728 | GC6: 14.619 | GD6: 15.077 | GE6: 12.546 | GF6: 9.308 | GG6: 15.015 | GH6: 10.05 | GI6: 1.159 | GJ6: 3.026 | GK6: 1.562 | GL6: 4.408 | GM6: 9.908 | GN6: 5.995 | GO6: 1.905 | GP6: 3.379 | GQ6: 3.7 | GR6: 0.759 | GS6: 1.266 | GT6: 3.18 | GU6: 0.21 | GV6: 0.369 | GW6: 4.861 | GX6: 0.523 | GY6: 2.033 | GZ6: 1.164 | HA6: 0.665 | HB6: 0.166 | HC6: 0.609 | HD6: 0.067 | HE6: 0.368 | HF6: 0.685 | HG6: 1.207 | HH6: 0.292 | HI6: 3.385 | HJ6: 1.894 | HK6: 11.002 | HL6: 1.699 | HM6: 0.126 | HN6: 1.818 | HO6: 0.001 | HP6: 1.426 | HQ6: 0.71 | HR6: 0.002 | HS6: 0.009 | HT6: 0.054 | HU6: 4.062 | HV6: 2.662 | HW6: 2.356 | HX6: 2.593 | HY6: 1.923 | HZ6: 2.72 | IA6: 0.196 | IB6: 0.035 | IC6: 0 | ID6: 0.013 | IE6: 0 | IF6: 0.064 | IG6: 0 | IH6: 0.131 | II6: 0.3 | IJ6: 1.9214 | IK6: 9.3868 | IL6: 12.2015 | IM6: 0.3041 | IN6: 0.24552 | IO6: 0.0207 | IP6: 0 | IQ6: 0 | IR6: 0 | IS6: 0 | IT6: 1.3302 | IU6: 8.5091 | IV6: 2.9755 | IW6: 1.40459 | IX6: 2.3255 | IY6: 0.0561 | IZ6: 0.2654 | JA6: 0.3816 | JB6: 0.0044 | JC6: 0.0076 | JD6: 0.03142 | JE6: 0.0484 | JF6: 6.2357 | JG6: 1.8782 | JH6: 1.1532 | JI6: 1.5198 | JJ6: 0.6885 | JK6: 0.1597 | JL6: 0.1162 | JM6: 0.0441 | JN6: 0 | JO6: 0.0005 | JP6: 5e-05 | JQ6: 0.9132 | JR6: 0.0363 | JS6: 0.0112 | JT6: 0 | JU6: 0.1717 | JV6: 0.9046 | JW6: 0 | JX6: 0.0014 | JY6: 0 | JZ6: 0 | KA6: 3e-05 | KB6: 0.0012 | KC6: 0.0062 | KD6: 0.006 | KE6: 0.0328 | KF6: 0.2914 | KG6: 0 | KH6: 0.1767 | KI6: 0.2938 | KJ6: 0.0017 | KK6: 0.0384 | KL6: 0.586 | KM6: 0.7116 | KN6: 0 | KO6: 0.0714 | KP6: 0.096 | KQ6: 0.2656 | KR6: 2.6552 | KS6: 0.7977 | KT6: 1.0597 | KU6: 0.0694 | KV6: 0.0095 | KW6: 0.7503 | KX6: 2.4085 | KY6: 0.113 | KZ6: 2.8216 | LA6: 0.56239 | LB6: 0.9833 | LC6: 1.9087 | LD6: 0.6454 | LE6: 0.0971 | LF6: 0.3185 | LG6: 0.0955 | LH6: 0.1612 | LI6: 0.259 | LJ6: 1.4961 | LK6: 0.0305 | LL6: 0.45066 | LM6: 0.00071 | LN6: 0.6402 | LO6: 3.7225 | LP6: 1.2683 | LQ6: 0.1249 | LR6: 0.0239 | LS6: 0.0494 | LT6: 0.0255 | LU6: 0.2845 | LV6: 0.0036 | LW6: 0.1204 | LX6: 0.8961 | LY6: 0 | LZ6: - | MA6: -
C7: Total | D7: 259.25 | E7: 282.343 | F7: 271.395 | G7: 226.95 | H7: 341.954 | I7: 263.188 | J7: 275.965 | K7: 264.433 | L7: 294.293 | M7: 265.945 | N7: 188.121 | O7: 274.253 | P7: 292.269 | Q7: 315.548 | R7: 271.419 | S7: 150.483 | T7: 187.634 | U7: 234.753 | V7: 221.826 | W7: 306.729 | X7: 215.046 | Y7: 258.794 | Z7: 316.249 | AA7: 314.895 | AB7: 247.321 | AC7: 162.882 | AD7: 237.96 | AE7: 399.084 | AF7: 546.447 | AG7: 638.136 | AH7: 460.538 | AI7: 446.033 | AJ7: 359.202 | AK7: 277.812 | AL7: 282.642 | AM7: 293.629 | AN7: 400.933 | AO7: 499.353 | AP7: 503.087 | AQ7: 383.949 | AR7: 418.46 | AS7: 390.582 | AT7: 516.683 | AU7: 300.296 | AV7: 260.91 | AW7: 241.042 | AX7: 408.953 | AY7: 281.614 | AZ7: 304.478 | BA7: 302.302 | BB7: 302.751 | BC7: 296.911 | BD7: 273.43 | BE7: 261.368 | BF7: 467.209 | BG7: 480.305 | BH7: 574.117 | BI7: 632.263 | BJ7: 569.156 | BK7: 641.617 | BL7: 635.49 | BM7: 570.45 | BN7: 607.468 | BO7: 577.413 | BP7: 606.558 | BQ7: 610.39 | BR7: 715.968 | BS7: 724.163 | BT7: 739.22 | BU7: 691.031 | BV7: 599.233 | BW7: 552.286 | BX7: 490.354 | BY7: 369.988 | BZ7: 494.273 | CA7: 530.924 | CB7: 452.1 | CC7: 678.996 | CD7: 816.386 | CE7: 744.872 | CF7: 576.821 | CG7: 506.754 | CH7: 583.742 | CI7: 505.09 | CJ7: 298.302 | CK7: 299.123 | CL7: 392.386 | CM7: 329.426 | CN7: 296.361 | CO7: 343.66 | CP7: 359.99 | CQ7: 302.71 | CR7: 440.478 | CS7: 642.583 | CT7: 474.781 | CU7: 417.165 | CV7: 710.124 | CW7: 636.037 | CX7: 729.307 | CY7: 716.901 | CZ7: 764.224 | DA7: 667.193 | DB7: 805.137 | DC7: 772.005 | DD7: 672.246 | DE7: 825.037 | DF7: 819.61 | DG7: 845.921 | DH7: 872.682 | DI7: 877.877 | DJ7: 998.495 | DK7: 1095.859 | DL7: 1025.791 | DM7: 995.543 | DN7: 1156.632 | DO7: 878.855 | DP7: 905.355 | DQ7: 968.016 | DR7: 1121.794 | DS7: 1061.867 | DT7: 902.578 | DU7: 1005.061 | DV7: 1119.405 | DW7: 1134.867 | DX7: 1246.44 | DY7: 859.563 | DZ7: 945.124 | EA7: 972.952 | EB7: 993.101 | EC7: 1076.428 | ED7: 1182.969 | EE7: 829.18 | EF7: 585.8 | EG7: 583.214 | EH7: 501.966 | EI7: 902.776 | EJ7: 976.411 | EK7: 1001.346 | EL7: 1058.713 | EM7: 855.149 | EN7: 931.668 | EO7: 752.287 | EP7: 973.898 | EQ7: 1078.932 | ER7: 1051.242 | ES7: 1165.442 | ET7: 1291.141 | EU7: 1264.961 | EV7: 880.687 | EW7: 716.641 | EX7: 1060.109 | EY7: 923.499 | EZ7: 962.78 | FA7: 969.683 | FB7: 1176.345 | FC7: 1041.513 | FD7: 805.754 | FE7: 653.919 | FF7: 823.556 | FG7: 642.353 | FH7: 966.774 | FI7: 1013.124 | FJ7: 959.392 | FK7: 842.83 | FL7: 863.737 | FM7: 755.116 | FN7: 593.258 | FO7: 600.674 | FP7: 666.82 | FQ7: 588.166 | FR7: 724.648 | FS7: 493.82 | FT7: 629.708 | FU7: 590.76 | FV7: 740.129 | FW7: 476.969 | FX7: 659.98 | FY7: 685.812 | FZ7: 777.344 | GA7: 1077.456 | GB7: 1368.347 | GC7: 1090.976 | GD7: 939.277 | GE7: 844.17 | GF7: 984.64 | GG7: 948.533 | GH7: 950.208 | GI7: 701.322 | GJ7: 552.198 | GK7: 576.564 | GL7: 478.741 | GM7: 776.536 | GN7: 809.484 | GO7: 589.608 | GP7: 497.718 | GQ7: 800.207 | GR7: 894.208 | GS7: 730.097 | GT7: 683.747 | GU7: 983.82 | GV7: 782.933 | GW7: 855.381 | GX7: 683.469 | GY7: 789.761 | GZ7: 1184.223 | HA7: 893.437 | HB7: 1041.724 | HC7: 783.524 | HD7: 722.825 | HE7: 801.589 | HF7: 863.006 | HG7: 885.457 | HH7: 526.267 | HI7: 255.635 | HJ7: 290.798 | HK7: 524.293 | HL7: 774.952 | HM7: 613.131 | HN7: 362.894 | HO7: 256.527 | HP7: 563.828 | HQ7: 334.132 | HR7: 505.301 | HS7: 501.462 | HT7: 415.811 | HU7: 284.105 | HV7: 589.371 | HW7: 678.757 | HX7: 470.193 | HY7: 525.311 | HZ7: 724.67 | IA7: 652.974 | IB7: 823.202 | IC7: 620.5 | ID7: 596.239 | IE7: 476.476 | IF7: 406.14 | IG7: 358.157 | IH7: 411.102 | II7: 705.717 | IJ7: 740.917159 | IK7: 406.839036 | IL7: 460.578855 | IM7: 323.541446 | IN7: 398.236577 | IO7: 367.160191 | IP7: 318.739835 | IQ7: 536.809917 | IR7: 364.603424 | IS7: 217.40786 | IT7: 415.031405 | IU7: 656.386329 | IV7: 580.178171 | IW7: 495.372767 | IX7: 548.902981 | IY7: 358.453913 | IZ7: 743.141552 | JA7: 704.886659 | JB7: 810.389914 | JC7: 954.307484 | JD7: 687.656274 | JE7: 740.343108 | JF7: 494.243501 | JG7: 814.569295 | JH7: 958.37537 | JI7: 461.744932 | JJ7: 701.384576 | JK7: 468.335993 | JL7: 696.206951 | JM7: 834.840609 | JN7: 771.886491 | JO7: 757.824272 | JP7: 488.39239 | JQ7: 271.298024 | JR7: 646.580089 | JS7: 728.903745 | JT7: 1074.845707 | JU7: 728.987547 | JV7: 898.2675 | JW7: 918.975809 | JX7: 1029.423427 | JY7: 858.529006 | JZ7: 634.417563 | KA7: 951.466797 | KB7: 688.023653 | KC7: 731.133027 | KD7: 606.105573 | KE7: 1083.490624 | KF7: 1381.787169 | KG7: 912.166065 | KH7: 1031.135575 | KI7: 528.65424 | KJ7: 981.007945 | KK7: 988.499184 | KL7: 983.111737 | KM7: 1125.568422 | KN7: 1102.165909 | KO7: 860.192716 | KP7: 1344.627943 | KQ7: 1071.110754 | KR7: 1144.535978 | KS7: 905.676809 | KT7: 962.532385 | KU7: 936.364001 | KV7: 1262.993063 | KW7: 1126.994544 | KX7: 1225.565222 | KY7: 1076.638145 | KZ7: 924.266491 | LA7: 1430.287998 | LB7: 1726.768111 | LC7: 2233.108712 | LD7: 2212.691444 | LE7: 2166.400606 | LF7: 1544.232427 | LG7: 1380.089703 | LH7: 1775.457667 | LI7: 1830.50193 | LJ7: 1957.567227 | LK7: 2037.997612 | LL7: 1876.068549 | LM7: 1250.203162 | LN7: 1716.896316 | LO7: 2096.753799 | LP7: 1347.205933 | LQ7: 1813.521325 | LR7: 2499.605027 | LS7: 2093.584615 | LT7: 2475.696053 | LU7: 2078.56446 | LV7: 2228.589928 | LW7: 2607.865124 | LX7: 2248.567252 | LY7: 1522.5749 | LZ7: - | MA7: -
B8: Salidas | C8: ANDORRA | D8: 0 | E8: 0 | F8: 0 | G8: 0 | H8: 0 | I8: 2.079 | J8: 8.87 | K8: 2.706 | L8: 3.896 | M8: 1.342 | N8: 0 | O8: 0 | P8: 0 | Q8: 2.544 | R8: 0 | S8: 0.314 | T8: 0.11 | U8: 1.357 | V8: 14.208 | W8: 21.045 | X8: 7.099 | Y8: 0 | Z8: 2.181 | AA8: 0.015 | AB8: 0.669 | AC8: 1.743 | AD8: 0 | AE8: 0.31 | AF8: 0.884 | AG8: 0.457 | AH8: 8.329 | AI8: 4.752 | AJ8: 1.355 | AK8: 0 | AL8: 10.04 | AM8: 0 | AN8: 7.71 | AO8: 18.128 | AP8: 5.8 | AQ8: 15.054 | AR8: 5.67 | AS8: 4.95 | AT8: 16.839 | AU8: 21.55 | AV8: 19.932 | AW8: 13.903 | AX8: 9.726 | AY8: 3.242 | AZ8: 0 | BA8: 0 | BB8: 16.599 | BC8: 11.796 | BD8: 0 | BE8: 0.14 | BF8: 1.586 | BG8: 0 | BH8: 20.452 | BI8: 18.117 | BJ8: 14.531 | BK8: 26.01 | BL8: 21.512 | BM8: 9.67 | BN8: 0 | BO8: 0.02 | BP8: 1.459 | BQ8: 0 | BR8: 0 | BS8: 15.664 | BT8: 15.67 | BU8: 7.614 | BV8: 20.623 | BW8: 17.647 | BX8: 26.602 | BY8: 12.939 | BZ8: 11.828 | CA8: 5.23 | CB8: 3.813 | CC8: 0.127 | CD8: 2.771 | CE8: 9.128 | CF8: 16.352 | CG8: 12.59 | CH8: 13.577 | CI8: 12.492 | CJ8: 23.24 | CK8: 11.384 | CL8: 8.063 | CM8: 8.35 | CN8: 4.895 | CO8: 6.728 | CP8: 6.113 | CQ8: 0.019 | CR8: 5.871 | CS8: 21.194 | CT8: 9.065 | CU8: 0 | CV8: 0.758 | CW8: 1.385 | CX8: 23.76 | CY8: 18.699 | CZ8: 2.622 | DA8: 4.185 | DB8: 20.196 | DC8: 25.338 | DD8: 20.58 | DE8: 18.553 | DF8: 2.988 | DG8: 0 | DH8: 30.468 | DI8: 36.276 | DJ8: 32.382 | DK8: 19.121 | DL8: 3.21 | DM8: 2.442 | DN8: 0.295 | DO8: 0 | DP8: 0.605 | DQ8: 23.762 | DR8: 30.207 | DS8: 41.329 | DT8: 41.523 | DU8: 36.135 | DV8: 35.462 | DW8: 27.626 | DX8: 2.447 | DY8: 8.63 | DZ8: 4.011 | EA8: 15.641 | EB8: 4.522 | EC8: 24.983 | ED8: 30.246 | EE8: 40.733 | EF8: 41.825 | EG8: 39.796 | EH8: 25.856 | EI8: 19.339 | EJ8: 0.161 | EK8: 0 | EL8: 0 | EM8: 0.16 | EN8: 7.08 | EO8: 30.593 | EP8: 35.507 | EQ8: 48.041 | ER8: 47.988 | ES8: 41.008 | ET8: 35.664 | EU8: 25.752 | EV8: 0.044 | EW8: 5.696 | EX8: 1.752 | EY8: 11.426 | EZ8: 2.486 | FA8: 35.871 | FB8: 37.9 | FC8: 46.164 | FD8: 41.335 | FE8: 42.015 | FF8: 33.911 | FG8: 24.538 | FH8: 1.929 | FI8: 0 | FJ8: 0.443 | FK8: 24.675 | FL8: 5.156 | FM8: 24.781 | FN8: 26.247 | FO8: 44.947 | FP8: 47.943 | FQ8: 46.445 | FR8: 40.059 | FS8: 29.259 | FT8: 0.131 | FU8: 4.94 | FV8: 0.188 | FW8: 12.573 | FX8: 12.272 | FY8: 24.802 | FZ8: 24.823 | GA8: 40.062 | GB8: 40.325 | GC8: 34.601 | GD8: 33.86 | GE8: 10.674 | GF8: 7.755 | GG8: 11.944 | GH8: 5.416 | GI8: 11.957 | GJ8: 4.109 | GK8: 35.028 | GL8: 32.887 | GM8: 42.502 | GN8: 41.35 | GO8: 32.87 | GP8: 35.245 | GQ8: 6.99 | GR8: 0.393 | GS8: 0.249 | GT8: 6.935 | GU8: 11.682 | GV8: 20.743 | GW8: 13.782 | GX8: 18.415 | GY8: 40.447 | GZ8: 40.085 | HA8: 25.698 | HB8: 30.612 | HC8: 20.154 | HD8: 14.336 | HE8: 19.761 | HF8: 2.602 | HG8: 10.679 | HH8: 0 | HI8: 41.779 | HJ8: 25.271 | HK8: 30.665 | HL8: 29.232 | HM8: 27.299 | HN8: 27.116 | HO8: 28.741 | HP8: 18.063 | HQ8: 18.021 | HR8: 1.777 | HS8: 15.908 | HT8: 11.349 | HU8: 24.115 | HV8: 32.968 | HW8: 43.745 | HX8: 41.613 | HY8: 31.109 | HZ8: 29.175 | IA8: 35.88 | IB8: 3.741 | IC8: 1.752 | ID8: 1.589 | IE8: 38.827 | IF8: 31.198 | IG8: 13.677 | IH8: 31.959 | II8: 38.874 | IJ8: 27.81754 | IK8: 30.32184 | IL8: 30.48708 | IM8: 8.92217 | IN8: 8.76912 | IO8: 20.51386 | IP8: 9.61408 | IQ8: 26.05645 | IR8: 20.42959 | IS8: 13.70273 | IT8: 35.71045 | IU8: 32.14957 | IV8: 41.22076 | IW8: 47.65958 | IX8: 46.1587 | IY8: 8.61631 | IZ8: 12.87065 | JA8: 16.53638 | JB8: 10.91423 | JC8: 0.00151 | JD8: 20.86812 | JE8: 29.20421 | JF8: 30.15579 | JG8: 41.50706 | JH8: 40.83364 | JI8: 39.464 | JJ8: 25.2858 | JK8: 19.43759 | JL8: 11.22676 | JM8: 9.83792 | JN8: 0.06482 | JO8: 14.83303 | JP8: 17.13417 | JQ8: 35.06776 | JR8: 36.47266 | JS8: 36.56071 | JT8: 29.16679 | JU8: 30.37407 | JV8: 30.35563 | JW8: 26.2065 | JX8: 17.80303 | JY8: 11.65175 | JZ8: 2.09212 | KA8: 32.90943 | KB8: 32.02364 | KC8: 32.54469 | KD8: 15.20264 | KE8: 27.06873 | KF8: 27.0729 | KG8: 31.33977 | KH8: 35.32791 | KI8: 9.35004 | KJ8: 10.63239 | KK8: 13.84 | KL8: 11.60848 | KM8: 16.06204 | KN8: 8.28211 | KO8: 12.2675 | KP8: 30.6624 | KQ8: 28.0659 | KR8: 28.37691 | KS8: 27.21404 | KT8: 36.40837 | KU8: 6.98409 | KV8: 1.04064 | KW8: 3.82179 | KX8: 2e-05 | KY8: 32.262 | KZ8: 28.06358 | LA8: 39.64157 | LB8: 30.95575 | LC8: 29.2889 | LD8: 25.98718 | LE8: 23.58205 | LF8: 38.29138 | LG8: 10.00951 | LH8: 9.51281 | LI8: 6.67004 | LJ8: 12.62696 | LK8: 37.63075 | LL8: 26.65005 | LM8: 32.13694 | LN8: 34.3676 | LO8: 20.81914 | LP8: 31.22564 | LQ8: 24.86972 | LR8: 17.67933 | LS8: 12.57196 | LT8: 14.20318 | LU8: 11.77998 | LV8: 0.41784 | LW8: 36.58839 | LX8: 9.72422 | LY8: 31.464 | LZ8: - | MA8: -
C9: FRANCIA | D9: 351.235 | E9: 114.826 | F9: 150.846 | G9: 130.831 | H9: 61.433 | I9: 111.104 | J9: 133.575 | K9: 157.566 | L9: 116.347 | M9: 131.322 | N9: 222.937 | O9: 193.483 | P9: 165.376 | Q9: 161.896 | R9: 224.276 | S9: 273.025 | T9: 269.069 | U9: 173.023 | V9: 121.796 | W9: 121.754 | X9: 111.786 | Y9: 121.061 | Z9: 123.95 | AA9: 134.053 | AB9: 137.114 | AC9: 140.597 | AD9: 124.8 | AE9: 58.176 | AF9: 28.86 | AG9: 52.71 | AH9: 34.322 | AI9: 85.861 | AJ9: 79.453 | AK9: 138.966 | AL9: 110.16 | AM9: 152.435 | AN9: 116.155 | AO9: 89.535 | AP9: 91.227 | AQ9: 82.579 | AR9: 38.703 | AS9: 51.652 | AT9: 55.301 | AU9: 103.763 | AV9: 123.826 | AW9: 79.58 | AX9: 136.15 | AY9: 150.288 | AZ9: 161.873 | BA9: 156.884 | BB9: 103.115 | BC9: 110.71 | BD9: 60.436 | BE9: 100.272 | BF9: 58.516 | BG9: 34.888 | BH9: 26.347 | BI9: 16.362 | BJ9: 18.444 | BK9: 37.957 | BL9: 43.03 | BM9: 15.186 | BN9: 17.945 | BO9: 7.11 | BP9: 16.104 | BQ9: 19.567 | BR9: 48.062 | BS9: 31.631 | BT9: 29.027 | BU9: 25.369 | BV9: 42.019 | BW9: 80.537 | BX9: 207.055 | BY9: 327.816 | BZ9: 170.999 | CA9: 83.646 | CB9: 102.14 | CC9: 82.097 | CD9: 76.23 | CE9: 57.952 | CF9: 65.448 | CG9: 85.094 | CH9: 77.694 | CI9: 111.538 | CJ9: 479.467 | CK9: 256.733 | CL9: 109.402 | CM9: 96.181 | CN9: 118.188 | CO9: 137.1 | CP9: 130.7 | CQ9: 141.038 | CR9: 88.116 | CS9: 71.934 | CT9: 146.65 | CU9: 279.149 | CV9: 87.204 | CW9: 65.067 | CX9: 54.213 | CY9: 44.782 | CZ9: 47.24 | DA9: 58.719 | DB9: 57.994 | DC9: 51.452 | DD9: 73.017 | DE9: 69.906 | DF9: 73.671 | DG9: 63.134 | DH9: 66.068 | DI9: 44.78 | DJ9: 46.766 | DK9: 65.318 | DL9: 40.658 | DM9: 35.035 | DN9: 55.633 | DO9: 25.472 | DP9: 48.928 | DQ9: 40.515 | DR9: 46.708 | DS9: 64.723 | DT9: 135.319 | DU9: 58.313 | DV9: 37.309 | DW9: 36.601 | DX9: 8.857 | DY9: 10.955 | DZ9: 39.615 | EA9: 53.167 | EB9: 50.292 | EC9: 51.687 | ED9: 55.081 | EE9: 57.316 | EF9: 186.072 | EG9: 158.688 | EH9: 220.423 | EI9: 117.877 | EJ9: 33.629 | EK9: 37.324 | EL9: 43.989 | EM9: 55.497 | EN9: 45.966 | EO9: 59.885 | EP9: 80.547 | EQ9: 133.188 | ER9: 92.495 | ES9: 38.416 | ET9: 33.219 | EU9: 16.637 | EV9: 18.27 | EW9: 15.413 | EX9: 0.702 | EY9: 0.537 | EZ9: 0.325 | FA9: 2.408 | FB9: 0.363 | FC9: 8.614 | FD9: 132.465 | FE9: 60.556 | FF9: 21.147 | FG9: 42.935 | FH9: 23.919 | FI9: 21.745 | FJ9: 40.504 | FK9: 14.055 | FL9: 20.11 | FM9: 60.201 | FN9: 62.222 | FO9: 102.195 | FP9: 99.349 | FQ9: 84.129 | FR9: 120.019 | FS9: 90.159 | FT9: 51.122 | FU9: 41.809 | FV9: 44.326 | FW9: 65.525 | FX9: 14.975 | FY9: 67.314 | FZ9: 59.986 | GA9: 17.929 | GB9: 8.095 | GC9: 30.426 | GD9: 52.464 | GE9: 34.87 | GF9: 10.218 | GG9: 32.507 | GH9: 79.517 | GI9: 31.212 | GJ9: 55.692 | GK9: 113.418 | GL9: 125.953 | GM9: 181.436 | GN9: 120.984 | GO9: 166.315 | GP9: 265.564 | GQ9: 85.279 | GR9: 13.397 | GS9: 63.315 | GT9: 163.474 | GU9: 43.683 | GV9: 37.3 | GW9: 77.624 | GX9: 207.734 | GY9: 235.836 | GZ9: 71.168 | HA9: 57.842 | HB9: 82.645 | HC9: 28.54 | HD9: 62.596 | HE9: 48.018 | HF9: 78.676 | HG9: 40.73 | HH9: 97.468 | HI9: 181.762 | HJ9: 216.198 | HK9: 145.703 | HL9: 71.036 | HM9: 34.68 | HN9: 161.495 | HO9: 174.45 | HP9: 115.185 | HQ9: 142.432 | HR9: 128.941 | HS9: 79.119 | HT9: 130.046 | HU9: 190.607 | HV9: 222.418 | HW9: 211.973 | HX9: 322.793 | HY9: 276.435 | HZ9: 148.37 | IA9: 91.929 | IB9: 78.698 | IC9: 187.549 | ID9: 250.537 | IE9: 130.492 | IF9: 128.936 | IG9: 162.719 | IH9: 223.75 | II9: 349.867 | IJ9: 468.401032 | IK9: 371.669049 | IL9: 440.206687 | IM9: 363.279363 | IN9: 239.426226 | IO9: 228.804518 | IP9: 185.685274 | IQ9: 74.567002 | IR9: 199.901098 | IS9: 300.135542 | IT9: 201.106399 | IU9: 441.011493 | IV9: 337.460348 | IW9: 217.540385 | IX9: 443.10673 | IY9: 316.191182 | IZ9: 165.24307 | JA9: 131.957705 | JB9: 92.654323 | JC9: 49.856938 | JD9: 104.308182 | JE9: 136.485855 | JF9: 249.549777 | JG9: 218.237671 | JH9: 62.01214 | JI9: 497.968267 | JJ9: 182.012118 | JK9: 343.138037 | JL9: 215.46958 | JM9: 99.903189 | JN9: 100.171349 | JO9: 154.849168 | JP9: 197.847201 | JQ9: 418.592535 | JR9: 389.340446 | JS9: 366.424813 | JT9: 313.307118 | JU9: 468.709424 | JV9: 656.15301 | JW9: 591.313443 | JX9: 143.937938 | JY9: 58.141814 | JZ9: 21.99479 | KA9: 36.828847 | KB9: 102.83189 | KC9: 138.342578 | KD9: 444.144914 | KE9: 195.50267 | KF9: 474.987497 | KG9: 667.559185 | KH9: 413.452612 | KI9: 220.933008 | KJ9: 48.929734 | KK9: 18.169849 | KL9: 36.213349 | KM9: 3.963639 | KN9: 29.17677 | KO9: 56.932166 | KP9: 161.997202 | KQ9: 262.950377 | KR9: 112.776627 | KS9: 553.117928 | KT9: 301.745151 | KU9: 149.36424 | KV9: 21.480752 | KW9: 23.286464 | KX9: 109.268495 | KY9: 41.442977 | KZ9: 96.291233 | LA9: 193.850862 | LB9: 181.004336 | LC9: 23.0462 | LD9: 520.736779 | LE9: 505.732278 | LF9: 452.90157 | LG9: 811.006233 | LH9: 280.21149 | LI9: 16.717741 | LJ9: 29.699632 | LK9: 12.114228 | LL9: 64.826706 | LM9: 689.451199 | LN9: 577.852512 | LO9: 372.571966 | LP9: 856.010946 | LQ9: 490.593496 | LR9: 115.812903 | LS9: 35.824441 | LT9: 5.570766 | LU9: 15.879737 | LV9: 15.412354 | LW9: 1.611058 | LX9: 9.623532 | LY9: 343.9637 | LZ9: - | MA9: -
C10: PORTUGAL | D10: 177.312 | E10: 150.966 | F10: 132.536 | G10: 117.116 | H10: 121.123 | I10: 149.563 | J10: 161.681 | K10: 136.197 | L10: 159.187 | M10: 155.014 | N10: 104.654 | O10: 167.922 | P10: 151.426 | Q10: 128.219 | R10: 169.213 | S10: 104.063 | T10: 110.021 | U10: 106.212 | V10: 177.934 | W10: 136.081 | X10: 195.997 | Y10: 152.005 | Z10: 133.944 | AA10: 147.178 | AB10: 205.59 | AC10: 332.751 | AD10: 326.376 | AE10: 151.935 | AF10: 244.723 | AG10: 213.71 | AH10: 329.895 | AI10: 138.524 | AJ10: 147.087 | AK10: 155.085 | AL10: 154.419 | AM10: 138.474 | AN10: 181.163 | AO10: 169.252 | AP10: 221.793 | AQ10: 238.076 | AR10: 149.972 | AS10: 116.185 | AT10: 161.963 | AU10: 156.885 | AV10: 121.937 | AW10: 148.413 | AX10: 263.442 | AY10: 148.446 | AZ10: 163.06 | BA10: 126.351 | BB10: 138.934 | BC10: 132.289 | BD10: 141.656 | BE10: 104.573 | BF10: 279.056 | BG10: 311.211 | BH10: 255.817 | BI10: 214.6 | BJ10: 164.699 | BK10: 223.521 | BL10: 188.67 | BM10: 169.199 | BN10: 210.398 | BO10: 216.397 | BP10: 210.379 | BQ10: 221.188 | BR10: 261.427 | BS10: 287.181 | BT10: 304.954 | BU10: 223.152 | BV10: 156.567 | BW10: 205.647 | BX10: 279.847 | BY10: 258.072 | BZ10: 215.637 | CA10: 207.598 | CB10: 170.924 | CC10: 299.413 | CD10: 399.78 | CE10: 389.25 | CF10: 441.49 | CG10: 532.367 | CH10: 508.64 | CI10: 412.758 | CJ10: 279.554 | CK10: 235.571 | CL10: 494.932 | CM10: 635.037 | CN10: 612.472 | CO10: 468.042 | CP10: 620.938 | CQ10: 615.882 | CR10: 449.88 | CS10: 410.217 | CT10: 247.829 | CU10: 307.287 | CV10: 282.321 | CW10: 223.624 | CX10: 246.414 | CY10: 264.601 | CZ10: 344.813 | DA10: 283.467 | DB10: 375.322 | DC10: 310.308 | DD10: 432.361 | DE10: 365.612 | DF10: 378.712 | DG10: 463.278 | DH10: 464.699 | DI10: 369.626 | DJ10: 391.296 | DK10: 234.073 | DL10: 149.037 | DM10: 211.497 | DN10: 398.652 | DO10: 149.302 | DP10: 433.227 | DQ10: 278.566 | DR10: 227.586 | DS10: 320.534 | DT10: 333.807 | DU10: 276.157 | DV10: 396.462 | DW10: 332.624 | DX10: 336.511 | DY10: 463.916 | DZ10: 488.924 | EA10: 532.433 | EB10: 433.749 | EC10: 371.405 | ED10: 426.967 | EE10: 304.579 | EF10: 235.981 | EG10: 204.946 | EH10: 207.603 | EI10: 186.119 | EJ10: 243.583 | EK10: 337.627 | EL10: 437.841 | EM10: 367.284 | EN10: 481.199 | EO10: 371.611 | EP10: 328.268 | EQ10: 340.726 | ER10: 360.795 | ES10: 361.956 | ET10: 365.647 | EU10: 370.637 | EV10: 470.593 | EW10: 376.512 | EX10: 410.527 | EY10: 510.868 | EZ10: 449.092 | FA10: 492.561 | FB10: 534.584 | FC10: 624.863 | FD10: 456.29 | FE10: 399.294 | FF10: 393.479 | FG10: 427.269 | FH10: 595.146 | FI10: 481.182 | FJ10: 602.204 | FK10: 575.27 | FL10: 553.909 | FM10: 532.042 | FN10: 415.343 | FO10: 466.739 | FP10: 702.957 | FQ10: 630.022 | FR10: 711.766 | FS10: 830.339 | FT10: 758.302 | FU10: 739.501 | FV10: 810.217 | FW10: 736.394 | FX10: 605.316 | FY10: 732.112 | FZ10: 600.561 | GA10: 673.364 | GB10: 958.948 | GC10: 695.545 | GD10: 754.209 | GE10: 693.041 | GF10: 726.2 | GG10: 691.504 | GH10: 794.049 | GI10: 673.05 | GJ10: 873.618 | GK10: 939.642 | GL10: 905.214 | GM10: 924.664 | GN10: 928.817 | GO10: 818.681 | GP10: 837.504 | GQ10: 550.104 | GR10: 739.628 | GS10: 823.632 | GT10: 788.318 | GU10: 656.158 | GV10: 820.233 | GW10: 794.587 | GX10: 513.795 | GY10: 361.879 | GZ10: 704.773 | HA10: 798.264 | HB10: 844.33 | HC10: 706.82 | HD10: 760.338 | HE10: 621.507 | HF10: 752.704 | HG10: 862.368 | HH10: 929.686 | HI10: 919.557 | HJ10: 872.188 | HK10: 876.98 | HL10: 894.615 | HM10: 859.263 | HN10: 1079.712 | HO10: 960.177 | HP10: 853.773 | HQ10: 871.162 | HR10: 810.85 | HS10: 711.595 | HT10: 758.874 | HU10: 834.219 | HV10: 1045.93 | HW10: 1072.465 | HX10: 837.195 | HY10: 486.203 | HZ10: 557.527 | IA10: 743.972 | IB10: 710.811 | IC10: 756.664 | ID10: 753.919 | IE10: 574.06 | IF10: 498.62 | IG10: 595.146 | IH10: 666.909 | II10: 428.144 | IJ10: 354.676533 | IK10: 432.9285 | IL10: 389.062534 | IM10: 334.559715 | IN10: 355.13217 | IO10: 536.761464 | IP10: 686.330748 | IQ10: 708.685322 | IR10: 617.118088 | IS10: 701.548875 | IT10: 470.71843 | IU10: 235.82416 | IV10: 516.956368 | IW10: 304.559301 | IX10: 501.53646 | IY10: 697.375138 | IZ10: 389.772032 | JA10: 555.514161 | JB10: 678.271731 | JC10: 580.106417 | JD10: 677.12033 | JE10: 596.855224 | JF10: 526.220767 | JG10: 719.581518 | JH10: 1041.847126 | JI10: 967.862986 | JJ10: 978.515928 | JK10: 931.671848 | JL10: 979.429892 | JM10: 940.756552 | JN10: 831.043878 | JO10: 725.316823 | JP10: 838.708653 | JQ10: 946.394782 | JR10: 600.296314 | JS10: 985.774428 | JT10: 621.45181 | JU10: 467.984831 | JV10: 262.154818 | JW10: 266.156867 | JX10: 536.180852 | JY10: 687.128892 | JZ10: 1183.506284 | KA10: 900.294332 | KB10: 896.447511 | KC10: 838.98715 | KD10: 608.618738 | KE10: 831.207132 | KF10: 396.744843 | KG10: 214.979434 | KH10: 309.574356 | KI10: 488.361768 | KJ10: 650.825104 | KK10: 747.901548 | KL10: 957.306126 | KM10: 825.475813 | KN10: 820.830669 | KO10: 704.308271 | KP10: 469.468084 | KQ10: 661.648074 | KR10: 907.703398 | KS10: 518.737887 | KT10: 613.605443 | KU10: 634.695607 | KV10: 545.189081 | KW10: 748.896935 | KX10: 829.434037 | KY10: 733.380329 | KZ10: 598.03641 | LA10: 411.147954 | LB10: 649.090212 | LC10: 887.193552 | LD10: 402.60832 | LE10: 256.696505 | LF10: 440.624556 | LG10: 198.003572 | LH10: 214.081902 | LI10: 218.854037 | LJ10: 505.033693 | LK10: 395.60672 | LL10: 397.253411 | LM10: 546.032211 | LN10: 485.276589 | LO10: 555.443119 | LP10: 590.548745 | LQ10: 276.991522 | LR10: 376.177128 | LS10: 466.77073 | LT10: 441.532507 | LU10: 388.75986 | LV10: 343.761738 | LW10: 151.548034 | LX10: 351.866278 | LY10: 455.92 | LZ10: - | MA10: -
C11: MARRUECOS | D11: 0 | E11: 0 | F11: 0 | G11: 0 | H11: 0 | I11: 0 | J11: 0 | K11: 0 | L11: 0 | M11: 0 | N11: 0 | O11: 0 | P11: 0 | Q11: 0 | R11: 0 | S11: 0 | T11: 0 | U11: 0 | V11: 0 | W11: 0 | X11: 0 | Y11: 0 | Z11: 0 | AA11: 0 | AB11: 0 | AC11: 0 | AD11: 0 | AE11: 0 | AF11: 0 | AG11: 0 | AH11: 0 | AI11: 0 | AJ11: 0 | AK11: 0 | AL11: 0 | AM11: 0 | AN11: 0 | AO11: 0 | AP11: 0 | AQ11: 0 | AR11: 0 | AS11: 0 | AT11: 0 | AU11: 0 | AV11: 0 | AW11: 0 | AX11: 0 | AY11: 0 | AZ11: 0 | BA11: 0 | BB11: 0 | BC11: 0 | BD11: 0 | BE11: 0 | BF11: 0 | BG11: 0 | BH11: 0 | BI11: 0 | BJ11: 0 | BK11: 0 | BL11: 0 | BM11: 0 | BN11: 0 | BO11: 0 | BP11: 0 | BQ11: 0 | BR11: 0 | BS11: 0 | BT11: 0 | BU11: 0 | BV11: 0 | BW11: 0 | BX11: 0 | BY11: 0 | BZ11: 0 | CA11: 0 | CB11: 0 | CC11: 0 | CD11: 0 | CE11: 0 | CF11: 0 | CG11: 0 | CH11: 0 | CI11: 0 | CJ11: 0 | CK11: 0 | CL11: 0 | CM11: 0 | CN11: 0 | CO11: 0 | CP11: 0 | CQ11: 0.776 | CR11: 0 | CS11: 126.019 | CT11: 5.821 | CU11: 0 | CV11: 0 | CW11: 0 | CX11: 0 | CY11: 0 | CZ11: 14.435 | DA11: 75.96 | DB11: 67.055 | DC11: 64.812 | DD11: 171.778 | DE11: 164.818 | DF11: 80.717 | DG11: 66.007 | DH11: 67.33 | DI11: 60.401 | DJ11: 65.195 | DK11: 64.669 | DL11: 204.428 | DM11: 175.711 | DN11: 186.43 | DO11: 199.241 | DP11: 211.6 | DQ11: 186.423 | DR11: 191.978 | DS11: 197.319 | DT11: 195.543 | DU11: 218.556 | DV11: 227.923 | DW11: 218.846 | DX11: 215.087 | DY11: 202.187 | DZ11: 153.747 | EA11: 163.183 | EB11: 163.81 | EC11: 184.547 | ED11: 154.477 | EE11: 165.162 | EF11: 160.131 | EG11: 158.111 | EH11: 132.048 | EI11: 132.379 | EJ11: 120.435 | EK11: 121.891 | EL11: 145.846 | EM11: 150.163 | EN11: 114.337 | EO11: 150.496 | EP11: 126.724 | EQ11: 67.408 | ER11: 17.948 | ES11: 75.276 | ET11: 135.007 | EU11: 146.586 | EV11: 132.742 | EW11: 132.01 | EX11: 71.192 | EY11: 164.55 | EZ11: 82.814 | FA11: 140.704 | FB11: 112.784 | FC11: 115.877 | FD11: 149.248 | FE11: 101.066 | FF11: 128.001 | FG11: 184.538 | FH11: 211.723 | FI11: 100.852 | FJ11: 78.893 | FK11: 105.343 | FL11: 124.383 | FM11: 82.976 | FN11: 113.504 | FO11: 105.86 | FP11: 134.897 | FQ11: 127.359 | FR11: 86.837 | FS11: 165.282 | FT11: 123.816 | FU11: 125.847 | FV11: 126.857 | FW11: 117.166 | FX11: 81.371 | FY11: 192.573 | FZ11: 137.634 | GA11: 148.003 | GB11: 65.431 | GC11: 30.747 | GD11: 47.519 | GE11: 36.801 | GF11: 64.423 | GG11: 36.289 | GH11: 39.644 | GI11: 159.74 | GJ11: 114.145 | GK11: 151.062 | GL11: 104.293 | GM11: 48.253 | GN11: 83.504 | GO11: 155.519 | GP11: 158.465 | GQ11: 115.953 | GR11: 121.96 | GS11: 105.013 | GT11: 102.898 | GU11: 209.052 | GV11: 215.19 | GW11: 206.322 | GX11: 228.82 | GY11: 327.306 | GZ11: 273.637 | HA11: 247.128 | HB11: 327.501 | HC11: 289.062 | HD11: 380.347 | HE11: 335.764 | HF11: 318.801 | HG11: 285.694 | HH11: 345.687 | HI11: 266.312 | HJ11: 230.073 | HK11: 200.744 | HL11: 236.871 | HM11: 347.473 | HN11: 293.919 | HO11: 384.775 | HP11: 338.081 | HQ11: 354.86 | HR11: 471.545 | HS11: 490.913 | HT11: 451.353 | HU11: 337.18 | HV11: 236.502 | HW11: 283.029 | HX11: 166.22 | HY11: 205.84 | HZ11: 182.547 | IA11: 330.128 | IB11: 467.328 | IC11: 443.695 | ID11: 535.103 | IE11: 550.512 | IF11: 458.554 | IG11: 527.979 | IH11: 385.694 | II11: 342.848 | IJ11: 194.7355 | IK11: 78.1164 | IL11: 160.9366 | IM11: 345.8753 | IN11: 337.72409 | IO11: 402.3061 | IP11: 437.7633 | IQ11: 486.1022 | IR11: 491.4101 | IS11: 497.5306 | IT11: 300.7067 | IU11: 203.6895 | IV11: 295.8765 | IW11: 284.45586 | IX11: 320.7371 | IY11: 411.0826 | IZ11: 408.8796 | JA11: 405.6456 | JB11: 499.4842 | JC11: 521.4435 | JD11: 434.1165 | JE11: 359.38208 | JF11: 267.8338 | JG11: 301.4597 | JH11: 338.9734 | JI11: 332.2429 | JJ11: 385.5398 | JK11: 386.0083 | JL11: 429.9211 | JM11: 409.6723 | JN11: 470.1319 | JO11: 509.035 | JP11: 482.00497 | JQ11: 328.45185 | JR11: 411.8776 | JS11: 420.301 | JT11: 475.3722 | JU11: 404.3132 | JV11: 380.0213 | JW11: 446.4812 | JX11: 463.5572 | JY11: 460.3017 | JZ11: 487.256 | KA11: 499.10871 | KB11: 478.5937 | KC11: 400.3778 | KD11: 431.0506 | KE11: 450.6384 | KF11: 454.8821 | KG11: 488.8283 | KH11: 498.7274 | KI11: 462.2417 | KJ11: 527.0322 | KK11: 494.1689 | KL11: 459.70403 | KM11: 516.7597 | KN11: 580.1312 | KO11: 390.23454 | KP11: 487.1276 | KQ11: 479.114 | KR11: 354.782 | KS11: 365.462 | KT11: 407.5302 | KU11: 440.8708 | KV11: 514.5098 | KW11: 350.1002 | KX11: 471.0381 | KY11: 521.3462 | KZ11: 371.817 | LA11: 349.11968 | LB11: 412.6099 | LC11: 381.8629 | LD11: 415.7689 | LE11: 419.814 | LF11: 437.4883 | LG11: 467.7545 | LH11: 509.1491 | LI11: 504.9909 | LJ11: 492.4758 | LK11: 557.9898 | LL11: 256.74774 | LM11: 416.36067 | LN11: 262.1884 | LO11: 209.1974 | LP11: 400.9699 | LQ11: 479.9329 | LR11: 532.8549 | LS11: 537.458 | LT11: 569.404 | LU11: 533.286 | LV11: 595.5546 | LW11: 590.2067 | LX11: 484.0448 | LY11: 418.1858 | LZ11: - | MA11: -
C12: Total | D12: 528.547 | E12: 265.792 | F12: 283.382 | G12: 247.947 | H12: 182.556 | I12: 262.746 | J12: 304.126 | K12: 296.469 | L12: 279.43 | M12: 287.678 | N12: 327.591 | O12: 361.405 | P12: 316.802 | Q12: 292.659 | R12: 393.489 | S12: 377.402 | T12: 379.2 | U12: 280.592 | V12: 313.938 | W12: 278.88 | X12: 314.882 | Y12: 273.066 | Z12: 260.075 | AA12: 281.246 | AB12: 343.373 | AC12: 475.091 | AD12: 451.176 | AE12: 210.421 | AF12: 274.467 | AG12: 266.877 | AH12: 372.546 | AI12: 229.137 | AJ12: 227.895 | AK12: 294.051 | AL12: 274.619 | AM12: 290.909 | AN12: 305.028 | AO12: 276.915 | AP12: 318.82 | AQ12: 335.709 | AR12: 194.345 | AS12: 172.787 | AT12: 234.103 | AU12: 282.198 | AV12: 265.695 | AW12: 241.896 | AX12: 409.318 | AY12: 301.976 | AZ12: 324.933 | BA12: 283.235 | BB12: 258.648 | BC12: 254.795 | BD12: 202.092 | BE12: 204.985 | BF12: 339.158 | BG12: 346.099 | BH12: 302.616 | BI12: 249.079 | BJ12: 197.674 | BK12: 287.488 | BL12: 253.212 | BM12: 194.055 | BN12: 228.343 | BO12: 223.527 | BP12: 227.942 | BQ12: 240.755 | BR12: 309.489 | BS12: 334.476 | BT12: 349.651 | BU12: 256.135 | BV12: 219.209 | BW12: 303.831 | BX12: 513.504 | BY12: 598.827 | BZ12: 398.464 | CA12: 296.474 | CB12: 276.877 | CC12: 381.637 | CD12: 478.781 | CE12: 456.33 | CF12: 523.29 | CG12: 630.051 | CH12: 599.911 | CI12: 536.788 | CJ12: 782.261 | CK12: 503.688 | CL12: 612.397 | CM12: 739.568 | CN12: 735.555 | CO12: 611.87 | CP12: 757.751 | CQ12: 757.715 | CR12: 543.867 | CS12: 629.364 | CT12: 409.365 | CU12: 586.436 | CV12: 370.283 | CW12: 290.076 | CX12: 324.387 | CY12: 328.082 | CZ12: 409.11 | DA12: 422.331 | DB12: 520.567 | DC12: 451.91 | DD12: 697.736 | DE12: 618.889 | DF12: 536.088 | DG12: 592.419 | DH12: 628.565 | DI12: 511.083 | DJ12: 535.639 | DK12: 383.181 | DL12: 397.333 | DM12: 424.685 | DN12: 641.01 | DO12: 374.015 | DP12: 694.36 | DQ12: 529.266 | DR12: 496.479 | DS12: 623.905 | DT12: 706.192 | DU12: 589.161 | DV12: 697.156 | DW12: 615.697 | DX12: 562.902 | DY12: 685.688 | DZ12: 686.297 | EA12: 764.424 | EB12: 652.373 | EC12: 632.622 | ED12: 666.771 | EE12: 567.79 | EF12: 624.009 | EG12: 561.541 | EH12: 585.93 | EI12: 455.714 | EJ12: 397.808 | EK12: 496.842 | EL12: 627.676 | EM12: 573.104 | EN12: 648.582 | EO12: 612.585 | EP12: 571.046 | EQ12: 589.363 | ER12: 519.226 | ES12: 516.656 | ET12: 569.537 | EU12: 559.612 | EV12: 621.649 | EW12: 529.631 | EX12: 484.173 | EY12: 687.381 | EZ12: 534.717 | FA12: 671.544 | FB12: 685.631 | FC12: 795.518 | FD12: 779.338 | FE12: 602.931 | FF12: 576.538 | FG12: 679.28 | FH12: 832.717 | FI12: 603.779 | FJ12: 722.044 | FK12: 719.343 | FL12: 703.558 | FM12: 700 | FN12: 617.316 | FO12: 719.741 | FP12: 985.146 | FQ12: 887.955 | FR12: 958.681 | FS12: 1115.039 | FT12: 933.371 | FU12: 912.097 | FV12: 981.588 | FW12: 931.658 | FX12: 713.934 | FY12: 1016.801 | FZ12: 823.004 | GA12: 879.358 | GB12: 1072.799 | GC12: 791.319 | GD12: 888.052 | GE12: 775.386 | GF12: 808.596 | GG12: 772.244 | GH12: 918.626 | GI12: 875.959 | GJ12: 1047.564 | GK12: 1239.15 | GL12: 1168.347 | GM12: 1196.855 | GN12: 1174.655 | GO12: 1173.385 | GP12: 1296.778 | GQ12: 758.326 | GR12: 875.378 | GS12: 992.209 | GT12: 1061.625 | GU12: 920.575 | GV12: 1093.466 | GW12: 1092.315 | GX12: 968.764 | GY12: 965.468 | GZ12: 1089.663 | HA12: 1128.932 | HB12: 1285.088 | HC12: 1044.576 | HD12: 1217.617 | HE12: 1025.05 | HF12: 1152.783 | HG12: 1199.471 | HH12: 1372.841 | HI12: 1409.41 | HJ12: 1343.73 | HK12: 1254.092 | HL12: 1231.754 | HM12: 1268.715 | HN12: 1562.242 | HO12: 1548.143 | HP12: 1325.102 | HQ12: 1386.475 | HR12: 1413.113 | HS12: 1297.535 | HT12: 1351.622 | HU12: 1386.121 | HV12: 1537.818 | HW12: 1611.212 | HX12: 1367.821 | HY12: 999.587 | HZ12: 917.619 | IA12: 1201.909 | IB12: 1260.578 | IC12: 1389.66 | ID12: 1541.148 | IE12: 1293.891 | IF12: 1117.308 | IG12: 1299.521 | IH12: 1308.312 | II12: 1159.733 | IJ12: 1045.630605 | IK12: 913.035789 | IL12: 1020.692901 | IM12: 1052.636548 | IN12: 941.051606 | IO12: 1188.385942 | IP12: 1319.393402 | IQ12: 1295.410974 | IR12: 1328.858876 | IS12: 1512.917747 | IT12: 1008.241979 | IU12: 912.674723 | IV12: 1191.513976 | IW12: 854.215126 | IX12: 1311.53899 | IY12: 1433.26523 | IZ12: 976.765352 | JA12: 1109.653846 | JB12: 1281.324484 | JC12: 1151.408365 | JD12: 1236.413132 | JE12: 1121.927369 | JF12: 1073.760134 | JG12: 1280.785949 | JH12: 1483.666306 | JI12: 1837.538153 | JJ12: 1571.353646 | JK12: 1680.255775 | JL12: 1636.047332 | JM12: 1460.169961 | JN12: 1401.411947 | JO12: 1404.034021 | JP12: 1535.694994 | JQ12: 1728.506927 | JR12: 1437.98702 | JS12: 1809.060951 | JT12: 1439.297918 | JU12: 1371.381525 | JV12: 1328.684758 | JW12: 1330.15801 | JX12: 1161.47902 | JY12: 1217.224156 | JZ12: 1694.849194 | KA12: 1469.141319 | KB12: 1509.896741 | KC12: 1410.252218 | KD12: 1499.016892 | KE12: 1504.416932 | KF12: 1353.68734 | KG12: 1402.706689 | KH12: 1257.082278 | KI12: 1180.886516 | KJ12: 1237.419428 | KK12: 1274.080297 | KL12: 1464.831985 | KM12: 1362.261192 | KN12: 1438.420749 | KO12: 1163.742477 | KP12: 1149.255286 | KQ12: 1431.778351 | KR12: 1403.638935 | KS12: 1464.531855 | KT12: 1359.289164 | KU12: 1231.914737 | KV12: 1082.220273 | KW12: 1126.105389 | KX12: 1409.740652 | KY12: 1328.431506 | KZ12: 1094.208223 | LA12: 993.760066 | LB12: 1273.660198 | LC12: 1321.391552 | LD12: 1365.101179 | LE12: 1205.824833 | LF12: 1369.305806 | LG12: 1486.773815 | LH12: 1012.955302 | LI12: 747.232718 | LJ12: 1039.836085 | LK12: 1003.341498 | LL12: 745.477907 | LM12: 1683.98102 | LN12: 1359.685101 | LO12: 1158.031625 | LP12: 1878.755231 | LQ12: 1272.387638 | LR12: 1042.524261 | LS12: 1052.625131 | LT12: 1030.710453 | LU12: 949.705577 | LV12: 955.146532 | LW12: 779.954182 | LX12: 855.25883 | LY12: 1249.5335 | LZ12: - | MA12: -
B13: Saldo | C13: ANDORRA | D13: 0 | E13: 0 | F13: 0 | G13: 0 | H13: 0 | I13: -1.823 | J13: -8.87 | K13: -2.706 | L13: -3.896 | M13: -1.342 | N13: 0 | O13: 0 | P13: 0 | Q13: -2.544 | R13: 0.014 | S13: -0.314 | T13: -0.11 | U13: -1.356 | V13: -14.206 | W13: -21.045 | X13: -7.099 | Y13: 0 | Z13: -2.181 | AA13: -0.015 | AB13: -0.669 | AC13: -1.743 | AD13: 0 | AE13: -0.31 | AF13: -0.884 | AG13: -0.457 | AH13: -8.329 | AI13: -4.749 | AJ13: -1.345 | AK13: 0 | AL13: -10.036 | AM13: 0 | AN13: -7.71 | AO13: -18.128 | AP13: -5.8 | AQ13: -15.054 | AR13: -5.664 | AS13: -4.942 | AT13: -16.838 | AU13: -21.55 | AV13: -19.932 | AW13: -13.903 | AX13: -9.726 | AY13: -3.242 | AZ13: 0 | BA13: 0 | BB13: -16.597 | BC13: -11.796 | BD13: 0 | BE13: -0.14 | BF13: -1.586 | BG13: 0 | BH13: -20.452 | BI13: -18.117 | BJ13: -14.531 | BK13: -26.01 | BL13: -21.512 | BM13: -9.67 | BN13: 0 | BO13: -0.02 | BP13: -1.458 | BQ13: 0 | BR13: 0 | BS13: -15.664 | BT13: -15.67 | BU13: -7.614 | BV13: -20.623 | BW13: -17.647 | BX13: -26.602 | BY13: -12.939 | BZ13: -11.828 | CA13: -5.23 | CB13: -3.813 | CC13: -0.127 | CD13: -2.771 | CE13: -9.128 | CF13: -16.352 | CG13: -12.59 | CH13: -13.577 | CI13: -12.492 | CJ13: -23.24 | CK13: -11.384 | CL13: -8.063 | CM13: -8.338 | CN13: -4.871 | CO13: -6.708 | CP13: -6.111 | CQ13: -0.019 | CR13: -5.871 | CS13: -21.194 | CT13: -9.065 | CU13: 0 | CV13: -0.758 | CW13: -1.385 | CX13: -23.757 | CY13: -18.699 | CZ13: -2.621 | DA13: -4.184 | DB13: -20.195 | DC13: -25.338 | DD13: -20.58 | DE13: -18.553 | DF13: -2.988 | DG13: 0 | DH13: -22.684 | DI13: -36.276 | DJ13: -32.382 | DK13: -19.121 | DL13: -3.21 | DM13: -2.442 | DN13: -0.295 | DO13: 0 | DP13: -0.605 | DQ13: -23.762 | DR13: -30.207 | DS13: -41.329 | DT13: -41.523 | DU13: -36.135 | DV13: -35.462 | DW13: -27.626 | DX13: -2.447 | DY13: -8.63 | DZ13: -4.011 | EA13: -15.641 | EB13: -4.522 | EC13: -24.983 | ED13: -30.246 | EE13: -40.733 | EF13: -41.825 | EG13: -39.796 | EH13: -25.856 | EI13: -19.339 | EJ13: -0.161 | EK13: 0 | EL13: 0 | EM13: -0.16 | EN13: -7.08 | EO13: -30.593 | EP13: -35.507 | EQ13: -48.041 | ER13: -47.988 | ES13: -41.008 | ET13: -35.664 | EU13: -25.752 | EV13: -0.044 | EW13: -5.696 | EX13: -1.752 | EY13: -11.426 | EZ13: -2.486 | FA13: -35.871 | FB13: -37.9 | FC13: -46.164 | FD13: -41.335 | FE13: -42.015 | FF13: -33.911 | FG13: -24.538 | FH13: -1.929 | FI13: 0 | FJ13: -0.443 | FK13: -24.675 | FL13: -5.156 | FM13: -24.781 | FN13: -26.247 | FO13: -44.947 | FP13: -47.943 | FQ13: -46.444 | FR13: -40.059 | FS13: -29.259 | FT13: -0.131 | FU13: -4.938 | FV13: -0.188 | FW13: -12.573 | FX13: -12.272 | FY13: -24.802 | FZ13: -24.823 | GA13: -40.062 | GB13: -40.325 | GC13: -34.601 | GD13: -33.86 | GE13: -10.673 | GF13: -7.753 | GG13: -11.941 | GH13: -5.416 | GI13: -11.957 | GJ13: -4.108 | GK13: -35.027 | GL13: -32.88 | GM13: -42.502 | GN13: -41.35 | GO13: -32.87 | GP13: -35.245 | GQ13: -6.99 | GR13: -0.393 | GS13: -0.249 | GT13: -6.935 | GU13: -11.682 | GV13: -20.741 | GW13: -13.781 | GX13: -18.415 | GY13: -40.447 | GZ13: -40.085 | HA13: -25.698 | HB13: -30.612 | HC13: -20.154 | HD13: -14.336 | HE13: -19.76 | HF13: -2.337 | HG13: -10.678 | HH13: 0 | HI13: -41.779 | HJ13: -25.271 | HK13: -30.665 | HL13: -29.232 | HM13: -27.299 | HN13: -27.116 | HO13: -28.741 | HP13: -18.063 | HQ13: -18.021 | HR13: -1.777 | HS13: -15.908 | HT13: -11.349 | HU13: -24.115 | HV13: -32.968 | HW13: -43.745 | HX13: -41.613 | HY13: -31.109 | HZ13: -29.175 | IA13: -35.88 | IB13: -3.741 | IC13: -1.751 | ID13: -1.589 | IE13: -38.827 | IF13: -31.198 | IG13: -13.677 | IH13: -31.959 | II13: -38.866 | IJ13: -27.81754 | IK13: -30.32184 | IL13: -30.48708 | IM13: -8.92217 | IN13: -8.76878 | IO13: -20.51383 | IP13: -9.61408 | IQ13: -26.05645 | IR13: -20.42959 | IS13: -13.70273 | IT13: -35.71045 | IU13: -32.14957 | IV13: -41.22076 | IW13: -47.65958 | IX13: -46.1587 | IY13: -8.61631 | IZ13: -12.87065 | JA13: -16.53622 | JB13: -10.91416 | JC13: -0.0014 | JD13: -20.8679 | JE13: -29.20421 | JF13: -30.15579 | JG13: -41.50706 | JH13: -40.83324 | JI13: -39.46392 | JJ13: -25.28576 | JK13: -19.43725 | JL13: -11.2265 | JM13: -9.83756 | JN13: -0.06482 | JO13: -14.83303 | JP13: -17.13415 | JQ13: -35.06776 | JR13: -36.47266 | JS13: -36.56063 | JT13: -29.16679 | JU13: -30.37407 | JV13: -30.35563 | JW13: -26.2065 | JX13: -17.80238 | JY13: -11.65175 | JZ13: -2.09178 | KA13: -32.90943 | KB13: -32.02364 | KC13: -32.54458 | KD13: -15.20264 | KE13: -27.06873 | KF13: -27.0729 | KG13: -31.33977 | KH13: -35.32791 | KI13: -9.34963 | KJ13: -10.63155 | KK13: -13.83934 | KL13: -11.60724 | KM13: -16.06098 | KN13: -8.28141 | KO13: -12.26695 | KP13: -30.66226 | KQ13: -28.0659 | KR13: -28.37691 | KS13: -27.21404 | KT13: -36.40837 | KU13: -6.98362 | KV13: -1.03932 | KW13: -3.82118 | KX13: -2e-05 | KY13: -32.2615 | KZ13: -28.06332 | LA13: -39.64122 | LB13: -30.95488 | LC13: -29.28705 | LD13: -25.98718 | LE13: -23.58205 | LF13: -38.29138 | LG13: -10.00951 | LH13: -9.51265 | LI13: -6.66932 | LJ13: -12.62679 | LK13: -37.63028 | LL13: -26.64862 | LM13: -32.13604 | LN13: -34.36747 | LO13: -20.81914 | LP13: -31.22564 | LQ13: -24.86972 | LR13: -17.67284 | LS13: -12.57063 | LT13: -14.19715 | LU13: -11.77883 | LV13: -0.41759 | LW13: -36.58826 | LX13: -9.72312 | LY13: -31.464 | LZ13: - | MA13: -
C14: FRANCIA | D14: -303.912 | E14: -5.973 | F14: -4.547 | G14: -15.545 | H14: 166.705 | I14: 0.375 | J14: -10.947 | K14: -10.412 | L14: 16.666 | M14: -14.949 | N14: -144.282 | O14: -37.005 | P14: -9.273 | Q14: -10.197 | R14: -138.976 | S14: -240.89 | T14: -216.231 | U14: -74.978 | V14: -9.317 | W14: 71.012 | X14: 9.529 | Y14: 10.435 | Z14: 40.747 | AA14: 32.375 | AB14: -5.119 | AC14: -23.658 | AD14: 60.943 | AE14: 186.639 | AF14: 438.958 | AG14: 515.361 | AH14: 393.603 | AI14: 256.63 | AJ14: 155.031 | AK14: 18.537 | AL14: 16.864 | AM14: -3 | AN14: 118.326 | AO14: 240.171 | AP14: 244.149 | AQ14: 177.756 | AR14: 234.975 | AS14: 224.764 | AT14: 297.955 | AU14: 37.547 | AV14: 14.711 | AW14: 13.272 | AX14: 0.729 | AY14: -19.638 | AZ14: -29.555 | BA14: -0.562 | BB14: 59.509 | BC14: 50.414 | BD14: 66.303 | BE14: 55.414 | BF14: 345.534 | BG14: 351.932 | BH14: 455.549 | BI14: 514.269 | BJ14: 491.678 | BK14: 490.716 | BL14: 501.373 | BM14: 468.621 | BN14: 487.652 | BO14: 455.491 | BP14: 489.665 | BQ14: 476.778 | BR14: 508.936 | BS14: 518.471 | BT14: 503.523 | BU14: 444.176 | BV14: 401.394 | BW14: 256.945 | BX14: -21.166 | BY14: -220.54 | BZ14: 107.456 | CA14: 241.056 | CB14: 170.831 | CC14: 292.585 | CD14: 339.854 | CE14: 296.233 | CF14: 277.833 | CG14: 307.615 | CH14: 322.906 | CI14: 183.095 | CJ14: -453.241 | CK14: -156.304 | CL14: 95.999 | CM14: 76.231 | CN14: 59.269 | CO14: 4.651 | CP14: 60.885 | CQ14: 50.996 | CR14: 161.814 | CS14: 236.864 | CT14: 80.642 | CU14: -158.125 | CV14: 346.725 | CW14: 340.958 | CX14: 425.368 | CY14: 406.65 | CZ14: 363.057 | DA14: 332.615 | DB14: 371.872 | DC14: 400.272 | DD14: 333.633 | DE14: 390.567 | DF14: 370.054 | DG14: 437.443 | DH14: 465.249 | DI14: 508.803 | DJ14: 555.996 | DK14: 543.121 | DL14: 488.057 | DM14: 472.268 | DN14: 650.774 | DO14: 656.895 | DP14: 606.145 | DQ14: 623.685 | DR14: 691.915 | DS14: 622.319 | DT14: 386.833 | DU14: 634.168 | DV14: 796.179 | DW14: 739.324 | DX14: 814.554 | DY14: 640.135 | DZ14: 645.946 | EA14: 672.974 | EB14: 675.542 | EC14: 692.026 | ED14: 770.186 | EE14: 438.452 | EF14: 97.717 | EG14: 185.003 | EH14: 54.243 | EI14: 349.001 | EJ14: 662.186 | EK14: 641.06 | EL14: 661.452 | EM14: 661.052 | EN14: 625.174 | EO14: 384.526 | EP14: 611.26 | EQ14: 618.939 | ER14: 618.594 | ES14: 788.947 | ET14: 869.463 | EU14: 838.566 | EV14: 570.581 | EW14: 408.355 | EX14: 745.132 | EY14: 751.48 | EZ14: 744.518 | FA14: 776.423 | FB14: 939.496 | FC14: 782.782 | FD14: 310.518 | FE14: 295.363 | FF14: 522.827 | FG14: 349.598 | FH14: 626.1 | FI14: 680.785 | FJ14: 639.402 | FK14: 668.717 | FL14: 639.54 | FM14: 522.096 | FN14: 316.255 | FO14: 213.715 | FP14: 299.113 | FQ14: 288.69 | FR14: 414.554 | FS14: 295.214 | FT14: 434.098 | FU14: 425.724 | FV14: 546.237 | FW14: 300.98 | FX14: 490.464 | FY14: 428.031 | FZ14: 499.027 | GA14: 799.54 | GB14: 937.161 | GC14: 708.301 | GD14: 591.107 | GE14: 608.775 | GF14: 806.683 | GG14: 685.499 | GH14: 594.113 | GI14: 556.038 | GJ14: 345.709 | GK14: 311.624 | GL14: 167.734 | GM14: 231.866 | GN14: 459.172 | GO14: 170.806 | GP14: -101.259 | GQ14: 440.598 | GR14: 683.85 | GS14: 514.382 | GT14: 262.645 | GU14: 641.414 | GV14: 635.615 | GW14: 515.375 | GX14: 118.248 | GY14: 68.76 | GZ14: 657.098 | HA14: 477.614 | HB14: 614.276 | HC14: 650.446 | HD14: 504.936 | HE14: 640.516 | HF14: 632.703 | HG14: 693.475 | HH14: 342.806 | HI14: 38.431 | HJ14: -38.621 | HK14: 273.046 | HL14: 521.568 | HM14: 496.004 | HN14: 161.908 | HO14: 21.46 | HP14: 367.036 | HQ14: 104.366 | HR14: 295.412 | HS14: 317.895 | HT14: 168.011 | HU14: 25.673 | HV14: 196.512 | HW14: 213.384 | HX14: -97.99 | HY14: -102.387 | HZ14: 279.122 | IA14: 411.89 | IB14: 571.12 | IC14: 275.911 | ID14: 190.458 | IE14: 153.036 | IF14: 82.536 | IG14: 31.249 | IH14: -26.74 | II14: -177.93 | IJ14: -346.843308 | IK14: -324.693035 | IL14: -349.438695 | IM14: -327.32069 | IN14: -132.504313 | IO14: 16.535171 | IP14: 33.182091 | IQ14: 382.286793 | IR14: 77.772015 | IS14: -153.158008 | IT14: -19.262122 | IU14: -387.476312 | IV14: -225.439028 | IW14: -184.117364 | IX14: -384.7742 | IY14: -154.434296 | IZ14: 141.4733 | JA14: 348.130459 | JB14: 477.234956 | JC14: 602.988222 | JD14: 352.127997 | JE14: 348.391105 | JF14: -99.604465 | JG14: 302.430918 | JH14: 713.900865 | JI14: -305.502841 | JJ14: 335.605783 | JK14: -6.680319 | JL14: 248.429287 | JM14: 476.664411 | JN14: 497.062161 | JO14: 334.550873 | JP14: 69.549923 | JQ14: -273.602417 | JR14: -178.761904 | JS14: -28.42371 | JT14: 94.327974 | JU14: -306.581569 | JV14: -639.792822 | JW14: -463.804167 | JX14: 499.166831 | JY14: 552.558304 | JZ14: 520.526529 | KA14: 672.10976 | KB14: 397.578458 | KC14: 283.840694 | KD14: -275.951404 | KE14: 373.887769 | KF14: -261.705927 | KG14: -635.778231 | KH14: -187.875987 | KI14: -159.585438 | KJ14: 666.697349 | KK14: 666.473736 | KL14: 694.546889 | KM14: 812.686754 | KN14: 757.127562 | KO14: 507.6958 | KP14: 456.427713 | KQ14: 250.785448 | KR14: 620.359854 | KS14: -381.112992 | KT14: 49.525361 | KU14: 409.854889 | KV14: 817.134936 | KW14: 749.847066 | KX14: 669.598056 | KY14: 685.908854 | KZ14: 468.319937 | LA14: 482.355362 | LB14: 1083.804166 | LC14: 1668.616823 | LD14: 385.79508 | LE14: 383.023268 | LF14: 293.099885 | LG14: -380.067601 | LH14: 644.088766 | LI14: 1193.685896 | LJ14: 1308.526689 | LK14: 1392.440317 | LL14: 1220.63518 | LM14: 45.3803 | LN14: 370.162917 | LO14: 944.738024 | LP14: -350.464617 | LQ14: 405.616303 | LR14: 1700.028126 | LS14: 1481.455558 | LT14: 1856.046651 | LU14: 1430.871672 | LV14: 1401.028358 | LW14: 1705.110971 | LX14: 1633.864077 | LY14: 1067.5 | LZ14: - | MA14: -
C15: PORTUGAL | D15: 34.615 | E15: 22.524 | F15: -7.44 | G15: -5.452 | H15: -7.307 | I15: 1.89 | J15: -8.344 | K15: -18.918 | L15: 2.093 | M15: -5.442 | N15: 4.812 | O15: -50.147 | P15: -15.26 | Q15: 35.63 | R15: 16.892 | S15: 14.285 | T15: 24.775 | U15: 30.495 | V15: -68.589 | W15: -22.118 | X15: -102.266 | Y15: -24.707 | Z15: 17.608 | AA15: 1.289 | AB15: -90.264 | AC15: -286.808 | AD15: -274.159 | AE15: 2.334 | AF15: -166.094 | AG15: -143.645 | AH15: -297.282 | AI15: -34.985 | AJ15: -22.379 | AK15: -34.776 | AL15: 1.195 | AM15: 5.72 | AN15: -14.711 | AO15: 0.395 | AP15: -54.082 | AQ15: -114.462 | AR15: -5.196 | AS15: -2.027 | AT15: 1.463 | AU15: 2.101 | AV15: 0.436 | AW15: -0.223 | AX15: 8.632 | AY15: 2.518 | AZ15: 9.1 | BA15: 19.629 | BB15: 1.191 | BC15: 3.498 | BD15: 5.035 | BE15: 1.109 | BF15: -215.897 | BG15: -217.726 | BH15: -163.596 | BI15: -112.968 | BJ15: -105.665 | BK15: -110.577 | BL15: -97.583 | BM15: -82.556 | BN15: -108.527 | BO15: -101.585 | BP15: -109.591 | BQ15: -107.143 | BR15: -102.457 | BS15: -113.12 | BT15: -98.284 | BU15: -1.666 | BV15: -0.747 | BW15: 9.157 | BX15: 24.618 | BY15: 4.64 | BZ15: 0.181 | CA15: -1.376 | CB15: 8.205 | CC15: 4.901 | CD15: 0.522 | CE15: 1.437 | CF15: -207.95 | CG15: -418.322 | CH15: -325.498 | CI15: -202.301 | CJ15: -7.478 | CK15: -36.877 | CL15: -307.947 | CM15: -478.035 | CN15: -493.592 | CO15: -266.153 | CP15: -452.535 | CQ15: -505.325 | CR15: -259.332 | CS15: -76.474 | CT15: -2.152 | CU15: -11.146 | CV15: -6.126 | CW15: 6.388 | CX15: 3.309 | CY15: 0.868 | CZ15: 9.113 | DA15: -7.609 | DB15: -0.052 | DC15: 9.973 | DD15: -166.765 | DE15: -1.048 | DF15: -2.827 | DG15: -117.934 | DH15: -131.118 | DI15: -45.332 | DJ15: 4.437 | DK15: 253.347 | DL15: 348.039 | DM15: 276.743 | DN15: 51.573 | DO15: 47.186 | DP15: -182.945 | DQ15: 25.25 | DR15: 155.585 | DS15: 54.291 | DT15: 46.619 | DU15: 36.423 | DV15: -110.545 | DW15: 26.318 | DX15: 86.518 | DY15: -255.443 | DZ15: -229.361 | EA15: -285.622 | EB15: -166.482 | EC15: -38.69 | ED15: -69.265 | EE15: 28.833 | EF15: 66.03 | EG15: 34.577 | EH15: 19.697 | EI15: 249.779 | EJ15: 37.013 | EK15: -14.665 | EL15: -84.569 | EM15: -228.684 | EN15: -220.671 | EO15: -63.735 | EP15: -46.177 | EQ15: -13.921 | ER15: -33.123 | ES15: -23.877 | ET15: 22.812 | EU15: 39.121 | EV15: -178.757 | EW15: -83.639 | EX15: -96.252 | EY15: -339.386 | EZ15: -231.155 | FA15: -301.709 | FB15: -298.098 | FC15: -374.746 | FD15: -94.579 | FE15: -101.882 | FF15: -114.478 | FG15: -177.652 | FH15: -278.522 | FI15: -173.664 | FJ15: -328.621 | FK15: -424.381 | FL15: -350.585 | FM15: -361.522 | FN15: -201.7 | FO15: -186.117 | FP15: -434.88 | FQ15: -415.137 | FR15: -523.154 | FS15: -721.972 | FT15: -615.199 | FU15: -621.102 | FV15: -664.223 | FW15: -627.609 | FX15: -453.511 | FY15: -542.161 | FZ15: -383.592 | GA15: -416.207 | GB15: -549.585 | GC15: -357.915 | GD15: -473.58 | GE15: -505.063 | GF15: -567.771 | GG15: -475.995 | GH15: -527.521 | GI15: -560.137 | GJ15: -725.848 | GK15: -789.683 | GL15: -724.575 | GM15: -571.338 | GN15: -705.484 | GO15: -568.099 | GP15: -507.47 | GQ15: -279.474 | GR15: -543.426 | GS15: -672.498 | GT15: -533.87 | GU15: -357.645 | GV15: -710.586 | GW15: -537.067 | GX15: -156.831 | GY15: 121.253 | GZ15: -249.98 | HA15: -440.948 | HB15: -499.693 | HC15: -602.891 | HD15: -605.112 | HE15: -508.821 | HF15: -602.027 | HG15: -712.324 | HH15: -843.985 | HI15: -887.5 | HJ15: -760.861 | HK15: -782.438 | HL15: -713.966 | HM15: -776.942 | HN15: -1042.039 | HO15: -899.561 | HP15: -773.592 | HQ15: -784.538 | HR15: -729.904 | HS15: -607.156 | HT15: -641.174 | HU15: -770.456 | HV15: -878.151 | HW15: -821.421 | HX15: -594.398 | HY15: -136.863 | HZ15: -263.069 | IA15: -595.013 | IB15: -537.462 | IC15: -599.625 | ID15: -598.688 | IE15: -381.112 | IF15: -304.016 | IG15: -430.957 | IH15: -452.948 | II15: 105.328 | IJ15: 262.761502 | IK15: -82.452278 | IL15: -31.453171 | IM15: -47.281042 | IN15: -64.063366 | IO15: -414.961692 | IP15: -586.458278 | IQ15: -628.7292 | IR15: -530.187777 | IS15: -631.118549 | IT15: -238.861502 | IU15: 358.517888 | IV15: -51.775017 | IW15: 155.985855 | IX15: -13.291509 | IY15: -500.734211 | IZ15: 46.38775 | JA15: -331.097426 | JB15: -437.775566 | JC15: -278.651803 | JD15: -445.931875 | JE15: -341.437476 | JF15: -188.158278 | JG15: -427.559012 | JH15: -860.538361 | JI15: -700.10336 | JJ15: -795.437793 | JK15: -799.953613 | JL15: -747.238268 | JM15: -682.528003 | JN15: -656.390897 | JO15: -456.893092 | JP15: -617.713457 | JQ15: -821.000076 | JR15: -164.331067 | JS15: -594.883066 | JT15: 45.758805 | JU15: 98.703161 | JV15: 618.847894 | JW15: 525.309666 | JX15: -149.864244 | JY15: -439.300004 | JZ15: -1091.61038 | KA15: -657.766172 | KB15: -708.835406 | KC15: -530.043705 | KD15: -170.712675 | KE15: -317.139747 | KF15: 771.469356 | KG15: 665.405677 | KH15: 495.807894 | KI15: -21.349308 | KJ15: -385.446782 | KK15: -444.085009 | KL15: -705.541867 | KM15: -517.270444 | KN15: -504.969792 | KO15: -408.815471 | KP15: 256.638804 | KQ15: -104.538745 | KR15: -498.959101 | KS15: 214.136286 | KT15: -3.40327 | KU15: -257.620605 | KV15: -120.822526 | KW15: -395.786831 | KX15: -385.143866 | KY15: -384.207515 | KZ15: -241.202949 | LA15: 342.37108 | LB15: -188.114773 | LC15: -347.658413 | LD15: 902.905865 | LE15: 1020.851455 | LF15: 357.287916 | LG15: 751.051999 | LH15: 636.914149 | LI15: 400.984536 | LJ15: 112.810943 | LK15: 237.805377 | LL15: 192.901162 | LM15: -30.662158 | LN15: 282.963968 | LO15: 220.27819 | LP15: 249.842559 | LQ15: 640.195104 | LR15: 307.55648 | LS15: 109.483156 | LT15: 172.514599 | LU15: 242.767541 | LV15: 468.383628 | LW15: 749.474531 | LX15: 252.316165 | LY15: -344.8088 | LZ15: - | MA15: -
C16: MARRUECOS | D16: 0 | E16: 0 | F16: 0 | G16: 0 | H16: 0 | I16: 0 | J16: 0 | K16: 0 | L16: 0 | M16: 0 | N16: 0 | O16: 0 | P16: 0 | Q16: 0 | R16: 0 | S16: 0 | T16: 0 | U16: 0 | V16: 0 | W16: 0 | X16: 0 | Y16: 0 | Z16: 0 | AA16: 0 | AB16: 0 | AC16: 0 | AD16: 0 | AE16: 0 | AF16: 0 | AG16: 0 | AH16: 0 | AI16: 0 | AJ16: 0 | AK16: 0 | AL16: 0 | AM16: 0 | AN16: 0 | AO16: 0 | AP16: 0 | AQ16: 0 | AR16: 0 | AS16: 0 | AT16: 0 | AU16: 0 | AV16: 0 | AW16: 0 | AX16: 0 | AY16: 0 | AZ16: 0 | BA16: 0 | BB16: 0 | BC16: 0 | BD16: 0 | BE16: 0 | BF16: 0 | BG16: 0 | BH16: 0 | BI16: 0 | BJ16: 0 | BK16: 0 | BL16: 0 | BM16: 0 | BN16: 0 | BO16: 0 | BP16: 0 | BQ16: 0 | BR16: 0 | BS16: 0 | BT16: 0 | BU16: 0 | BV16: 0 | BW16: 0 | BX16: 0 | BY16: 0 | BZ16: 0 | CA16: 0 | CB16: 0 | CC16: 0 | CD16: 0 | CE16: 0 | CF16: 0 | CG16: 0 | CH16: 0 | CI16: 0 | CJ16: 0 | CK16: 0 | CL16: 0 | CM16: 0 | CN16: 0 | CO16: 0 | CP16: 0 | CQ16: -0.657 | CR16: 0 | CS16: -125.977 | CT16: -4.009 | CU16: 0 | CV16: 0 | CW16: 0 | CX16: 0 | CY16: 0 | CZ16: -14.435 | DA16: -75.96 | DB16: -67.055 | DC16: -64.812 | DD16: -171.778 | DE16: -164.818 | DF16: -80.717 | DG16: -66.007 | DH16: -67.33 | DI16: -60.401 | DJ16: -65.195 | DK16: -64.669 | DL16: -204.428 | DM16: -175.711 | DN16: -186.43 | DO16: -199.241 | DP16: -211.6 | DQ16: -186.423 | DR16: -191.978 | DS16: -197.319 | DT16: -195.543 | DU16: -218.556 | DV16: -227.923 | DW16: -218.846 | DX16: -215.087 | DY16: -202.187 | DZ16: -153.747 | EA16: -163.183 | EB16: -163.81 | EC16: -184.547 | ED16: -154.477 | EE16: -165.162 | EF16: -160.131 | EG16: -158.111 | EH16: -132.048 | EI16: -132.379 | EJ16: -120.435 | EK16: -121.891 | EL16: -145.846 | EM16: -150.163 | EN16: -114.337 | EO16: -150.496 | EP16: -126.724 | EQ16: -67.408 | ER16: -5.467 | ES16: -75.276 | ET16: -135.007 | EU16: -146.586 | EV16: -132.742 | EW16: -132.01 | EX16: -71.192 | EY16: -164.55 | EZ16: -82.814 | FA16: -140.704 | FB16: -112.784 | FC16: -115.877 | FD16: -148.188 | FE16: -100.478 | FF16: -127.42 | FG16: -184.335 | FH16: -211.592 | FI16: -97.776 | FJ16: -72.99 | FK16: -96.174 | FL16: -123.62 | FM16: -80.677 | FN16: -112.366 | FO16: -101.718 | FP16: -134.616 | FQ16: -126.898 | FR16: -85.374 | FS16: -165.202 | FT16: -122.431 | FU16: -121.021 | FV16: -123.285 | FW16: -115.487 | FX16: -78.635 | FY16: -192.057 | FZ16: -136.272 | GA16: -145.173 | GB16: -51.703 | GC16: -16.128 | GD16: -32.442 | GE16: -24.255 | GF16: -55.115 | GG16: -21.274 | GH16: -29.594 | GI16: -158.581 | GJ16: -111.119 | GK16: -149.5 | GL16: -99.885 | GM16: -38.345 | GN16: -77.509 | GO16: -153.614 | GP16: -155.086 | GQ16: -112.253 | GR16: -121.201 | GS16: -103.747 | GT16: -99.718 | GU16: -208.842 | GV16: -214.821 | GW16: -201.461 | GX16: -228.297 | GY16: -325.273 | GZ16: -272.473 | HA16: -246.463 | HB16: -327.335 | HC16: -288.453 | HD16: -380.28 | HE16: -335.396 | HF16: -318.116 | HG16: -284.487 | HH16: -345.395 | HI16: -262.927 | HJ16: -228.179 | HK16: -189.742 | HL16: -235.172 | HM16: -347.347 | HN16: -292.101 | HO16: -384.774 | HP16: -336.655 | HQ16: -354.15 | HR16: -471.543 | HS16: -490.904 | HT16: -451.299 | HU16: -333.118 | HV16: -233.84 | HW16: -280.673 | HX16: -163.627 | HY16: -203.917 | HZ16: -179.827 | IA16: -329.932 | IB16: -467.293 | IC16: -443.695 | ID16: -535.09 | IE16: -550.512 | IF16: -458.49 | IG16: -527.979 | IH16: -385.563 | II16: -342.548 | IJ16: -192.8141 | IK16: -68.7296 | IL16: -148.7351 | IM16: -345.5712 | IN16: -337.47857 | IO16: -402.2854 | IP16: -437.7633 | IQ16: -486.1022 | IR16: -491.4101 | IS16: -497.5306 | IT16: -299.3765 | IU16: -195.1804 | IV16: -292.901 | IW16: -283.05127 | IX16: -318.4116 | IY16: -411.0265 | IZ16: -408.6142 | JA16: -405.264 | JB16: -499.4798 | JC16: -521.4359 | JD16: -434.08508 | JE16: -359.33368 | JF16: -261.5981 | JG16: -299.5815 | JH16: -337.8202 | JI16: -330.7231 | JJ16: -384.8513 | JK16: -385.8486 | JL16: -429.8049 | JM16: -409.6282 | JN16: -470.1319 | JO16: -509.0345 | JP16: -482.00492 | JQ16: -327.53865 | JR16: -411.8413 | JS16: -420.2898 | JT16: -475.3722 | JU16: -404.1415 | JV16: -379.1167 | JW16: -446.4812 | JX16: -463.5558 | JY16: -460.3017 | JZ16: -487.256 | KA16: -499.10868 | KB16: -478.5925 | KC16: -400.3716 | KD16: -431.0446 | KE16: -450.6056 | KF16: -454.5907 | KG16: -488.8283 | KH16: -498.5507 | KI16: -461.9479 | KJ16: -527.0305 | KK16: -494.1305 | KL16: -459.11803 | KM16: -516.0481 | KN16: -580.1312 | KO16: -390.16314 | KP16: -487.0316 | KQ16: -478.8484 | KR16: -352.1268 | KS16: -364.6643 | KT16: -406.4705 | KU16: -440.8014 | KV16: -514.5003 | KW16: -349.3499 | KX16: -468.6296 | KY16: -521.2332 | KZ16: -368.9954 | LA16: -348.55729 | LB16: -411.6266 | LC16: -379.9542 | LD16: -415.1235 | LE16: -419.7169 | LF16: -437.1698 | LG16: -467.659 | LH16: -508.9879 | LI16: -504.7319 | LJ16: -490.9797 | LK16: -557.9593 | LL16: -256.29708 | LM16: -416.35996 | LN16: -261.5482 | LO16: -205.4749 | LP16: -399.7016 | LQ16: -479.808 | LR16: -532.831 | LS16: -537.4086 | LT16: -569.3785 | LU16: -533.0015 | LV16: -595.551 | LW16: -590.0863 | LX16: -483.1487 | LY16: -418.1858 | LZ16: - | MA16: -
C17: Total | D17: -269.297 | E17: 16.551 | F17: -11.987 | G17: -20.997 | H17: 159.398 | I17: 0.442 | J17: -28.161 | K17: -32.036 | L17: 14.863 | M17: -21.733 | N17: -139.47 | O17: -87.152 | P17: -24.533 | Q17: 22.889 | R17: -122.07 | S17: -226.919 | T17: -191.566 | U17: -45.839 | V17: -92.112 | W17: 27.849 | X17: -99.836 | Y17: -14.272 | Z17: 56.174 | AA17: 33.649 | AB17: -96.052 | AC17: -312.209 | AD17: -213.216 | AE17: 188.663 | AF17: 271.98 | AG17: 371.259 | AH17: 87.992 | AI17: 216.896 | AJ17: 131.307 | AK17: -16.239 | AL17: 8.023 | AM17: 2.72 | AN17: 95.905 | AO17: 222.438 | AP17: 184.267 | AQ17: 48.24 | AR17: 224.115 | AS17: 217.795 | AT17: 282.58 | AU17: 18.098 | AV17: -4.785 | AW17: -0.854 | AX17: -0.365 | AY17: -20.362 | AZ17: -20.455 | BA17: 19.067 | BB17: 44.103 | BC17: 42.116 | BD17: 71.338 | BE17: 56.383 | BF17: 128.051 | BG17: 134.206 | BH17: 271.501 | BI17: 383.184 | BJ17: 371.482 | BK17: 354.129 | BL17: 382.278 | BM17: 376.395 | BN17: 379.125 | BO17: 353.886 | BP17: 378.616 | BQ17: 369.635 | BR17: 406.479 | BS17: 389.687 | BT17: 389.569 | BU17: 434.896 | BV17: 380.024 | BW17: 248.455 | BX17: -23.15 | BY17: -228.839 | BZ17: 95.809 | CA17: 234.45 | CB17: 175.223 | CC17: 297.359 | CD17: 337.605 | CE17: 288.542 | CF17: 53.531 | CG17: -123.297 | CH17: -16.169 | CI17: -31.698 | CJ17: -483.959 | CK17: -204.565 | CL17: -220.011 | CM17: -410.142 | CN17: -439.194 | CO17: -268.21 | CP17: -397.761 | CQ17: -455.005 | CR17: -103.389 | CS17: 13.219 | CT17: 65.416 | CU17: -169.271 | CV17: 339.841 | CW17: 345.961 | CX17: 404.92 | CY17: 388.819 | CZ17: 355.114 | DA17: 244.862 | DB17: 284.57 | DC17: 320.095 | DD17: -25.49 | DE17: 206.148 | DF17: 283.522 | DG17: 253.502 | DH17: 244.117 | DI17: 366.794 | DJ17: 462.856 | DK17: 712.678 | DL17: 628.458 | DM17: 570.858 | DN17: 515.622 | DO17: 504.84 | DP17: 210.995 | DQ17: 438.75 | DR17: 625.315 | DS17: 437.962 | DT17: 196.386 | DU17: 415.9 | DV17: 422.249 | DW17: 519.17 | DX17: 683.538 | DY17: 173.875 | DZ17: 258.827 | EA17: 208.528 | EB17: 340.728 | EC17: 443.806 | ED17: 516.198 | EE17: 261.39 | EF17: -38.209 | EG17: 21.673 | EH17: -83.964 | EI17: 447.062 | EJ17: 578.603 | EK17: 504.504 | EL17: 431.037 | EM17: 282.045 | EN17: 283.086 | EO17: 139.702 | EP17: 402.852 | EQ17: 489.569 | ER17: 532.016 | ES17: 648.786 | ET17: 721.604 | EU17: 705.349 | EV17: 259.038 | EW17: 187.01 | EX17: 575.936 | EY17: 236.118 | EZ17: 428.063 | FA17: 298.139 | FB17: 490.714 | FC17: 245.995 | FD17: 26.416 | FE17: 50.988 | FF17: 247.018 | FG17: -36.927 | FH17: 134.057 | FI17: 409.345 | FJ17: 237.348 | FK17: 123.487 | FL17: 160.179 | FM17: 55.116 | FN17: -24.058 | FO17: -119.067 | FP17: -318.326 | FQ17: -299.789 | FR17: -234.033 | FS17: -621.219 | FT17: -303.663 | FU17: -321.337 | FV17: -241.459 | FW17: -454.689 | FX17: -53.954 | FY17: -330.989 | FZ17: -45.66 | GA17: 198.098 | GB17: 295.548 | GC17: 299.657 | GD17: 51.225 | GE17: 68.784 | GF17: 176.044 | GG17: 176.289 | GH17: 31.582 | GI17: -174.637 | GJ17: -495.366 | GK17: -662.586 | GL17: -689.606 | GM17: -420.319 | GN17: -365.171 | GO17: -583.777 | GP17: -799.06 | GQ17: 41.881 | GR17: 18.83 | GS17: -262.112 | GT17: -377.878 | GU17: 63.245 | GV17: -310.533 | GW17: -236.934 | GX17: -285.295 | GY17: -175.707 | GZ17: 94.56 | HA17: -235.495 | HB17: -243.364 | HC17: -261.052 | HD17: -494.792 | HE17: -223.461 | HF17: -289.777 | HG17: -314.014 | HH17: -846.574 | HI17: -1153.775 | HJ17: -1052.932 | HK17: -729.799 | HL17: -456.802 | HM17: -655.584 | HN17: -1199.348 | HO17: -1291.616 | HP17: -761.274 | HQ17: -1052.343 | HR17: -907.812 | HS17: -796.073 | HT17: -935.811 | HU17: -1102.016 | HV17: -948.447 | HW17: -932.455 | HX17: -897.628 | HY17: -474.276 | HZ17: -192.949 | IA17: -548.935 | IB17: -437.376 | IC17: -769.16 | ID17: -944.909 | IE17: -817.415 | IF17: -711.168 | IG17: -941.364 | IH17: -897.21 | II17: -454.016 | IJ17: -304.713446 | IK17: -506.196753 | IL17: -560.114046 | IM17: -729.095102 | IN17: -542.815029 | IO17: -821.225751 | IP17: -1000.653567 | IQ17: -758.601057 | IR17: -964.255452 | IS17: -1295.509887 | IT17: -593.210574 | IU17: -256.288394 | IV17: -611.335805 | IW17: -358.842359 | IX17: -762.636009 | IY17: -1074.811317 | IZ17: -233.6238 | JA17: -404.767187 | JB17: -470.93457 | JC17: -197.100881 | JD17: -548.756858 | JE17: -381.584261 | JF17: -579.516633 | JG17: -466.216654 | JH17: -525.290936 | JI17: -1375.793221 | JJ17: -869.96907 | JK17: -1211.919782 | JL17: -939.840381 | JM17: -625.329352 | JN17: -629.525456 | JO17: -646.209749 | JP17: -1047.302604 | JQ17: -1457.208903 | JR17: -791.406931 | JS17: -1080.157206 | JT17: -364.452211 | JU17: -642.393978 | JV17: -430.417258 | JW17: -411.182201 | JX17: -132.055593 | JY17: -358.69515 | JZ17: -1060.431631 | KA17: -517.674522 | KB17: -821.873088 | KC17: -679.119191 | KD17: -892.911319 | KE17: -420.926308 | KF17: 28.099829 | KG17: -490.540624 | KH17: -225.946703 | KI17: -652.232276 | KJ17: -256.411483 | KK17: -285.581113 | KL17: -481.720248 | KM17: -236.69277 | KN17: -336.25484 | KO17: -303.549761 | KP17: 195.372657 | KQ17: -360.667597 | KR17: -259.102957 | KS17: -558.855046 | KT17: -396.756779 | KU17: -295.550736 | KV17: 180.77279 | KW17: 0.889155 | KX17: -184.17543 | KY17: -251.793361 | KZ17: -169.941732 | LA17: 436.527932 | LB17: 453.107913 | LC17: 911.71716 | LD17: 847.590265 | LE17: 960.575773 | LF17: 174.926621 | LG17: -106.684112 | LH17: 762.502365 | LI17: 1083.269212 | LJ17: 917.731142 | LK17: 1034.656114 | LL17: 1130.590642 | LM17: -433.777858 | LN17: 357.211215 | LO17: 938.722174 | LP17: -531.549298 | LQ17: 541.133687 | LR17: 1457.080766 | LS17: 1040.959484 | LT17: 1444.9856 | LU17: 1128.858883 | LV17: 1273.443396 | LW17: 1827.910942 | LX17: 1393.308422 | LY17: 273.0414 | LZ17: - | MA17: -
B19: Entradas internacionales físicas mensuales por líneas (GWh) | C19: Líneas | D19: 1990-01-01 | E19: 1990-02-01 | F19: 1990-03-01 | G19: 1990-04-01 | H19: 1990-05-01 | I19: 1990-06-01 | J19: 1990-07-01 | K19: 1990-08-01 | L19: 1990-09-01 | M19: 1990-10-01 | N19: 1990-11-01 | O19: 1990-12-01 | P19: 1991-01-01 | Q19: 1991-02-01 | R19: 1991-03-01 | S19: 1991-04-01 | T19: 1991-05-01 | U19: 1991-06-01 | V19: 1991-07-01 | W19: 1991-08-01 | X19: 1991-09-01 | Y19: 1991-10-01 | Z19: 1991-11-01 | AA19: 1991-12-01 | AB19: 1992-01-01 | AC19: 1992-02-01 | AD19: 1992-03-01 | AE19: 1992-04-01 | AF19: 1992-05-01 | AG19: 1992-06-01 | AH19: 1992-07-01 | AI19: 1992-08-01 | AJ19: 1992-09-01 | AK19: 1992-10-01 | AL19: 1992-11-01 | AM19: 1992-12-01 | AN19: 1993-01-01 | AO19: 1993-02-01 | AP19: 1993-03-01 | AQ19: 1993-04-01 | AR19: 1993-05-01 | AS19: 1993-06-01 | AT19: 1993-07-01 | AU19: 1993-08-01 | AV19: 1993-09-01 | AW19: 1993-10-01 | AX19: 1993-11-01 | AY19: 1993-12-01 | AZ19: 1994-01-01 | BA19: 1994-02-01 | BB19: 1994-03-01 | BC19: 1994-04-01 | BD19: 1994-05-01 | BE19: 1994-06-01 | BF19: 1994-07-01 | BG19: 1994-08-01 | BH19: 1994-09-01 | BI19: 1994-10-01 | BJ19: 1994-11-01 | BK19: 1994-12-01 | BL19: 1995-01-01 | BM19: 1995-02-01 | BN19: 1995-03-01 | BO19: 1995-04-01 | BP19: 1995-05-01 | BQ19: 1995-06-01 | BR19: 1995-07-01 | BS19: 1995-08-01 | BT19: 1995-09-01 | BU19: 1995-10-01 | BV19: 1995-11-01 | BW19: 1995-12-01 | BX19: 1996-01-01 | BY19: 1996-02-01 | BZ19: 1996-03-01 | CA19: 1996-04-01 | CB19: 1996-05-01 | CC19: 1996-06-01 | CD19: 1996-07-01 | CE19: 1996-08-01 | CF19: 1996-09-01 | CG19: 1996-10-01 | CH19: 1996-11-01 | CI19: 1996-12-01 | CJ19: 1997-01-01 | CK19: 1997-02-01 | CL19: 1997-03-01 | CM19: 1997-04-01 | CN19: 1997-05-01 | CO19: 1997-06-01 | CP19: 1997-07-01 | CQ19: 1997-08-01 | CR19: 1997-09-01 | CS19: 1997-10-01 | CT19: 1997-11-01 | CU19: 1997-12-01 | CV19: 1998-01-01 | CW19: 1998-02-01 | CX19: 1998-03-01 | CY19: 1998-04-01 | CZ19: 1998-05-01 | DA19: 1998-06-01 | DB19: 1998-07-01 | DC19: 1998-08-01 | DD19: 1998-09-01 | DE19: 1998-10-01 | DF19: 1998-11-01 | DG19: 1998-12-01 | DH19: 1999-01-01 | DI19: 1999-02-01 | DJ19: 1999-03-01 | DK19: 1999-04-01 | DL19: 1999-05-01 | DM19: 1999-06-01 | DN19: 1999-07-01 | DO19: 1999-08-01 | DP19: 1999-09-01 | DQ19: 1999-10-01 | DR19: 1999-11-01 | DS19: 1999-12-01 | DT19: 2000-01-01 | DU19: 2000-02-01 | DV19: 2000-03-01 | DW19: 2000-04-01 | DX19: 2000-05-01 | DY19: 2000-06-01 | DZ19: 2000-07-01 | EA19: 2000-08-01 | EB19: 2000-09-01 | EC19: 2000-10-01 | ED19: 2000-11-01 | EE19: 2000-12-01 | EF19: 2001-01-01 | EG19: 2001-02-01 | EH19: 2001-03-01 | EI19: 2001-04-01 | EJ19: 2001-05-01 | EK19: 2001-06-01 | EL19: 2001-07-01 | EM19: 2001-08-01 | EN19: 2001-09-01 | EO19: 2001-10-01 | EP19: 2001-11-01 | EQ19: 2001-12-01 | ER19: 2002-01-01 | ES19: 2002-02-01 | ET19: 2002-03-01 | EU19: 2002-04-01 | EV19: 2002-05-01 | EW19: 2002-06-01 | EX19: 2002-07-01 | EY19: 2002-08-01 | EZ19: 2002-09-01 | FA19: 2002-10-01 | FB19: 2002-11-01 | FC19: 2002-12-01 | FD19: 2003-01-01 | FE19: 2003-02-01 | FF19: 2003-03-01 | FG19: 2003-04-01 | FH19: 2003-05-01 | FI19: 2003-06-01 | FJ19: 2003-07-01 | FK19: 2003-08-01 | FL19: 2003-09-01 | FM19: 2003-10-01 | FN19: 2003-11-01 | FO19: 2003-12-01 | FP19: 2004-01-01 | FQ19: 2004-02-01 | FR19: 2004-03-01 | FS19: 2004-04-01 | FT19: 2004-05-01 | FU19: 2004-06-01 | FV19: 2004-07-01 | FW19: 2004-08-01 | FX19: 2004-09-01 | FY19: 2004-10-01 | FZ19: 2004-11-01 | GA19: 2004-12-01 | GB19: 2005-01-01 | GC19: 2005-02-01 | GD19: 2005-03-01 | GE19: 2005-04-01 | GF19: 2005-05-01 | GG19: 2005-06-01 | GH19: 2005-07-01 | GI19: 2005-08-01 | GJ19: 2005-09-01 | GK19: 2005-10-01 | GL19: 2005-11-01 | GM19: 2005-12-01 | GN19: 2006-01-01 | GO19: 2006-02-01 | GP19: 2006-03-01 | GQ19: 2006-04-01 | GR19: 2006-05-01 | GS19: 2006-06-01 | GT19: 2006-07-01 | GU19: 2006-08-01 | GV19: 2006-09-01 | GW19: 2006-10-01 | GX19: 2006-11-01 | GY19: 2006-12-01 | GZ19: 2007-01-01 | HA19: 2007-02-01 | HB19: 2007-03-01 | HC19: 2007-04-01 | HD19: 2007-05-01 | HE19: 2007-06-01 | HF19: 2007-07-01 | HG19: 2007-08-01 | HH19: 2007-09-01 | HI19: 2007-10-01 | HJ19: 2007-11-01 | HK19: 2007-12-01 | HL19: 2008-01-01 | HM19: 2008-02-01 | HN19: 2008-03-01 | HO19: 2008-04-01 | HP19: 2008-05-01 | HQ19: 2008-06-01 | HR19: 2008-07-01 | HS19: 2008-08-01 | HT19: 2008-09-01 | HU19: 2008-10-01 | HV19: 2008-11-01 | HW19: 2008-12-01 | HX19: 2009-01-01 | HY19: 2009-02-01 | HZ19: 2009-03-01 | IA19: 2009-04-01 | IB19: 2009-05-01 | IC19: 2009-06-01 | ID19: 2009-07-01 | IE19: 2009-08-01 | IF19: 2009-09-01 | IG19: 2009-10-01 | IH19: 2009-11-01 | II19: 2009-12-01 | IJ19: 2010-01-01 | IK19: 2010-02-01 | IL19: 2010-03-01 | IM19: 2010-04-01 | IN19: 2010-05-01 | IO19: 2010-06-01 | IP19: 2010-07-01 | IQ19: 2010-08-01 | IR19: 2010-09-01 | IS19: 2010-10-01 | IT19: 2010-11-01 | IU19: 2010-12-01 | IV19: 2011-01-01 | IW19: 2011-02-01 | IX19: 2011-03-01 | IY19: 2011-04-01 | IZ19: 2011-05-01 | JA19: 2011-06-01 | JB19: 2011-07-01 | JC19: 2011-08-01 | JD19: 2011-09-01 | JE19: 2011-10-01 | JF19: 2011-11-01 | JG19: 2011-12-01 | JH19: 2012-01-01 | JI19: 2012-02-01 | JJ19: 2012-03-01 | JK19: 2012-04-01 | JL19: 2012-05-01 | JM19: 2012-06-01 | JN19: 2012-07-01 | JO19: 2012-08-01 | JP19: 2012-09-01 | JQ19: 2012-10-01 | JR19: 2012-11-01 | JS19: 2012-12-01 | JT19: 2013-01-01 | JU19: 2013-02-01 | JV19: 2013-03-01 | JW19: 2013-04-01 | JX19: 2013-05-01 | JY19: 2013-06-01 | JZ19: 2013-07-01 | KA19: 2013-08-01 | KB19: 2013-09-01 | KC19: 2013-10-01 | KD19: 2013-11-01 | KE19: 2013-12-01 | KF19: 2014-01-01 | KG19: 2014-02-01 | KH19: 2014-03-01 | KI19: 2014-04-01 | KJ19: 2014-05-01 | KK19: 2014-06-01 | KL19: 2014-07-01 | KM19: 2014-08-01 | KN19: 2014-09-01 | KO19: 2014-10-01 | KP19: 2014-11-01 | KQ19: 2014-12-01 | KR19: 2015-01-01 | KS19: 2015-02-01 | KT19: 2015-03-01 | KU19: 2015-04-01 | KV19: 2015-05-01 | KW19: 2015-06-01 | KX19: 2015-07-01 | KY19: 2015-08-01 | KZ19: 2015-09-01 | LA19: 2015-10-01 | LB19: 2015-11-01 | LC19: 2015-12-01 | LD19: 2016-01-01 | LE19: 2016-02-01 | LF19: 2016-03-01 | LG19: 2016-04-01 | LH19: 2016-05-01 | LI19: 2016-06-01 | LJ19: 2016-07-01 | LK19: 2016-08-01 | LL19: 2016-09-01 | LM19: 2016-10-01 | LN19: 2016-11-01 | LO19: 2016-12-01 | LP19: 2017-01-01 | LQ19: 2017-02-01 | LR19: 2017-03-01 | LS19: 2017-04-01 | LT19: 2017-05-01 | LU19: 2017-06-01 | LV19: 2017-07-01 | LW19: 2017-08-01 | LX19: 2017-09-01 | LY19: 2017-10-01 | LZ19: 2017-11-01 | MA19: 2017-12-01
B20: Andorra | C20: Adrall-Margineda | D20: 0 | E20: 0 | F20: 0 | G20: 0 | H20: 0 | I20: 0.256 | J20: 0 | K20: 0 | L20: 0 | M20: 0 | N20: 0 | O20: 0 | P20: 0 | Q20: 0 | R20: 0.014 | S20: 0 | T20: 0 | U20: 0.001 | V20: 0.002 | W20: 0 | X20: 0 | Y20: 0 | Z20: 0 | AA20: 0 | AB20: 0 | AC20: 0 | AD20: 0 | AE20: 0 | AF20: 0 | AG20: 0 | AH20: 0 | AI20: 0.003 | AJ20: 0.01 | AK20: 0 | AL20: 0.004 | AM20: 0 | AN20: 0 | AO20: 0 | AP20: 0 | AQ20: 0 | AR20: 0.006 | AS20: 0.008 | AT20: 0.001 | AU20: 0 | AV20: 0 | AW20: 0 | AX20: 0 | AY20: 0 | AZ20: 0 | BA20: 0 | BB20: 0.002 | BC20: 0 | BD20: 0 | BE20: 0 | BF20: 0 | BG20: 0 | BH20: 0 | BI20: 0 | BJ20: 0 | BK20: 0 | BL20: 0 | BM20: 0 | BN20: 0 | BO20: 0 | BP20: 0.001 | BQ20: 0 | BR20: 0 | BS20: 0 | BT20: 0 | BU20: 0 | BV20: 0 | BW20: 0 | BX20: 0 | BY20: 0 | BZ20: 0 | CA20: 0 | CB20: 0 | CC20: 0 | CD20: 0 | CE20: 0 | CF20: 0 | CG20: 0 | CH20: 0 | CI20: 0 | CJ20: 0 | CK20: 0 | CL20: 0 | CM20: 0.012 | CN20: 0.024 | CO20: 0.02 | CP20: 0.002 | CQ20: 0 | CR20: 0 | CS20: 0 | CT20: 0 | CU20: 0 | CV20: 0 | CW20: 0 | CX20: 0.003 | CY20: 0 | CZ20: 0.001 | DA20: 0.001 | DB20: 0.001 | DC20: 0 | DD20: 0 | DE20: 0 | DF20: 0 | DG20: 0 | DH20: 7.784 | DI20: 0 | DJ20: 0 | DK20: 0 | DL20: 0 | DM20: 0 | DN20: 0 | DO20: 0 | DP20: 0 | DQ20: 0 | DR20: 0 | DS20: 0 | DT20: 0 | DU20: 0 | DV20: 0 | DW20: 0 | DX20: 0 | DY20: 0 | DZ20: 0 | EA20: 0 | EB20: 0 | EC20: 0 | ED20: 0 | EE20: 0 | EF20: 0 | EG20: 0 | EH20: 0 | EI20: 0 | EJ20: 0 | EK20: 0 | EL20: 0 | EM20: 0 | EN20: 0 | EO20: 0 | EP20: 0 | EQ20: 0 | ER20: 0 | ES20: 0 | ET20: 0 | EU20: 0 | EV20: 0 | EW20: 0 | EX20: 0 | EY20: 0 | EZ20: 0 | FA20: 0 | FB20: 0 | FC20: 0 | FD20: 0 | FE20: 0 | FF20: 0 | FG20: 0 | FH20: 0 | FI20: 0 | FJ20: 0 | FK20: 0 | FL20: 0 | FM20: 0 | FN20: 0 | FO20: 0 | FP20: 0 | FQ20: 0.000587 | FR20: 0 | FS20: 0 | FT20: 3e-06 | FU20: 0.002312 | FV20: 2.9e-05 | FW20: 0 | FX20: 0.000353 | FY20: 0.000173 | FZ20: 0 | GA20: 0 | GB20: 4e-06 | GC20: 0 | GD20: 0 | GE20: 0.000685 | GF20: 0.001638 | GG20: 0.002672 | GH20: 0.00018 | GI20: 9.2e-05 | GJ20: 0.000681 | GK20: 0.000634 | GL20: 0.007386 | GM20: 0.0001 | GN20: 0 | GO20: 0 | GP20: 0.000215 | GQ20: 0 | GR20: 0.000205 | GS20: 0.00013 | GT20: 0.00041 | GU20: 0 | GV20: 0.0019 | GW20: 0.00103 | GX20: 0 | GY20: 0 | GZ20: 4e-05 | HA20: 0 | HB20: 2e-05 | HC20: 2e-05 | HD20: 0.00018 | HE20: 0.00074 | HF20: 0.26547 | HG20: 0.00144 | HH20: 0 | HI20: 0 | HJ20: 3e-05 | HK20: 0 | HL20: 0 | HM20: 0 | HN20: 0.00014 | HO20: 0 | HP20: 1e-05 | HQ20: 0.00027 | HR20: 0 | HS20: 0.0003 | HT20: 0 | HU20: 0 | HV20: 0 | HW20: 0 | HX20: 0 | HY20: 0 | HZ20: 0.0002 | IA20: 0 | IB20: 0 | IC20: 0.00065 | ID20: 4e-05 | IE20: 0 | IF20: 5e-05 | IG20: 0 | IH20: 0 | II20: 0.00772 | IJ20: 0 | IK20: 0 | IL20: 0 | IM20: 0 | IN20: 0.00034 | IO20: 3e-05 | IP20: 0 | IQ20: 0 | IR20: 0 | IS20: 0 | IT20: 0 | IU20: 0 | IV20: 0 | IW20: 0 | IX20: 0 | IY20: 0 | IZ20: 0 | JA20: 0.00016 | JB20: 7e-05 | JC20: 0.00011 | JD20: 0.00022 | JE20: 0 | JF20: 0 | JG20: 0 | JH20: 0.0004 | JI20: 8e-05 | JJ20: 4e-05 | JK20: 0.00034 | JL20: 0.00026 | JM20: 0.00036 | JN20: 0 | JO20: 0 | JP20: 2e-05 | JQ20: 0 | JR20: 0 | JS20: 8e-05 | JT20: 0 | JU20: 0 | JV20: 0 | JW20: 0 | JX20: 0.00065 | JY20: 0 | JZ20: 0.00034 | KA20: 0 | KB20: 0 | KC20: 0.00011 | KD20: 0 | KE20: 0 | KF20: 0 | KG20: 0 | KH20: 0 | KI20: 0.00041 | KJ20: 0.00084 | KK20: 0.00066 | KL20: 0.00124 | KM20: 0.00106 | KN20: 0.0007 | KO20: 0.00055 | KP20: 0.00014 | KQ20: 0 | KR20: 0 | KS20: 0 | KT20: 0 | KU20: 0.00047 | KV20: 0.00132 | KW20: 0.00061 | KX20: 0 | KY20: 0.0005 | KZ20: 0.00026 | LA20: 0.00035 | LB20: 0.00087 | LC20: 0.00185 | LD20: 0 | LE20: 0 | LF20: 0 | LG20: 0 | LH20: 0.00016 | LI20: 0.00072 | LJ20: 0.00017 | LK20: 0.00047 | LL20: 0.00143 | LM20: 0.0009 | LN20: 0.00013 | LO20: 0 | LP20: 0 | LQ20: 0 | LR20: 0.00649 | LS20: 0.00133 | LT20: 0.00603 | LU20: 0.00115 | LV20: 0.00025 | LW20: 0.00013 | LX20: 0.0011 | LY20: - | LZ20: - | MA20: -
C21: Total | D21: =D20 -> 0 | E21: =E20 -> 0 | F21: 0 | G21: 0 | H21: 0 | I21: 0.256 | J21: 0 | K21: 0 | L21: 0 | M21: 0 | N21: 0 | O21: 0 | P21: 0 | Q21: 0 | R21: 0.014 | S21: 0 | T21: 0 | U21: 0.001 | V21: 0.002 | W21: 0 | X21: 0 | Y21: 0 | Z21: 0 | AA21: 0 | AB21: 0 | AC21: 0 | AD21: 0 | AE21: 0 | AF21: 0 | AG21: 0 | AH21: 0 | AI21: 0.003 | AJ21: 0.01 | AK21: 0 | AL21: 0.004 | AM21: 0 | AN21: 0 | AO21: 0 | AP21: 0 | AQ21: 0 | AR21: 0.006 | AS21: 0.008 | AT21: 0.001 | AU21: 0 | AV21: 0 | AW21: 0 | AX21: 0 | AY21: 0 | AZ21: 0 | BA21: 0 | BB21: 0.002 | BC21: 0 | BD21: 0 | BE21: 0 | BF21: 0 | BG21: 0 | BH21: 0 | BI21: 0 | BJ21: 0 | BK21: 0 | BL21: 0 | BM21: 0 | BN21: 0 | BO21: 0 | BP21: 0.001 | BQ21: =BQ20 -> 0 | BR21: 0 | BS21: 0 | BT21: 0 | BU21: 0 | BV21: 0 | BW21: 0 | BX21: 0 | BY21: 0 | BZ21: 0 | CA21: 0 | CB21: 0 | CC21: 0 | CD21: 0 | CE21: 0 | CF21: 0 | CG21: 0 | CH21: 0 | CI21: 0 | CJ21: 0 | CK21: 0 | CL21: 0 | CM21: 0.012 | CN21: 0.024 | CO21: 0.02 | CP21: 0.002 | CQ21: 0 | CR21: 0 | CS21: 0 | CT21: 0 | CU21: 0 | CV21: 0 | CW21: 0 | CX21: 0.003 | CY21: 0 | CZ21: 0.001 | DA21: 0.001 | DB21: 0.001 | DC21: 0 | DD21: 0 | DE21: 0 | DF21: 0 | DG21: 0 | DH21: 7.784 | DI21: 0 | DJ21: 0 | DK21: 0 | DL21: 0 | DM21: 0 | DN21: 0 | DO21: 0 | DP21: 0 | DQ21: 0 | DR21: 0 | DS21: 0 | DT21: 0 | DU21: 0 | DV21: 0 | DW21: 0 | DX21: 0 | DY21: 0 | DZ21: 0 | EA21: 0 | EB21: 0 | EC21: =EC20 -> 0 | ED21: 0 | EE21: 0 | EF21: 0 | EG21: 0 | EH21: 0 | EI21: 0 | EJ21: 0 | EK21: 0 | EL21: 0 | EM21: 0 | EN21: 0 | EO21: 0 | EP21: 0 | EQ21: 0 | ER21: 0 | ES21: 0 | ET21: 0 | EU21: 0 | EV21: 0 | EW21: 0 | EX21: 0 | EY21: 0 | EZ21: 0 | FA21: 0 | FB21: 0 | FC21: 0 | FD21: 0 | FE21: 0 | FF21: 0 | FG21: 0 | FH21: 0 | FI21: 0 | FJ21: 0 | FK21: 0 | FL21: 0 | FM21: 0 | FN21: 0 | FO21: 0 | FP21: 0 | FQ21: 0.000587 | FR21: 0 | FS21: 0 | FT21: 3e-06 | FU21: 0.002312 | FV21: 2.9e-05 | FW21: 0 | FX21: 0.000353 | FY21: 0.000173 | FZ21: 0 | GA21: 0 | GB21: 4e-06 | GC21: 0 | GD21: 0 | GE21: 0.000685 | GF21: 0.001638 | GG21: 0.002672 | GH21: 0.00018 | GI21: 9.2e-05 | GJ21: 0.000681 | GK21: 0.000634 | GL21: 0.007386 | GM21: 0.0001 | GN21: 0 | GO21: =GO20 -> 0 | GP21: 0.000215 | GQ21: 0 | GR21: 0.000205 | GS21: 0.00013 | GT21: 0.00041 | GU21: 0 | GV21: 0.0019 | GW21: 0.00103 | GX21: 0 | GY21: 0 | GZ21: 4e-05 | HA21: 0 | HB21: 2e-05 | HC21: 2e-05 | HD21: 0.00018 | HE21: 0.00074 | HF21: 0.26547 | HG21: 0.00144 | HH21: 0 | HI21: 0 | HJ21: 3e-05 | HK21: 0 | HL21: 0 | HM21: 0 | HN21: 0.00014 | HO21: 0 | HP21: 1e-05 | HQ21: 0.00027 | HR21: 0 | HS21: 0.0003 | HT21: 0 | HU21: 0 | HV21: 0 | HW21: 0 | HX21: 0 | HY21: 0 | HZ21: 0.0002 | IA21: 0 | IB21: 0 | IC21: 0.00065 | ID21: 4e-05 | IE21: 0 | IF21: 5e-05 | IG21: 0 | IH21: 0 | II21: 0.00772 | IJ21: 0 | IK21: 0 | IL21: 0 | IM21: 0 | IN21: 0.00034 | IO21: 3e-05 | IP21: 0 | IQ21: 0 | IR21: 0 | IS21: 0 | IT21: 0 | IU21: 0 | IV21: 0 | IW21: 0 | IX21: 0 | IY21: 0 | IZ21: 0 | JA21: =JA20 -> 0.00016 | JB21: 7e-05 | JC21: 0.00011 | JD21: 0.00022 | JE21: 0 | JF21: 0 | JG21: 0 | JH21: 0.0004 | JI21: 8e-05 | JJ21: 4e-05 | JK21: 0.00034 | JL21: 0.00026 | JM21: 0.00036 | JN21: 0 | JO21: 0 | JP21: 2e-05 | JQ21: 0 | JR21: 0 | JS21: 8e-05 | JT21: 0 | JU21: 0 | JV21: 0 | JW21: 0 | JX21: 0.00065 | JY21: 0 | JZ21: 0.00034 | KA21: 0 | KB21: 0 | KC21: 0.00011 | KD21: 0 | KE21: 0 | KF21: 0 | KG21: 0 | KH21: 0 | KI21: 0.00041 | KJ21: 0.00084 | KK21: 0.00066 | KL21: 0.00124 | KM21: 0.00106 | KN21: 0.0007 | KO21: 0.00055 | KP21: 0.00014 | KQ21: 0 | KR21: 0 | KS21: 0 | KT21: 0 | KU21: 0.00047 | KV21: 0.00132 | KW21: 0.00061 | KX21: 0 | KY21: 0.0005 | KZ21: 0.00026 | LA21: 0.00035 | LB21: 0.00087 | LC21: 0.00185 | LD21: 0 | LE21: 0 | LF21: 0 | LG21: 0 | LH21: 0.00016 | LI21: 0.00072 | LJ21: 0.00017 | LK21: 0.00047 | LL21: 0.00143 | LM21: =LM20 -> 0.0009 | LN21: 0.00013 | LO21: 0 | LP21: 0 | LQ21: 0 | LR21: 0.00649 | LS21: 0.00133 | LT21: 0.00603 | LU21: 0.00115 | LV21: 0.00025 | LW21: 0.00013 | LX21: 0.0011 | LY21: - | LZ21: - | MA21: -
B22: Francia | C22: Arkale-Argia | D22: 0 | E22: 0.226 | F22: 0.065 | G22: 5.518 | H22: 6.009 | I22: 0.005 | J22: 0.381 | K22: 2.272 | L22: 1.388 | M22: 1.722 | N22: 1.074 | O22: 0.126 | P22: 0.093 | Q22: 0 | R22: 0 | S22: 0.846 | T22: 3.716 | U22: 7.601 | V22: 1.263 | W22: 4.253 | X22: 0.165 | Y22: 0.376 | Z22: 1.881 | AA22: 0.574 | AB22: 0.009 | AC22: 0 | AD22: 0.147 | AE22: 5.5 | AF22: 24.913 | AG22: 19.603 | AH22: 17.343 | AI22: 19.064 | AJ22: 4.386 | AK22: 7.682 | AL22: 1.344 | AM22: 0.32 | AN22: 0.051 | AO22: 0.067 | AP22: 0.191 | AQ22: 2.605 | AR22: 5.766 | AS22: 4.115 | AT22: 1.569 | AU22: 0.439 | AV22: 1.865 | AW22: 1.677 | AX22: 0.905 | AY22: 0.273 | AZ22: 0.185 | BA22: 0.163 | BB22: 0.862 | BC22: 0.185 | BD22: 2.527 | BE22: 1.356 | BF22: 0.445 | BG22: 4.242 | BH22: 5.197 | BI22: 12.174 | BJ22: 14.439 | BK22: 2.909 | BL22: 4.761 | BM22: 6.81 | BN22: 8.911 | BO22: 7.339 | BP22: 18.968 | BQ22: 13.756 | BR22: 1.287 | BS22: 3.312 | BT22: 5.923 | BU22: 9.369 | BV22: 9.084 | BW22: 7.417 | BX22: 0.09 | BY22: 0.126 | BZ22: 7.528 | CA22: 15.558 | CB22: 10.683 | CC22: 8.719 | CD22: 0.343 | CE22: 1.097 | CF22: 2.255 | CG22: 8.454 | CH22: 1.652 | CI22: 0.382 | CJ22: 0.001 | CK22: 0.028 | CL22: 0.573 | CM22: 2.6 | CN22: 0.977 | CO22: 0.895 | CP22: 0.109 | CQ22: 0.216 | CR22: 0.057 | CS22: 0.313 | CT22: 0.2 | CU22: 0 | CV22: 0.084 | CW22: 0.342 | CX22: 1.015 | CY22: 2.073 | CZ22: 7.646 | DA22: 3.155 | DB22: 2.439 | DC22: 1.469 | DD22: 0.28 | DE22: 0.789 | DF22: 0.32 | DG22: 1.1 | DH22: 0.329 | DI22: 0.334 | DJ22: 1.004 | DK22: 0.075 | DL22: 6.788 | DM22: 3.936 | DN22: 0.998 | DO22: 7.679 | DP22: 0.767 | DQ22: 2.71 | DR22: 2.016 | DS22: 2.374 | DT22: 0 | DU22: 0.246 | DV22: 2.11 | DW22: 4.187 | DX22: 23.423 | DY22: 23.295 | DZ22: 2.866 | EA22: 1.137 | EB22: 1.094 | EC22: 2.92 | ED22: 1.307157583 | EE22: 1.19 | EF22: 0.1007123177 | EG22: 0.002 | EH22: 0.014 | EI22: 6.85607636 | EJ22: 14.995 | EK22: 4.54 | EL22: 2.393 | EM22: 0.512 | EN22: 0.566 | EO22: 1.152 | EP22: 0.789 | EQ22: 0.708 | ER22: 1.137857708 | ES22: 1.19456314 | ET22: 3.803588525 | EU22: 5.182 | EV22: 36.79692308 | EW22: 59.10668005 | EX22: 44.5485929 | EY22: 76.28812575 | EZ22: 59.017 | FA22: 66.856 | FB22: 66.833 | FC22: 37.74051476 | FD22: 10.62877691 | FE22: 11.20629782 | FF22: 40.46604606 | FG22: 38.11636613 | FH22: 90.61820035 | FI22: 62.34305491 | FJ22: 42.78352945 | FK22: 43.50175485 | FL22: 39.919 | FM22: 21.575 | FN22: 34.362 | FO22: 19.407 | FP22: 16.610884 | FQ22: 14.68044 | FR22: 21.075495 | FS22: 32.313383 | FT22: 52.757755 | FU22: 42.46846 | FV22: 36.429136 | FW22: 38.009492 | FX22: 32.607584 | FY22: 47.415403 | FZ22: 40.376294 | GA22: 26.410731 | GB22: 60.949277 | GC22: 34.780594 | GD22: 49.384571 | GE22: 31.488003 | GF22: 61.736986 | GG22: 24.165985 | GH22: 7.779337 | GI22: 14.367988 | GJ22: 8.686316 | GK22: 13.418451 | GL22: 7.290533 | GM22: 5.397257 | GN22: 22.510855 | GO22: 9.463168 | GP22: 3.116155 | GQ22: 21.205054 | GR22: 66.561686 | GS22: 48.562112 | GT22: 15.54786 | GU22: 48.165497 | GV22: 34.23703 | GW22: 33.291734 | GX22: 24.775562 | GY22: 9.037365 | GZ22: 38.583777 | HA22: 19.157153 | HB22: 26.062175 | HC22: 36.722449 | HD22: 28.474649 | HE22: 32.895394 | HF22: 20.987095 | HG22: 21.519089 | HH22: 26.104494 | HI22: 25.927312 | HJ22: 6.535058 | HK22: 20.996255 | HL22: 54.126119 | HM22: 48.360341 | HN22: 34.25937 | HO22: 23.706138 | HP22: 73.216609 | HQ22: 27.036944 | HR22: 32.771268 | HS22: 36.239483 | HT22: 27.193492 | HU22: 17.217346 | HV22: 11.8559 | HW22: 17.70956 | HX22: 7.61753 | HY22: 3.461481 | HZ22: 22.905417 | IA22: 35.681894 | IB22: 58.907584 | IC22: 23.360686 | ID22: 17.921545 | IE22: 29.30257 | IF22: 18.904494 | IG22: 11.054596 | IH22: 16.973508 | II22: 8.295597 | IJ22: 0.397487 | IK22: 0.678264 | IL22: 1.134278 | IM22: 0.747982 | IN22: 11.163485 | IO22: 27.846285 | IP22: 24.011961 | IQ22: 44.569188 | IR22: 20.18016 | IS22: 3.017112 | IT22: 7.832697 | IU22: 1.003059 | IV22: 4.102797 | IW22: 0.247987 | IX22: 3.022156 | IY22: 9.471449 | IZ22: 32.050147 | JA22: 62.669932 | JB22: 64.474956 | JC22: 60.409605 | JD22: 32.205784 | JE22: 30.834249 | JF22: 16.209325 | JG22: 24.373855 | JH22: 37.120168 | JI22: 4.288896 | JJ22: 30.955965 | JK22: 28.011953 | JL22: 37.538637 | JM22: 19.700898 | JN22: 14.247032 | JO22: 21.505145 | JP22: 18.381246 | JQ22: 8.652381 | JR22: 6.907801 | JS22: 19.960528 | JT22: 24.647004 | JU22: 9.213329 | JV22: 0.184238 | JW22: 4.649785 | JX22: 24.795821 | JY22: 67.603046 | JZ22: 58.120562 | KA22: 55.594912 | KB22: 50.113417 | KC22: 34.248985 | KD22: 5.731798 | KE22: 14.370983 | KF22: 5.663981 | KG22: 0.110497 | KH22: 12.657026 | KI22: 6.957101 | KJ22: 69.422471 | KK22: 57.72555 | KL22: 62.767734 | KM22: 44.155081 | KN22: 21.706783 | KO22: 44.494328 | KP22: 35.366421 | KQ22: 34.018349 | KR22: 44.322658 | KS22: 1.461244 | KT22: 17.004694 | KU22: 54.072124 | KV22: 55.335245 | KW22: 57.179058 | KX22: 24.308873 | KY22: 40.90504 | KZ22: 36.565359 | LA22: 46.596665 | LB22: 100.610669 | LC22: 132.778023 | LD22: 59.457678 | LE22: 54.717882 | LF22: 41.324706 | LG22: 26.291651 | LH22: 67.217343 | LI22: 90.150127 | LJ22: 74.219638 | LK22: 95.464999 | LL22: 88.547152 | LM22: 73.768726 | LN22: 77.932097 | LO22: 102.475277 | LP22: 27.479321 | LQ22: 64.809684 | LR22: 161.323738 | LS22: 135.715033 | LT22: 176.743926 | LU22: 94.880737 | LV22: 67.950301 | LW22: 84.754282 | LX22: 44.137132 | LY22: - | LZ22: - | MA22: -
C23: Benós-Lac D'oo | D23: 0 | E23: 0 | F23: 0 | G23: 0 | H23: 0.11 | I23: 0.046 | J23: 0 | K23: 0 | L23: 0.137 | M23: 0 | N23: 0 | O23: 0 | P23: 0 | Q23: 0 | R23: 0 | S23: 0 | T23: 0 | U23: 0 | V23: 0 | W23: 0 | X23: 0 | Y23: 0 | Z23: 0 | AA23: 0.003 | AB23: 0 | AC23: 0 | AD23: 0 | AE23: 0 | AF23: 0 | AG23: 0 | AH23: 0.834 | AI23: 0 | AJ23: 0 | AK23: 0 | AL23: 0 | AM23: 0 | AN23: 0 | AO23: 0 | AP23: 0.432 | AQ23: 0 | AR23: 0 | AS23: 0 | AT23: 3.961 | AU23: 2.37 | AV23: 0 | AW23: 0 | AX23: 0 | AY23: 0.547 | AZ23: 0.195 | BA23: 4.294 | BB23: 0.143 | BC23: 0 | BD23: 0 | BE23: 0 | BF23: 0 | BG23: 0 | BH23: 0 | BI23: 0 | BJ23: 0 | BK23: 0 | BL23: 0 | BM23: 0 | BN23: 0 | BO23: 0 | BP23: 0 | BQ23: 0 | BR23: 0.727 | BS23: 0.957 | BT23: 0.294 | BU23: 1.562 | BV23: 0 | BW23: 0 | BX23: 0.008 | BY23: 0.465 | BZ23: 0 | CA23: 0 | CB23: 0 | CC23: 0 | CD23: 0 | CE23: 0 | CF23: 0 | CG23: 0 | CH23: 0 | CI23: 0 | CJ23: 3.013 | CK23: 3.772 | CL23: 0 | CM23: 0 | CN23: 0 | CO23: 0 | CP23: 0 | CQ23: 0 | CR23: 0 | CS23: 0 | CT23: 0 | CU23: 0 | CV23: 0 | CW23: 0 | CX23: 0 | CY23: 0.041 | CZ23: 5.726 | DA23: 0.416 | DB23: 0.422 | DC23: 0 | DD23: 0 | DE23: 0 | DF23: 0.449 | DG23: 0 | DH23: 0.112 | DI23: 0 | DJ23: 0 | DK23: 0 | DL23: 0.01 | DM23: 0 | DN23: 0 | DO23: 0 | DP23: 0 | DQ23: 0 | DR23: 0 | DS23: 0.7 | DT23: 0 | DU23: 0 | DV23: 0.03 | DW23: 0 | DX23: 0 | DY23: 0 | DZ23: 0 | EA23: 0 | EB23: 0 | EC23: 0 | ED23: 0 | EE23: 0 | EF23: 0.6724327476 | EG23: 0 | EH23: 0 | EI23: 0 | EJ23: 0 | EK23: 0 | EL23: 0 | EM23: 0 | EN23: 0 | EO23: 0 | EP23: 0.01 | EQ23: 0 | ER23: 0 | ES23: 0 | ET23: 0 | EU23: 0 | EV23: 0 | EW23: 0 | EX23: 31.9494361 | EY23: 0 | EZ23: 3.622 | FA23: 0 | FB23: 0 | FC23: 0 | FD23: 0 | FE23: 0 | FF23: 0 | FG23: 0 | FH23: 0 | FI23: 0 | FJ23: 0 | FK23: 0 | FL23: 0 | FM23: 0.026 | FN23: 0.018 | FO23: 0.023 | FP23: 0.022186 | FQ23: 0.026601 | FR23: 0.020952 | FS23: 0.020233 | FT23: 0.011169 | FU23: 0.011634 | FV23: 0.024752 | FW23: 2.099979 | FX23: 0.00033 | FY23: 0 | FZ23: 0.000972 | GA23: 0.003711 | GB23: 0.002964 | GC23: 0.286414 | GD23: 0.009637 | GE23: 0.003347 | GF23: 1.4e-05 | GG23: 0 | GH23: 0.001248 | GI23: 0 | GJ23: 0.062164 | GK23: 0 | GL23: 0.00305 | GM23: 0.003896 | GN23: 0.005285 | GO23: 0.002543 | GP23: 0.002131 | GQ23: 0.001356 | GR23: 1.6e-05 | GS23: 0.0039 | GT23: 0.197605 | GU23: 0.002512 | GV23: 0 | GW23: 0 | GX23: 0.001483 | GY23: 0.002535 | GZ23: 0.001906 | HA23: 0.001986 | HB23: 0.003577 | HC23: 0.001311 | HD23: 0.000206 | HE23: 0 | HF23: 0 | HG23: 0 | HH23: 0 | HI23: 0 | HJ23: 0.007107 | HK23: 0.009752 | HL23: 0.0101 | HM23: 0.007995 | HN23: 0.011709 | HO23: 1.713062 | HP23: 0 | HQ23: 0.058653 | HR23: 0 | HS23: 0 | HT23: 0 | HU23: 0 | HV23: 0.009724 | HW23: 0.001306 | HX23: 0.001526 | HY23: 0.000909 | HZ23: 0.000946 | IA23: 0 | IB23: 0 | IC23: 0 | ID23: 0 | IE23: 0 | IF23: 0 | IG23: 0 | IH23: 0.012405 | II23: 0 | IJ23: 0 | IK23: 0 | IL23: 0 | IM23: 0 | IN23: 0 | IO23: 0 | IP23: 0.2127 | IQ23: 0 | IR23: 0 | IS23: 0 | IT23: 0 | IU23: 0 | IV23: 0 | IW23: 0 | IX23: 0 | IY23: 0 | IZ23: 0 | JA23: 0 | JB23: 0 | JC23: 0 | JD23: 1.568185 | JE23: 3.389199 | JF23: 0 | JG23: 0.011967 | JH23: 0 | JI23: 0 | JJ23: 0 | JK23: 0 | JL23: 0 | JM23: 0 | JN23: 0 | JO23: 0 | JP23: 1.121255 | JQ23: 2.028603 | JR23: 0.056968 | JS23: 0 | JT23: 0.000525 | JU23: 0.000306 | JV23: 0 | JW23: 0.562821 | JX23: 2.2e-05 | JY23: 0.183802 | JZ23: 0 | KA23: 0 | KB23: 3.25066 | KC23: 1.852993 | KD23: 0.00017 | KE23: 0 | KF23: 0 | KG23: 2e-06 | KH23: 0.093819 | KI23: 0.43604 | KJ23: 0 | KK23: 0 | KL23: 0 | KM23: 0 | KN23: 0 | KO23: 1.506891 | KP23: 0.270512 | KQ23: 0.00029 | KR23: 0 | KS23: 0 | KT23: 0 | KU23: 0.305212 | KV23: 0 | KW23: 0 | KX23: 0 | KY23: 0 | KZ23: 0 | LA23: 0 | LB23: 0 | LC23: 0.000175 | LD23: 0.000226 | LE23: 0 | LF23: 0 | LG23: 0 | LH23: 0.079363 | LI23: 0 | LJ23: 1.094467 | LK23: 0 | LL23: 2.257529 | LM23: 0 | LN23: 0 | LO23: 0 | LP23: 2e-06 | LQ23: 0 | LR23: 0.047123 | LS23: 0 | LT23: 0 | LU23: 0 | LV23: 0 | LW23: 0.079682 | LX23: 4e-06 | LY23: - | LZ23: - | MA23: -
C24: Biescas-Pragneres | D24: 4.842 | E24: 10.755 | F24: 9.476 | G24: 1.594 | H24: 29.294 | I24: 4.561 | J24: 6.223 | K24: 6.881 | L24: 8.801 | M24: 4.193 | N24: 3.833 | O24: 24.94 | P24: 12.753 | Q24: 25.606 | R24: 4.391 | S24: 0.711 | T24: 2.926 | U24: 2.05 | V24: 2.547 | W24: 5.991 | X24: 3.473 | Y24: 0.481 | Z24: 13.763 | AA24: 10.105 | AB24: 13.756 | AC24: 10.88 | AD24: 7.35 | AE24: 19.133 | AF24: 52.801 | AG24: 79.675 | AH24: 61.62 | AI24: 12.952 | AJ24: 6.213 | AK24: 9.003 | AL24: 7.1 | AM24: 8.992 | AN24: 20.539 | AO24: 53.703 | AP24: 33.321 | AQ24: 15.556 | AR24: 31.639 | AS24: 13.999 | AT24: 29.323 | AU24: 2.763 | AV24: 3.489 | AW24: 10.159 | AX24: 11.496 | AY24: 9.97 | AZ24: 16.717 | BA24: 26.231 | BB24: 45.859 | BC24: 47.604 | BD24: 33.578 | BE24: 32.048 | BF24: 39.752 | BG24: 18.504 | BH24: 42.369 | BI24: 48.396 | BJ24: 41.442 | BK24: 71.647 | BL24: 91.666 | BM24: 74.763 | BN24: 71.525 | BO24: 47.289 | BP24: 74.305 | BQ24: 61.79 | BR24: 69.087 | BS24: 57.831 | BT24: 59.441 | BU24: 41.491 | BV24: 40.493 | BW24: 40.145 | BX24: 25.397 | BY24: 20.349 | BZ24: 26.817 | CA24: 46.095 | CB24: 20.596 | CC24: 25.659 | CD24: 31.425 | CE24: 33.856 | CF24: 0.972 | CG24: 18.617 | CH24: 24.956 | CI24: 37.596 | CJ24: 5.156 | CK24: 11.188 | CL24: 15.322 | CM24: 10.434 | CN24: 5.2 | CO24: 8.956 | CP24: 11.276 | CQ24: 6.508 | CR24: 21.278 | CS24: 0 | CT24: 1.384 | CU24: 13.067 | CV24: 50.238 | CW24: 55.237 | CX24: 73.046 | CY24: 31.235 | CZ24: 37.939 | DA24: 50.244 | DB24: 42.842 | DC24: 2.598 | DD24: 11.358 | DE24: 56.678 | DF24: 30.231 | DG24: 45.782 | DH24: 37.802 | DI24: 58.433 | DJ24: 66.758 | DK24: 75.794 | DL24: 76.03 | DM24: 62.104 | DN24: 65.319 | DO24: 50.587 | DP24: 55.565 | DQ24: 54.156 | DR24: 69.415 | DS24: 72.355 | DT24: 26.197 | DU24: 68.285 | DV24: 85.878 | DW24: 81.778 | DX24: 67.549 | DY24: 49.174 | DZ24: 52.014 | EA24: 67.523 | EB24: 83.608 | EC24: 78.964 | ED24: 69.23895636 | EE24: 38.204 | EF24: 31.94716794 | EG24: 44.742 | EH24: 21.302 | EI24: 4.544178351 | EJ24: 56.511 | EK24: 76.229 | EL24: 79.388 | EM24: 59.446 | EN24: 53.714 | EO24: 48.22 | EP24: 53.248 | EQ24: 31.559 | ER24: 51.27261947 | ES24: 91.20504878 | ET24: 119.9308948 | EU24: 99.469 | EV24: 112.4516342 | EW24: 97.77056368 | EX24: 84.00155416 | EY24: 59.21513412 | EZ24: 58.102 | FA24: 98.295 | FB24: 139.486 | FC24: 117.4966489 | FD24: 63.08091875 | FE24: 0 | FF24: 0 | FG24: 0.01001086438 | FH24: 48.07346713 | FI24: 79.88307427 | FJ24: 25.80715937 | FK24: 57.72941857 | FL24: 57.646 | FM24: 52.616 | FN24: 28.935 | FO24: 21.622 | FP24: 81.087146 | FQ24: 63.947735 | FR24: 49.136792 | FS24: 34.650119 | FT24: 42.62282 | FU24: 43.584701 | FV24: 36.079276 | FW24: 22.186753 | FX24: 38.519527 | FY24: 88.571017 | FZ24: 53.12096 | GA24: 74.38782 | GB24: 88.238551 | GC24: 93.437336 | GD24: 77.294068 | GE24: 85.922135 | GF24: 51.770123 | GG24: 53.784997 | GH24: 57.280777 | GI24: 44.359106 | GJ24: 14.019388 | GK24: 9.406712 | GL24: 16.885519 | GM24: 48.311206 | GN24: 73.304273 | GO24: 17.927788 | GP24: 14.193068 | GQ24: 50.702253 | GR24: 73.752926 | GS24: 42.819761 | GT24: 34.462053 | GU24: 45.220711 | GV24: 68.983429 | GW24: 52.786251 | GX24: 18.369987 | GY24: 17.535067 | GZ24: 60.560446 | HA24: 34.524417 | HB24: 67.572178 | HC24: 82.877908 | HD24: 39.693622 | HE24: 83.068446 | HF24: 49.543303 | HG24: 61.232639 | HH24: 30.208763 | HI24: 11.919545 | HJ24: 20.253433 | HK24: 14.853311 | HL24: 55.775761 | HM24: 31.449488 | HN24: 8.124399 | HO24: 10.624146 | HP24: 52.01955 | HQ24: 21.250036 | HR24: 33.390046 | HS24: 17.886257 | HT24: 11.150181 | HU24: 9.575394 | HV24: 37.256937 | HW24: 21.840606 | HX24: 20.452987 | HY24: 5.018258 | HZ24: 31.897096 | IA24: 39.464085 | IB24: 53.361637 | IC24: 40.283408 | ID24: 24.374201 | IE24: 11.61487 | IF24: 8.947915 | IG24: 6.267152 | IH24: 15.768483 | II24: 2.932819 | IJ24: 1.680055 | IK24: 0.550684 | IL24: 10.180349 | IM24: 3.74197 | IN24: 1.346839 | IO24: 4.931455 | IP24: 6.113517 | IQ24: 24.617573 | IR24: 25.337815 | IS24: 7.636938 | IT24: 0.713149 | IU24: 0.391566 | IV24: 6.707674 | IW24: 8.090246 | IX24: 10.649388 | IY24: 12.30452 | IZ24: 8.003365 | JA24: 7.721011 | JB24: 11.641763 | JC24: 28.8602 | JD24: 18.130931 | JE24: 23.509233 | JF24: 7.435253 | JG24: 29.947675 | JH24: 48.904378 | JI24: 10.389533 | JJ24: 37.146818 | JK24: 12.774966 | JL24: 9.851646 | JM24: 8.991205 | JN24: 25.963627 | JO24: 51.679514 | JP24: 23.679735 | JQ24: 8.312178 | JR24: 10.405727 | JS24: 11.55315 | JT24: 18.894266 | JU24: 12.100972 | JV24: 0.735477 | JW24: 4.068448 | JX24: 22.446084 | JY24: 32.726117 | JZ24: 33.27216 | KA24: 18.886416 | KB24: 22.149182 | KC24: 17.821065 | KD24: 0.331288 | KE24: 41.348562 | KF24: 9.403418 | KG24: 1.230446 | KH24: 20.114491 | KI24: 6.525842 | KJ24: 41.95605 | KK24: 24.99254 | KL24: 11.935793 | KM24: 41.334829 | KN24: 36.656347 | KO24: 13.050189 | KP24: 25.938181 | KQ24: 19.793956 | KR24: 32.331301 | KS24: 8.934997 | KT24: 26.00149 | KU24: 38.954046 | KV24: 15.693791 | KW24: 19.617365 | KX24: 11.031871 | KY24: 29.267927 | KZ24: 6.180795 | LA24: 40.103394 | LB24: 37.201626 | LC24: 85.862692 | LD24: 45.891155 | LE24: 30.200695 | LF24: 54.232498 | LG24: 27.313899 | LH24: 18.783828 | LI24: 41.641104 | LJ24: 36.869362 | LK24: 50.198896 | LL24: 35.384587 | LM24: 35.576669 | LN24: 33.105178 | LO24: 47.490639 | LP24: 21.156712 | LQ24: 26.374379 | LR24: 43.434992 | LS24: 45.71073 | LT24: 37.415657 | LU24: 18.829088 | LV24: 44.857482 | LW24: 92.172933 | LX24: 41.855534 | LY24: - | LZ24: - | MA24: -
C25: Hernani-Argia | D25: 13.964 | E25: 25.322 | F25: 20.199 | G25: 71.125 | H25: 57.881 | I25: 22.639 | J25: 56.363 | K25: 134.486 | L25: 85.183 | M25: 87.169 | N25: 42.134 | O25: 42.536 | P25: 38.057 | Q25: 17.635 | R25: 3.822 | S25: 17.435 | T25: 35.251 | U25: 80.756 | V25: 78.851 | W25: 156.919 | X25: 46.286 | Y25: 72.38 | Z25: 113.166 | AA25: 110.077 | AB25: 88.922 | AC25: 38.835 | AD25: 80.918 | AE25: 149.737 | AF25: 312.497 | AG25: 346.907 | AH25: 239.592 | AI25: 293.434 | AJ25: 163.773 | AK25: 124.775 | AL25: 60.083 | AM25: 51.035 | AN25: 82.621 | AO25: 59.581 | AP25: 81.374 | AQ25: 108.887 | AR25: 88.471 | AS25: 76.658 | AT25: 125.99 | AU25: 86.249 | AV25: 128.903 | AW25: 76.945 | AX25: 59.779 | AY25: 63.706 | AZ25: 31.309 | BA25: 19.877 | BB25: 27.411 | BC25: 30.558 | BD25: 38.694 | BE25: 46.302 | BF25: 132.533 | BG25: 242.554 | BH25: 210.68 | BI25: 260.531 | BJ25: 265.461 | BK25: 260.967 | BL25: 237.966 | BM25: 206.444 | BN25: 220.801 | BO25: 200.683 | BP25: 229.936 | BQ25: 209.959 | BR25: 186.407 | BS25: 261.152 | BT25: 219.462 | BU25: 219.433 | BV25: 257.516 | BW25: 186.64 | BX25: 80.654 | BY25: 44.156 | BZ25: 206.09 | CA25: 220.569 | CB25: 193.902 | CC25: 216.254 | CD25: 163.956 | CE25: 176.602 | CF25: 171.054 | CG25: 254.028 | CH25: 225.972 | CI25: 152.445 | CJ25: 9.686 | CK25: 59.611 | CL25: 133.786 | CM25: 131.728 | CN25: 156.19 | CO25: 117.95 | CP25: 132.43 | CQ25: 146.99 | CR25: 135.66 | CS25: 150.9 | CT25: 142.45 | CU25: 33.025 | CV25: 139.331 | CW25: 151.33 | CX25: 195.52 | CY25: 222.07 | CZ25: 236.85 | DA25: 221.66 | DB25: 241.23 | DC25: 311.74 | DD25: 183.92 | DE25: 208.45 | DF25: 224.49 | DG25: 258.48 | DH25: 287.07 | DI25: 283.746 | DJ25: 250.77 | DK25: 192.04 | DL25: 237.1 | DM25: 215.98 | DN25: 298.27 | DO25: 318.26 | DP25: 223.12 | DQ25: 263.94 | DR25: 275.06 | DS25: 239.17 | DT25: 114.36 | DU25: 234.29 | DV25: 328.15 | DW25: 340.96 | DX25: 393.21 | DY25: 363.85 | DZ25: 374.67 | EA25: 364.56 | EB25: 292.28 | EC25: 292.079 | ED25: 300.8627225 | EE25: 231.781 | EF25: 85.92795294 | EG25: 36.396 | EH25: 44.5 | EI25: 208.1763142 | EJ25: 329.54 | EK25: 300.54 | EL25: 335.43 | EM25: 364.58 | EN25: 313.67 | EO25: 232.38 | EP25: 312.52 | EQ25: 296.42 | ER25: 334.5149407 | ES25: 347.6576586 | ET25: 371.0061575 | EU25: 407.269 | EV25: 282.1175848 | EW25: 148.3088177 | EX25: 313.9753747 | EY25: 372.9174873 | EZ25: 310.592 | FA25: 378.26 | FB25: 385.37 | FC25: 264.7213776 | FD25: 62.15959768 | FE25: 101.5749811 | FF25: 192.6573749 | FG25: 182.0856101 | FH25: 342.3962424 | FI25: 307.7890686 | FJ25: 268.9306812 | FK25: 264.8199562 | FL25: 242.366 | FM25: 216.241 | FN25: 180.577 | FO25: 125.925 | FP25: 138.708963 | FQ25: 125.25824 | FR25: 160.978897 | FS25: 216.620013 | FT25: 282.766701 | FU25: 220.331744 | FV25: 251.564519 | FW25: 185.14874 | FX25: 168.419648 | FY25: 175.558864 | FZ25: 217.769018 | GA25: 326.036278 | GB25: 404.23718 | GC25: 300.355705 | GD25: 277.185318 | GE25: 211.400567 | GF25: 299.205559 | GG25: 177.93268 | GH25: 101.78286 | GI25: 119.653292 | GJ25: 107.021794 | GK25: 101.562931 | GL25: 90.471117 | GM25: 101.771481 | GN25: 163.455186 | GO25: 103.851535 | GP25: 31.752646 | GQ25: 127.65415 | GR25: 290.944259 | GS25: 239.808103 | GT25: 124.802131 | GU25: 238.268914 | GV25: 201.585545 | GW25: 200.426724 | GX25: 116.915144 | GY25: 63.104628 | GZ25: 222.707012 | HA25: 144.886914 | HB25: 189.551504 | HC25: 231.627025 | HD25: 160.202631 | HE25: 174.146985 | HF25: 164.769417 | HG25: 205.166213 | HH25: 160.90546 | HI25: 118.776472 | HJ25: 63.67786 | HK25: 177.905249 | HL25: 277.820007 | HM25: 268.854335 | HN25: 205.818266 | HO25: 109.468783 | HP25: 278.703535 | HQ25: 118.199696 | HR25: 158.375329 | HS25: 223.419246 | HT25: 135.437533 | HU25: 107.764002 | HV25: 103.922317 | HW25: 130.395712 | HX25: 61.025187 | HY25: 43.103797 | HZ25: 155.953646 | IA25: 212.028903 | IB25: 290.732602 | IC25: 116.022534 | ID25: 99.155448 | IE25: 143.929262 | IF25: 105.553926 | IG25: 72.771497 | IH25: 89.577775 | II25: 49.61542 | IJ25: 5.281173 | IK25: 10.970717 | IL25: 8.292227 | IM25: 14.222344 | IN25: 68.383312 | IO25: 136.986898 | IP25: 131.836787 | IQ25: 233.247241 | IR25: 166.075433 | IS25: 97.122063 | IT25: 84.479892 | IU25: 14.30961 | IV25: 40.079959 | IW25: 22.231086 | IX25: 18.738364 | IY25: 80.181386 | IZ25: 164.041522 | JA25: 275.513849 | JB25: 288.173279 | JC25: 312.040928 | JD25: 167.339715 | JE25: 181.456146 | JF25: 41.782279 | JG25: 193.108045 | JH25: 287.430493 | JI25: 55.820237 | JJ25: 205.799334 | JK25: 151.422846 | JL25: 194.69236 | JM25: 159.53341 | JN25: 128.73705 | JO25: 155.717288 | JP25: 98.980474 | JQ25: 74.284409 | JR25: 59.701953 | JS25: 114.831202 | JT25: 151.854235 | JU25: 56.649796 | JV25: 2.674843 | JW25: 16.98906 | JX25: 232.797142 | JY25: 284.162775 | JZ25: 174.179386 | KA25: 257.098889 | KB25: 207.931175 | KC25: 156.583205 | KD25: 38.265266 | KE25: 111.368755 | KF25: 44.376623 | KG25: 1.328653 | KH25: 53.016702 | KI25: 31.539952 | KJ25: 238.004996 | KK25: 238.173847 | KL25: 251.104659 | KM25: 222.141717 | KN25: 261.906225 | KO25: 187.563464 | KP25: 173.165398 | KQ25: 181.150261 | KR25: 256.164048 | KS25: 15.118713 | KT25: 117.608821 | KU25: 231.716445 | KV25: 215.346659 | KW25: 200.804834 | KX25: 130.379312 | KY25: 205.635107 | KZ25: 165.131753 | LA25: 189.994543 | LB25: 371.773029 | LC25: 490.972044 | LD25: 267.016137 | LE25: 229.520368 | LF25: 152.842219 | LG25: 106.673111 | LH25: 261.696576 | LI25: 366.008776 | LJ25: 361.797865 | LK25: 424.738044 | LL25: 362.008547 | LM25: 225.224356 | LN25: 305.797268 | LO25: 418.07134 | LP25: 157.074131 | LQ25: 257.818756 | LR25: 605.721702 | LS25: 598.095442 | LT25: 667.841078 | LU25: 406.411464 | LV25: 502.626538 | LW25: 634.148964 | LX25: 619.879401 | LY25: - | LZ25: - | MA25: -
C26: Irún-Errondenia | D26: 0 | E26: 0 | F26: 0 | G26: 0 | H26: 0 | I26: 0 | J26: 0 | K26: 0 | L26: 0 | M26: 0 | N26: 0 | O26: 0 | P26: 0 | Q26: 0 | R26: 0 | S26: 0 | T26: 0 | U26: 0 | V26: 0 | W26: 0 | X26: 0 | Y26: 0 | Z26: 0 | AA26: 0 | AB26: 0 | AC26: 0 | AD26: 0 | AE26: 0 | AF26: 0 | AG26: 0 | AH26: 0 | AI26: 0 | AJ26: 0 | AK26: 0 | AL26: 0 | AM26: 0 | AN26: 0 | AO26: 0 | AP26: 0 | AQ26: 0 | AR26: 0 | AS26: 0 | AT26: 0 | AU26: 0 | AV26: 0 | AW26: 0 | AX26: 0 | AY26: 0 | AZ26: 0 | BA26: 0 | BB26: 0 | BC26: 0 | BD26: 0 | BE26: 0 | BF26: 0 | BG26: 0 | BH26: 0 | BI26: 0 | BJ26: 0 | BK26: 0 | BL26: 0 | BM26: 0 | BN26: 0 | BO26: 0 | BP26: 0 | BQ26: 0 | BR26: 0 | BS26: 0 | BT26: 0 | BU26: 0 | BV26: 0 | BW26: 0 | BX26: 0 | BY26: 0 | BZ26: 0 | CA26: 0 | CB26: 0 | CC26: 0 | CD26: 0 | CE26: 0 | CF26: 0 | CG26: 0 | CH26: 0 | CI26: 0 | CJ26: 0 | CK26: 0 | CL26: 0 | CM26: 0 | CN26: 0 | CO26: 0 | CP26: 0 | CQ26: 0 | CR26: 0 | CS26: 0 | CT26: 0 | CU26: 0 | CV26: 0 | CW26: 0 | CX26: 0 | CY26: 0 | CZ26: 0 | DA26: 0 | DB26: 0 | DC26: 0 | DD26: 0 | DE26: 0 | DF26: 0 | DG26: 0 | DH26: 0 | DI26: 0 | DJ26: 0 | DK26: 0 | DL26: 0 | DM26: 0 | DN26: 0 | DO26: 0 | DP26: 0 | DQ26: 0 | DR26: 0 | DS26: 0 | DT26: 0 | DU26: 0 | DV26: 0 | DW26: 0 | DX26: 0 | DY26: 0 | DZ26: 0 | EA26: 0 | EB26: 0 | EC26: 0 | ED26: 0 | EE26: 0 | EF26: 0 | EG26: 0 | EH26: 0 | EI26: 0 | EJ26: 0 | EK26: 0 | EL26: 0 | EM26: 0 | EN26: 0 | EO26: 0 | EP26: 0 | EQ26: 0 | ER26: 0 | ES26: 0 | ET26: 0 | EU26: 0 | EV26: 0 | EW26: 0 | EX26: 0 | EY26: 0 | EZ26: 0 | FA26: 0 | FB26: 0 | FC26: 0 | FD26: 0 | FE26: 0 | FF26: 0 | FG26: 0 | FH26: 0 | FI26: 0 | FJ26: 0 | FK26: 0 | FL26: 0.004 | FM26: 0 | FN26: 0 | FO26: 0 | FP26: 1e-06 | FQ26: 0 | FR26: 0 | FS26: 0 | FT26: 0 | FU26: 3.6e-05 | FV26: 0.006716 | FW26: 0 | FX26: 7.1e-05 | FY26: 0 | FZ26: 0.000205 | GA26: 0 | GB26: 0 | GC26: 0 | GD26: 0 | GE26: 0 | GF26: 0 | GG26: 0 | GH26: 0 | GI26: 0 | GJ26: 0 | GK26: 0 | GL26: 0 | GM26: 0 | GN26: 0 | GO26: 0 | GP26: 0 | GQ26: 0 | GR26: 0 | GS26: 0 | GT26: 0 | GU26: 0 | GV26: 0 | GW26: 0 | GX26: 0 | GY26: 0 | GZ26: 0 | HA26: 0 | HB26: 0 | HC26: 0 | HD26: 0 | HE26: 0 | HF26: 0 | HG26: 0 | HH26: 0 | HI26: 0 | HJ26: 0 | HK26: 0 | HL26: 0 | HM26: 0 | HN26: 0 | HO26: 0 | HP26: 0 | HQ26: 0 | HR26: 0 | HS26: 0 | HT26: 0 | HU26: 0 | HV26: 0 | HW26: 0 | HX26: 0 | HY26: 0 | HZ26: 0 | IA26: 0 | IB26: 0 | IC26: 0 | ID26: 0 | IE26: 0 | IF26: 0 | IG26: 0 | IH26: 0 | II26: 0 | IJ26: 0 | IK26: 0 | IL26: 0 | IM26: 0 | IN26: 0 | IO26: 0 | IP26: 0 | IQ26: 0 | IR26: 0 | IS26: 0 | IT26: 0 | IU26: 0 | IV26: 0 | IW26: 0 | IX26: 0 | IY26: 0 | IZ26: 0 | JA26: 0 | JB26: 0 | JC26: 0 | JD26: 0 | JE26: 0 | JF26: 0 | JG26: 0 | JH26: 0 | JI26: 0 | JJ26: 0 | JK26: 0 | JL26: 0 | JM26: 0 | JN26: 0 | JO26: 0 | JP26: 0 | JQ26: 0 | JR26: 0 | JS26: 0 | JT26: 0 | JU26: 0 | JV26: 0 | JW26: 0 | JX26: 0 | JY26: 0 | JZ26: 0 | KA26: 0 | KB26: 0 | KC26: 0 | KD26: 0 | KE26: 0 | KF26: 0 | KG26: 0 | KH26: 0 | KI26: 0 | KJ26: 0 | KK26: 0 | KL26: 0 | KM26: 0 | KN26: 0 | KO26: 0 | KP26: 0 | KQ26: 0 | KR26: 0 | KS26: 0 | KT26: 0 | KU26: 0 | KV26: 0 | KW26: 0 | KX26: 0 | KY26: 0 | KZ26: 0 | LA26: 0 | LB26: 0 | LC26: 0 | LD26: 0 | LE26: 0 | LF26: 0 | LG26: 0 | LH26: 0 | LI26: 0 | LJ26: 0 | LK26: 0 | LL26: 0 | LM26: 0 | LN26: 0 | LO26: 0 | LP26: 0 | LQ26: 0 | LR26: 0 | LS26: 0 | LT26: 0 | LU26: 0 | LV26: 0 | LW26: 0 | LX26: 0 | LY26: - | LZ26: - | MA26: -
C27: Santa Llogaia-Baixas | D27: 0 | E27: 0 | F27: 0 | G27: 0 | H27: 0 | I27: 0 | J27: 0 | K27: 0 | L27: 0 | M27: 0 | N27: 0 | O27: 0 | P27: 0 | Q27: 0 | R27: 0 | S27: 0 | T27: 0 | U27: 0 | V27: 0 | W27: 0 | X27: 0 | Y27: 0 | Z27: 0 | AA27: 0 | AB27: 0 | AC27: 0 | AD27: 0 | AE27: 0 | AF27: 0 | AG27: 0 | AH27: 0 | AI27: 0 | AJ27: 0 | AK27: 0 | AL27: 0 | AM27: 0 | AN27: 0 | AO27: 0 | AP27: 0 | AQ27: 0 | AR27: 0 | AS27: 0 | AT27: 0 | AU27: 0 | AV27: 0 | AW27: 0 | AX27: 0 | AY27: 0 | AZ27: 0 | BA27: 0 | BB27: 0 | BC27: 0 | BD27: 0 | BE27: 0 | BF27: 0 | BG27: 0 | BH27: 0 | BI27: 0 | BJ27: 0 | BK27: 0 | BL27: 0 | BM27: 0 | BN27: 0 | BO27: 0 | BP27: 0 | BQ27: 0 | BR27: 0 | BS27: 0 | BT27: 0 | BU27: 0 | BV27: 0 | BW27: 0 | BX27: 0 | BY27: 0 | BZ27: 0 | CA27: 0 | CB27: 0 | CC27: 0 | CD27: 0 | CE27: 0 | CF27: 0 | CG27: 0 | CH27: 0 | CI27: 0 | CJ27: 0 | CK27: 0 | CL27: 0 | CM27: 0 | CN27: 0 | CO27: 0 | CP27: 0 | CQ27: 0 | CR27: 0 | CS27: 0 | CT27: 0 | CU27: 0 | CV27: 0 | CW27: 0 | CX27: 0 | CY27: 0 | CZ27: 0 | DA27: 0 | DB27: 0 | DC27: 0 | DD27: 0 | DE27: 0 | DF27: 0 | DG27: 0 | DH27: 0 | DI27: 0 | DJ27: 0 | DK27: 0 | DL27: 0 | DM27: 0 | DN27: 0 | DO27: 0 | DP27: 0 | DQ27: 0 | DR27: 0 | DS27: 0 | DT27: 0 | DU27: 0 | DV27: 0 | DW27: 0 | DX27: 0 | DY27: 0 | DZ27: 0 | EA27: 0 | EB27: 0 | EC27: 0 | ED27: 0 | EE27: 0 | EF27: 0 | EG27: 0 | EH27: 0 | EI27: 0 | EJ27: 0 | EK27: 0 | EL27: 0 | EM27: 0 | EN27: 0 | EO27: 0 | EP27: 0 | EQ27: 0 | ER27: 0 | ES27: 0 | ET27: 0 | EU27: 0 | EV27: 0 | EW27: 0 | EX27: 0 | EY27: 0 | EZ27: 0 | FA27: 0 | FB27: 0 | FC27: 0 | FD27: 0 | FE27: 0 | FF27: 0 | FG27: 0 | FH27: 0 | FI27: 0 | FJ27: 0 | FK27: 0 | FL27: 0 | FM27: 0 | FN27: 0 | FO27: 0 | FP27: 0 | FQ27: 0 | FR27: 0 | FS27: 0 | FT27: 0 | FU27: 0 | FV27: 0 | FW27: 0 | FX27: 0 | FY27: 0 | FZ27: 0 | GA27: 0 | GB27: 0 | GC27: 0 | GD27: 0 | GE27: 0 | GF27: 0 | GG27: 0 | GH27: 0 | GI27: 0 | GJ27: 0 | GK27: 0 | GL27: 0 | GM27: 0 | GN27: 0 | GO27: 0 | GP27: 0 | GQ27: 0 | GR27: 0 | GS27: 0 | GT27: 0 | GU27: 0 | GV27: 0 | GW27: 0 | GX27: 0 | GY27: 0 | GZ27: 0 | HA27: 0 | HB27: 0 | HC27: 0 | HD27: 0 | HE27: 0 | HF27: 0 | HG27: 0 | HH27: 0 | HI27: 0 | HJ27: 0 | HK27: 0 | HL27: 0 | HM27: 0 | HN27: 0 | HO27: 0 | HP27: 0 | HQ27: 0 | HR27: 0 | HS27: 0 | HT27: 0 | HU27: 0 | HV27: 0 | HW27: 0 | HX27: 0 | HY27: 0 | HZ27: 0 | IA27: 0 | IB27: 0 | IC27: 0 | ID27: 0 | IE27: 0 | IF27: 0 | IG27: 0 | IH27: 0 | II27: 0 | IJ27: 0 | IK27: 0 | IL27: 0 | IM27: 0 | IN27: 0 | IO27: 0 | IP27: 0 | IQ27: 0 | IR27: 0 | IS27: 0 | IT27: 0 | IU27: 0 | IV27: 0 | IW27: 0 | IX27: 0 | IY27: 0 | IZ27: 0 | JA27: 0 | JB27: 0 | JC27: 0 | JD27: 0 | JE27: 0 | JF27: 0 | JG27: 0 | JH27: 0 | JI27: 0 | JJ27: 0 | JK27: 0 | JL27: 0 | JM27: 0 | JN27: 0 | JO27: 0 | JP27: 0 | JQ27: 0 | JR27: 0 | JS27: 0 | JT27: 0 | JU27: 0 | JV27: 0 | JW27: 0 | JX27: 0 | JY27: 0 | JZ27: 0 | KA27: 0 | KB27: 0 | KC27: 0 | KD27: 0 | KE27: 0 | KF27: 0 | KG27: 0 | KH27: 0 | KI27: 0 | KJ27: 0 | KK27: 0 | KL27: 0 | KM27: 0 | KN27: 0 | KO27: 0 | KP27: 0 | KQ27: 0 | KR27: 0 | KS27: 0 | KT27: 0 | KU27: 0.05337 | KV27: 2.056652 | KW27: 4.993023 | KX27: 50.903609 | KY27: 30.448748 | KZ27: 154.86737 | LA27: 210.159668 | LB27: 440.980923 | LC27: 606.231046 | LD27: 344.636539 | LE27: 382.894028 | LF27: 342.422409 | LG27: 186.735715 | LH27: 412.498884 | LI27: 499.947538 | LJ27: 606.106854 | LK27: 619.313228 | LL27: 555.161274 | LM27: 278.699422 | LN27: 367.901283 | LO27: 514.957742 | LP27: 205.782644 | LQ27: 376.740042 | LR27: 684.459484 | LS27: 509.368424 | LT27: 679.307787 | LU27: 638.697383 | LV27: 550.229807 | LW27: 658.447921 | LX27: 648.286066 | LY27: - | LZ27: - | MA27: -
C28: Vic-Baixas | D28: 28.517 | E28: 72.55 | F28: 116.559 | G28: 37.049 | H28: 134.844 | I28: 84.228 | J28: 59.661 | K28: 3.515 | L28: 37.504 | M28: 23.289 | N28: 31.614 | O28: 88.876 | P28: 105.2 | Q28: 108.458 | R28: 77.087 | S28: 13.143 | T28: 10.945 | U28: 7.638 | V28: 29.818 | W28: 25.603 | X28: 71.391 | Y28: 58.259 | Z28: 35.887 | AA28: 45.669 | AB28: 29.308 | AC28: 67.224 | AD28: 97.328 | AE28: 70.445 | AF28: 77.607 | AG28: 121.886 | AH28: 108.536 | AI28: 17.041 | AJ28: 60.112 | AK28: 16.043 | AL28: 58.497 | AM28: 89.088 | AN28: 131.27 | AO28: 216.355 | AP28: 220.058 | AQ28: 133.287 | AR28: 147.802 | AS28: 181.644 | AT28: 192.413 | AU28: 49.489 | AV28: 4.28 | AW28: 4.071 | AX28: 64.699 | AY28: 56.154 | AZ28: 83.912 | BA28: 105.757 | BB28: 88.349 | BC28: 82.777 | BD28: 51.94 | BE28: 75.98 | BF28: 231.32 | BG28: 121.52 | BH28: 223.65 | BI28: 209.53 | BJ28: 188.78 | BK28: 193.15 | BL28: 210.01 | BM28: 195.79 | BN28: 204.36 | BO28: 207.29 | BP28: 182.56 | BQ28: 210.84 | BR28: 299.49 | BS28: 226.85 | BT28: 247.43 | BU28: 197.69 | BV28: 136.32 | BW28: 103.28 | BX28: 79.74 | BY28: 42.18 | BZ28: 38.02 | CA28: 42.48 | CB28: 47.79 | CC28: 124.05 | CD28: 220.36 | CE28: 142.63 | CF28: 169 | CG28: 111.61 | CH28: 148.02 | CI28: 104.21 | CJ28: 8.37 | CK28: 25.83 | CL28: 55.72 | CM28: 27.65 | CN28: 15.09 | CO28: 13.95 | CP28: 47.77 | CQ28: 38.32 | CR28: 92.935 | CS28: 157.585 | CT28: 83.258 | CU28: 74.932 | CV28: 244.276 | CW28: 199.116 | CX28: 210 | CY28: 196.013 | CZ28: 122.136 | DA28: 115.859 | DB28: 142.933 | DC28: 135.917 | DD28: 211.092 | DE28: 194.556 | DF28: 188.235 | DG28: 195.215 | DH28: 206.004 | DI28: 211.07 | DJ28: 284.23 | DK28: 340.53 | DL28: 208.787 | DM28: 225.283 | DN28: 341.82 | DO28: 305.841 | DP28: 375.621 | DQ28: 343.394 | DR28: 392.132 | DS28: 372.443 | DT28: 381.595 | DU28: 389.66 | DV28: 417.32 | DW28: 349 | DX28: 339.229 | DY28: 214.771 | DZ28: 256.011 | EA28: 292.921 | EB28: 348.852 | EC28: 369.75 | ED28: 453.8581635 | EE28: 224.694 | EF28: 165.1407341 | EG28: 262.551 | EH28: 208.85 | EI28: 247.3014311 | EJ28: 294.769 | EK28: 297.075 | EL28: 288.23 | EM28: 292.011 | EN28: 303.19 | EO28: 162.659 | EP28: 325.24 | EQ28: 423.44 | ER28: 324.1635821 | ES28: 387.3057295 | ET28: 407.9413592 | EU28: 343.042 | EV28: 157.4848579 | EW28: 118.5819386 | EX28: 271.3590421 | EY28: 243.5962529 | EZ28: 313.51 | FA28: 235.42 | FB28: 348.17 | FC28: 371.4374588 | FD28: 307.1137067 | FE28: 243.1377211 | FF28: 310.850579 | FG28: 172.3210129 | FH28: 168.9310901 | FI28: 252.5148022 | FJ28: 342.3846299 | FK28: 316.7208704 | FL28: 319.715 | FM28: 291.839 | FN28: 134.585 | FO28: 148.933 | FP28: 162.032488 | FQ28: 168.905546 | FR28: 303.360674 | FS28: 101.769236 | FT28: 107.061113 | FU28: 161.136441 | FV28: 266.458244 | FW28: 119.060125 | FX28: 265.891891 | FY28: 183.80019 | FZ28: 247.745251 | GA28: 390.63094 | GB28: 391.828481 | GC28: 309.867218 | GD28: 239.697043 | GE28: 314.830981 | GF28: 404.188367 | GG28: 462.122789 | GH28: 506.7858 | GI28: 408.869695 | GJ28: 271.611165 | GK28: 300.654397 | GL28: 179.037147 | GM28: 257.818503 | GN28: 320.880433 | GO28: 205.875646 | GP28: 115.2408 | GQ28: 326.314278 | GR28: 265.987866 | GS28: 246.503142 | GT28: 251.109762 | GU28: 353.439397 | GV28: 368.108725 | GW28: 306.494278 | GX28: 165.920233 | GY28: 214.916536 | GZ28: 406.413282 | HA28: 336.885412 | HB28: 413.731899 | HC28: 327.757688 | HD28: 339.160529 | HE28: 398.422817 | HF28: 476.079468 | HG28: 446.286658 | HH28: 223.055554 | HI28: 63.569177 | HJ28: 87.103916 | HK28: 204.983957 | HL28: 204.871536 | HM28: 182.012295 | HN28: 75.188954 | HO28: 50.398072 | HP28: 78.280958 | HQ28: 80.252891 | HR28: 199.816491 | HS28: 119.469323 | HT28: 124.27604 | HU28: 81.723542 | HV28: 265.885196 | HW28: 255.409514 | HX28: 135.70551 | HY28: 122.463467 | HZ28: 216.734559 | IA28: 216.644286 | IB28: 246.815781 | IC28: 283.792887 | ID28: 299.543536 | IE28: 98.680956 | IF28: 78.065986 | IG28: 103.874576 | IH28: 74.677357 | II28: 111.093055 | IJ28: 114.199009 | IK28: 34.776349 | IL28: 71.161138 | IM28: 17.246377 | IN28: 26.028277 | IO28: 75.575051 | IP28: 56.6924 | IQ28: 154.419793 | IR28: 66.079705 | IS28: 39.201421 | IT28: 88.818539 | IU28: 37.830946 | IV28: 61.13089 | IW28: 2.853702 | IX28: 25.922622 | IY28: 59.799531 | IZ28: 102.621336 | JA28: 134.183372 | JB28: 205.599281 | JC28: 251.534427 | JD28: 237.191564 | JE28: 245.688133 | JF28: 84.518455 | JG28: 273.227047 | JH28: 402.457966 | JI28: 121.96676 | JJ28: 243.715784 | JK28: 144.247953 | JL28: 221.816224 | JM28: 388.342087 | JN28: 428.285801 | JO28: 260.498094 | JP28: 125.234414 | JQ28: 51.712547 | JR28: 133.506093 | JS28: 191.656223 | JT28: 212.239062 | JU28: 84.163452 | JV28: 12.76563 | JW28: 101.239162 | JX28: 363.0657 | JY28: 226.024378 | JZ28: 276.949211 | KA28: 377.35839 | KB28: 216.965914 | KC28: 211.677024 | KD28: 123.864988 | KE28: 402.302139 | KF28: 153.837548 | KG28: 29.111356 | KH28: 139.694587 | KI28: 15.888635 | KJ28: 366.243566 | KK28: 363.751648 | KL28: 404.952052 | KM28: 509.018766 | KN28: 466.034977 | KO28: 318.013094 | KP28: 383.684403 | KQ28: 278.772969 | KR28: 400.318474 | KS28: 146.489982 | KT28: 190.655507 | KU28: 234.117932 | KV28: 550.183341 | KW28: 490.53925 | KX28: 562.242886 | KY28: 421.095009 | KZ28: 201.865893 | LA28: 189.351954 | LB28: 314.242255 | LC28: 375.819043 | LD28: 189.530124 | LE28: 191.422573 | LF28: 155.179623 | LG28: 83.924256 | LH28: 164.024262 | LI28: 212.656092 | LJ28: 258.138135 | LK28: 214.839378 | LL28: 242.102797 | LM28: 121.562326 | LN28: 163.279603 | LO28: 234.314992 | LP28: 94.053519 | LQ28: 170.466938 | LR28: 320.85399 | LS28: 228.39037 | LT28: 300.308969 | LU28: 287.932737 | LV28: 250.776584 | LW28: 237.118247 | LX28: 289.329472 | LY28: - | LZ28: - | MA28: -
C29: Total | D29: =SUM(D22:D28) -> 47.323 | E29: =SUM(E22:E28) -> 108.853 | F29: 146.299 | G29: 115.286 | H29: 228.138 | I29: 111.479 | J29: 122.628 | K29: 147.154 | L29: 133.013 | M29: 116.373 | N29: 78.655 | O29: 156.478 | P29: 156.103 | Q29: 151.699 | R29: 85.3 | S29: 32.135 | T29: 52.838 | U29: 98.045 | V29: 112.479 | W29: 192.766 | X29: 121.315 | Y29: 131.496 | Z29: 164.697 | AA29: 166.428 | AB29: 131.995 | AC29: 116.939 | AD29: 185.743 | AE29: 244.815 | AF29: 467.818 | AG29: 568.071 | AH29: 427.925 | AI29: 342.491 | AJ29: 234.484 | AK29: 157.503 | AL29: 127.024 | AM29: 149.435 | AN29: 234.481 | AO29: 329.706 | AP29: 335.376 | AQ29: 260.335 | AR29: 273.678 | AS29: 276.416 | AT29: 353.256 | AU29: 141.31 | AV29: 138.537 | AW29: 92.852 | AX29: 136.879 | AY29: 130.65 | AZ29: 132.318 | BA29: 156.322 | BB29: 162.624 | BC29: 161.124 | BD29: 126.739 | BE29: 155.686 | BF29: 404.05 | BG29: 386.82 | BH29: 481.896 | BI29: 530.631 | BJ29: 510.122 | BK29: 528.673 | BL29: 544.403 | BM29: 483.807 | BN29: 505.597 | BO29: 462.601 | BP29: 505.769 | BQ29: =SUM(BQ22:BQ28) -> 496.345 | BR29: 556.998 | BS29: 550.102 | BT29: 532.55 | BU29: 469.545 | BV29: 443.413 | BW29: 337.482 | BX29: 185.889 | BY29: 107.276 | BZ29: 278.455 | CA29: 324.702 | CB29: 272.971 | CC29: 374.682 | CD29: 416.084 | CE29: 354.185 | CF29: 343.281 | CG29: 392.709 | CH29: 400.6 | CI29: 294.633 | CJ29: 26.226 | CK29: 100.429 | CL29: 205.401 | CM29: 172.412 | CN29: 177.457 | CO29: 141.751 | CP29: 191.585 | CQ29: 192.034 | CR29: 249.93 | CS29: 308.798 | CT29: 227.292 | CU29: 121.024 | CV29: 433.929 | CW29: 406.025 | CX29: 479.581 | CY29: 451.432 | CZ29: 410.297 | DA29: 391.334 | DB29: 429.866 | DC29: 451.724 | DD29: 406.65 | DE29: 460.473 | DF29: 443.725 | DG29: 500.577 | DH29: 531.317 | DI29: 553.583 | DJ29: 602.762 | DK29: 608.439 | DL29: 528.715 | DM29: 507.303 | DN29: 706.407 | DO29: 682.367 | DP29: 655.073 | DQ29: 664.2 | DR29: 738.623 | DS29: 687.042 | DT29: 522.152 | DU29: 692.481 | DV29: 833.488 | DW29: 775.925 | DX29: 823.411 | DY29: 651.09 | DZ29: 685.561 | EA29: 726.141 | EB29: 725.834 | EC29: =SUM(EC22:EC28) -> 743.713 | ED29: 825.267 | EE29: 495.869 | EF29: 283.789 | EG29: 343.691 | EH29: 274.666 | EI29: 466.878 | EJ29: 695.815 | EK29: 678.384 | EL29: 705.441 | EM29: 716.549 | EN29: 671.14 | EO29: 444.411 | EP29: 691.807 | EQ29: 752.127 | ER29: 711.089 | ES29: 827.363 | ET29: 902.682 | EU29: 854.962 | EV29: 588.851 | EW29: 423.768 | EX29: 745.834 | EY29: 752.017 | EZ29: 744.843 | FA29: 778.831 | FB29: 939.859 | FC29: 791.396 | FD29: 442.983 | FE29: 355.919 | FF29: 543.974 | FG29: 392.533 | FH29: 650.019 | FI29: 702.53 | FJ29: 679.906 | FK29: 682.772 | FL29: 659.65 | FM29: 582.297 | FN29: 378.477 | FO29: 315.91 | FP29: 398.461668 | FQ29: 372.818562 | FR29: 534.57281 | FS29: 385.372984 | FT29: 485.219558 | FU29: 467.533016 | FV29: 590.562643 | FW29: 366.505089 | FX29: 505.439051 | FY29: 495.345474 | FZ29: 559.0127 | GA29: 817.46948 | GB29: 945.256453 | GC29: 738.727267 | GD29: 643.570637 | GE29: 643.645033 | GF29: 816.901049 | GG29: 718.006451 | GH29: 673.630022 | GI29: 587.250081 | GJ29: 401.400827 | GK29: 425.042491 | GL29: 293.687366 | GM29: 413.302343 | GN29: 580.156032 | GO29: =SUM(GO22:GO28) -> 337.12068 | GP29: 164.3048 | GQ29: 525.877091 | GR29: 697.246753 | GS29: 577.697018 | GT29: 426.119411 | GU29: 685.097031 | GV29: 672.914729 | GW29: 592.998987 | GX29: 325.982409 | GY29: 304.596131 | GZ29: 728.266423 | HA29: 535.455882 | HB29: 696.921333 | HC29: 678.986381 | HD29: 567.531637 | HE29: 688.533642 | HF29: 711.379283 | HG29: 734.204599 | HH29: 440.274271 | HI29: 220.192506 | HJ29: 177.577374 | HK29: 418.748524 | HL29: 592.603523 | HM29: 530.684454 | HN29: 323.402698 | HO29: 195.910201 | HP29: 482.220652 | HQ29: 246.79822 | HR29: 424.353134 | HS29: 397.014309 | HT29: 298.057246 | HU29: 216.280284 | HV29: 418.930074 | HW29: 425.356698 | HX29: 224.80274 | HY29: 174.047912 | HZ29: 427.491664 | IA29: 503.819168 | IB29: 649.817604 | IC29: 463.459515 | ID29: 440.99473 | IE29: 283.527658 | IF29: 211.472321 | IG29: 193.967821 | IH29: 197.009528 | II29: 171.936891 | IJ29: 121.557724 | IK29: 46.976014 | IL29: 90.767992 | IM29: 35.958673 | IN29: 106.921913 | IO29: 245.339689 | IP29: 218.867365 | IQ29: 456.853795 | IR29: 277.673113 | IS29: 146.977534 | IT29: 181.844277 | IU29: 53.535181 | IV29: 112.02132 | IW29: 33.423021 | IX29: 58.33253 | IY29: 161.756886 | IZ29: 306.71637 | JA29: =SUM(JA22:JA28) -> 480.088164 | JB29: 569.889279 | JC29: 652.84516 | JD29: 456.436179 | JE29: 484.87696 | JF29: 149.945312 | JG29: 520.668589 | JH29: 775.913005 | JI29: 192.465426 | JJ29: 517.617901 | JK29: 336.457718 | JL29: 463.898867 | JM29: 576.5676 | JN29: 597.23351 | JO29: 489.400041 | JP29: 267.397124 | JQ29: 144.990118 | JR29: 210.578542 | JS29: 338.001103 | JT29: 407.635092 | JU29: 162.127855 | JV29: 16.360188 | JW29: 127.509276 | JX29: 643.104769 | JY29: 610.700118 | JZ29: 542.521319 | KA29: 708.938607 | KB29: 500.410348 | KC29: 422.183272 | KD29: 168.19351 | KE29: 569.390439 | KF29: 213.28157 | KG29: 31.780954 | KH29: 225.576625 | KI29: 61.34757 | KJ29: 715.627083 | KK29: 684.643585 | KL29: 730.760238 | KM29: 816.650393 | KN29: 786.304332 | KO29: 564.627966 | KP29: 618.424915 | KQ29: 513.735825 | KR29: 733.136481 | KS29: 172.004936 | KT29: 351.270512 | KU29: 559.219129 | KV29: 838.615688 | KW29: 773.13353 | KX29: 778.866551 | KY29: 727.351831 | KZ29: 564.61117 | LA29: 676.206224 | LB29: 1264.808502 | LC29: =SUM(LC22:LC28) -> 1691.663023 | LD29: =SUM(LD22:LD28) -> 906.531859 | LE29: 888.755546 | LF29: 746.001455 | LG29: 430.938632 | LH29: 924.300256 | LI29: 1210.403637 | LJ29: 1338.226321 | LK29: 1404.554545 | LL29: 1285.461886 | LM29: 734.831499 | LN29: 948.015429 | LO29: 1317.30999 | LP29: 505.546329 | LQ29: 896.209799 | LR29: 1815.841029 | LS29: =SUM(LS22:LS28) -> 1517.279999 | LT29: 1861.617417 | LU29: 1446.751409 | LV29: 1416.440712 | LW29: 1706.722029 | LX29: 1643.487609 | LY29: - | LZ29: - | MA29: -
B30: Portugal | C30: Aldeadávila-Pocinho 1 | D30: 27.425 | E30: 12.941 | F30: 0.163 | G30: 0.081 | H30: 0.187 | I30: 0.064 | J30: 0.002 | K30: 0.004 | L30: 0 | M30: 0.002 | N30: 0.224 | O30: 0.005 | P30: 0.172 | Q30: 0.424 | R30: 16.408 | S30: 9.857 | T30: 0.084 | U30: 1.758 | V30: 0.014 | W30: 0.014 | X30: 0 | Y30: 0.003 | Z30: 0.031 | AA30: 0.6 | AB30: 0 | AC30: 0 | AD30: 0.485 | AE30: 7.055 | AF30: 3.851 | AG30: 0.786 | AH30: 0 | AI30: 0.146 | AJ30: 0 | AK30: 0.435 | AL30: 0.008 | AM30: 0.05 | AN30: 0.063 | AO30: 0 | AP30: 0 | AQ30: 0 | AR30: 0 | AS30: 0.043 | AT30: 0 | AU30: 0.003 | AV30: 0 | AW30: 7.939 | AX30: 64.47 | AY30: 3.027 | AZ30: 6.444 | BA30: 0.021 | BB30: 1.353 | BC30: 7.741 | BD30: 11.63 | BE30: 0.277 | BF30: 0 | BG30: 0 | BH30: 0 | BI30: 0 | BJ30: 0.059 | BK30: 0 | BL30: 0.044 | BM30: 0.626 | BN30: 0 | BO30: 0 | BP30: 0 | BQ30: 0 | BR30: 0 | BS30: 0 | BT30: 0 | BU30: 0 | BV30: 0.769 | BW30: 12.177 | BX30: 56.804 | BY30: 46.388 | BZ30: 16.6 | CA30: 23.131 | CB30: 16.477 | CC30: 0.524 | CD30: 0.089 | CE30: 0 | CF30: 0 | CG30: 0 | CH30: 0 | CI30: 24.104 | CJ30: 41.169 | CK30: 7.571 | CL30: 0.962 | CM30: 0 | CN30: 0 | CO30: 1.69 | CP30: 0 | CQ30: 0 | CR30: 3.236 | CS30: 0.295 | CT30: 42.725 | CU30: 48.701 | CV30: 53.456 | CW30: 36.844 | CX30: 11.223 | CY30: 22.449 | CZ30: 8.866 | DA30: 25.153 | DB30: 0.519 | DC30: 0.005 | DD30: 0.361 | DE30: 0.787 | DF30: 0.501 | DG30: 0.03 | DH30: 0.043 | DI30: 0.672 | DJ30: 1.391 | DK30: 19.129 | DL30: 41.614 | DM30: 23.571 | DN30: 1.489 | DO30: 44.596 | DP30: 0 | DQ30: 13.321 | DR30: 32.705 | DS30: 16.02 | DT30: 19.172 | DU30: 21.189 | DV30: 2.284 | DW30: 18.572 | DX30: 53.842 | DY30: 1.803 | DZ30: 2.158 | EA30: 1.624 | EB30: 0.359 | EC30: 5.063 | ED30: 17.5528148 | EE30: 82.531 | EF30: 69.93781495 | EG30: 41.443 | EH30: 40.544 | EI30: 94.58 | EJ30: 26.158 | EK30: 19.8 | EL30: 8.418 | EM30: 25.215 | EN30: 8.608 | EO30: 48.448 | EP30: 33.574 | EQ30: 7.813 | ER30: 0.148542797 | ES30: 0 | ET30: 1.900759695 | EU30: 13.683 | EV30: 0.01839090021 | EW30: 0 | EX30: 0 | EY30: 0 | EZ30: 0.001 | FA30: 3.204 | FB30: 8.267 | FC30: 14.64152904 | FD30: 1.830443928 | FE30: 0.1960398128 | FF30: 6.955209158 | FG30: 9.124522232 | FH30: 4.084941295 | FI30: 2.945683466 | FJ30: 0.4097299751 | FK30: 0 | FL30: 0.011 | FM30: 8.242 | FN30: 47.081 | FO30: 14.112 | FP30: 3.95796 | FQ30: 4.7243 | FR30: 1.40132 | FS30: 0.98998 | FT30: 0.46992 | FU30: 0.0167 | FV30: 0.01346 | FW30: 0.3063 | FX30: 0.5197 | FY30: 0.51214 | FZ30: 0.49174 | GA30: 1.60194 | GB30: 0.00454 | GC30: 0.36764 | GD30: 0.46344 | GE30: 0.11242 | GF30: 0.09632 | GG30: 0.23828 | GH30: 0.00012 | GI30: 0 | GJ30: 0 | GK30: 0 | GL30: 0.0395 | GM30: 0.18326 | GN30: 0.1553 | GO30: 0.19932 | GP30: 18.3276 | GQ30: 2.65924 | GR30: 0.03804 | GS30: 0.38964 | GT30: 0.35654 | GU30: 0 | GV30: 0.04444 | GW30: 4.98028 | GX30: 36.69496 | GY30: 73.8412 | GZ30: 12.9035 | HA30: 19.3351 | HB30: 6.8415 | HC30: 1.5716 | HD30: 0.2876 | HE30: 1.8557 | HF30: 1.1905 | HG30: 0.0429 | HH30: 0.0011 | HI30: 0.0492 | HJ30: 0.0584 | HK30: 0.0257 | HL30: 0.7909 | HM30: 0.6044 | HN30: 0 | HO30: 1.7515 | HP30: 0.0586 | HQ30: 0.2289 | HR30: 0.2131 | HS30: 0.4685 | HT30: 0.8825 | HU30: 0.0858 | HV30: 0.034 | HW30: 0.8053 | HX30: 9.86 | HY30: 17.6766 | HZ30: 12.9783 | IA30: 0.7285 | IB30: 1.1554 | IC30: 0.4582 | ID30: 1.1856 | IE30: 2.8935 | IF30: 3.194 | IG30: 4.6245 | IH30: 5.3428 | II30: 66.3211 | IJ30: 136.7837 | IK30: 105.1134 | IL30: 116.3302 | IM30: 104.9051 | IN30: 71.5514 | IO30: 17.359 | IP30: 11.5375 | IQ30: 6.3086 | IR30: 7.2919 | IS30: 7.5145 | IT30: 37.3833 | IU30: 87.743 | IV30: 8.275 | IW30: 8.0963 | IX30: 9.741 | IY30: 1.8804 | IZ30: 4.3182 | JA30: 1.372 | JB30: 2.0896 | JC30: 2.5155 | JD30: 1.1342 | JE30: 1.36 | JF30: 5.4801 | JG30: 2.0817 | JH30: 0.0448 | JI30: 0.4609 | JJ30: 1.0431 | JK30: 2.8891 | JL30: 1.5872 | JM30: 1.0509 | JN30: 0.3828 | JO30: 1.4727 | JP30: 2.8683 | JQ30: 1.8851 | JR30: 6.9912 | JS30: 2.9068 | JT30: 18.3131 | JU30: 11.2055 | JV30: 43.4092 | JW30: 21.9196 | JX30: 4.6243 | JY30: 1.9207 | JZ30: 0.0563 | KA30: 0.5491 | KB30: 1.9592 | KC30: 5.9605 | KD30: 6.9787 | KE30: 11.4873 | KF30: 45.2283 | KG30: 29.0298 | KH30: 19.0511 | KI30: 2.0562 | KJ30: 3.6674 | KK30: 2.5283 | KL30: 0.1906 | KM30: 0.455 | KN30: 0.9623 | KO30: 5.037 | KP30: 19.448 | KQ30: 4.9084 | KR30: 6.0331 | KS30: 15.2474 | KT30: 6.0867 | KU30: 3.0492 | KV30: 4.0786 | KW30: 0.6287 | KX30: 1.4597 | KY30: 1.3241 | KZ30: 2.3782 | LA30: 15.8079 | LB30: 6.3339 | LC30: 5.5043 | LD30: 38.06 | LE30: 45.3419 | LF30: 16.925 | LG30: 26.1684 | LH30: 21.5165 | LI30: 13.5605 | LJ30: 13.3567 | LK30: 6.6514 | LL30: 15.645 | LM30: 12.1728 | LN30: 24.928 | LO30: 19.7099 | LP30: 17.5408 | LQ30: 34.7775 | LR30: 19.5968 | LS30: 9.393 | LT30: 8.4427 | LU30: 15.7273 | LV30: 25.1922 | LW30: 34.0654 | LX30: 14.4836 | LY30: - | LZ30: - | MA30: -
C31: Aldeadávila-Pocinho 2 | D31: 159.945 | E31: 150.287 | F31: 84.671 | G31: 29.42 | H31: 14.744 | I31: 12.188 | J31: 15.374 | K31: 16.622 | L31: 17.704 | M31: 24.254 | N31: 48.572 | O31: 34.015 | P31: 67.678 | Q31: 56.413 | R31: 147.89 | S31: 99.56 | T31: 90.145 | U31: 53.93 | V31: 2.868 | W31: 0.553 | X31: 1.312 | Y31: 24.388 | Z31: 30.574 | AA31: 18.651 | AB31: 6.765 | AC31: 0.572 | AD31: 0.86 | AE31: 29.638 | AF31: 4.851 | AG31: 6.236 | AH31: 0.824 | AI31: 5.271 | AJ31: 13.534 | AK31: 18.241 | AL31: 27.001 | AM31: 59.097 | AN31: 28.055 | AO31: 15.567 | AP31: 5.896 | AQ31: 0.784 | AR31: 18.373 | AS31: 32.094 | AT31: 22.472 | AU31: 1.331 | AV31: 11.087 | AW31: 99.589 | AX31: 144.747 | AY31: 74.207 | AZ31: 131.536 | BA31: 106.677 | BB31: 76.845 | BC31: 52.176 | BD31: 56.26 | BE31: 36.285 | BF31: 3.804 | BG31: 0.049 | BH31: 7.833 | BI31: 8.358 | BJ31: 14.414 | BK31: 9.125 | BL31: 43.373 | BM31: 73.744 | BN31: 51.273 | BO31: 21.498 | BP31: 8.268 | BQ31: 6.234 | BR31: 3.353 | BS31: 0.094 | BT31: 4.45 | BU31: 2.692 | BV31: 11.069 | BW31: 50.953 | BX31: 166.064 | BY31: 173.11 | BZ31: 143.039 | CA31: 142.844 | CB31: 122.642 | CC31: 71.484 | CD31: 39.317 | CE31: 14.398 | CF31: 6.361 | CG31: 0.099 | CH31: 43.716 | CI31: 133.174 | CJ31: 180.347 | CK31: 153.854 | CL31: 86.977 | CM31: 29.035 | CN31: 27.321 | CO31: 95.467 | CP31: 22.301 | CQ31: 11.784 | CR31: 58.94 | CS31: 50.141 | CT31: 147.362 | CU31: 175.871 | CV31: 185.229 | CW31: 161.064 | CX31: 108.944 | CY31: 128.412 | CZ31: 146.038 | DA31: 125.317 | DB31: 63.112 | DC31: 34.967 | DD31: 60.605 | DE31: 25.014 | DF31: 57.705 | DG31: 25.299 | DH31: 36.201 | DI31: 36.225 | DJ31: 63.414 | DK31: 98.749 | DL31: 91.778 | DM31: 77.063 | DN31: 45.036 | DO31: 61.932 | DP31: 19.365 | DQ31: 77.595 | DR31: 115.061 | DS31: 135.125 | DT31: 110.84 | DU31: 89.849 | DV31: 59.425 | DW31: 113.238 | DX31: 159.91 | DY31: 41.591 | DZ31: 35.655 | EA31: 13.528 | EB31: 48.464 | EC31: 61.423 | ED31: 93.54499634 | EE31: 174.572 | EF31: 164.8954263 | EG31: 138.38 | EH31: 130.85 | EI31: 153.678 | EJ31: 102.55 | EK31: 72.477 | EL31: 57.639 | EM31: 29.26 | EN31: 0 | EO31: 0 | EP31: 0 | EQ31: 0 | ER31: 8.449403125 | ES31: 37.67348116 | ET31: 75.42851396 | EU31: 82.211 | EV31: 35.05509924 | EW31: 36.21521342 | EX31: 7.362434962 | EY31: 1.766463617 | EZ31: 8.984 | FA31: 19.402 | FB31: 58.201 | FC31: 186.1696374 | FD31: 258.2694635 | FE31: 194.824366 | FF31: 209.2068829 | FG31: 162.7399852 | FH31: 130.123402 | FI31: 73.73775302 | FJ31: 45.45112941 | FK31: 15.97693679 | FL31: 34.051 | FM31: 37.471 | FN31: 48.02 | FO31: 204.488 | FP31: 133.485 | FQ31: 148.67816 | FR31: 105.36554 | FS31: 91.79474 | FT31: 89.97762 | FU31: 36.01252 | FV31: 16.80734 | FW31: 27.95328 | FX31: 42.5204 | FY31: 53.23416 | FZ31: 82.78512 | GA31: 27.5375 | GB31: 24.32554 | GC31: 30.2159 | GD31: 37.8364 | GE31: 39.55478 | GF31: 18.30568 | GG31: 16.90774 | GH31: 7.03604 | GI31: 1.12374 | GJ31: 6.89136 | GK31: 7.64478 | GL31: 27.71188 | GM31: 45.93892 | GN31: 21.7422 | GO31: 17.18706 | GP31: 104.57146 | GQ31: 85.80906 | GR31: 49.72014 | GS31: 22.40236 | GT31: 26.98824 | GU31: 4.18482 | GV31: 8.4991 | GW31: 77.737 | GX31: 151.82974 | GY31: 179.3464 | GZ31: 86.1963 | HA31: 142.9182 | HB31: 158.3586 | HC31: 66.5618 | HD31: 110.4916 | HE31: 81.7235 | HF31: 15.9952 | HG31: 3.9068 | HH31: 4.3174 | HI31: 13.6785 | HJ31: 15.8181 | HK31: 13.1599 | HL31: 12.4833 | HM31: 3.4159 | HN31: 0.6176 | HO31: 54.8602 | HP31: 75.8192 | HQ31: 71.0738 | HR31: 11.6837 | HS31: 13.7897 | HT31: 26.7208 | HU31: 7.7441 | HV31: 1.9092 | HW31: 34.9419 | HX31: 78.0575 | HY31: 149.293 | HZ31: 88.2106 | IA31: 24.6117 | IB31: 22.7842 | IC31: 17.3082 | ID31: 21.0761 | IE31: 18.347 | IF31: 31.4311 | IG31: 29.3428 | IH31: 34.0275 | II31: 86.9772 | IJ31: 125.2018 | IK31: 97.7269 | IL31: 106.1862 | IM31: 98.6065 | IN31: 54.6766 | IO31: 18.64 | IP31: 11.8 | IQ31: 1.5124 | IR31: 3.5185 | IS31: 7.5225 | IT31: 15.1283 | IU31: 64.7748 | IV31: 8.2081 | IW31: 8.0357 | IX31: 9.6677 | IY31: 1.8661 | IZ31: 4.2903 | JA31: 1.3617 | JB31: 2.0801 | JC31: 2.4908 | JD31: 1.1266 | JE31: 1.3577 | JF31: 5.447 | JG31: 2.061 | JH31: 0.0436 | JI31: 0.5852 | JJ31: 1.039 | JK31: 2.8706 | JL31: 1.5919 | JM31: 1.0424 | JN31: 0.3822 | JO31: 1.4617 | JP31: 2.8444 | JQ31: 1.874 | JR31: 6.9528 | JS31: 2.88 | JT31: 18.2422 | JU31: 11.1659 | JV31: 43.237 | JW31: 21.8428 | JX31: 4.5997 | JY31: 1.9026 | JZ31: 0.0554 | KA31: 0.5439 | KB31: 1.9478 | KC31: 5.9126 | KD31: 6.9491 | KE31: 11.4113 | KF31: 45.1195 | KG31: 25.9782 | KH31: 18.9668 | KI31: 2.0564 | KJ31: 3.6598 | KK31: 1.80496 | KL31: 0.6523 | KM31: 0.4568 | KN31: 0.8764 | KO31: 5.0236 | KP31: 19.379 | KQ31: 4.908 | KR31: 6.0287 | KS31: 15.2467 | KT31: 6.0831 | KU31: 3.0556 | KV31: 4.087 | KW31: 0.6268 | KX31: 1.4594 | KY31: 1.3294 | KZ31: 2.3709 | LA31: 15.7339 | LB31: 6.3353 | LC31: 5.4903 | LD31: 37.9258 | LE31: 45.1357 | LF31: 16.9038 | LG31: 26.0742 | LH31: 21.5675 | LI31: 3.54849 | LJ31: 0.0659 | LK31: 6.6389 | LL31: 8.89053 | LM31: 9.4926 | LN31: 26.7213 | LO31: 19.6239 | LP31: 17.4855 | LQ31: 34.6529 | LR31: 19.6207 | LS31: 9.4182 | LT31: 8.4519 | LU31: 15.6564 | LV31: 24.4665 | LW31: 33.8539 | LX31: 14.4567 | LY31: - | LZ31: - | MA31: -
C32: Aldeadávila-Lagoaça | D32: 0 | E32: 0 | F32: 0 | G32: 0 | H32: 0 | I32: 0 | J32: 0 | K32: 0 | L32: 0 | M32: 0 | N32: 0 | O32: 0 | P32: 0 | Q32: 0 | R32: 0 | S32: 0 | T32: 0 | U32: 0 | V32: 0 | W32: 0 | X32: 0 | Y32: 0 | Z32: 0 | AA32: 0 | AB32: 0 | AC32: 0 | AD32: 0 | AE32: 0 | AF32: 0 | AG32: 0 | AH32: 0 | AI32: 0 | AJ32: 0 | AK32: 0 | AL32: 0 | AM32: 0 | AN32: 0 | AO32: 0 | AP32: 0 | AQ32: 0 | AR32: 0 | AS32: 0 | AT32: 0 | AU32: 0 | AV32: 0 | AW32: 0 | AX32: 0 | AY32: 0 | AZ32: 0 | BA32: 0 | BB32: 0 | BC32: 0 | BD32: 0 | BE32: 0 | BF32: 0 | BG32: 0 | BH32: 0 | BI32: 0 | BJ32: 0 | BK32: 0 | BL32: 0 | BM32: 0 | BN32: 0 | BO32: 0 | BP32: 0 | BQ32: 0 | BR32: 0 | BS32: 0 | BT32: 0 | BU32: 0 | BV32: 0 | BW32: 0 | BX32: 0 | BY32: 0 | BZ32: 0 | CA32: 0 | CB32: 0 | CC32: 0 | CD32: 0 | CE32: 0 | CF32: 0 | CG32: 0 | CH32: 0 | CI32: 0 | CJ32: 0 | CK32: 0 | CL32: 0 | CM32: 0 | CN32: 0 | CO32: 0 | CP32: 0 | CQ32: 0 | CR32: 0 | CS32: 0 | CT32: 0 | CU32: 0 | CV32: 0 | CW32: 0 | CX32: 0 | CY32: 0 | CZ32: 0 | DA32: 0 | DB32: 0 | DC32: 0 | DD32: 0 | DE32: 0 | DF32: 0 | DG32: 0 | DH32: 0 | DI32: 0 | DJ32: 0 | DK32: 0 | DL32: 0 | DM32: 0 | DN32: 0 | DO32: 0 | DP32: 0 | DQ32: 0 | DR32: 0 | DS32: 0 | DT32: 0 | DU32: 0 | DV32: 0 | DW32: 0 | DX32: 0 | DY32: 0 | DZ32: 0 | EA32: 0 | EB32: 0 | EC32: 0 | ED32: 0 | EE32: 0 | EF32: 0 | EG32: 0 | EH32: 0 | EI32: 0 | EJ32: 0 | EK32: 0 | EL32: 0 | EM32: 0 | EN32: 0 | EO32: 0 | EP32: 0 | EQ32: 0 | ER32: 0 | ES32: 0 | ET32: 0 | EU32: 0 | EV32: 0 | EW32: 0 | EX32: 0 | EY32: 0 | EZ32: 0 | FA32: 0 | FB32: 0 | FC32: 0 | FD32: 0 | FE32: 0 | FF32: 0 | FG32: 0 | FH32: 0 | FI32: 0 | FJ32: 0 | FK32: 0 | FL32: 0 | FM32: 0 | FN32: 0 | FO32: 0 | FP32: 0 | FQ32: 0 | FR32: 0 | FS32: 0 | FT32: 0 | FU32: 0 | FV32: 0 | FW32: 0 | FX32: 0 | FY32: 0 | FZ32: 0 | GA32: 0 | GB32: 0 | GC32: 0 | GD32: 0 | GE32: 0 | GF32: 0 | GG32: 0 | GH32: 0 | GI32: 0 | GJ32: 0 | GK32: 0 | GL32: 0 | GM32: 0 | GN32: 0 | GO32: 0 | GP32: 0 | GQ32: 0 | GR32: 0 | GS32: 0 | GT32: 0 | GU32: 0 | GV32: 0 | GW32: 0 | GX32: 0 | GY32: 0 | GZ32: 0 | HA32: 0 | HB32: 0 | HC32: 0 | HD32: 0 | HE32: 0 | HF32: 0 | HG32: 0 | HH32: 0 | HI32: 0 | HJ32: 0 | HK32: 0 | HL32: 0 | HM32: 0 | HN32: 0 | HO32: 0 | HP32: 0 | HQ32: 0 | HR32: 0 | HS32: 0 | HT32: 0 | HU32: 0 | HV32: 0 | HW32: 0 | HX32: 0 | HY32: 0 | HZ32: 0 | IA32: 0 | IB32: 0 | IC32: 0 | ID32: 0 | IE32: 0 | IF32: 0 | IG32: 0 | IH32: 0 | II32: 0 | IJ32: 0 | IK32: 0 | IL32: 0 | IM32: 0 | IN32: 0 | IO32: 0 | IP32: 0 | IQ32: 0 | IR32: 0 | IS32: 0 | IT32: 0 | IU32: 54.690336 | IV32: 335.449728 | IW32: 206.733816 | IX32: 259.568648 | IY32: 139.313188 | IZ32: 154.162008 | JA32: 18.679464 | JB32: 18.684432 | JC32: 36.076968 | JD32: 49.440456 | JE32: 46.248408 | JF32: 127.941984 | JG32: 85.53276 | JH32: 8.555544 | JI32: 15.744672 | JJ32: 20.756736 | JK32: 24.456816 | JL32: 38.028312 | JM32: 23.66172 | JN32: 9.44352 | JO32: 27.107136 | JP32: 25.681752 | JQ32: 34.567344 | JR32: 113.614704 | JS32: 82.272888 | JT32: 214.279992 | JU32: 232.099344 | JV32: 442.186128 | JW32: 474.553296 | JX32: 155.706624 | JY32: 68.01084 | JZ32: 5.456376 | KA32: 23.975136 | KB32: 37.015272 | KC32: 121.41036 | KD32: 132.681024 | KE32: 164.905848 | KF32: 584.251056 | KG32: 502.675848 | KH32: 462.699216 | KI32: 294.502392 | KJ32: 56.690928 | KK32: 47.196216 | KL32: 20.251944 | KM32: 26.261928 | KN32: 39.417192 | KO32: 69.514849 | KP32: 225.19296 | KQ32: 153.259992 | KR32: 98.770104 | KS32: 318.021552 | KT32: 244.750248 | KU32: 99.070776 | KV32: 119.2968 | KW32: 45.234288 | KX32: 27.445392 | KY32: 28.97424 | KZ32: 53.7732 | LA32: 188.776656 | LB32: 83.978856 | LC32: 106.119072 | LD32: 517.398624 | LE32: 520.967592 | LF32: 284.648688 | LG32: 478.396368 | LH32: 358.017192 | LI32: 146.774592 | LJ32: 117.827352 | LK32: 92.385576 | LL32: 125.392104 | LM32: 136.746144 | LN32: 226.316592 | LO32: 169.807752 | LP32: 175.717944 | LQ32: 241.481088 | LR32: 156.247488 | LS32: 90.07092 | LT32: 113.740632 | LU32: 187.036344 | LV32: 230.119272 | LW32: 210.638232 | LX32: 73.6182 | LY32: - | LZ32: - | MA32: -
C33: Badajoz-Alcaçovas | D33: 0 | E33: 0 | F33: 0 | G33: 0 | H33: 0 | I33: 0 | J33: 0 | K33: 0 | L33: 0 | M33: 0 | N33: 0 | O33: 0 | P33: 0 | Q33: 0 | R33: 0 | S33: 0 | T33: 0 | U33: 0 | V33: 0 | W33: 0 | X33: 0 | Y33: 0 | Z33: 0 | AA33: 0 | AB33: 0 | AC33: 0 | AD33: 0 | AE33: 0 | AF33: 0 | AG33: 0 | AH33: 0 | AI33: 0 | AJ33: 0 | AK33: 0 | AL33: 0 | AM33: 0 | AN33: 0 | AO33: 0 | AP33: 0 | AQ33: 0 | AR33: 0 | AS33: 0 | AT33: 0 | AU33: 0 | AV33: 0 | AW33: 0 | AX33: 0 | AY33: 0 | AZ33: 0 | BA33: 0 | BB33: 0 | BC33: 0 | BD33: 0 | BE33: 0 | BF33: 0 | BG33: 0 | BH33: 0 | BI33: 0 | BJ33: 0 | BK33: 0 | BL33: 0 | BM33: 0 | BN33: 0 | BO33: 0 | BP33: 0 | BQ33: 0 | BR33: 0 | BS33: 0 | BT33: 0 | BU33: 0 | BV33: 0 | BW33: 0 | BX33: 0 | BY33: 0 | BZ33: 0 | CA33: 0 | CB33: 0 | CC33: 0 | CD33: 0 | CE33: 0 | CF33: 0 | CG33: 0 | CH33: 0 | CI33: 0 | CJ33: 0 | CK33: 0 | CL33: 0 | CM33: 0 | CN33: 0 | CO33: 0 | CP33: 0 | CQ33: 0 | CR33: 0 | CS33: 0 | CT33: 0 | CU33: 0 | CV33: 0 | CW33: 0 | CX33: 0 | CY33: 0 | CZ33: 0 | DA33: 0 | DB33: 0 | DC33: 0 | DD33: 0 | DE33: 0 | DF33: 0 | DG33: 0 | DH33: 0 | DI33: 0 | DJ33: 0 | DK33: 0 | DL33: 0 | DM33: 0 | DN33: 0 | DO33: 0 | DP33: 0 | DQ33: 0 | DR33: 0 | DS33: 0 | DT33: 0 | DU33: 0 | DV33: 0 | DW33: 0 | DX33: 0 | DY33: 0 | DZ33: 0 | EA33: 0 | EB33: 0 | EC33: 0 | ED33: 0 | EE33: 0 | EF33: 0 | EG33: 0 | EH33: 0 | EI33: 0 | EJ33: 0 | EK33: 0 | EL33: 0 | EM33: 0 | EN33: 0 | EO33: 0 | EP33: 0 | EQ33: 0 | ER33: 0 | ES33: 0 | ET33: 0 | EU33: 0 | EV33: 0 | EW33: 0 | EX33: 0 | EY33: 0 | EZ33: 0 | FA33: 0 | FB33: 0 | FC33: 0 | FD33: 0 | FE33: 0 | FF33: 0 | FG33: 0 | FH33: 0 | FI33: 0 | FJ33: 0 | FK33: 0 | FL33: 0 | FM33: 0 | FN33: 0 | FO33: 0 | FP33: 0 | FQ33: 0 | FR33: 0 | FS33: 0 | FT33: 0 | FU33: 0 | FV33: 0 | FW33: 0 | FX33: 0 | FY33: 0 | FZ33: 0 | GA33: 0 | GB33: 0 | GC33: 0 | GD33: 0 | GE33: 0 | GF33: 0 | GG33: 0 | GH33: 0 | GI33: 0 | GJ33: 0 | GK33: 5e-06 | GL33: 2.5e-05 | GM33: 0 | GN33: 0 | GO33: 0 | GP33: 0 | GQ33: 0 | GR33: 0 | GS33: 0 | GT33: 0 | GU33: 4e-06 | GV33: 0 | GW33: 0 | GX33: 0 | GY33: 9.6e-05 | GZ33: 0 | HA33: 0 | HB33: 0 | HC33: 0 | HD33: 0.000204 | HE33: 0.000112 | HF33: 0.000111 | HG33: 5e-06 | HH33: 0.001501 | HI33: 0 | HJ33: 0 | HK33: 0 | HL33: 0 | HM33: 0 | HN33: 0 | HO33: 0 | HP33: 2.4e-05 | HQ33: 5.3e-05 | HR33: 0 | HS33: 5e-06 | HT33: 0 | HU33: 0 | HV33: 0 | HW33: 1.1e-05 | HX33: 0.000102 | HY33: 0 | HZ33: 0.000259 | IA33: 0 | IB33: 0 | IC33: 0 | ID33: 5e-06 | IE33: 0 | IF33: 0 | IG33: 0 | IH33: 0.000143 | II33: 0.000285 | IJ33: 0 | IK33: 2.5e-05 | IL33: 0.000173 | IM33: 0 | IN33: 4.5e-05 | IO33: 9.6e-05 | IP33: 2.4e-05 | IQ33: 0 | IR33: 6.7e-05 | IS33: 2.5e-05 | IT33: 0 | IU33: 0 | IV33: 0 | IW33: 0 | IX33: 0.00363 | IY33: 0 | IZ33: 4e-06 | JA33: 5.1e-05 | JB33: 0.00012 | JC33: 0.000183 | JD33: 0.000154 | JE33: 0.000144 | JF33: 1.9e-05 | JG33: 1e-05 | JH33: 2.4e-05 | JI33: 9.1e-05 | JJ33: 0.000742 | JK33: 0.000141 | JL33: 0.00012 | JM33: 0.000139 | JN33: 0.000192 | JO33: 0.000192 | JP33: 0.000159 | JQ33: 6.2e-05 | JR33: 1.9e-05 | JS33: 1e-05 | JT33: 1.4e-05 | JU33: 2.4e-05 | JV33: 3.4e-05 | JW33: 6.7e-05 | JX33: 0.000135 | JY33: 0.000172 | JZ33: 0.000221 | KA33: 0.000245 | KB33: 0.000183 | KC33: 6.7e-05 | KD33: 3.8e-05 | KE33: 2.9e-05 | KF33: 1e-05 | KG33: 1.4e-05 | KH33: 5.3e-05 | KI33: 6.2e-05 | KJ33: 0.000159 | KK33: 0.000153 | KL33: 0.000178 | KM33: 0.000173 | KN33: 7.6e-05 | KO33: 5.3e-05 | KP33: 1.4e-05 | KQ33: 2.4e-05 | KR33: 2.4e-05 | KS33: 2.4e-05 | KT33: 7.7e-05 | KU33: 8.1e-05 | KV33: 0.000178 | KW33: 0.000211 | KX33: 0.000216 | KY33: 0.000187 | KZ33: 0.00013 | LA33: 4.8e-05 | LB33: 4.8e-05 | LC33: 2.4e-05 | LD33: 1e-05 | LE33: 2.9e-05 | LF33: 4.3e-05 | LG33: 6.7e-05 | LH33: 0.000101 | LI33: 0.000153 | LJ33: 0.00024 | LK33: 0.00025 | LL33: 0.000193 | LM33: 8.1e-05 | LN33: 3.4e-05 | LO33: 2.9e-05 | LP33: 3.8e-05 | LQ33: 2.4e-05 | LR33: 5.8e-05 | LS33: 0.00011 | LT33: 0.000653 | LU33: 0.000192 | LV33: 0.00025 | LW33: 0.000259 | LX33: 0.000216 | LY33: - | LZ33: - | MA33: -
C34: Balboa-Alqueva | D34: 0 | E34: 0 | F34: 0 | G34: 0 | H34: 0 | I34: 0 | J34: 0 | K34: 0 | L34: 0 | M34: 0 | N34: 0 | O34: 0 | P34: 0 | Q34: 0 | R34: 0 | S34: 0 | T34: 0 | U34: 0 | V34: 0 | W34: 0 | X34: 0 | Y34: 0 | Z34: 0 | AA34: 0 | AB34: 0 | AC34: 0 | AD34: 0 | AE34: 0 | AF34: 0 | AG34: 0 | AH34: 0 | AI34: 0 | AJ34: 0 | AK34: 0 | AL34: 0 | AM34: 0 | AN34: 0 | AO34: 0 | AP34: 0 | AQ34: 0 | AR34: 0 | AS34: 0 | AT34: 0 | AU34: 0 | AV34: 0 | AW34: 0 | AX34: 0 | AY34: 0 | AZ34: 0 | BA34: 0 | BB34: 0 | BC34: 0 | BD34: 0 | BE34: 0 | BF34: 0 | BG34: 0 | BH34: 0 | BI34: 0 | BJ34: 0 | BK34: 0 | BL34: 0 | BM34: 0 | BN34: 0 | BO34: 0 | BP34: 0 | BQ34: 0 | BR34: 0 | BS34: 0 | BT34: 0 | BU34: 0 | BV34: 0 | BW34: 0 | BX34: 0 | BY34: 0 | BZ34: 0 | CA34: 0 | CB34: 0 | CC34: 0 | CD34: 0 | CE34: 0 | CF34: 0 | CG34: 0 | CH34: 0 | CI34: 0 | CJ34: 0 | CK34: 0 | CL34: 0 | CM34: 0 | CN34: 0 | CO34: 0 | CP34: 0 | CQ34: 0 | CR34: 0 | CS34: 0 | CT34: 0 | CU34: 0 | CV34: 0 | CW34: 0 | CX34: 0 | CY34: 0 | CZ34: 0 | DA34: 0 | DB34: 0 | DC34: 0 | DD34: 0 | DE34: 0 | DF34: 0 | DG34: 0 | DH34: 0 | DI34: 0 | DJ34: 0 | DK34: 0 | DL34: 0 | DM34: 0 | DN34: 0 | DO34: 0 | DP34: 0 | DQ34: 0 | DR34: 0 | DS34: 0 | DT34: 0 | DU34: 0 | DV34: 0 | DW34: 0 | DX34: 0 | DY34: 0 | DZ34: 0 | EA34: 0 | EB34: 0 | EC34: 0 | ED34: 0 | EE34: 0 | EF34: 0 | EG34: 0 | EH34: 0 | EI34: 0 | EJ34: 0 | EK34: 0 | EL34: 0 | EM34: 0 | EN34: 0 | EO34: 0 | EP34: 0 | EQ34: 0 | ER34: 0 | ES34: 0 | ET34: 0 | EU34: 0 | EV34: 0 | EW34: 0 | EX34: 0 | EY34: 0 | EZ34: 0 | FA34: 0 | FB34: 0 | FC34: 0 | FD34: 0 | FE34: 0 | FF34: 0 | FG34: 0 | FH34: 0 | FI34: 0 | FJ34: 0 | FK34: 0 | FL34: 0 | FM34: 0 | FN34: 0 | FO34: 0 | FP34: 0 | FQ34: 0 | FR34: 0 | FS34: 0 | FT34: 0 | FU34: 0 | FV34: 0 | FW34: 0 | FX34: 0 | FY34: 0 | FZ34: 0 | GA34: 54.660302 | GB34: 244.282483 | GC34: 180.222027 | GD34: 137.784886 | GE34: 86.561326 | GF34: 79.475149 | GG34: 109.447278 | GH34: 142.637086 | GI34: 96.627202 | GJ34: 101.78717 | GK34: 122.689014 | GL34: 94.217994 | GM34: 187.659163 | GN34: 117.424743 | GO34: 136.40324 | GP34: 98.028634 | GQ34: 104.456099 | GR34: 74.798114 | GS34: 71.147008 | GT34: 103.634349 | GU34: 182.096942 | GV34: 45.765324 | GW34: 81.021402 | GX34: 44.354743 | GY34: 0 | GZ34: 0 | HA34: 0 | HB34: 0 | HC34: 0 | HD34: 0 | HE34: 0 | HF34: 0 | HG34: 0 | HH34: 0 | HI34: 0 | HJ34: 0 | HK34: 0 | HL34: 0 | HM34: 0 | HN34: 0 | HO34: 0 | HP34: 0 | HQ34: 0 | HR34: 0 | HS34: 0 | HT34: 0 | HU34: 0 | HV34: 0 | HW34: 0 | HX34: 0 | HY34: 0 | HZ34: 0 | IA34: 0 | IB34: 0 | IC34: 0 | ID34: 0 | IE34: 0 | IF34: 0 | IG34: 0 | IH34: 0 | II34: 0 | IJ34: 0 | IK34: 0 | IL34: 0 | IM34: 0 | IN34: 0 | IO34: 0 | IP34: 0 | IQ34: 0 | IR34: 0 | IS34: 0 | IT34: 0 | IU34: 0 | IV34: 0 | IW34: 0 | IX34: 0 | IY34: 0 | IZ34: 0 | JA34: 0 | JB34: 0 | JC34: 0 | JD34: 0 | JE34: 0 | JF34: 0 | JG34: 0 | JH34: 0 | JI34: 0 | JJ34: 0 | JK34: 0 | JL34: 0 | JM34: 0 | JN34: 0 | JO34: 0 | JP34: 0 | JQ34: 0 | JR34: 0 | JS34: 0 | JT34: 0 | JU34: 0 | JV34: 0 | JW34: 0 | JX34: 0 | JY34: 0 | JZ34: 0 | KA34: 0 | KB34: 0 | KC34: 0 | KD34: 0 | KE34: 0 | KF34: 0 | KG34: 0 | KH34: 0 | KI34: 0 | KJ34: 0 | KK34: 0 | KL34: 0 | KM34: 0 | KN34: 0 | KO34: 0 | KP34: 0 | KQ34: 0 | KR34: 0 | KS34: 0 | KT34: 0 | KU34: 0 | KV34: 0 | KW34: 0 | KX34: 0 | KY34: 0 | KZ34: 0 | LA34: 0 | LB34: 0 | LC34: 0 | LD34: 0 | LE34: 0 | LF34: 0 | LG34: 0 | LH34: 0 | LI34: 0 | LJ34: 0 | LK34: 0 | LL34: 0 | LM34: 0 | LN34: 0 | LO34: 0 | LP34: 0 | LQ34: 0 | LR34: 0 | LS34: 0 | LT34: 0 | LU34: 0 | LV34: 0 | LW34: 0 | LX34: 0 | LY34: - | LZ34: - | MA34: -
